Workbook

Sheet Income Table
A1: Income Rider Payouts | I1: State: | U1: Assumed Rate: | BV1: Premium: | BX1: Years Deferred: | BZ1: Age:
A2: updated: | B2: 41841 | I2: Kansas | U2: 0 | BV2: 100000 | BX2: 10 | BZ2: 55
N3: =IF(ror=0,"","Some of these incomes are NOT guaranteed.") -> 
A5: Company | B5: A.M. Best | C5: S&P | D5: Rider Name | E5: Bonus* | F5: Annual Benefit Base Increase Rate | G5: Rollup2 | H5: Rollup Switch | I5: Increase Type | J5: Rollup Bonus? | K5: Fee Taken | L5: Rider Fee | M5: Max Years for Increase | N5: Min Income Age | O5: Max Payout | P5: Joint Reduction | Q5: Min Issue Age | R5: Required Deferral | S5: Min Prem | T5: Max Prem | U5: Max Issue | V5: Alabama | W5: Alaska | X5: Arizona | Y5: Arkansas | Z5: California | AA5: Colorado | AB5: Connecticut | AC5: Delaware | AD5: Florida | AE5: Georgia | AF5: Hawaii | AG5: Idaho | AH5: Illinois | AI5: Indiana | AJ5: Iowa | AK5: Kansas | AL5: Kentucky | AM5: Louisiana | AN5: Maine | AO5: Maryland | AP5: Massachusetts | AQ5: Michigan | AR5: Minnesota | AS5: Mississippi | AT5: Missouri | AU5: Montana | AV5: Nebraska | AW5: Nevada | AX5: New Hampshire | AY5: New Jersey | AZ5: New Mexico | BA5: New York | BB5: North Carolina | BC5: North Dakota | BD5: Ohio | BE5: Oklahoma | BF5: Oregon | BG5: Pennsylvania | BH5: Rhode Island | BI5: South Carolina | BJ5: South Dakota | BK5: Tennessee | BL5: Texas | BM5: Utah | BN5: Vermont | BO5: Virginia | BP5: Washington | BQ5: West Virginia | BR5: Wisconsin | BS5: Wyoming | BT5: Attained Age | BU5: Benefit Base | BV5: Single Income Percentage | BW5: Single Annual Income | BX5: Joint Income Percentage | BY5: Joint Annual Income | BZ5: Death Benefit Type | CA5: Death Benefit
A6: Allianz | B6: A | C6: AA | D6: Simple Income | E6: 0.05 | F6: 0.08 | I6: Simple | J6: 0 | L6: 0.0095 | M6: =MAX(90-Age,0) -> 35 | N6: 50 | O6: 0.06 | P6: 0.005 | Q6: 0 | R6: 0 | S6: 20000 | T6: 1000000 | U6: 80 | V6: 0.05 | W6: 0.05 | X6: 0.05 | Y6: 0.05 | Z6: 0.05 | AA6: 0.05 | AB6: X | AC6: 0.05 | AD6: 0.05 | AE6: 0.05 | AF6: 0.05 | AG6: 0.05 | AH6: 0.05 | AI6: 0.05 | AJ6: 0.05 | AK6: 0.05 | AL6: 0.05 | AM6: 0.05 | AN6: 0.05 | AO6: 0.05 | AP6: 0.05 | AQ6: 0.05 | AR6: 0.05 | AS6: 0.05 | AT6: 0.05 | AU6: 0.05 | AV6: 0.05 | AW6: 0.05 | AX6: 0.05 | AY6: 0.05 | AZ6: 0.05 | BA6: X | BB6: 0.05 | BC6: 0.05 | BD6: 0.05 | BE6: 0.05 | BF6: 0.05 | BG6: 0.05 | BH6: 0.05 | BI6: 0.05 | BJ6: 0.05 | BK6: 0.05 | BL6: 0.05 | BM6: 0.05 | BN6: 0.05 | BO6: 0.05 | BP6: 0.05 | BQ6: 0.05 | BR6: 0.05 | BS6: 0.05 | BT6: =Age+Defer -> 65 | BU6: =IF(Table[[#This Row],[Bonus*]]="X","n/a",Premium*(1+Table[[#This Row],[Bonus*]])*IF(Table[[#This Row],[Increase Type]]="Simple",1,(1+Table[[#This Row],[Annual Benefit Base Increase Rate]])^MIN(TRUNC(Defer,0),Table[[#This Row],[Max Years for Increase]]))+IF(Table[[#This Row],[Increase Type]]="Simple",Table[[#This Row],[Annual Benefit Base Increase Rate]]*Premium*(1+Table[[#This Row],[Rollup Bonus?]]*Table[[#This Row],[Bonus*]])*MIN(TRUNC(Defer,0),Table[[#This Row],[Max Years for Increase]]),0)) -> 185000 | BV6: =IF(Table[[#This Row],[Attained Age]]<Table[[#This Row],[Min Income Age]],0,MIN(FLOOR(Table[[#This Row],[Attained Age]]+40,10)/2000,Table[[#This Row],[Max Payout]])) -> 0.05 | BW6: =IF(OR(Defer<Table[[#This Row],[Required Deferral]],Table[[#This Row],[Bonus*]]="X"),0,Table[[#This Row],[Benefit Base]]*Table[[#This Row],[Single Income Percentage]]) -> 9250 | BX6: =IF(Table[[#This Row],[Single Income Percentage]]=0,0,Table[[#This Row],[Single Income Percentage]]-Table[[#This Row],[Joint Reduction]]) -> 0.045 | BY6: =IF(Table[[#This Row],[Single Annual Income]]=0,0,Table[[#This Row],[Benefit Base]]*Table[[#This Row],[Joint Income Percentage]]) -> 8325 | BZ6: AV | CA6: 0
A7: Allianz | B7: A | C7: AA | D7: 360 | E7: =IF(OR(Age<Table[[#This Row],[Min Issue Age]],Age>Table[[#This Row],[Max Issue]]),"X",HLOOKUP(State,States,ROW(Table[#This Row])-4,FALSE)) -> 0 | F7: =ror*1.25 -> 0 | J7: 1 | K7: AV | L7: 0.0105 | M7: none | N7: 50 | O7: 1 | P7: 0.005 | Q7: 0 | R7: 0 | S7: 20000 | T7: 1000000 | U7: 80 | V7: 0 | W7: 0 | X7: 0 | Y7: 0 | Z7: 0 | AA7: 0 | AB7: 0 | AC7: 0 | AD7: 0 | AE7: 0 | AF7: 0 | AG7: 0 | AH7: 0 | AI7: 0 | AJ7: 0 | AK7: 0 | AL7: 0 | AM7: 0 | AN7: 0 | AO7: 0 | AP7: 0 | AQ7: 0 | AR7: 0 | AS7: 0 | AT7: 0 | AU7: 0 | AV7: 0 | AW7: 0 | AX7: 0 | AY7: 0 | AZ7: 0 | BA7: X | BB7: 0 | BC7: 0 | BD7: 0 | BE7: 0 | BF7: 0 | BG7: 0 | BH7: 0 | BI7: 0 | BJ7: 0 | BK7: 0 | BL7: 0 | BM7: 0 | BN7: 0 | BO7: 0 | BP7: 0 | BQ7: 0 | BR7: 0 | BS7: 0 | BT7: 65 | BU7: =IF(Table[[#This Row],[Bonus*]]="X","n/a",Premium*(1+Table[[#This Row],[Bonus*]])*MAX(((1+Table[[#This Row],[Annual Benefit Base Increase Rate]])*(1-Table[[#This Row],[Rider Fee]]))^Defer,1)) -> 100000 | BV7: =IF(Table[[#This Row],[Attained Age]]<Table[[#This Row],[Min Income Age]],0,MIN(MAX((Age-10)/1000,0.04),Table[[#This Row],[Max Payout]])+Defer*MAX((Age-20)/10000,0.003)) -> 0.08 | BW7: =IF(OR(Defer<Table[[#This Row],[Required Deferral]],Table[[#This Row],[Bonus*]]="X"),0,Table[[#This Row],[Benefit Base]]*Table[[#This Row],[Single Income Percentage]]) -> 8000 | BX7: =IF(Table[[#This Row],[Single Income Percentage]]=0,0,Table[[#This Row],[Single Income Percentage]]-Table[[#This Row],[Joint Reduction]]) -> 0.075 | BY7: =IF(Table[[#This Row],[Single Annual Income]]=0,0,Table[[#This Row],[Benefit Base]]*Table[[#This Row],[Joint Income Percentage]]) -> 7500 | BZ7: AV | CA7: 0
A8: Allianz | B8: A | C8: AA | D8: Endurance | E8: =IF(OR(Age<Table[[#This Row],[Min Issue Age]],Age>Table[[#This Row],[Max Issue]]),"X",HLOOKUP(State,States,ROW(Table[#This Row])-4,FALSE)) -> 0.2 | F8: =ror*1.05 -> 0 | J8: 1 | L8: 0 | M8: none | N8: 60 | O8: 0.06 | P8: 0.005 | Q8: 0 | R8: 10 | S8: 10000 | T8: 1000000 | U8: 80 | V8: 0.2 | W8: 0.2 | X8: 0.2 | Y8: 0.2 | Z8: 0.2 | AA8: 0.2 | AB8: 0.2 | AC8: 0.2 | AD8: 0.2 | AE8: 0.2 | AF8: 0.2 | AG8: 0.2 | AH8: 0.2 | AI8: 0.2 | AJ8: 0.2 | AK8: 0.2 | AL8: 0.2 | AM8: 0.2 | AN8: 0.2 | AO8: 0.2 | AP8: 0.2 | AQ8: 0.2 | AR8: 0.2 | AS8: 0.2 | AT8: 0.2 | AU8: 0.2 | AV8: 0.2 | AW8: 0.2 | AX8: 0.2 | AY8: 0.2 | AZ8: 0.2 | BA8: X | BB8: 0.2 | BC8: 0.2 | BD8: 0.2 | BE8: 0.2 | BF8: 0.2 | BG8: 0.2 | BH8: 0.2 | BI8: 0.2 | BJ8: 0.2 | BK8: 0.2 | BL8: 0.2 | BM8: 0.2 | BN8: 0.2 | BO8: 0.2 | BP8: X | BQ8: 0.2 | BR8: 0.2 | BS8: 0.2 | BT8: 65 | BU8: =IF(Table[[#This Row],[Bonus*]]="X","n/a",Premium*(1+Table[[#This Row],[Bonus*]])*IF(Table[[#This Row],[Increase Type]]="Simple",1,(1+Table[[#This Row],[Annual Benefit Base Increase Rate]])^MIN(TRUNC(Defer,0),Table[[#This Row],[Max Years for Increase]]))+IF(Table[[#This Row],[Increase Type]]="Simple",Table[[#This Row],[Annual Benefit Base Increase Rate]]*Premium*(1+Table[[#This Row],[Rollup Bonus?]]*Table[[#This Row],[Bonus*]])*MIN(TRUNC(Defer,0),Table[[#This Row],[Max Years for Increase]]),0)) -> 120000 | BV8: =IF(Table[[#This Row],[Attained Age]]<Table[[#This Row],[Min Income Age]],0,MIN(FLOOR(Table[[#This Row],[Attained Age]]+40,10)/2000,Table[[#This Row],[Max Payout]])) -> 0.05 | BW8: =IF(OR(Defer<Table[[#This Row],[Required Deferral]],Table[[#This Row],[Bonus*]]="X"),0,Table[[#This Row],[Benefit Base]]*Table[[#This Row],[Single Income Percentage]]) -> 6000 | BX8: =IF(Table[[#This Row],[Single Income Percentage]]=0,0,Table[[#This Row],[Single Income Percentage]]-Table[[#This Row],[Joint Reduction]]) -> 0.045 | BY8: =IF(Table[[#This Row],[Single Annual Income]]=0,0,Table[[#This Row],[Benefit Base]]*Table[[#This Row],[Joint Income Percentage]]) -> 5400 | BZ8: IAV 5-yr | CA8: =IF(Table[[#This Row],[Benefit Base]]="n/a",0,Table[[#This Row],[Benefit Base]]) -> 120000
A9: Allianz | B9: A | C9: AA | D9: Income Plus Benefit | E9: =IF(OR(Age<Table[[#This Row],[Min Issue Age]],Age>Table[[#This Row],[Max Issue]]),"X",HLOOKUP(State,States,ROW(Table[#This Row])-4,FALSE)) -> 0.03 | F9: 0.025 | J9: 1 | L9: 0.0075 | M9: 10 | N9: 60 | O9: 0.055 | P9: 0.005 | Q9: 0 | R9: 0 | S9: 15000 | T9: 1000000 | U9: 80 | V9: 0.02 | W9: 0.03 | X9: 0.03 | Y9: 0.03 | Z9: 0.03 | AA9: 0.03 | AB9: 0.02 | AC9: 0.02 | AD9: 0.02 | AE9: 0.03 | AF9: 0.03 | AG9: 0.03 | AH9: 0.03 | AI9: 0.02 | AJ9: 0.02 | AK9: 0.03 | AL9: 0.02 | AM9: 0.03 | AN9: 0.03 | AO9: 0.03 | AP9: 0.03 | AQ9: 0.03 | AR9: 0.02 | AS9: 0.02 | AT9: 0.03 | AU9: 0.03 | AV9: 0.03 | AW9: 0.03 | AX9: 0.03 | AY9: 0.02 | AZ9: 0.03 | BA9: X | BB9: 0.03 | BC9: 0.03 | BD9: 0.05 | BE9: 0.03 | BF9: X | BG9: 0.02 | BH9: 0.03 | BI9: 0.03 | BJ9: 0.03 | BK9: 0.03 | BL9: 0.03 | BM9: 0.02 | BN9: 0.03 | BO9: 0.03 | BP9: X | BQ9: 0.03 | BR9: 0.03 | BS9: 0.03 | BT9: 65 | BU9: =IF(Table[[#This Row],[Bonus*]]="X","n/a",Premium*(1+Table[[#This Row],[Bonus*]])*IF(Table[[#This Row],[Increase Type]]="Simple",1,(1+Table[[#This Row],[Annual Benefit Base Increase Rate]])^MIN(TRUNC(Defer,0),Table[[#This Row],[Max Years for Increase]]))+IF(Table[[#This Row],[Increase Type]]="Simple",Table[[#This Row],[Annual Benefit Base Increase Rate]]*Premium*(1+Table[[#This Row],[Rollup Bonus?]]*Table[[#This Row],[Bonus*]])*MIN(TRUNC(Defer,0),Table[[#This Row],[Max Years for Increase]]),0)) -> 131848.7081 | BV9: =IF(Table[[#This Row],[Attained Age]]<Table[[#This Row],[Min Income Age]],0,MIN(FLOOR(Table[[#This Row],[Attained Age]]+30,10)/2000,Table[[#This Row],[Max Payout]])) -> 0.045 | BW9: =IF(OR(Defer<Table[[#This Row],[Required Deferral]],Table[[#This Row],[Bonus*]]="X"),0,Table[[#This Row],[Benefit Base]]*Table[[#This Row],[Single Income Percentage]]) -> 5933.191862 | BX9: =IF(Table[[#This Row],[Single Income Percentage]]=0,0,Table[[#This Row],[Single Income Percentage]]-Table[[#This Row],[Joint Reduction]]) -> 0.04 | BY9: =IF(Table[[#This Row],[Single Annual Income]]=0,0,Table[[#This Row],[Benefit Base]]*Table[[#This Row],[Joint Income Percentage]]) -> 5273.948322 | BZ9: AV | CA9: 0
A10: Allianz | B10: A | C10: AA | D10: 222 | E10: =IF(OR(Age<Table[[#This Row],[Min Issue Age]],Age>Table[[#This Row],[Max Issue]]),"X",HLOOKUP(State,States,ROW(Table[#This Row])-4,FALSE)) -> 0.15 | F10: =ror*1.5 -> 0 | J10: 1 | L10: 0 | M10: none | N10: 60 | O10: 0.06 | P10: 0.005 | Q10: 0 | R10: 10 | S10: 20000 | T10: 1000000 | U10: 80 | V10: 0.15 | W10: 0.15 | X10: 0.15 | Y10: 0.15 | Z10: 0.15 | AA10: 0.15 | AB10: 0.15 | AC10: 0.15 | AD10: 0.15 | AE10: 0.15 | AF10: 0.15 | AG10: 0.15 | AH10: 0.15 | AI10: 0.15 | AJ10: 0.15 | AK10: 0.15 | AL10: 0.15 | AM10: 0.15 | AN10: 0.15 | AO10: 0.15 | AP10: 0.15 | AQ10: 0.15 | AR10: 0.15 | AS10: 0.15 | AT10: 0.15 | AU10: 0.15 | AV10: 0.15 | AW10: 0.15 | AX10: 0.15 | AY10: 0.15 | AZ10: 0.15 | BA10: X | BB10: 0.15 | BC10: 0.15 | BD10: 0.15 | BE10: 0.15 | BF10: 0.15 | BG10: 0.15 | BH10: 0.15 | BI10: 0.15 | BJ10: 0.15 | BK10: 0.15 | BL10: 0.15 | BM10: 0.15 | BN10: 0.15 | BO10: 0.15 | BP10: 0.15 | BQ10: 0.15 | BR10: 0.15 | BS10: 0.15 | BT10: 65 | BU10: =IF(Table[[#This Row],[Bonus*]]="X","n/a",Premium*(1+Table[[#This Row],[Bonus*]])*((1+Table[[#This Row],[Annual Benefit Base Increase Rate]])*(1-Table[[#This Row],[Rider Fee]]))^Defer) -> 115000 | BV10: =IF(Table[[#This Row],[Attained Age]]<Table[[#This Row],[Min Income Age]],0,MIN(FLOOR(Table[[#This Row],[Attained Age]]+40,10)/2000,Table[[#This Row],[Max Payout]])) -> 0.05 | BW10: =IF(OR(Defer<Table[[#This Row],[Required Deferral]],Table[[#This Row],[Bonus*]]="X"),0,Table[[#This Row],[Benefit Base]]*Table[[#This Row],[Single Income Percentage]]) -> 5750 | BX10: =IF(Table[[#This Row],[Single Income Percentage]]=0,0,Table[[#This Row],[Single Income Percentage]]-Table[[#This Row],[Joint Reduction]]) -> 0.045 | BY10: =IF(Table[[#This Row],[Single Annual Income]]=0,0,Table[[#This Row],[Benefit Base]]*Table[[#This Row],[Joint Income Percentage]]) -> 5175 | BZ10: IAV | CA10: =IF(Table[[#This Row],[Benefit Base]]="n/a",0,Table[[#This Row],[Benefit Base]]) -> 115000
A11: AltiSure | B11: B+ | C11: BB+ | D11: Next Generation Bonus | E11: =IF(OR(Age<Table[[#This Row],[Min Issue Age]],Age>Table[[#This Row],[Max Issue]]),"X",HLOOKUP(State,States,ROW(Table[#This Row])-4,FALSE)) -> 0.1 | F11: 0 | I11: 75 | J11: 1 | L11: 0.015 | M11: 0 | N11: 50 | O11: 0.1 | Q11: 50 | R11: 0 | S11: 15000 | T11: 1000000 | U11: 85 | V11: 0.1 | W11: X | X11: 0.1 | Y11: 0.1 | Z11: 0.1 | AA11: 0.1 | AB11: X | AC11: X | AD11: 0.07 | AE11: 0.1 | AF11: X | AG11: 0.1 | AH11: 0.1 | AI11: 0.07 | AJ11: 0.07 | AK11: 0.1 | AL11: 0.07 | AM11: 0.1 | AN11: X | AO11: X | AP11: X | AQ11: 0.1 | AR11: 0.06 | AS11: X | AT11: 0.06 | AU11: 0.07 | AV11: 0.1 | AW11: 0.07 | AX11: 0.07 | AY11: X | AZ11: 0.1 | BA11: X | BB11: 0.06 | BC11: 0.1 | BD11: X | BE11: X | BF11: X | BG11: 0.07 | BH11: 0.1 | BI11: 0.1 | BJ11: 0.1 | BK11: 0.1 | BL11: 0.07 | BM11: 0.07 | BN11: 0.1 | BO11: X | BP11: X | BQ11: 0.1 | BR11: 0.1 | BS11: 0.1 | BT11: 65 | BU11: =IF(Table[[#This Row],[Bonus*]]="X","n/a",Premium*(1+Table[[#This Row],[Bonus*]])) -> 110000 | BV11: =IFERROR(IF(Table[[#This Row],[Attained Age]]<Table[[#This Row],[Min Income Age]],0,NGBpayout),0) -> 0.0315 | BW11: =IF(OR(Defer<Table[[#This Row],[Required Deferral]],Table[[#This Row],[Bonus*]]="X"),0,Table[[#This Row],[Benefit Base]]*Table[[#This Row],[Single Income Percentage]]) -> 3465 | BX11: n/a | BY11: 0 | BZ11: AV | CA11: =IF(Table[[#This Row],[Single Annual Income]]=0,0,MAX(Table[[#This Row],[Benefit Base]]*Table[[#This Row],[Increase Type]]/100,IF(Defer>3,Table[[#This Row],[Benefit Base]],Premium)-Table[[#This Row],[Benefit Base]]*(Table[[#This Row],[Single Income Percentage]]+Table[[#This Row],[Rider Fee]])*(Defer-1))) -> 82500
A12: AltiSure | B12: B+ | C12: BB+ | D12: Next Generation | E12: =IF(OR(Age<Table[[#This Row],[Min Issue Age]],Age>Table[[#This Row],[Max Issue]]),"X",HLOOKUP(State,States,ROW(Table[#This Row])-4,FALSE)) -> 0 | F12: 0 | J12: 1 | L12: 0.015 | M12: 0 | N12: 50 | O12: 0.1 | Q12: 50 | R12: 0 | S12: 15000 | T12: 1000000 | U12: 85 | V12: 0 | W12: X | X12: 0 | Y12: 0 | Z12: 0 | AA12: 0 | AB12: 0 | AC12: X | AD12: 0 | AE12: 0 | AF12: X | AG12: 0 | AH12: 0 | AI12: 0 | AJ12: 0 | AK12: 0 | AL12: 0 | AM12: 0 | AN12: X | AO12: X | AP12: X | AQ12: 0 | AR12: 0 | AS12: X | AT12: 0 | AU12: 0 | AV12: 0 | AW12: 0 | AX12: 0 | AY12: X | AZ12: 0 | BA12: X | BB12: 0 | BC12: 0 | BD12: X | BE12: X | BF12: X | BG12: 0 | BH12: 0 | BI12: 0 | BJ12: 0 | BK12: 0 | BL12: 0 | BM12: 0 | BN12: 0 | BO12: X | BP12: X | BQ12: 0 | BR12: 0 | BS12: 0 | BT12: 65 | BU12: =IF(Table[[#This Row],[Bonus*]]="X","n/a",Premium*(1+Table[[#This Row],[Bonus*]])) -> 100000 | BV12: =IFERROR(IF(Table[[#This Row],[Attained Age]]<Table[[#This Row],[Min Income Age]],0,NGpayout),0) -> 0 | BW12: =IF(OR(Defer<Table[[#This Row],[Required Deferral]],Table[[#This Row],[Bonus*]]="X"),0,Table[[#This Row],[Benefit Base]]*Table[[#This Row],[Single Income Percentage]]) -> 0 | BX12: n/a | BY12: 0 | BZ12: AV | CA12: =IF(Table[[#This Row],[Single Annual Income]]=0,0,MAX(Table[[#This Row],[Benefit Base]]*Table[[#This Row],[Increase Type]]/100,IF(Defer>3,Table[[#This Row],[Benefit Base]],Premium)-Table[[#This Row],[Benefit Base]]*(Table[[#This Row],[Single Income Percentage]]+Table[[#This Row],[Rider Fee]])*(Defer-1))) -> 0
A13: American Equity1 | B13: A- | C13: BBB+ | D13: LIBR-2010 | E13: =IF(OR(Age<Table[[#This Row],[Min Issue Age]],Age>Table[[#This Row],[Max Issue]]),"X",HLOOKUP(State,States,ROW(Table[#This Row])-4,FALSE)) -> 0.1 | F13: 0.07 | J13: 1 | K13: AV | L13: 0.009 | M13: 10 | N13: 50 | O13: 0.065 | P13: 0.005 | Q13: 50 | R13: 1 | S13: 5000 | T13: =IF(Age<70,1500000,IF(Age<75,1000000,750000)) -> 1500000 | U13: 80 | V13: X | W13: 0.07 | X13: 0.1 | Y13: 0.1 | Z13: 0.1 | AA13: 0.1 | AB13: 0 | AC13: 0.1 | AD13: =IF(Age<=64,10%,IF(Age<=78,8%,7%)) -> 0.1 | AE13: 0.1 | AF13: 0.1 | AG13: 0.1 | AH13: 0.1 | AI13: 0.1 | AJ13: 0.1 | AK13: 0.1 | AL13: 0.1 | AM13: 0.1 | AN13: 0.1 | AO13: 0.1 | AP13: 0.1 | AQ13: 0.1 | AR13: 0.07 | AS13: 0.1 | AT13: 0.1 | AU13: 0.1 | AV13: 0.1 | AW13: 0.07 | AX13: 0.1 | AY13: 0.07 | AZ13: 0.1 | BA13: X | BB13: 0.1 | BC13: 0.1 | BD13: 0.07 | BE13: 0.1 | BF13: 0.07 | BG13: 0.1 | BH13: 0.1 | BI13: 0.1 | BJ13: 0.1 | BK13: 0.1 | BL13: 0.07 | BM13: 0.07 | BN13: 0.1 | BO13: 0.1 | BP13: 0.07 | BQ13: 0.1 | BR13: 0.1 | BS13: 0.1 | BT13: 65 | BU13: =IF(Table[[#This Row],[Bonus*]]="X","n/a",Premium*(1+Table[[#This Row],[Bonus*]])*IF(Table[[#This Row],[Increase Type]]="Simple",1,(1+Table[[#This Row],[Annual Benefit Base Increase Rate]])^MIN(TRUNC(Defer,0),Table[[#This Row],[Max Years for Increase]]))+IF(Table[[#This Row],[Increase Type]]="Simple",Table[[#This Row],[Annual Benefit Base Increase Rate]]*Premium*(1+Table[[#This Row],[Rollup Bonus?]]*Table[[#This Row],[Bonus*]])*MIN(TRUNC(Defer,0),Table[[#This Row],[Max Years for Increase]]),0)) -> 216386.6493 | BV13: =IF(Table[[#This Row],[Attained Age]]<Table[[#This Row],[Min Income Age]],0,MIN(FLOOR(Table[[#This Row],[Attained Age]]-15,5)/1000,Table[[#This Row],[Max Payout]])) -> 0.05 | BW13: =IF(OR(Defer<Table[[#This Row],[Required Deferral]],Table[[#This Row],[Bonus*]]="X"),0,Table[[#This Row],[Benefit Base]]*Table[[#This Row],[Single Income Percentage]]) -> 10819.33247 | BX13: =IF(Table[[#This Row],[Single Income Percentage]]=0,0,Table[[#This Row],[Single Income Percentage]]-Table[[#This Row],[Joint Reduction]]) -> 0.045 | BY13: =IF(Table[[#This Row],[Single Annual Income]]=0,0,Table[[#This Row],[Benefit Base]]*Table[[#This Row],[Joint Income Percentage]]) -> 9737.399219 | BZ13: AV | CA13: 0
A14: American Equity1 | B14: A- | C14: BBB+ | D14: LIBR-2010 | E14: =IF(OR(Age<Table[[#This Row],[Min Issue Age]],Age>Table[[#This Row],[Max Issue]]),"X",HLOOKUP(State,States,ROW(Table[#This Row])-4,FALSE)) -> 0.1 | F14: 0.065 | J14: 1 | K14: AV | L14: 0.0075 | M14: 20 | N14: 50 | O14: 0.065 | P14: 0.005 | Q14: 50 | R14: 1 | S14: 5000 | T14: =IF(Age<70,1500000,IF(Age<75,1000000,750000)) -> 1500000 | U14: 80 | V14: X | W14: 0.07 | X14: 0.1 | Y14: 0.1 | Z14: 0.1 | AA14: 0.1 | AB14: 0 | AC14: 0.1 | AD14: =IF(Age<=64,10%,IF(Age<=78,8%,7%)) -> 0.1 | AE14: 0.1 | AF14: 0.1 | AG14: 0.1 | AH14: 0.1 | AI14: 0.1 | AJ14: 0.1 | AK14: 0.1 | AL14: 0.1 | AM14: 0.1 | AN14: 0.1 | AO14: 0.1 | AP14: 0.1 | AQ14: 0.1 | AR14: 0.07 | AS14: 0.1 | AT14: 0.1 | AU14: 0.1 | AV14: 0.1 | AW14: 0.07 | AX14: 0.1 | AY14: 0.07 | AZ14: 0.1 | BA14: X | BB14: 0.1 | BC14: 0.1 | BD14: 0.07 | BE14: 0.1 | BF14: 0.07 | BG14: 0.1 | BH14: 0.1 | BI14: 0.1 | BJ14: 0.1 | BK14: 0.1 | BL14: 0.07 | BM14: 0.07 | BN14: 0.1 | BO14: 0.1 | BP14: 0.07 | BQ14: 0.1 | BR14: 0.1 | BS14: 0.1 | BT14: 65 | BU14: =IF(Table[[#This Row],[Bonus*]]="X","n/a",Premium*(1+Table[[#This Row],[Bonus*]])*IF(Table[[#This Row],[Increase Type]]="Simple",1,(1+Table[[#This Row],[Annual Benefit Base Increase Rate]])^MIN(TRUNC(Defer,0),Table[[#This Row],[Max Years for Increase]]))+IF(Table[[#This Row],[Increase Type]]="Simple",Table[[#This Row],[Annual Benefit Base Increase Rate]]*Premium*(1+Table[[#This Row],[Rollup Bonus?]]*Table[[#This Row],[Bonus*]])*MIN(TRUNC(Defer,0),Table[[#This Row],[Max Years for Increase]]),0)) -> 206485.1212 | BV14: =IF(Table[[#This Row],[Attained Age]]<Table[[#This Row],[Min Income Age]],0,MIN(FLOOR(Table[[#This Row],[Attained Age]]-15,5)/1000,Table[[#This Row],[Max Payout]])) -> 0.05 | BW14: =IF(OR(Defer<Table[[#This Row],[Required Deferral]],Table[[#This Row],[Bonus*]]="X"),0,Table[[#This Row],[Benefit Base]]*Table[[#This Row],[Single Income Percentage]]) -> 10324.25606 | BX14: =IF(Table[[#This Row],[Single Income Percentage]]=0,0,Table[[#This Row],[Single Income Percentage]]-Table[[#This Row],[Joint Reduction]]) -> 0.045 | BY14: =IF(Table[[#This Row],[Single Annual Income]]=0,0,Table[[#This Row],[Benefit Base]]*Table[[#This Row],[Joint Income Percentage]]) -> 9291.830453 | BZ14: AV | CA14: 0
A15: American Equity1 | B15: A- | C15: BBB+ | D15: LIBR-2010 | E15: =IF(OR(Age<Table[[#This Row],[Min Issue Age]],Age>Table[[#This Row],[Max Issue]]),"X",HLOOKUP(State,States,ROW(Table[#This Row])-4,FALSE)) -> 0.1 | F15: 0.04 | J15: 1 | K15: AV | L15: 0 | M15: 20 | N15: 50 | O15: 0.065 | P15: 0.005 | Q15: 0 | R15: 1 | S15: 5000 | T15: =IF(Age<70,1500000,IF(Age<75,1000000,750000)) -> 1500000 | U15: 80 | V15: X | W15: 0.07 | X15: 0.1 | Y15: 0.1 | Z15: 0.1 | AA15: 0.1 | AB15: 0 | AC15: 0.1 | AD15: =IF(Age<=64,10%,IF(Age<=78,8%,7%)) -> 0.1 | AE15: 0.1 | AF15: 0.1 | AG15: 0.1 | AH15: 0.1 | AI15: 0.1 | AJ15: 0.1 | AK15: 0.1 | AL15: 0.1 | AM15: 0.1 | AN15: 0.1 | AO15: 0.1 | AP15: 0.1 | AQ15: 0.1 | AR15: 0.07 | AS15: 0.1 | AT15: 0.1 | AU15: 0.1 | AV15: 0.1 | AW15: 0.07 | AX15: 0.1 | AY15: 0.07 | AZ15: 0.1 | BA15: X | BB15: 0.1 | BC15: 0.1 | BD15: 0.07 | BE15: 0.1 | BF15: 0.07 | BG15: 0.1 | BH15: 0.1 | BI15: 0.1 | BJ15: 0.1 | BK15: 0.1 | BL15: 0.07 | BM15: 0.07 | BN15: 0.1 | BO15: 0.1 | BP15: 0.07 | BQ15: 0.1 | BR15: 0.1 | BS15: 0.1 | BT15: 65 | BU15: =IF(Table[[#This Row],[Bonus*]]="X","n/a",Premium*(1+Table[[#This Row],[Bonus*]])*IF(Table[[#This Row],[Increase Type]]="Simple",1,(1+Table[[#This Row],[Annual Benefit Base Increase Rate]])^MIN(TRUNC(Defer,0),Table[[#This Row],[Max Years for Increase]]))+IF(Table[[#This Row],[Increase Type]]="Simple",Table[[#This Row],[Annual Benefit Base Increase Rate]]*Premium*(1+Table[[#This Row],[Rollup Bonus?]]*Table[[#This Row],[Bonus*]])*MIN(TRUNC(Defer,0),Table[[#This Row],[Max Years for Increase]]),0)) -> 162826.8713 | BV15: =IF(Table[[#This Row],[Attained Age]]<Table[[#This Row],[Min Income Age]],0,MIN(FLOOR(Table[[#This Row],[Attained Age]]-15,5)/1000,Table[[#This Row],[Max Payout]])) -> 0.05 | BW15: =IF(OR(Defer<Table[[#This Row],[Required Deferral]],Table[[#This Row],[Bonus*]]="X"),0,Table[[#This Row],[Benefit Base]]*Table[[#This Row],[Single Income Percentage]]) -> 8141.343567 | BX15: =IF(Table[[#This Row],[Single Income Percentage]]=0,0,Table[[#This Row],[Single Income Percentage]]-Table[[#This Row],[Joint Reduction]]) -> 0.045 | BY15: =IF(Table[[#This Row],[Single Annual Income]]=0,0,Table[[#This Row],[Benefit Base]]*Table[[#This Row],[Joint Income Percentage]]) -> 7327.20921 | BZ15: IAV 5-yr | CA15: =IF(OR(State="Connecticut",State="Idaho",State="Missouri",State="Oregon",State="Pennsylvania",State="Washington",Defer<2,Table[[#This Row],[Benefit Base]]="n/a"),0,MIN(Premium*(1+Table[[#This Row],[Bonus*]])*(1+Table[[#This Row],[Annual Benefit Base Increase Rate]])^MIN(Defer,85-Age),Premium*(1+Table[[#This Row],[Bonus*]])*(1+Table[[#This Row],[Annual Benefit Base Increase Rate]])*2)) -> 162826.8713
A16: American General | B16: A | C16: A+ | D16: Income Builder | E16: =IF(OR(Age<Table[[#This Row],[Min Issue Age]],Age>Table[[#This Row],[Max Issue]]),"X",HLOOKUP(State,States,ROW(Table[#This Row])-4,FALSE)) -> 0.05 | F16: 0.06 | J16: 1 | L16: 0.007 | M16: =MAX(MIN(90-Age,20),0) -> 20 | N16: 56 | O16: 0.06 | P16: 0.005 | Q16: 55 | R16: 1 | S16: 50000 | T16: 1000000 | U16: 85 | V16: 0.05 | W16: X | X16: 0.05 | Y16: 0.05 | Z16: 0.05 | AA16: 0.05 | AB16: 0.04 | AC16: 0.04 | AD16: 0.04 | AE16: 0.05 | AF16: 0.05 | AG16: 0.05 | AH16: 0.05 | AI16: 0.05 | AJ16: 0.05 | AK16: 0.05 | AL16: 0.05 | AM16: 0.05 | AN16: 0.05 | AO16: 0.05 | AP16: 0.05 | AQ16: 0.05 | AR16: X | AS16: 0.05 | AT16: 0.05 | AU16: 0.05 | AV16: 0.05 | AW16: 0.04 | AX16: 0.05 | AY16: 0.04 | AZ16: 0.05 | BA16: X | BB16: 0.05 | BC16: 0.05 | BD16: 0.04 | BE16: 0.05 | BF16: 0.04 | BG16: 0.05 | BH16: 0.05 | BI16: 0.04 | BJ16: 0.05 | BK16: 0.05 | BL16: 0.04 | BM16: 0.04 | BN16: X | BO16: 0.05 | BP16: X | BQ16: 0.05 | BR16: 0.05 | BS16: 0.05 | BT16: 65 | BU16: =IF(Table[[#This Row],[Bonus*]]="X","n/a",Premium*(1+Table[[#This Row],[Bonus*]])*IF(Table[[#This Row],[Increase Type]]="Simple",1,(1+Table[[#This Row],[Annual Benefit Base Increase Rate]])^MIN(TRUNC(Defer,0),Table[[#This Row],[Max Years for Increase]]))+IF(Table[[#This Row],[Increase Type]]="Simple",Table[[#This Row],[Annual Benefit Base Increase Rate]]*Premium*(1+Table[[#This Row],[Rollup Bonus?]]*Table[[#This Row],[Bonus*]])*MIN(TRUNC(Defer,0),Table[[#This Row],[Max Years for Increase]]),0)) -> 188039.0081 | BV16: =IF(Table[[#This Row],[Attained Age]]<Table[[#This Row],[Min Income Age]],0,MIN(FLOOR(Table[[#This Row],[Attained Age]]-20,5)/1000,Table[[#This Row],[Max Payout]])) -> 0.045 | BW16: =IF(OR(Defer<Table[[#This Row],[Required Deferral]],Table[[#This Row],[Bonus*]]="X"),0,Table[[#This Row],[Benefit Base]]*Table[[#This Row],[Single Income Percentage]]) -> 8461.755366 | BX16: =IF(Table[[#This Row],[Single Income Percentage]]=0,0,Table[[#This Row],[Single Income Percentage]]-Table[[#This Row],[Joint Reduction]]) -> 0.04 | BY16: =IF(Table[[#This Row],[Single Annual Income]]=0,0,Table[[#This Row],[Benefit Base]]*Table[[#This Row],[Joint Income Percentage]]) -> 7521.560325 | BZ16: AV | CA16: 0
A17: Annexus BAA 10/12 | B17: A | C17: A | D17: BALIR SGO | E17: =IF(OR(Age<Table[[#This Row],[Min Issue Age]],Age>Table[[#This Row],[Max Issue]],HLOOKUP(State,States,ROW(Table[#This Row])-4,FALSE)="X"),"X",HLOOKUP($I$2,States,ROW(Table[#This Row])-4,FALSE)) -> X | F17: =0.04 -> 0.04 | G17: 0.03 | H17: 5 | J17: 1 | L17: 0.0095 | M17: 18 | N17: 50 | O17: 0.065 | P17: 0.005 | Q17: 40 | R17: 0 | S17: 5000 | T17: 1000000 | U17: 76 | V17: X | W17: =IF(Age>=60,0,"X") -> X | X17: X | Y17: X | Z17: X | AA17: X | AB17: 0 | AC17: X | AD17: =IF(Age<=64,0.04,0) -> 0.04 | AE17: X | AF17: X | AG17: X | AH17: 0.04 | AI17: 0.04 | AJ17: X | AK17: X | AL17: X | AM17: X | AN17: X | AO17: X | AP17: X | AQ17: X | AR17: X | AS17: X | AT17: X | AU17: X | AV17: X | AW17: =IF(Age>=60,0,"X") -> X | AX17: 0.04 | AY17: X | AZ17: X | BA17: X | BB17: X | BC17: X | BD17: =IF(Age>=60,0,"X") -> X | BE17: 0.04 | BF17: X | BG17: X | BH17: X | BI17: X | BJ17: X | BK17: X | BL17: =IF(Age>=60,0,"X") -> X | BM17: =IF(Age>=60,0,"X") -> X | BN17: X | BO17: 0.04 | BP17: X | BQ17: X | BR17: X | BS17: 0.04 | BT17: 65 | BU17: =IF(Table[[#This Row],[Bonus*]]="X","n/a",Premium*(1+Table[[#This Row],[Bonus*]])*IF(Table[[#This Row],[Increase Type]]="Simple",1,(1+Table[[#This Row],[Annual Benefit Base Increase Rate]])^MIN(TRUNC(Defer,0),Table[[#This Row],[Rollup Switch]])*(1+Table[[#This Row],[Rollup2]])^MIN(MAX(TRUNC(Defer,0)-Table[[#This Row],[Rollup Switch]],0),Table[[#This Row],[Max Years for Increase]]-Table[[#This Row],[Rollup Switch]]))+IF(Table[[#This Row],[Increase Type]]="Simple",Table[[#This Row],[Annual Benefit Base Increase Rate]]*Premium*(1+Table[[#This Row],[Rollup Bonus?]]*Table[[#This Row],[Bonus*]])*MIN(TRUNC(Defer,0),Table[[#This Row],[Max Years for Increase]]),0)) -> n/a | BV17: =IF(Table[[#This Row],[Attained Age]]<Table[[#This Row],[Min Income Age]],0,IF(Table[[#This Row],[Attained Age]]<55,0.035,IF(Table[[#This Row],[Attained Age]]<60,0.04,IF(Table[[#This Row],[Attained Age]]<65,0.045,IF(Table[[#This Row],[Attained Age]]<70,0.05,IF(Table[[#This Row],[Attained Age]]<75,0.0525,IF(Table[[#This Row],[Attained Age]]<80,0.055,IF(Table[[#This Row],[Attained Age]]<85,0.06,IF(Table[[#This Row],[Attained Age]]<90,0.0625,Table[[#This Row],[Max Payout]]))))))))) -> 0.05 | BW17: =IF(OR(Defer<Table[[#This Row],[Required Deferral]],Table[[#This Row],[Bonus*]]="X"),0,Table[[#This Row],[Benefit Base]]*Table[[#This Row],[Single Income Percentage]]) -> 0 | BX17: =IF(Table[[#This Row],[Single Income Percentage]]=0,0,Table[[#This Row],[Single Income Percentage]]-Table[[#This Row],[Joint Reduction]]) -> 0.045 | BY17: =IF(Table[[#This Row],[Single Annual Income]]=0,0,Table[[#This Row],[Benefit Base]]*Table[[#This Row],[Joint Income Percentage]]) -> 0 | BZ17: Rider | CA17: =IF(Table[[#This Row],[Bonus*]]="X",0,Premium*(1.02)^MIN(Defer,90-Age)) -> 0
A18: Annexus BAA 10/12 | B18: A | C18: A | D18: BALIR SGO MAX | E18: =IF(OR(Age<Table[[#This Row],[Min Issue Age]],Age>Table[[#This Row],[Max Issue]],HLOOKUP(State,States,ROW(Table[#This Row])-4,FALSE)="X"),"X",HLOOKUP($I$2,States,ROW(Table[#This Row])-4,FALSE)) -> X | F18: =0.03 -> 0.03 | G18: 0.03 | H18: 5 | J18: 1 | L18: 0.0095 | M18: 18 | N18: 50 | O18: 0.065 | P18: 0.005 | Q18: 40 | R18: 0 | S18: 5000 | T18: 1000000 | U18: 76 | V18: X | W18: =IF(Age>=60,0,"X") -> X | X18: X | Y18: X | Z18: X | AA18: X | AB18: 0 | AC18: X | AD18: =IF(Age<=64,0.04,0) -> 0.04 | AE18: X | AF18: X | AG18: X | AH18: 0.04 | AI18: 0.04 | AJ18: X | AK18: X | AL18: X | AM18: X | AN18: X | AO18: X | AP18: X | AQ18: X | AR18: X | AS18: X | AT18: X | AU18: X | AV18: X | AW18: =IF(Age>=60,0,"X") -> X | AX18: 0.04 | AY18: X | AZ18: X | BA18: X | BB18: X | BC18: X | BD18: =IF(Age>=60,0,"X") -> X | BE18: 0.04 | BF18: X | BG18: X | BH18: X | BI18: X | BJ18: X | BK18: X | BL18: =IF(Age>=60,0,"X") -> X | BM18: =IF(Age>=60,0,"X") -> X | BN18: X | BO18: 0.04 | BP18: X | BQ18: X | BR18: X | BS18: 0.04 | BT18: 65 | BU18: =IF(Table[[#This Row],[Bonus*]]="X","n/a",Premium*(1+Table[[#This Row],[Bonus*]])*IF(Table[[#This Row],[Increase Type]]="Simple",1,(1+Table[[#This Row],[Annual Benefit Base Increase Rate]])^MIN(TRUNC(Defer,0),Table[[#This Row],[Rollup Switch]])*(1+Table[[#This Row],[Rollup2]])^MIN(MAX(TRUNC(Defer,0)-Table[[#This Row],[Rollup Switch]],0),Table[[#This Row],[Max Years for Increase]]-Table[[#This Row],[Rollup Switch]]))+IF(Table[[#This Row],[Increase Type]]="Simple",Table[[#This Row],[Annual Benefit Base Increase Rate]]*Premium*(1+Table[[#This Row],[Rollup Bonus?]]*Table[[#This Row],[Bonus*]])*MIN(TRUNC(Defer,0),Table[[#This Row],[Max Years for Increase]]),0)) -> n/a | BV18: =IF(Table[[#This Row],[Attained Age]]<Table[[#This Row],[Min Income Age]],0,IF(Table[[#This Row],[Attained Age]]<55,0.035,IF(Table[[#This Row],[Attained Age]]<60,0.04,IF(Table[[#This Row],[Attained Age]]<65,0.045,IF(Table[[#This Row],[Attained Age]]<70,0.05,IF(Table[[#This Row],[Attained Age]]<75,0.0525,IF(Table[[#This Row],[Attained Age]]<80,0.055,IF(Table[[#This Row],[Attained Age]]<85,0.06,IF(Table[[#This Row],[Attained Age]]<90,0.0625,Table[[#This Row],[Max Payout]]))))))))) -> 0.05 | BW18: =IF(OR(Defer<Table[[#This Row],[Required Deferral]],Table[[#This Row],[Bonus*]]="X"),0,Table[[#This Row],[Benefit Base]]*Table[[#This Row],[Single Income Percentage]]) -> 0 | BX18: =IF(Table[[#This Row],[Single Income Percentage]]=0,0,Table[[#This Row],[Single Income Percentage]]-Table[[#This Row],[Joint Reduction]]) -> 0.045 | BY18: =IF(Table[[#This Row],[Single Annual Income]]=0,0,Table[[#This Row],[Benefit Base]]*Table[[#This Row],[Joint Income Percentage]]) -> 0 | BZ18: Rider | CA18: =IF(Table[[#This Row],[Bonus*]]="X",0,Premium*(1.02)^MIN(Defer,90-Age)) -> 0
A19: Annexus BAA 8 | B19: A | C19: A | D19: BALIR SGO | E19: =IF(OR(Age<Table[[#This Row],[Min Issue Age]],Age>Table[[#This Row],[Max Issue]],HLOOKUP(State,States,ROW(Table[#This Row])-4,FALSE)="X"),"X",HLOOKUP($I$2,States,ROW(Table[#This Row])-4,FALSE)) -> X | F19: =0.04 -> 0.04 | G19: 0.04 | H19: 10 | J19: 1 | L19: 0.0095 | M19: 18 | N19: 50 | O19: 0.065 | P19: 0.005 | Q19: 40 | R19: 0 | S19: 5000 | T19: 1000000 | U19: 80 | V19: X | W19: 0.02 | X19: X | Y19: X | Z19: X | AA19: X | AB19: 0 | AC19: 0.02 | AD19: 0.02 | AE19: X | AF19: X | AG19: X | AH19: 0.02 | AI19: 0.02 | AJ19: X | AK19: X | AL19: X | AM19: X | AN19: X | AO19: X | AP19: X | AQ19: X | AR19: 0.02 | AS19: X | AT19: X | AU19: X | AV19: X | AW19: 0.02 | AX19: 0.02 | AY19: X | AZ19: X | BA19: X | BB19: X | BC19: X | BD19: 0.02 | BE19: 0.02 | BF19: X | BG19: X | BH19: X | BI19: X | BJ19: X | BK19: X | BL19: 0.02 | BM19: 0.02 | BN19: X | BO19: 0.02 | BP19: X | BQ19: X | BR19: X | BS19: 0.02 | BT19: 65 | BU19: =IF(Table[[#This Row],[Bonus*]]="X","n/a",Premium*(1+Table[[#This Row],[Bonus*]])*IF(Table[[#This Row],[Increase Type]]="Simple",1,(1+Table[[#This Row],[Annual Benefit Base Increase Rate]])^MIN(TRUNC(Defer,0),Table[[#This Row],[Rollup Switch]])*(1+Table[[#This Row],[Rollup2]])^MIN(MAX(TRUNC(Defer,0)-Table[[#This Row],[Rollup Switch]],0),Table[[#This Row],[Max Years for Increase]]-Table[[#This Row],[Rollup Switch]]))+IF(Table[[#This Row],[Increase Type]]="Simple",Table[[#This Row],[Annual Benefit Base Increase Rate]]*Premium*(1+Table[[#This Row],[Rollup Bonus?]]*Table[[#This Row],[Bonus*]])*MIN(TRUNC(Defer,0),Table[[#This Row],[Max Years for Increase]]),0)) -> n/a | BV19: =IF(Table[[#This Row],[Attained Age]]<Table[[#This Row],[Min Income Age]],0,IF(Table[[#This Row],[Attained Age]]<55,0.035,IF(Table[[#This Row],[Attained Age]]<60,0.04,IF(Table[[#This Row],[Attained Age]]<65,0.045,IF(Table[[#This Row],[Attained Age]]<70,0.05,IF(Table[[#This Row],[Attained Age]]<75,0.0525,IF(Table[[#This Row],[Attained Age]]<80,0.055,IF(Table[[#This Row],[Attained Age]]<85,0.06,IF(Table[[#This Row],[Attained Age]]<90,0.0625,Table[[#This Row],[Max Payout]]))))))))) -> 0.05 | BW19: =IF(OR(Defer<Table[[#This Row],[Required Deferral]],Table[[#This Row],[Bonus*]]="X"),0,Table[[#This Row],[Benefit Base]]*Table[[#This Row],[Single Income Percentage]]) -> 0 | BX19: =IF(Table[[#This Row],[Single Income Percentage]]=0,0,Table[[#This Row],[Single Income Percentage]]-Table[[#This Row],[Joint Reduction]]) -> 0.045 | BY19: =IF(Table[[#This Row],[Single Annual Income]]=0,0,Table[[#This Row],[Benefit Base]]*Table[[#This Row],[Joint Income Percentage]]) -> 0 | BZ19: Rider | CA19: =IF(Table[[#This Row],[Bonus*]]="X",0,Premium*(1.02)^MIN(Defer,90-Age)) -> 0
A20: Annexus BAA 8 | B20: A | C20: A | D20: BALIR SGO MAX | E20: =IF(OR(Age<Table[[#This Row],[Min Issue Age]],Age>Table[[#This Row],[Max Issue]],HLOOKUP(State,States,ROW(Table[#This Row])-4,FALSE)="X"),"X",HLOOKUP($I$2,States,ROW(Table[#This Row])-4,FALSE)) -> X | F20: =0.03 -> 0.03 | G20: 0.04 | H20: 10 | J20: 1 | L20: 0.0095 | M20: 18 | N20: 50 | O20: 0.065 | P20: 0.005 | Q20: 40 | R20: 0 | S20: 5000 | T20: 1000000 | U20: 80 | V20: X | W20: 0.02 | X20: X | Y20: X | Z20: X | AA20: X | AB20: 0 | AC20: 0.02 | AD20: 0.02 | AE20: X | AF20: X | AG20: X | AH20: 0.02 | AI20: 0.02 | AJ20: X | AK20: X | AL20: X | AM20: X | AN20: X | AO20: X | AP20: X | AQ20: X | AR20: 0.02 | AS20: X | AT20: X | AU20: X | AV20: X | AW20: 0.02 | AX20: 0.02 | AY20: X | AZ20: X | BA20: X | BB20: X | BC20: X | BD20: 0.02 | BE20: 0.02 | BF20: X | BG20: X | BH20: X | BI20: X | BJ20: X | BK20: X | BL20: 0.02 | BM20: 0.02 | BN20: X | BO20: 0.02 | BP20: X | BQ20: X | BR20: X | BS20: 0.02 | BT20: 65 | BU20: =IF(Table[[#This Row],[Bonus*]]="X","n/a",Premium*(1+Table[[#This Row],[Bonus*]])*IF(Table[[#This Row],[Increase Type]]="Simple",1,(1+Table[[#This Row],[Annual Benefit Base Increase Rate]])^MIN(TRUNC(Defer,0),Table[[#This Row],[Rollup Switch]])*(1+Table[[#This Row],[Rollup2]])^MIN(MAX(TRUNC(Defer,0)-Table[[#This Row],[Rollup Switch]],0),Table[[#This Row],[Max Years for Increase]]-Table[[#This Row],[Rollup Switch]]))+IF(Table[[#This Row],[Increase Type]]="Simple",Table[[#This Row],[Annual Benefit Base Increase Rate]]*Premium*(1+Table[[#This Row],[Rollup Bonus?]]*Table[[#This Row],[Bonus*]])*MIN(TRUNC(Defer,0),Table[[#This Row],[Max Years for Increase]]),0)) -> n/a | BV20: =IF(Table[[#This Row],[Attained Age]]<Table[[#This Row],[Min Income Age]],0,IF(Table[[#This Row],[Attained Age]]<55,0.035,IF(Table[[#This Row],[Attained Age]]<60,0.04,IF(Table[[#This Row],[Attained Age]]<65,0.045,IF(Table[[#This Row],[Attained Age]]<70,0.05,IF(Table[[#This Row],[Attained Age]]<75,0.0525,IF(Table[[#This Row],[Attained Age]]<80,0.055,IF(Table[[#This Row],[Attained Age]]<85,0.06,IF(Table[[#This Row],[Attained Age]]<90,0.0625,Table[[#This Row],[Max Payout]]))))))))) -> 0.05 | BW20: =IF(OR(Defer<Table[[#This Row],[Required Deferral]],Table[[#This Row],[Bonus*]]="X"),0,Table[[#This Row],[Benefit Base]]*Table[[#This Row],[Single Income Percentage]]) -> 0 | BX20: =IF(Table[[#This Row],[Single Income Percentage]]=0,0,Table[[#This Row],[Single Income Percentage]]-Table[[#This Row],[Joint Reduction]]) -> 0.045 | BY20: =IF(Table[[#This Row],[Single Annual Income]]=0,0,Table[[#This Row],[Benefit Base]]*Table[[#This Row],[Joint Income Percentage]]) -> 0 | BZ20: Rider | CA20: =IF(Table[[#This Row],[Bonus*]]="X",0,Premium*(1.02)^MIN(Defer,90-Age)) -> 0
A21: Annexus BCA 10/8 | B21: A | C21: A | D21: BALIR SGO | E21: =IF(OR(Age<Table[[#This Row],[Min Issue Age]],Age>Table[[#This Row],[Max Issue]],HLOOKUP(State,States,ROW(Table[#This Row])-4,FALSE)="X"),"X",HLOOKUP($I$2,States,ROW(Table[#This Row])-4,FALSE)) -> 0.05 | F21: =0.04 -> 0.04 | G21: 0.04 | H21: 10 | J21: 1 | L21: 0.0095 | M21: 18 | N21: 50 | O21: 0.065 | P21: 0.005 | Q21: 40 | R21: 0 | S21: 5000 | T21: 1000000 | U21: 80 | V21: 0.05 | W21: X | X21: 0.05 | Y21: 0.05 | Z21: 0.05 | AA21: 0.05 | AB21: X | AC21: X | AD21: X | AE21: 0.05 | AF21: 0.05 | AG21: 0.05 | AH21: X | AI21: X | AJ21: 0.05 | AK21: 0.05 | AL21: 0.05 | AM21: 0.05 | AN21: 0.05 | AO21: 0.05 | AP21: 0.05 | AQ21: 0.05 | AR21: 0.02 | AS21: 0.05 | AT21: 0.05 | AU21: 0.05 | AV21: 0.05 | AW21: X | AX21: X | AY21: 0 | AZ21: 0.05 | BA21: X | BB21: 0.05 | BC21: 0.05 | BD21: X | BE21: X | BF21: X | BG21: 0 | BH21: 0.05 | BI21: 0 | BJ21: 0.05 | BK21: 0.05 | BL21: X | BM21: X | BN21: 0.05 | BO21: X | BP21: X | BQ21: 0.05 | BR21: 0.05 | BS21: X | BT21: 65 | BU21: =IF(Table[[#This Row],[Bonus*]]="X","n/a",Premium*(1+Table[[#This Row],[Bonus*]])*IF(Table[[#This Row],[Increase Type]]="Simple",1,(1+Table[[#This Row],[Annual Benefit Base Increase Rate]])^MIN(TRUNC(Defer,0),Table[[#This Row],[Rollup Switch]])*(1+Table[[#This Row],[Rollup2]])^MIN(MAX(TRUNC(Defer,0)-Table[[#This Row],[Rollup Switch]],0),Table[[#This Row],[Max Years for Increase]]-Table[[#This Row],[Rollup Switch]]))+IF(Table[[#This Row],[Increase Type]]="Simple",Table[[#This Row],[Annual Benefit Base Increase Rate]]*Premium*(1+Table[[#This Row],[Rollup Bonus?]]*Table[[#This Row],[Bonus*]])*MIN(TRUNC(Defer,0),Table[[#This Row],[Max Years for Increase]]),0)) -> 155425.6499 | BV21: =IF(Table[[#This Row],[Attained Age]]<Table[[#This Row],[Min Income Age]],0,IF(Table[[#This Row],[Attained Age]]<55,0.035,IF(Table[[#This Row],[Attained Age]]<60,0.04,IF(Table[[#This Row],[Attained Age]]<65,0.045,IF(Table[[#This Row],[Attained Age]]<70,0.05,IF(Table[[#This Row],[Attained Age]]<75,0.0525,IF(Table[[#This Row],[Attained Age]]<80,0.055,IF(Table[[#This Row],[Attained Age]]<85,0.06,IF(Table[[#This Row],[Attained Age]]<90,0.0625,Table[[#This Row],[Max Payout]]))))))))) -> 0.05 | BW21: =IF(OR(Defer<Table[[#This Row],[Required Deferral]],Table[[#This Row],[Bonus*]]="X"),0,Table[[#This Row],[Benefit Base]]*Table[[#This Row],[Single Income Percentage]]) -> 7771.282496 | BX21: =IF(Table[[#This Row],[Single Income Percentage]]=0,0,Table[[#This Row],[Single Income Percentage]]-Table[[#This Row],[Joint Reduction]]) -> 0.045 | BY21: =IF(Table[[#This Row],[Single Annual Income]]=0,0,Table[[#This Row],[Benefit Base]]*Table[[#This Row],[Joint Income Percentage]]) -> 6994.154246 | BZ21: Rider | CA21: =IF(Table[[#This Row],[Bonus*]]="X",0,Premium*(1.02)^MIN(Defer,90-Age)) -> 121899.442
A22: Annexus BCA 10/8 | B22: A | C22: A | D22: BALIR SGO MAX | E22: =IF(OR(Age<Table[[#This Row],[Min Issue Age]],Age>Table[[#This Row],[Max Issue]],HLOOKUP(State,States,ROW(Table[#This Row])-4,FALSE)="X"),"X",HLOOKUP($I$2,States,ROW(Table[#This Row])-4,FALSE)) -> 0.05 | F22: =0.03 -> 0.03 | G22: 0.04 | H22: 10 | J22: 1 | L22: 0.0095 | M22: 18 | N22: 50 | O22: 0.065 | P22: 0.005 | Q22: 40 | R22: 0 | S22: 5000 | T22: 1000000 | U22: 80 | V22: 0.05 | W22: X | X22: 0.05 | Y22: 0.05 | Z22: 0.05 | AA22: 0.05 | AB22: X | AC22: X | AD22: X | AE22: 0.05 | AF22: 0.05 | AG22: 0.05 | AH22: X | AI22: X | AJ22: 0.05 | AK22: 0.05 | AL22: 0.05 | AM22: 0.05 | AN22: 0.05 | AO22: 0.05 | AP22: 0.05 | AQ22: 0.05 | AR22: 0.02 | AS22: 0.05 | AT22: 0.05 | AU22: 0.05 | AV22: 0.05 | AW22: X | AX22: X | AY22: 0 | AZ22: 0.05 | BA22: X | BB22: 0.05 | BC22: 0.05 | BD22: X | BE22: X | BF22: X | BG22: 0 | BH22: 0.05 | BI22: 0 | BJ22: 0.05 | BK22: 0.05 | BL22: X | BM22: X | BN22: 0.05 | BO22: X | BP22: X | BQ22: 0.05 | BR22: 0.05 | BS22: X | BT22: 65 | BU22: =IF(Table[[#This Row],[Bonus*]]="X","n/a",Premium*(1+Table[[#This Row],[Bonus*]])*IF(Table[[#This Row],[Increase Type]]="Simple",1,(1+Table[[#This Row],[Annual Benefit Base Increase Rate]])^MIN(TRUNC(Defer,0),Table[[#This Row],[Rollup Switch]])*(1+Table[[#This Row],[Rollup2]])^MIN(MAX(TRUNC(Defer,0)-Table[[#This Row],[Rollup Switch]],0),Table[[#This Row],[Max Years for Increase]]-Table[[#This Row],[Rollup Switch]]))+IF(Table[[#This Row],[Increase Type]]="Simple",Table[[#This Row],[Annual Benefit Base Increase Rate]]*Premium*(1+Table[[#This Row],[Rollup Bonus?]]*Table[[#This Row],[Bonus*]])*MIN(TRUNC(Defer,0),Table[[#This Row],[Max Years for Increase]]),0)) -> 141111.2198 | BV22: =IF(Table[[#This Row],[Attained Age]]<Table[[#This Row],[Min Income Age]],0,IF(Table[[#This Row],[Attained Age]]<55,0.035,IF(Table[[#This Row],[Attained Age]]<60,0.04,IF(Table[[#This Row],[Attained Age]]<65,0.045,IF(Table[[#This Row],[Attained Age]]<70,0.05,IF(Table[[#This Row],[Attained Age]]<75,0.0525,IF(Table[[#This Row],[Attained Age]]<80,0.055,IF(Table[[#This Row],[Attained Age]]<85,0.06,IF(Table[[#This Row],[Attained Age]]<90,0.0625,Table[[#This Row],[Max Payout]]))))))))) -> 0.05 | BW22: =IF(OR(Defer<Table[[#This Row],[Required Deferral]],Table[[#This Row],[Bonus*]]="X"),0,Table[[#This Row],[Benefit Base]]*Table[[#This Row],[Single Income Percentage]]) -> 7055.560992 | BX22: =IF(Table[[#This Row],[Single Income Percentage]]=0,0,Table[[#This Row],[Single Income Percentage]]-Table[[#This Row],[Joint Reduction]]) -> 0.045 | BY22: =IF(Table[[#This Row],[Single Annual Income]]=0,0,Table[[#This Row],[Benefit Base]]*Table[[#This Row],[Joint Income Percentage]]) -> 6350.004892 | BZ22: Rider | CA22: =IF(Table[[#This Row],[Bonus*]]="X",0,Premium*(1.02)^MIN(Defer,90-Age)) -> 121899.442
A23: Annexus BCA 12 | B23: A | C23: A | D23: BALIR SGO | E23: =IF(OR(Age<Table[[#This Row],[Min Issue Age]],Age>Table[[#This Row],[Max Issue]],HLOOKUP(State,States,ROW(Table[#This Row])-4,FALSE)="X"),"X",HLOOKUP($I$2,States,ROW(Table[#This Row])-4,FALSE)) -> 0.07 | F23: =0.04 -> 0.04 | G23: 0.03 | H23: 5 | J23: 1 | L23: 0.0095 | M23: 18 | N23: 50 | O23: 0.065 | P23: 0.005 | Q23: 40 | R23: 0 | S23: 5000 | T23: 1000000 | U23: 76 | V23: 0.07 | W23: X | X23: 0.07 | Y23: 0.07 | Z23: 0.07 | AA23: 0.07 | AB23: X | AC23: X | AD23: X | AE23: 0.07 | AF23: 0.07 | AG23: 0.07 | AH23: X | AI23: X | AJ23: 0.07 | AK23: 0.07 | AL23: 0.07 | AM23: 0.07 | AN23: 0.07 | AO23: 0.07 | AP23: 0.07 | AQ23: 0.07 | AR23: X | AS23: 0.07 | AT23: 0.07 | AU23: 0.07 | AV23: 0.07 | AW23: X | AX23: X | AY23: X | AZ23: 0.07 | BA23: X | BB23: 0.07 | BC23: 0.07 | BD23: X | BE23: X | BF23: X | BG23: X | BH23: 0.07 | BI23: X | BJ23: 0.07 | BK23: 0.07 | BL23: X | BM23: X | BN23: 0.07 | BO23: X | BP23: X | BQ23: 0.07 | BR23: 0.07 | BS23: X | BT23: 65 | BU23: =IF(Table[[#This Row],[Bonus*]]="X","n/a",Premium*(1+Table[[#This Row],[Bonus*]])*IF(Table[[#This Row],[Increase Type]]="Simple",1,(1+Table[[#This Row],[Annual Benefit Base Increase Rate]])^MIN(TRUNC(Defer,0),Table[[#This Row],[Rollup Switch]])*(1+Table[[#This Row],[Rollup2]])^MIN(MAX(TRUNC(Defer,0)-Table[[#This Row],[Rollup Switch]],0),Table[[#This Row],[Max Years for Increase]]-Table[[#This Row],[Rollup Switch]]))+IF(Table[[#This Row],[Increase Type]]="Simple",Table[[#This Row],[Annual Benefit Base Increase Rate]]*Premium*(1+Table[[#This Row],[Rollup Bonus?]]*Table[[#This Row],[Bonus*]])*MIN(TRUNC(Defer,0),Table[[#This Row],[Max Years for Increase]]),0)) -> 150916.4559 | BV23: =IF(Table[[#This Row],[Attained Age]]<Table[[#This Row],[Min Income Age]],0,IF(Table[[#This Row],[Attained Age]]<55,0.035,IF(Table[[#This Row],[Attained Age]]<60,0.04,IF(Table[[#This Row],[Attained Age]]<65,0.045,IF(Table[[#This Row],[Attained Age]]<70,0.05,IF(Table[[#This Row],[Attained Age]]<75,0.0525,IF(Table[[#This Row],[Attained Age]]<80,0.055,IF(Table[[#This Row],[Attained Age]]<85,0.06,IF(Table[[#This Row],[Attained Age]]<90,0.0625,Table[[#This Row],[Max Payout]]))))))))) -> 0.05 | BW23: =IF(OR(Defer<Table[[#This Row],[Required Deferral]],Table[[#This Row],[Bonus*]]="X"),0,Table[[#This Row],[Benefit Base]]*Table[[#This Row],[Single Income Percentage]]) -> 7545.822794 | BX23: =IF(Table[[#This Row],[Single Income Percentage]]=0,0,Table[[#This Row],[Single Income Percentage]]-Table[[#This Row],[Joint Reduction]]) -> 0.045 | BY23: =IF(Table[[#This Row],[Single Annual Income]]=0,0,Table[[#This Row],[Benefit Base]]*Table[[#This Row],[Joint Income Percentage]]) -> 6791.240515 | BZ23: Rider | CA23: =IF(Table[[#This Row],[Bonus*]]="X",0,Premium*(1.02)^MIN(Defer,90-Age)) -> 121899.442
A24: Annexus BCA 12 | B24: A | C24: A | D24: BALIR SGO MAX | E24: =IF(OR(Age<Table[[#This Row],[Min Issue Age]],Age>Table[[#This Row],[Max Issue]],HLOOKUP(State,States,ROW(Table[#This Row])-4,FALSE)="X"),"X",HLOOKUP($I$2,States,ROW(Table[#This Row])-4,FALSE)) -> 0.07 | F24: =0.03 -> 0.03 | G24: 0.03 | H24: 5 | J24: 1 | L24: 0.0095 | M24: 18 | N24: 50 | O24: 0.065 | P24: 0.005 | Q24: 40 | R24: 0 | S24: 5000 | T24: 1000000 | U24: 76 | V24: 0.07 | W24: X | X24: 0.07 | Y24: 0.07 | Z24: 0.07 | AA24: 0.07 | AB24: X | AC24: X | AD24: X | AE24: 0.07 | AF24: 0.07 | AG24: 0.07 | AH24: X | AI24: X | AJ24: 0.07 | AK24: 0.07 | AL24: 0.07 | AM24: 0.07 | AN24: 0.07 | AO24: 0.07 | AP24: 0.07 | AQ24: 0.07 | AR24: X | AS24: 0.07 | AT24: 0.07 | AU24: 0.07 | AV24: 0.07 | AW24: X | AX24: X | AY24: X | AZ24: 0.07 | BA24: X | BB24: 0.07 | BC24: 0.07 | BD24: X | BE24: X | BF24: X | BG24: X | BH24: 0.07 | BI24: X | BJ24: 0.07 | BK24: 0.07 | BL24: X | BM24: X | BN24: 0.07 | BO24: X | BP24: X | BQ24: 0.07 | BR24: 0.07 | BS24: X | BT24: 65 | BU24: =IF(Table[[#This Row],[Bonus*]]="X","n/a",Premium*(1+Table[[#This Row],[Bonus*]])*IF(Table[[#This Row],[Increase Type]]="Simple",1,(1+Table[[#This Row],[Annual Benefit Base Increase Rate]])^MIN(TRUNC(Defer,0),Table[[#This Row],[Rollup Switch]])*(1+Table[[#This Row],[Rollup2]])^MIN(MAX(TRUNC(Defer,0)-Table[[#This Row],[Rollup Switch]],0),Table[[#This Row],[Max Years for Increase]]-Table[[#This Row],[Rollup Switch]]))+IF(Table[[#This Row],[Increase Type]]="Simple",Table[[#This Row],[Annual Benefit Base Increase Rate]]*Premium*(1+Table[[#This Row],[Rollup Bonus?]]*Table[[#This Row],[Bonus*]])*MIN(TRUNC(Defer,0),Table[[#This Row],[Max Years for Increase]]),0)) -> 143799.0526 | BV24: =IF(Table[[#This Row],[Attained Age]]<Table[[#This Row],[Min Income Age]],0,IF(Table[[#This Row],[Attained Age]]<55,0.035,IF(Table[[#This Row],[Attained Age]]<60,0.04,IF(Table[[#This Row],[Attained Age]]<65,0.045,IF(Table[[#This Row],[Attained Age]]<70,0.05,IF(Table[[#This Row],[Attained Age]]<75,0.0525,IF(Table[[#This Row],[Attained Age]]<80,0.055,IF(Table[[#This Row],[Attained Age]]<85,0.06,IF(Table[[#This Row],[Attained Age]]<90,0.0625,Table[[#This Row],[Max Payout]]))))))))) -> 0.05 | BW24: =IF(OR(Defer<Table[[#This Row],[Required Deferral]],Table[[#This Row],[Bonus*]]="X"),0,Table[[#This Row],[Benefit Base]]*Table[[#This Row],[Single Income Percentage]]) -> 7189.952629 | BX24: =IF(Table[[#This Row],[Single Income Percentage]]=0,0,Table[[#This Row],[Single Income Percentage]]-Table[[#This Row],[Joint Reduction]]) -> 0.045 | BY24: =IF(Table[[#This Row],[Single Annual Income]]=0,0,Table[[#This Row],[Benefit Base]]*Table[[#This Row],[Joint Income Percentage]]) -> 6470.957367 | BZ24: Rider | CA24: =IF(Table[[#This Row],[Bonus*]]="X",0,Premium*(1.02)^MIN(Defer,90-Age)) -> 121899.442
A25: Athene | B25: B++ | D25: GLWB | E25: =IFERROR(IF(OR(Age<Table[[#This Row],[Min Issue Age]],Age>Table[[#This Row],[Max Issue]]),"X",HLOOKUP(State,States,ROW(Table[#This Row])-4,FALSE)+1%),"X") -> 0.06 | F25: 0.065 | J25: 1 | L25: 0.0125 | M25: 10 | N25: 50 | O25: 0.075 | P25: 0.01 | Q25: 40 | R25: 1 | S25: 5000 | T25: 1000000 | U25: 80 | V25: 0.05 | W25: X | X25: 0.05 | Y25: 0.05 | Z25: 0.05 | AA25: 0.05 | AB25: X | AC25: X | AD25: 0.05 | AE25: 0.05 | AF25: X | AG25: 0.05 | AH25: 0.05 | AI25: 0.05 | AJ25: 0.05 | AK25: 0.05 | AL25: 0.05 | AM25: 0.05 | AN25: 0.05 | AO25: 0.05 | AP25: 0.05 | AQ25: 0.05 | AR25: X | AS25: 0.05 | AT25: 0.05 | AU25: 0.05 | AV25: 0.05 | AW25: 0.05 | AX25: 0.05 | AY25: X | AZ25: 0.05 | BA25: X | BB25: 0.05 | BC25: 0.05 | BD25: 0.05 | BE25: X | BF25: X | BG25: X | BH25: 0.05 | BI25: 0.05 | BJ25: 0.05 | BK25: 0.05 | BL25: 0.02 | BM25: X | BN25: 0.05 | BO25: 0.05 | BP25: X | BQ25: 0.05 | BR25: 0.05 | BS25: 0.05 | BT25: 65 | BU25: =IF(Table[[#This Row],[Bonus*]]="X","n/a",Premium*(1+Table[[#This Row],[Bonus*]])*IF(Table[[#This Row],[Increase Type]]="Simple",1,(1+Table[[#This Row],[Annual Benefit Base Increase Rate]])^MIN(TRUNC(Defer,0),Table[[#This Row],[Max Years for Increase]]))+IF(Table[[#This Row],[Increase Type]]="Simple",Table[[#This Row],[Annual Benefit Base Increase Rate]]*Premium*(1+Table[[#This Row],[Rollup Bonus?]]*Table[[#This Row],[Bonus*]])*MIN(TRUNC(Defer,0),Table[[#This Row],[Max Years for Increase]]),0)) -> 198976.5713 | BV25: =IF(Table[[#This Row],[Attained Age]]<Table[[#This Row],[Min Income Age]],0,MIN(FLOOR(Table[[#This Row],[Attained Age]]-15,5)/1000,Table[[#This Row],[Max Payout]])) -> 0.05 | BW25: =IF(OR(Defer<Table[[#This Row],[Required Deferral]],Table[[#This Row],[Bonus*]]="X"),0,Table[[#This Row],[Benefit Base]]*Table[[#This Row],[Single Income Percentage]]) -> 9948.828566 | BX25: =IF(Table[[#This Row],[Single Income Percentage]]=0,0,Table[[#This Row],[Single Income Percentage]]-Table[[#This Row],[Joint Reduction]]) -> 0.04 | BY25: =IF(Table[[#This Row],[Single Annual Income]]=0,0,Table[[#This Row],[Benefit Base]]*Table[[#This Row],[Joint Income Percentage]]) -> 7959.062853 | BZ25: AV | CA25: 0
A26: Athene | B26: B++ | C26: A- | D26: Lifetime Pay Plus | E26: =IF(OR(Age<Table[[#This Row],[Min Issue Age]],Age>Table[[#This Row],[Max Issue]],HLOOKUP(State,States,ROW(Table[#This Row])-4,FALSE)="X"),"X",HLOOKUP($I$2,States,ROW(Table[#This Row])-4,FALSE)) -> 0.04 | F26: 0.06 | J26: 1 | L26: 0.0075 | M26: 20 | N26: 50 | O26: 0.065 | P26: 0.005 | Q26: 40 | R26: 0 | S26: 5000 | T26: 1000000 | U26: 80 | V26: 0.04 | W26: 0.01 | X26: 0.04 | Y26: 0.04 | Z26: 0.04 | AA26: 0.04 | AB26: 0.01 | AC26: 0.05 | AD26: 0.04 | AE26: 0.04 | AF26: 0.04 | AG26: 0.04 | AH26: 0.04 | AI26: 0.04 | AJ26: 0.04 | AK26: 0.04 | AL26: 0.04 | AM26: 0.04 | AN26: 0.04 | AO26: 0.04 | AP26: 0.04 | AQ26: 0.04 | AR26: 0.01 | AS26: 0.04 | AT26: 0.04 | AU26: 0.04 | AV26: 0.04 | AW26: 0.01 | AX26: 0.04 | AY26: 0.03 | AZ26: 0.04 | BA26: X | BB26: 0.04 | BC26: 0.04 | BD26: 0.03 | BE26: 0.04 | BF26: 0.05 | BG26: 0.03 | BH26: 0.04 | BI26: 0.04 | BJ26: 0.04 | BK26: 0.04 | BL26: 0.04 | BM26: 0.01 | BN26: 0.04 | BO26: 0.04 | BP26: X | BQ26: 0.04 | BR26: 0.04 | BS26: 0.04 | BT26: 65 | BU26: =IF(Table[[#This Row],[Bonus*]]="X","n/a",Premium*(1+Table[[#This Row],[Bonus*]])*IF(Table[[#This Row],[Increase Type]]="Simple",1,(1+Table[[#This Row],[Annual Benefit Base Increase Rate]])^MIN(Defer,Table[[#This Row],[Max Years for Increase]]))+IF(Table[[#This Row],[Increase Type]]="Simple",Table[[#This Row],[Annual Benefit Base Increase Rate]]*Premium*(1+Table[[#This Row],[Rollup Bonus?]]*Table[[#This Row],[Bonus*]])*MIN(Defer,Table[[#This Row],[Max Years for Increase]]),0)) -> 186248.1604 | BV26: =IF(Table[[#This Row],[Attained Age]]<Table[[#This Row],[Min Income Age]],0,IF(Table[[#This Row],[Attained Age]]<55,0.035,IF(Table[[#This Row],[Attained Age]]<60,0.04,IF(Table[[#This Row],[Attained Age]]<65,0.045,IF(Table[[#This Row],[Attained Age]]<70,0.05,IF(Table[[#This Row],[Attained Age]]<75,0.0525,IF(Table[[#This Row],[Attained Age]]<80,0.055,IF(Table[[#This Row],[Attained Age]]<85,0.06,IF(Table[[#This Row],[Attained Age]]<90,0.0625,Table[[#This Row],[Max Payout]]))))))))) -> 0.05 | BW26: =IF(OR(Defer<Table[[#This Row],[Required Deferral]],Table[[#This Row],[Bonus*]]="X"),0,Table[[#This Row],[Benefit Base]]*Table[[#This Row],[Single Income Percentage]]) -> 9312.408022 | BX26: =IF(Table[[#This Row],[Single Income Percentage]]=0,0,Table[[#This Row],[Single Income Percentage]]-Table[[#This Row],[Joint Reduction]]) -> 0.045 | BY26: =IF(Table[[#This Row],[Single Annual Income]]=0,0,Table[[#This Row],[Benefit Base]]*Table[[#This Row],[Joint Income Percentage]]) -> 8381.16722 | BZ26: AV | CA26: 0
A27: Athene | B27: B++ | C27: A- | D27: Target Pay 10 | E27: =IF(OR(Age<Table[[#This Row],[Min Issue Age]],Age>Table[[#This Row],[Max Issue]],HLOOKUP(State,States,ROW(Table[#This Row])-4,FALSE)="X"),"X",HLOOKUP($I$2,States,ROW(Table[#This Row])-4,FALSE)) -> 0.06 | F27: 0 | J27: 1 | L27: 0.0125 | M27: none | N27: 50 | Q27: 40 | R27: 0 | S27: 5000 | T27: 1000000 | U27: 78 | V27: =IF(Premium<50000,0.05,0.06) -> 0.06 | W27: =IF(Age<=55,IF(Premium<50000,0.03,0.04),"0") -> 0.04 | X27: =IF(Premium<50000,0.05,0.06) -> 0.06 | Y27: =IF(Premium<50000,0.05,0.06) -> 0.06 | Z27: =IF(Premium<50000,0.05,0.06) -> 0.06 | AA27: =IF(Premium<50000,0.05,0.06) -> 0.06 | AB27: =IF(Premium<50000,0.05,0.06) -> 0.06 | AC27: X | AD27: =IF(Premium<50000,0.05,0.06) -> 0.06 | AE27: 0.06 | AF27: 0.06 | AG27: 0.06 | AH27: 0.06 | AI27: 0.06 | AJ27: 0.06 | AK27: 0.06 | AL27: 0.06 | AM27: 0.06 | AN27: 0.06 | AO27: 0.06 | AP27: 0.06 | AQ27: 0.06 | AR27: =IF(Age<=52,IF(Premium<50000,0.03,0.04),"0") -> 0 | AS27: =IF(Premium<50000,0.05,0.06) -> 0.06 | AT27: =IF(Premium<50000,0.05,0.06) -> 0.06 | AU27: =IF(Premium<50000,0.05,0.06) -> 0.06 | AV27: =IF(Premium<50000,0.05,0.06) -> 0.06 | AW27: =IF(Age<=55,IF(Premium<50000,0.03,0.04),"0") -> 0.04 | AX27: =IF(Premium<50000,0.05,0.06) -> 0.06 | AY27: =IF(Age<=55,IF(Premium<50000,0.03,0.04),"0") -> 0.04 | AZ27: =IF(Premium<50000,0.05,0.06) -> 0.06 | BA27: X | BB27: =IF(Premium<50000,0.05,0.06) -> 0.06 | BC27: =IF(Premium<50000,0.05,0.06) -> 0.06 | BD27: =IF(Age<=52,IF(Premium<50000,0.03,0.04),"0") -> 0 | BE27: X | BF27: X | BG27: =IF(Age<=55,IF(Premium<50000,0.03,0.04),"0") -> 0.04 | BH27: =IF(Premium<50000,0.05,0.06) -> 0.06 | BI27: =IF(Age<=55,IF(Premium<50000,0.03,0.04),"0") -> 0.04 | BJ27: =IF(Premium<50000,0.05,0.06) -> 0.06 | BK27: =IF(Premium<50000,0.05,0.06) -> 0.06 | BL27: X | BM27: =IF(Age<=52,IF(Premium<50000,0.03,0.04),"0") -> 0 | BN27: =IF(Premium<50000,0.05,0.06) -> 0.06 | BO27: X | BP27: X | BQ27: =IF(Premium<50000,0.05,0.06) -> 0.06 | BR27: =IF(Premium<50000,0.05,0.06) -> 0.06 | BS27: =IF(Premium<50000,0.05,0.06) -> 0.06 | BT27: 65 | BU27: =IF(Table[[#This Row],[Bonus*]]="X","n/a",Premium) -> 100000 | BV27: =T10S!$A$1 -> 0.08658 | BW27: =IF(OR(Defer<Table[[#This Row],[Required Deferral]],Table[[#This Row],[Bonus*]]="X"),0,Table[[#This Row],[Benefit Base]]*Table[[#This Row],[Single Income Percentage]]) -> 8658 | BX27: =T10J!$A$1 -> 0.07792 | BY27: =IF(Table[[#This Row],[Single Annual Income]]=0,0,Table[[#This Row],[Benefit Base]]*Table[[#This Row],[Joint Income Percentage]]) -> 7792 | BZ27: AV | CA27: 0
A28: Athene | B28: B++ | C28: A- | D28: Target Pay 15 | E28: =IF(OR(Age<Table[[#This Row],[Min Issue Age]],Age>Table[[#This Row],[Max Issue]],HLOOKUP(State,States,ROW(Table[#This Row])-4,FALSE)="X"),"X",HLOOKUP($I$2,States,ROW(Table[#This Row])-4,FALSE)) -> 0.1 | F28: 0 | J28: 1 | L28: 0.0125 | M28: none | N28: 50 | Q28: 40 | R28: 0 | S28: 5000 | T28: 1000000 | U28: 73 | V28: =IF(Premium<50000,0.08,0.1) -> 0.1 | W28: =IF(Age<=50,IF(Premium<50000,0.07,0.08),"X") -> X | X28: =IF(Premium<50000,0.08,0.1) -> 0.1 | Y28: =IF(Premium<50000,0.08,0.1) -> 0.1 | Z28: =IF(Premium<50000,0.08,0.1) -> 0.1 | AA28: =IF(Premium<50000,0.08,0.1) -> 0.1 | AB28: X | AC28: X | AD28: =IF(Age<=64,IF(Premium<50000,0.07,0.08),"X") -> 0.08 | AE28: =IF(Premium<50000,0.08,0.1) -> 0.1 | AF28: =IF(Premium<50000,0.08,0.1) -> 0.1 | AG28: =IF(Premium<50000,0.08,0.1) -> 0.1 | AH28: =IF(Premium<50000,0.07,0.08) -> 0.08 | AI28: =IF(Premium<50000,0.08,0.1) -> 0.1 | AJ28: 0.1 | AK28: 0.1 | AL28: 0.1 | AM28: 0.1 | AN28: 0.1 | AO28: 0.1 | AP28: 0.1 | AQ28: 0.1 | AR28: =IF(Age<=47,IF(Premium<50000,0.07,0.09),"X") -> X | AS28: =IF(Premium<50000,0.08,0.1) -> 0.1 | AT28: =IF(Premium<50000,0.08,0.1) -> 0.1 | AU28: =IF(Premium<50000,0.08,0.1) -> 0.1 | AV28: =IF(Premium<50000,0.08,0.1) -> 0.1 | AW28: =IF(Age<=50,IF(Premium<50000,0.07,0.08),"X") -> X | AX28: =IF(Premium<50000,0.08,0.1) -> 0.1 | AY28: =IF(Age<=50,IF(Premium<50000,0.07,0.08),"X") -> X | AZ28: =IF(Premium<50000,0.08,0.1) -> 0.1 | BA28: X | BB28: =IF(Premium<50000,0.08,0.1) -> 0.1 | BC28: =IF(Premium<50000,0.08,0.1) -> 0.1 | BD28: =IF(Age<=47,IF(Premium<50000,0.07,0.08),"X") -> X | BE28: =IF(Premium<50000,0.08,0.1) -> 0.1 | BF28: X | BG28: =IF(Age<=50,IF(Premium<50000,0.07,0.08),"X") -> X | BH28: =IF(Premium<50000,0.08,0.1) -> 0.1 | BI28: =IF(Age<=50,IF(Premium<50000,0.07,0.08),"X") -> X | BJ28: =IF(Premium<50000,0.08,0.1) -> 0.1 | BK28: =IF(Premium<50000,0.08,0.1) -> 0.1 | BL28: X | BM28: =IF(Age<=47,IF(Premium<50000,0.07,0.08),"X") -> X | BN28: =IF(Premium<50000,0.08,0.1) -> 0.1 | BO28: X | BP28: X | BQ28: =IF(Premium<50000,0.08,0.1) -> 0.1 | BR28: =IF(Premium<50000,0.08,0.1) -> 0.1 | BS28: =IF(Premium<50000,0.08,0.1) -> 0.1 | BT28: 65 | BU28: =IF(Table[[#This Row],[Bonus*]]="X","n/a",Premium) -> 100000 | BV28: =T15S!$A$1 -> 0.08658 | BW28: =IF(OR(Defer<Table[[#This Row],[Required Deferral]],Table[[#This Row],[Bonus*]]="X"),0,Table[[#This Row],[Benefit Base]]*Table[[#This Row],[Single Income Percentage]]) -> 8658 | BX28: =T15J!$A$1 -> 0.07792 | BY28: =IF(Table[[#This Row],[Single Annual Income]]=0,0,Table[[#This Row],[Benefit Base]]*Table[[#This Row],[Joint Income Percentage]]) -> 7792 | BZ28: AV | CA28: 0
A29: Athene | B29: B++ | D29: Benefit 10 | E29: =IFERROR(IF(OR(Age<Table[[#This Row],[Min Issue Age]],Age>Table[[#This Row],[Max Issue]]),"X",HLOOKUP(State,States,ROW(Table[#This Row])-4,FALSE)),"X") -> 0 | F29: 0.08 | G29: 0.05 | H29: 10 | I29: Simple | J29: 0 | L29: 0.014 | M29: =85-Age -> 30 | N29: 50 | O29: 0.065 | P29: 0.005 | Q29: 30 | R29: 1 | S29: 5000 | T29: 1000000 | U29: 80 | V29: 0 | W29: 0 | X29: 0 | Y29: 0 | Z29: X | AA29: 0 | AB29: X | AC29: 0 | AD29: 0 | AE29: 0 | AF29: X | AG29: 0 | AH29: X | AI29: 0 | AJ29: 0 | AK29: 0 | AL29: 0 | AM29: 0 | AN29: 0 | AO29: 0 | AP29: 0 | AQ29: 0 | AR29: 0 | AS29: 0 | AT29: 0 | AU29: 0 | AV29: 0 | AW29: 0 | AX29: 0 | AY29: 0 | AZ29: 0 | BA29: X | BB29: 0 | BC29: 0 | BD29: 0 | BE29: 0 | BF29: 0 | BG29: 0 | BH29: 0 | BI29: 0 | BJ29: 0 | BK29: 0 | BL29: 0 | BM29: 0 | BN29: 0 | BO29: 0 | BP29: X | BQ29: 0 | BR29: 0 | BS29: 0 | BT29: 65 | BU29: =IF(Table[[#This Row],[Bonus*]]="X","n/a",Premium*(1+Table[[#This Row],[Bonus*]])*IF(Table[[#This Row],[Increase Type]]="Simple",1,(1+Table[[#This Row],[Annual Benefit Base Increase Rate]])^MIN(TRUNC(Defer,0),Table[[#This Row],[Rollup Switch]])*(1+Table[[#This Row],[Rollup2]])^MIN(MAX(TRUNC(Defer,0)-Table[[#This Row],[Rollup Switch]],0),Table[[#This Row],[Max Years for Increase]]-Table[[#This Row],[Rollup Switch]]))+IF(Table[[#This Row],[Increase Type]]="Simple",Premium*(1+Table[[#This Row],[Rollup Bonus?]]*Table[[#This Row],[Bonus*]])*(Table[[#This Row],[Annual Benefit Base Increase Rate]]*MIN(TRUNC(Defer,0),Table[[#This Row],[Rollup Switch]])+Table[[#This Row],[Rollup2]]*MIN(MAX(Defer-Table[[#This Row],[Rollup Switch]],0),Table[[#This Row],[Max Years for Increase]]-Table[[#This Row],[Rollup Switch]])),0)) -> 180000 | BV29: =IF(Table[[#This Row],[Attained Age]]<Table[[#This Row],[Min Income Age]],0,MIN(FLOOR(Table[[#This Row],[Attained Age]]-20,5)/1000,Table[[#This Row],[Max Payout]])) -> 0.045 | BW29: =IF(OR(Defer<Table[[#This Row],[Required Deferral]],Table[[#This Row],[Bonus*]]="X"),0,Table[[#This Row],[Benefit Base]]*Table[[#This Row],[Single Income Percentage]])*(1+IF(Defer<7,0.1,IF(Defer=7,0.05,0))) -> 8100 | BX29: =IF(Table[[#This Row],[Single Income Percentage]]=0,0,Table[[#This Row],[Single Income Percentage]]-Table[[#This Row],[Joint Reduction]]) -> 0.04 | BY29: =IF(Table[[#This Row],[Single Annual Income]]=0,0,Table[[#This Row],[Benefit Base]]*Table[[#This Row],[Joint Income Percentage]])*(1+IF(Defer<7,0.1,IF(Defer=7,0.05,0))) -> 7200 | BZ29: IAV 5-yr | CA29: =IF(Table[[#This Row],[Benefit Base]]="n/a",0,Table[[#This Row],[Benefit Base]]) -> 180000
A30: Aviva LSA | B30: A | C30: A | D30: Income Rider | E30: =IF(OR(Age<Table[[#This Row],[Min Issue Age]],Age>Table[[#This Row],[Max Issue]],HLOOKUP(State,States,ROW(Table[#This Row])-4,FALSE)="X"),"X",HLOOKUP($I$2,States,ROW(Table[#This Row])-4,FALSE)) -> 0.04 | F30: =IF(Premium>=100000,0.07,0.06) -> 0.07 | I30: Simple | J30: 1 | L30: 0.0095 | M30: =MAX(MIN(20,85-Age),0) -> 20 | N30: 50 | O30: 0.065 | P30: 0.005 | Q30: 0 | R30: 0 | S30: 25000 | T30: 1000000 | U30: 78 | V30: =IF(Premium>=100000,0.04,0.03) -> 0.04 | W30: 0.03 | X30: =IF(Premium>=100000,0.04,0.03) -> 0.04 | Y30: =IF(Premium>=100000,0.04,0.03) -> 0.04 | Z30: =IF(Premium>=100000,0.04,0.03) -> 0.04 | AA30: =IF(Premium>=100000,0.04,0.03) -> 0.04 | AB30: 0.03 | AC30: 0.03 | AD30: =IF(Premium>=100000,0.04,0.03) -> 0.04 | AE30: 0.04 | AF30: 0.04 | AG30: 0.04 | AH30: 0.04 | AI30: 0.04 | AJ30: 0.04 | AK30: 0.04 | AL30: 0.04 | AM30: 0.04 | AN30: 0.04 | AO30: 0.04 | AP30: 0.04 | AQ30: 0.04 | AR30: 0.03 | AS30: =IF(Premium>=100000,0.04,0.03) -> 0.04 | AT30: =IF(Premium>=100000,0.04,0.03) -> 0.04 | AU30: =IF(Premium>=100000,0.04,0.03) -> 0.04 | AV30: =IF(Premium>=100000,0.04,0.03) -> 0.04 | AW30: 0.03 | AX30: =IF(Premium>=100000,0.04,0.03) -> 0.04 | AY30: X | AZ30: =IF(Premium>=100000,0.04,0.03) -> 0.04 | BA30: X | BB30: =IF(Premium>=100000,0.04,0.03) -> 0.04 | BC30: =IF(Premium>=100000,0.04,0.03) -> 0.04 | BD30: =IF(Premium>=100000,0.04,0.03) -> 0.04 | BE30: =IF(Premium>=100000,0.04,0.03) -> 0.04 | BF30: X | BG30: 0.03 | BH30: =IF(Premium>=100000,0.04,0.03) -> 0.04 | BI30: 0.03 | BJ30: =IF(Premium>=100000,0.04,0.03) -> 0.04 | BK30: =IF(Premium>=100000,0.04,0.03) -> 0.04 | BL30: 0.03 | BM30: 0.03 | BN30: =IF(Premium>=100000,0.04,0.03) -> 0.04 | BO30: =IF(Premium>=100000,0.04,0.03) -> 0.04 | BP30: X | BQ30: =IF(Premium>=100000,0.04,0.03) -> 0.04 | BR30: =IF(Premium>=100000,0.04,0.03) -> 0.04 | BS30: =IF(Premium>=100000,0.04,0.03) -> 0.04 | BT30: 65 | BU30: =IF(Table[[#This Row],[Bonus*]]="X","n/a",Premium*(1+Table[[#This Row],[Bonus*]])*IF(Table[[#This Row],[Increase Type]]="Simple",1,(1+Table[[#This Row],[Annual Benefit Base Increase Rate]])^MIN(Defer,Table[[#This Row],[Max Years for Increase]]))+IF(Table[[#This Row],[Increase Type]]="Simple",Table[[#This Row],[Annual Benefit Base Increase Rate]]*Premium*(1+Table[[#This Row],[Rollup Bonus?]]*Table[[#This Row],[Bonus*]])*MIN(Defer,Table[[#This Row],[Max Years for Increase]]),0)) -> 176800 | BV30: =IF(Table[[#This Row],[Attained Age]]<Table[[#This Row],[Min Income Age]],0,IF(Table[[#This Row],[Attained Age]]<55,0.035,IF(Table[[#This Row],[Attained Age]]<60,0.04,IF(Table[[#This Row],[Attained Age]]<65,0.045,IF(Table[[#This Row],[Attained Age]]<70,0.05,IF(Table[[#This Row],[Attained Age]]<75,0.0525,IF(Table[[#This Row],[Attained Age]]<80,0.055,IF(Table[[#This Row],[Attained Age]]<85,0.06,IF(Table[[#This Row],[Attained Age]]<90,0.0625,Table[[#This Row],[Max Payout]]))))))))) -> 0.05 | BW30: =IF(OR(Defer<Table[[#This Row],[Required Deferral]],Table[[#This Row],[Bonus*]]="X"),0,Table[[#This Row],[Benefit Base]]*Table[[#This Row],[Single Income Percentage]]) -> 8840 | BX30: =IF(Table[[#This Row],[Single Income Percentage]]=0,0,Table[[#This Row],[Single Income Percentage]]-Table[[#This Row],[Joint Reduction]]) -> 0.045 | BY30: =IF(Table[[#This Row],[Single Annual Income]]=0,0,Table[[#This Row],[Benefit Base]]*Table[[#This Row],[Joint Income Percentage]]) -> 7956 | BZ30: IAV 5-yr | CA30: =IF(Table[[#This Row],[Benefit Base]]="n/a",0,MIN(Table[[#This Row],[Benefit Base]],Premium*(1+Table[[#This Row],[Bonus*]])*1)) -> 104000
A31: EquiTrust | B31: B++ | C31: BBB+ | D31: Income for Life | E31: =IF(OR(Age<Table[[#This Row],[Min Issue Age]],Age>Table[[#This Row],[Max Issue]]),"X",IF(Age>=76, 0.06,IF(HLOOKUP(State,States,ROW(Table[#This Row])-4,FALSE)=12%,1.06*1.02^MIN(Defer,3)-1,HLOOKUP(State,States,ROW(Table[#This Row])-4,FALSE)))) -> 0.12488048 | F31: 0.065 | J31: 1 | L31: 0.0075 | M31: 15 | N31: 50 | O31: 0.075 | P31: 0.005 | Q31: 0 | R31: 2 | S31: =IF(Table[[#This Row],[Bonus*]]>=0.12,30000,IF(Table[[#This Row],[Bonus*]]=0.1,20000,10000)) -> 30000 | T31: 1000000 | U31: 80 | V31: 0.12 | W31: 0.1 | X31: 0.12 | Y31: 0.12 | Z31: 0.12 | AA31: 0.12 | AB31: 0.06 | AC31: 0.06 | AD31: =IF(Age<65,12%,6%) -> 0.12 | AE31: 0.12 | AF31: 0.12 | AG31: 0.12 | AH31: 0.12 | AI31: 0.12 | AJ31: 0.12 | AK31: 0.12 | AL31: 0.12 | AM31: 0.12 | AN31: 0.12 | AO31: 0.12 | AP31: 0.12 | AQ31: 0.12 | AR31: 0.06 | AS31: 0.12 | AT31: 0.12 | AU31: 0.12 | AV31: 0.12 | AW31: 0.06 | AX31: 0.12 | AY31: 0.12 | AZ31: 0.12 | BA31: X | BB31: 0.12 | BC31: 0.12 | BD31: =IF(Age<=75,10%,6%) -> 0.1 | BE31: 0.12 | BF31: 0.06 | BG31: 0.12 | BH31: 0.12 | BI31: 0.12 | BJ31: 0.12 | BK31: 0.12 | BL31: 0.06 | BM31: 0.06 | BN31: 0.12 | BO31: 0.12 | BP31: 0.06 | BQ31: 0.12 | BR31: 0.12 | BS31: 0.12 | BT31: 65 | BU31: =IF(Table[[#This Row],[Bonus*]]="X","n/a",Premium*(1+Table[[#This Row],[Bonus*]])*IF(Table[[#This Row],[Increase Type]]="Simple",1,(1+Table[[#This Row],[Annual Benefit Base Increase Rate]])^MIN(TRUNC(Defer,0),Table[[#This Row],[Max Years for Increase]]))+IF(Table[[#This Row],[Increase Type]]="Simple",Table[[#This Row],[Annual Benefit Base Increase Rate]]*Premium*(1+Table[[#This Row],[Rollup Bonus?]]*Table[[#This Row],[Bonus*]])*MIN(TRUNC(Defer,0),Table[[#This Row],[Max Years for Increase]]),0)) -> 211155.5293 | BV31: =IF(Table[[#This Row],[Attained Age]]<Table[[#This Row],[Min Income Age]],0,MIN(FLOOR(Table[[#This Row],[Attained Age]]-15,5)/1000,Table[[#This Row],[Max Payout]])) -> 0.05 | BW31: =IF(OR(Defer<Table[[#This Row],[Required Deferral]],Table[[#This Row],[Bonus*]]="X"),0,Table[[#This Row],[Benefit Base]]*Table[[#This Row],[Single Income Percentage]]) -> 10557.77646 | BX31: =IF(Table[[#This Row],[Single Income Percentage]]=0,0,Table[[#This Row],[Single Income Percentage]]-Table[[#This Row],[Joint Reduction]]) -> 0.045 | BY31: =IF(Table[[#This Row],[Single Annual Income]]=0,0,Table[[#This Row],[Benefit Base]]*Table[[#This Row],[Joint Income Percentage]]) -> 9501.998818 | BZ31: AV | CA31: 0
A32: F & G | B32: B++ | C32: BB | D32: Enhanced Upfront | E32: =IF(OR(Age<Table[[#This Row],[Min Issue Age]],Age>Table[[#This Row],[Max Issue]]),"X",HLOOKUP(State,States,ROW(Table[#This Row])-4,FALSE)) -> 0.03 | F32: 0.065 | G32: 0.03 | H32: 10 | J32: 1 | L32: 0.007 | M32: 20 | N32: 50 | O32: 0.06 | P32: 0.01 | Q32: 40 | R32: 1 | S32: 10000 | T32: 1000000 | U32: 80 | V32: 0.03 | W32: 0.03 | X32: 0.03 | Y32: 0.03 | Z32: 0.03 | AA32: 0.03 | AB32: 0.03 | AC32: 0.03 | AD32: 0.03 | AE32: 0.03 | AF32: 0.03 | AG32: 0.03 | AH32: 0.03 | AI32: 0.03 | AJ32: 0.03 | AK32: 0.03 | AL32: 0.03 | AM32: 0.03 | AN32: 0.03 | AO32: 0.03 | AP32: 0.03 | AQ32: 0.03 | AR32: X | AS32: 0.03 | AT32: 0.03 | AU32: 0.03 | AV32: 0.03 | AW32: 0.03 | AX32: 0.03 | AY32: 0.03 | AZ32: 0.03 | BA32: X | BB32: 0.03 | BC32: 0.03 | BD32: 0.03 | BE32: X | BF32: X | BG32: 0.03 | BH32: 0.03 | BI32: 0.03 | BJ32: 0.03 | BK32: 0.03 | BL32: 0.03 | BM32: X | BN32: X | BO32: 0.03 | BP32: X | BQ32: 0.03 | BR32: 0.03 | BS32: 0.03 | BT32: 65 | BU32: =IF(Table[[#This Row],[Bonus*]]="X","n/a",Premium*(1+Table[[#This Row],[Bonus*]])*IF(Table[[#This Row],[Increase Type]]="Simple",1,(1+Table[[#This Row],[Annual Benefit Base Increase Rate]])^MIN(TRUNC(Defer,0),Table[[#This Row],[Rollup Switch]])*(1+Table[[#This Row],[Rollup2]])^MIN(MAX(TRUNC(Defer,0)-Table[[#This Row],[Rollup Switch]],0),Table[[#This Row],[Max Years for Increase]]-Table[[#This Row],[Rollup Switch]]))+IF(Table[[#This Row],[Increase Type]]="Simple",Table[[#This Row],[Annual Benefit Base Increase Rate]]*Premium*(1+Table[[#This Row],[Rollup Bonus?]]*Table[[#This Row],[Bonus*]])*MIN(TRUNC(Defer,0),Table[[#This Row],[Max Years for Increase]]),0)) -> 193345.1589 | BV32: =IF(Table[[#This Row],[Attained Age]]<Table[[#This Row],[Min Income Age]],0,MIN(FLOOR(Table[[#This Row],[Attained Age]]-15,5)/1000,Table[[#This Row],[Max Payout]])) -> 0.05 | BW32: =IF(OR(Defer<Table[[#This Row],[Required Deferral]],Table[[#This Row],[Bonus*]]="X"),0,Table[[#This Row],[Benefit Base]]*Table[[#This Row],[Single Income Percentage]]) -> 9667.257946 | BX32: =IF(Table[[#This Row],[Single Income Percentage]]=0,0,MIN(FLOOR(Table[[#This Row],[Attained Age]]-20,10)/1000,Table[[#This Row],[Max Payout]])) -> 0.04 | BY32: =IF(Table[[#This Row],[Single Annual Income]]=0,0,Table[[#This Row],[Benefit Base]]*Table[[#This Row],[Joint Income Percentage]]) -> 7733.806357 | BZ32: AV | CA32: 0
A33: F & G | B33: B++ | C33: BB | D33: Simplicity Elite | E33: =IF(OR(Age<Table[[#This Row],[Min Issue Age]],Age>Table[[#This Row],[Max Issue]]),"X",HLOOKUP(State,States,ROW(Table[#This Row])-4,FALSE)) -> 0 | F33: 0.1 | I33: Simple | J33: 0 | L33: 0.0125 | M33: 10 | N33: 50 | O33: 0.065 | P33: 0.005 | Q33: 40 | R33: 1 | S33: 10000 | T33: 1000000 | U33: 85 | V33: X | W33: X | X33: 0 | Y33: 0 | Z33: X | AA33: 0 | AB33: X | AC33: X | AD33: X | AE33: 0 | AF33: X | AG33: 0 | AH33: X | AI33: X | AJ33: 0 | AK33: 0 | AL33: 0 | AM33: 0 | AN33: 0 | AO33: X | AP33: X | AQ33: 0 | AR33: X | AS33: X | AT33: X | AU33: 0 | AV33: 0 | AW33: 0 | AX33: 0 | AY33: X | AZ33: 0 | BA33: X | BB33: X | BC33: 0 | BD33: 0 | BE33: X | BF33: X | BG33: X | BH33: 0 | BI33: 0 | BJ33: X | BK33: 0 | BL33: X | BM33: 0 | BN33: 0 | BO33: 0 | BP33: X | BQ33: 0 | BR33: X | BS33: 0 | BT33: 65 | BU33: =IF(Table[[#This Row],[Bonus*]]="X","n/a",Premium*IF(Table[[#This Row],[Increase Type]]="Simple",1,(1+Table[[#This Row],[Annual Benefit Base Increase Rate]])^MIN(TRUNC(Defer,0),Table[[#This Row],[Max Years for Increase]]))+IF(Table[[#This Row],[Increase Type]]="Simple",Table[[#This Row],[Annual Benefit Base Increase Rate]]*Premium*(1+Table[[#This Row],[Rollup Bonus?]]*Table[[#This Row],[Bonus*]])*MIN(TRUNC(Defer,0),Table[[#This Row],[Max Years for Increase]]),0)) -> 200000 | BV33: =IF(Table[[#This Row],[Attained Age]]<Table[[#This Row],[Min Income Age]],0,MIN((Table[[#This Row],[Attained Age]]-17)/1000,Table[[#This Row],[Max Payout]])) -> 0.048 | BW33: =IF(OR(Defer<Table[[#This Row],[Required Deferral]],Table[[#This Row],[Bonus*]]="X"),0,Table[[#This Row],[Benefit Base]]*Table[[#This Row],[Single Income Percentage]]) -> 9600 | BX33: =IF(Table[[#This Row],[Attained Age]]<Table[[#This Row],[Min Income Age]],0,MIN((Table[[#This Row],[Attained Age]]-22)/1000,Table[[#This Row],[Max Payout]])) -> 0.043 | BY33: =IF(Table[[#This Row],[Single Annual Income]]=0,0,Table[[#This Row],[Benefit Base]]*Table[[#This Row],[Joint Income Percentage]]) -> 8600 | BZ33: =IF(Age<=70,"IAV 5-yr","IAV 10-yr") -> IAV 5-yr | CA33: =IF(Table[[#This Row],[Benefit Base]]="n/a",0,Premium*(1+0.03*MIN(Defer,10))) -> 130000
A34: F & G | B34: B++ | C34: BB | D34: New Protection Package | E34: =IF(OR(Age<Table[[#This Row],[Min Issue Age]],Age>Table[[#This Row],[Max Issue]],HLOOKUP(State,States,ROW(Table[#This Row])-4,FALSE)="X"),"X",HLOOKUP(State,States,ROW(Table[#This Row])-4,FALSE)) -> 0.08 | F34: 0.07 | G34: 0.03 | H34: 10 | J34: 1 | L34: 0.011 | M34: 20 | N34: 50 | O34: 0.06 | P34: 0.005 | Q34: 40 | R34: 1 | S34: 10000 | T34: 1000000 | U34: 85 | V34: X | W34: 0.07 | X34: 0.08 | Y34: 0.08 | Z34: 0.08 | AA34: 0.08 | AB34: X | AC34: 0.07 | AD34: X | AE34: 0.08 | AF34: X | AG34: 0.08 | AH34: X | AI34: X | AJ34: 0.08 | AK34: 0.08 | AL34: 0.08 | AM34: 0.08 | AN34: 0.08 | AO34: 0.08 | AP34: 0.07 | AQ34: 0.08 | AR34: X | AS34: X | AT34: 0.08 | AU34: 0.08 | AV34: 0.08 | AW34: 0.07 | AX34: 0.08 | AY34: 0.08 | AZ34: 0.08 | BA34: X | BB34: 0.08 | BC34: 0.08 | BD34: 0.07 | BE34: 0.07 | BF34: X | BG34: 0.08 | BH34: 0.08 | BI34: 0.07 | BJ34: X | BK34: 0.08 | BL34: 0.07 | BM34: 0.07 | BN34: 0.08 | BO34: 0.08 | BP34: X | BQ34: 0.08 | BR34: X | BS34: 0.08 | BT34: 65 | BU34: =IF(Table[[#This Row],[Bonus*]]="X","n/a",Premium*IF(Table[[#This Row],[Increase Type]]="Simple",1,(1+Table[[#This Row],[Annual Benefit Base Increase Rate]])^MIN(TRUNC(Defer,0),Table[[#This Row],[Rollup Switch]])*(1+Table[[#This Row],[Rollup2]])^MIN(MAX(TRUNC(Defer,0)-Table[[#This Row],[Rollup Switch]],0),Table[[#This Row],[Max Years for Increase]]-Table[[#This Row],[Rollup Switch]]))+IF(Table[[#This Row],[Increase Type]]="Simple",Table[[#This Row],[Annual Benefit Base Increase Rate]]*Premium*(1+Table[[#This Row],[Rollup Bonus?]])*MIN(TRUNC(Defer,0),Table[[#This Row],[Max Years for Increase]]),0)) -> 196715.1357 | BV34: =IF(Table[[#This Row],[Attained Age]]<Table[[#This Row],[Min Income Age]],0,MIN((Table[[#This Row],[Attained Age]]-17)/1000,Table[[#This Row],[Max Payout]])) -> 0.048 | BW34: =IF(OR(Defer<Table[[#This Row],[Required Deferral]],Table[[#This Row],[Bonus*]]="X"),0,Table[[#This Row],[Benefit Base]]*Table[[#This Row],[Single Income Percentage]]) -> 9442.326515 | BX34: =IF(Table[[#This Row],[Single Income Percentage]]=0,0,MIN(FLOOR(Table[[#This Row],[Attained Age]]-22,1)/1000,Table[[#This Row],[Max Payout]])) -> 0.043 | BY34: =IF(Table[[#This Row],[Single Annual Income]]=0,0,Table[[#This Row],[Benefit Base]]*Table[[#This Row],[Joint Income Percentage]]) -> 8458.750836 | BZ34: Rider | CA34: =IF(Table[[#This Row],[Benefit Base]]="n/a",0,Premium*(1+Table[[#This Row],[Bonus*]])*(1+0.05*MIN(Defer,85-Age,10))) -> 162000
A35: F & G | B35: B++ | C35: BB | D35: Performance Pro | E35: =IF(OR(Age<Table[[#This Row],[Min Issue Age]],Age>Table[[#This Row],[Max Issue]],HLOOKUP(State,States,ROW(Table[#This Row])-4,FALSE)="X"),"X",HLOOKUP(State,States,ROW(Table[#This Row])-4,FALSE)) -> 0 | F35: =0.04+ror -> 0.04 | G35: =IF(ror=0,0.02,0.04+ror) -> 0.02 | H35: 10 | J35: 1 | L35: 0.0095 | M35: 20 | N35: 50 | O35: 0.0725 | P35: 0.01 | Q35: 0 | R35: 1 | S35: 10000 | T35: 1000000 | U35: 80 | V35: X | W35: 0 | X35: x | Y35: 0 | Z35: 0 | AA35: 0 | AB35: X | AC35: 0 | AD35: 0 | AE35: 0 | AF35: 0 | AG35: 0 | AH35: 0 | AI35: X | AJ35: X | AK35: 0 | AL35: 0 | AM35: 0 | AN35: 0 | AO35: 0 | AP35: 0 | AQ35: 0 | AR35: X | AS35: X | AT35: 0 | AU35: 0 | AV35: 0 | AW35: 0 | AX35: X | AY35: 0 | AZ35: 0 | BA35: X | BB35: 0 | BC35: 0 | BD35: 0 | BE35: 0 | BF35: X | BG35: X | BH35: 0 | BI35: 0 | BJ35: 0 | BK35: 0 | BL35: 0 | BM35: 0 | BN35: X | BO35: X | BP35: X | BQ35: 0 | BR35: 0 | BS35: X | BT35: 65 | BU35: =IF(Table[[#This Row],[Bonus*]]="X","n/a",Premium*(1+Table[[#This Row],[Annual Benefit Base Increase Rate]])^MIN(TRUNC(Defer,0),Table[[#This Row],[Rollup Switch]])*(1+Table[[#This Row],[Rollup2]])^MIN(MAX(TRUNC(Defer,0)-Table[[#This Row],[Rollup Switch]],0),Table[[#This Row],[Max Years for Increase]]-Table[[#This Row],[Rollup Switch]]))+IF(Table[[#This Row],[Increase Type]]="Simple",Table[[#This Row],[Annual Benefit Base Increase Rate]]*Premium*(1+Table[[#This Row],[Rollup Bonus?]]*Table[[#This Row],[Bonus*]])*MIN(TRUNC(Defer,0),Table[[#This Row],[Max Years for Increase]]),0) -> 148024.4285 | BV35: =IF(Table[[#This Row],[Attained Age]]<Table[[#This Row],[Min Income Age]],0,MIN((FLOOR(Table[[#This Row],[Attained Age]]-15,5)/1000)+0.0025,Table[[#This Row],[Max Payout]])) -> 0.0525 | BW35: =IF(OR(Defer<Table[[#This Row],[Required Deferral]],Table[[#This Row],[Bonus*]]="X"),0,Table[[#This Row],[Benefit Base]]*Table[[#This Row],[Single Income Percentage]]) -> 7771.282496 | BX35: =IF(AND(Table[[#This Row],[Attained Age]]>=Table[[#This Row],[Min Income Age]],Table[[#This Row],[Attained Age]]<60),0.0325,IF(AND(Table[[#This Row],[Attained Age]]>=60,Table[[#This Row],[Attained Age]]<70),0.0425,IF(AND(Table[[#This Row],[Attained Age]]>=70,Table[[#This Row],[Attained Age]]<80),0.0525,0.0625))) -> 0.0425 | BY35: =IF(Table[[#This Row],[Single Annual Income]]=0,0,Table[[#This Row],[Benefit Base]]*Table[[#This Row],[Joint Income Percentage]]) -> 6291.038211 | BZ35: AV | CA35: 0
A36: F & G | B36: B++ | C36: BB | D36: Old Protection Package | E36: =IF(OR(Age<Table[[#This Row],[Min Issue Age]],Age>Table[[#This Row],[Max Issue]],HLOOKUP(State,States,ROW(Table[#This Row])-4,FALSE)="X"),"X",HLOOKUP(State,States,ROW(Table[#This Row])-4,FALSE)) -> X | F36: 0.065 | G36: 0.03 | H36: 10 | J36: 1 | L36: 0.011 | M36: 10 | N36: 50 | O36: 0.06 | P36: 0.01 | Q36: 40 | R36: 1 | S36: 10000 | T36: 1000000 | U36: 85 | V36: X | W36: X | X36: X | Y36: X | Z36: X | AA36: X | AB36: X | AC36: X | AD36: 0.08 | AE36: X | AF36: 0.08 | AG36: X | AH36: 0.08 | AI36: =IF(Age<=80,8%,"X") -> 0.08 | AJ36: X | AK36: X | AL36: X | AM36: X | AN36: X | AO36: x | AP36: X | AQ36: X | AR36: X | AS36: X | AT36: X | AU36: X | AV36: X | AW36: X | AX36: X | AY36: X | AZ36: X | BA36: X | BB36: X | BC36: X | BD36: X | BE36: X | BF36: X | BG36: X | BH36: X | BI36: X | BJ36: 0.08 | BK36: X | BL36: X | BM36: X | BN36: X | BO36: X | BP36: X | BQ36: X | BR36: 0.08 | BS36: X | BT36: 65 | BU36: =IF(Table[[#This Row],[Bonus*]]="X","n/a",Premium*MAX(1.18,(1+Table[[#This Row],[Annual Benefit Base Increase Rate]])^MIN(TRUNC(Defer,0),Table[[#This Row],[Max Years for Increase]]))) -> n/a | BV36: =IF(Table[[#This Row],[Attained Age]]<Table[[#This Row],[Min Income Age]],0,MIN(FLOOR(Table[[#This Row],[Attained Age]]-15,5)/1000,Table[[#This Row],[Max Payout]])) -> 0.05 | BW36: =IF(OR(Defer<Table[[#This Row],[Required Deferral]],Table[[#This Row],[Bonus*]]="X"),0,Table[[#This Row],[Benefit Base]]*Table[[#This Row],[Single Income Percentage]]) -> 0 | BX36: =IF(Table[[#This Row],[Single Income Percentage]]=0,0,MIN(FLOOR(Table[[#This Row],[Attained Age]]-20,10)/1000,Table[[#This Row],[Max Payout]])) -> 0.04 | BY36: =IF(Table[[#This Row],[Single Annual Income]]=0,0,Table[[#This Row],[Benefit Base]]*Table[[#This Row],[Joint Income Percentage]]) -> 0 | BZ36: =IF(Age<=70,"IAV 5-yr","IAV 10-yr") -> IAV 5-yr | CA36: =IF(Table[[#This Row],[Benefit Base]]="n/a",0,MIN(Table[[#This Row],[Benefit Base]],Premium*(1+Table[[#This Row],[Bonus*]])*2)) -> 0
A37: Forethought | B37: A- | C37: A- | D37: Index Bonus 115 | E37: =IF(OR(Age<Table[[#This Row],[Min Issue Age]],Age>Table[[#This Row],[Max Issue]]),"X",HLOOKUP(State,States,ROW(Table[#This Row])-4,FALSE)) -> 0.15 | F37: 0.06 | J37: 1 | L37: 0.0095 | M37: 10 | N37: 59 | O37: 0.065 | P37: 0.01 | Q37: 40 | R37: 1 | S37: 10000 | T37: 1000000 | U37: 85 | V37: 0.15 | W37: 0.15 | X37: 0.15 | Y37: 0.15 | Z37: 0.15 | AA37: 0.15 | AB37: 0.15 | AC37: 0.15 | AD37: 0.15 | AE37: 0.15 | AF37: 0.15 | AG37: 0.15 | AH37: 0.15 | AI37: 0.15 | AJ37: 0.15 | AK37: 0.15 | AL37: 0.15 | AM37: 0.15 | AN37: 0.15 | AO37: 0.15 | AP37: 0.15 | AQ37: 0.15 | AR37: 0.15 | AS37: 0.15 | AT37: 0.15 | AU37: 0.15 | AV37: 0.15 | AW37: 0.15 | AX37: 0.15 | AY37: 0.15 | AZ37: 0.15 | BA37: X | BB37: 0.15 | BC37: 0.15 | BD37: 0.15 | BE37: 0.15 | BF37: 0.15 | BG37: 0.15 | BH37: 0.15 | BI37: 0.15 | BJ37: 0.15 | BK37: 0.15 | BL37: 0.15 | BM37: 0.15 | BN37: 0.15 | BO37: 0.15 | BP37: 0.15 | BQ37: 0.15 | BR37: 0.15 | BS37: 0.15 | BT37: 65 | BU37: =IF(Table[[#This Row],[Bonus*]]="X","n/a",Premium*(1+Table[[#This Row],[Bonus*]])*IF(Table[[#This Row],[Increase Type]]="Simple",1,(1+Table[[#This Row],[Annual Benefit Base Increase Rate]])^MIN(TRUNC(Defer,0),Table[[#This Row],[Max Years for Increase]]))+IF(Table[[#This Row],[Increase Type]]="Simple",Table[[#This Row],[Annual Benefit Base Increase Rate]]*Premium*(1+Table[[#This Row],[Rollup Bonus?]]*Table[[#This Row],[Bonus*]])*MIN(TRUNC(Defer,0),Table[[#This Row],[Max Years for Increase]]),0)) -> 205947.4851 | BV37: =IF(Table[[#This Row],[Attained Age]]<Table[[#This Row],[Min Income Age]], 0, IF(Table[[#This Row],[Attained Age]]<71,0.045,IF(Table[[#This Row],[Attained Age]]<81,0.055,Table[[#This Row],[Max Payout]]))) -> 0.045 | BW37: =IF(OR(Defer<Table[[#This Row],[Required Deferral]],Table[[#This Row],[Bonus*]]="X"),0,Table[[#This Row],[Benefit Base]]*Table[[#This Row],[Single Income Percentage]]) -> 9267.63683 | BX37: =IF(Table[[#This Row],[Single Income Percentage]]=0,0,Table[[#This Row],[Single Income Percentage]]-Table[[#This Row],[Joint Reduction]]) -> 0.035 | BY37: =IF(Table[[#This Row],[Single Annual Income]]=0,0,Table[[#This Row],[Benefit Base]]*Table[[#This Row],[Joint Income Percentage]]) -> 7208.161979 | BZ37: Rider | CA37: =IF(OR(Table[[#This Row],[Benefit Base]]="n/a",Age>75),0,MIN(Premium*(1+0.05*MIN(TRUNC(Defer,0),85-Age)),Premium*2)) -> 150000
A38: Forethought | B38: A- | C38: A- | D38: Income 125 | E38: =IF(OR(Age<Table[[#This Row],[Min Issue Age]],Age>Table[[#This Row],[Max Issue]]),"X",HLOOKUP(State,States,ROW(Table[#This Row])-4,FALSE)) -> 0.25 | F38: 0.05 | J38: 1 | L38: 0.0055 | M38: 10 | N38: 59 | O38: 0.055 | P38: 0.01 | Q38: 40 | R38: 0 | S38: 10000 | T38: 1000000 | U38: 85 | V38: 0.25 | W38: 0.25 | X38: 0.25 | Y38: 0.25 | Z38: 0.25 | AA38: 0.25 | AB38: 0.25 | AC38: 0.25 | AD38: 0.25 | AE38: 0.25 | AF38: 0.25 | AG38: 0.25 | AH38: 0.25 | AI38: 0.25 | AJ38: 0.25 | AK38: 0.25 | AL38: 0.25 | AM38: 0.25 | AN38: 0.25 | AO38: 0.25 | AP38: 0.25 | AQ38: 0.25 | AR38: 0.25 | AS38: 0.25 | AT38: 0.25 | AU38: 0.25 | AV38: 0.25 | AW38: 0.25 | AX38: 0.25 | AY38: 0.25 | AZ38: 0.25 | BA38: X | BB38: 0.25 | BC38: 0.25 | BD38: 0.25 | BE38: 0.25 | BF38: 0.25 | BG38: 0.25 | BH38: 0.25 | BI38: 0.25 | BJ38: 0.25 | BK38: 0.25 | BL38: 0.25 | BM38: 0.25 | BN38: 0.25 | BO38: 0.25 | BP38: 0.25 | BQ38: 0.25 | BR38: 0.25 | BS38: 0.25 | BT38: =Age+Defer -> 65 | BU38: =IF(Table[[#This Row],[Bonus*]]="X","n/a",Premium*(1+Table[[#This Row],[Bonus*]])*IF(Table[[#This Row],[Increase Type]]="Simple",1,(1+Table[[#This Row],[Annual Benefit Base Increase Rate]])^MIN(TRUNC(Defer,0),Table[[#This Row],[Max Years for Increase]]))+IF(Table[[#This Row],[Increase Type]]="Simple",Table[[#This Row],[Annual Benefit Base Increase Rate]]*Premium*(1+Table[[#This Row],[Rollup Bonus?]]*Table[[#This Row],[Bonus*]])*MIN(TRUNC(Defer,0),Table[[#This Row],[Max Years for Increase]]),0)) -> 203611.8283 | BV38: =IF(Table[[#This Row],[Attained Age]]<Table[[#This Row],[Min Income Age]], 0, IF(Table[[#This Row],[Attained Age]]<76,0.045,IF(Table[[#This Row],[Attained Age]]<81,0.055,Table[[#This Row],[Max Payout]]))) -> 0.045 | BW38: =IF(OR(Defer<Table[[#This Row],[Required Deferral]],Table[[#This Row],[Bonus*]]="X"),0,Table[[#This Row],[Benefit Base]]*Table[[#This Row],[Single Income Percentage]]) -> 9162.532276 | BX38: =IF(Table[[#This Row],[Single Income Percentage]]=0,0,Table[[#This Row],[Single Income Percentage]]-Table[[#This Row],[Joint Reduction]]) -> 0.035 | BY38: =IF(Table[[#This Row],[Single Annual Income]]=0,0,Table[[#This Row],[Benefit Base]]*Table[[#This Row],[Joint Income Percentage]]) -> 7126.413992 | BZ38: Rider | CA38: =IF(OR(Table[[#This Row],[Benefit Base]]="n/a",Age>75),0,MIN(Premium*(1+0.05*MIN(TRUNC(Defer,0),85-Age)),Premium*1.5)) -> 150000
A39: Forethought | B39: A- | C39: A- | D39: GLIB ForeFront Series | E39: =IF(OR(Age<Table[[#This Row],[Min Issue Age]],Age>Table[[#This Row],[Max Issue]],HLOOKUP(State,States,ROW(Table[#This Row])-4,FALSE)="X"),"X",HLOOKUP(State,States,ROW(Table[#This Row])-4,FALSE)) -> 0.06 | F39: 0.05 | L39: 0.0095 | M39: 20 | N39: 55 | O39: 0.08 | P39: 0.005 | Q39: 0 | U39: 80 | V39: =IF(Age<55,0,0.06) -> 0.06 | W39: 0.06 | X39: 0.06 | Y39: 0.06 | Z39: 0.06 | AA39: 0.06 | AB39: 0.06 | AC39: 0.06 | AD39: 0.06 | AE39: 0.06 | AF39: 0.06 | AG39: 0.06 | AH39: 0.06 | AI39: 0.05 | AJ39: =IF(Age<55,0,0.06) -> 0.06 | AK39: 0.06 | AL39: 0.06 | AM39: 0.06 | AN39: 0.06 | AO39: 0.06 | AP39: 0.06 | AQ39: 0.06 | AR39: 0.06 | AS39: 0.06 | AT39: 0.06 | AU39: 0.06 | AV39: 0.06 | AW39: 0.06 | AX39: 0.06 | AY39: 0.06 | AZ39: 0.06 | BA39: X | BB39: =IF(Age<55,0,0.06) -> 0.06 | BC39: 0.06 | BD39: 0.06 | BE39: 0.06 | BF39: 0.06 | BG39: 0.06 | BH39: 0.06 | BI39: 0.06 | BJ39: 0.06 | BK39: 0.06 | BL39: 0.06 | BM39: 0.06 | BN39: 0.06 | BO39: 0.06 | BP39: 0.06 | BQ39: 0.06 | BR39: 0.06 | BS39: 0.06 | BT39: 65 | BU39: =IF(Table[[#This Row],[Bonus*]]="X","n/a",Premium*(1+Table[[#This Row],[Bonus*]])*IF(Table[[#This Row],[Increase Type]]="Simple",1,(1+Table[[#This Row],[Annual Benefit Base Increase Rate]])^MIN(TRUNC(Defer,0),Table[[#This Row],[Max Years for Increase]]))+IF(Table[[#This Row],[Increase Type]]="Simple",Table[[#This Row],[Annual Benefit Base Increase Rate]]*Premium*(1+Table[[#This Row],[Rollup Bonus?]]*Table[[#This Row],[Bonus*]])*MIN(TRUNC(Defer,0),Table[[#This Row],[Max Years for Increase]]),0)) -> 172662.8304 | BV39: =IF(Table[[#This Row],[Attained Age]]<Table[[#This Row],[Min Income Age]],0,MIN(FLOOR(Table[[#This Row],[Attained Age]]-20,1)/1000,Table[[#This Row],[Max Payout]])) -> 0.045 | BW39: =IF(OR(Defer<Table[[#This Row],[Required Deferral]],Table[[#This Row],[Bonus*]]="X"),0,Table[[#This Row],[Benefit Base]]*Table[[#This Row],[Single Income Percentage]]) -> 7769.82737 | BX39: =IF(Table[[#This Row],[Single Income Percentage]]=0,0,Table[[#This Row],[Single Income Percentage]]-Table[[#This Row],[Joint Reduction]]) -> 0.04 | BY39: =IF(Table[[#This Row],[Single Annual Income]]=0,0,Table[[#This Row],[Benefit Base]]*Table[[#This Row],[Joint Income Percentage]]) -> 6906.513218 | BZ39: AV | CA39: 0
A40: Forethought | B40: A- | C40: A- | D40: Income 150+ | E40: =IF(OR(Age<Table[[#This Row],[Min Issue Age]],Age>Table[[#This Row],[Max Issue]]),"X",HLOOKUP(State,States,ROW(Table[#This Row])-4,FALSE)) -> 0.5 | F40: =ror*1.5 -> 0 | J40: 1 | L40: 0.0095 | M40: 9 | N40: 55 | O40: 0.078 | P40: 0.005 | Q40: 55 | R40: 0 | S40: 10000 | T40: 1000000 | U40: 80 | V40: =IF(Defer<3,20%,IF(Defer<5,35%,50%)) -> 0.5 | W40: 0.5 | X40: 0.5 | Y40: 0.5 | Z40: 0.5 | AA40: 0.5 | AB40: 0.5 | AC40: 0.5 | AD40: 0.5 | AE40: 0.5 | AF40: 0.5 | AG40: 0.5 | AH40: 0.5 | AI40: 0.5 | AJ40: 0.5 | AK40: 0.5 | AL40: 0.5 | AM40: 0.5 | AN40: 0.5 | AO40: 0.5 | AP40: 0.5 | AQ40: 0.5 | AR40: 0.5 | AS40: 0.5 | AT40: 0.5 | AU40: 0.5 | AV40: 0.5 | AW40: 0.5 | AX40: 0.5 | AY40: X | AZ40: =IF(Defer<3,20%,IF(Defer<5,35%,50%)) -> 0.5 | BA40: X | BB40: =IF(Defer<3,20%,IF(Defer<5,35%,50%)) -> 0.5 | BC40: 0.5 | BD40: 0.5 | BE40: 0.5 | BF40: 0.5 | BG40: 0.5 | BH40: 0.5 | BI40: 0.5 | BJ40: 0.5 | BK40: 0.5 | BL40: 0.5 | BM40: 0.5 | BN40: 0.5 | BO40: 0.5 | BP40: 0.5 | BQ40: 0.5 | BR40: 0.5 | BS40: 0.5 | BT40: 65 | BU40: =IF(Table[[#This Row],[Bonus*]]="X","n/a",MIN((IF(Defer<9,Premium*(1+Table[[#This Row],[Bonus*]]),((1+Table[[#This Row],[Bonus*]])*Premium)*(1+Table[[#This Row],[Annual Benefit Base Increase Rate]])^Defer)),Premium*2.5)) -> 150000 | BV40: =IF(Table[[#This Row],[Attained Age]]<Table[[#This Row],[Min Income Age]],0,IF(Table[[#This Row],[Attained Age]]=55,0.04,IF(Table[[#This Row],[Attained Age]]<58,0.041,IF(Table[[#This Row],[Attained Age]]<60,0.042,MIN((FLOOR(Table[[#This Row],[Attained Age]]-17,1)+0)/1000,Table[[#This Row],[Max Payout]]))))) -> 0.048 | BW40: =IF(OR(Defer<Table[[#This Row],[Required Deferral]],Table[[#This Row],[Bonus*]]="X"),0,Table[[#This Row],[Benefit Base]]*Table[[#This Row],[Single Income Percentage]]) -> 7200 | BX40: =IF(Table[[#This Row],[Single Income Percentage]]=0,0,Table[[#This Row],[Single Income Percentage]]-Table[[#This Row],[Joint Reduction]]) -> 0.043 | BY40: =IF(Table[[#This Row],[Single Annual Income]]=0,0,Table[[#This Row],[Benefit Base]]*Table[[#This Row],[Joint Income Percentage]]) -> 6450 | BZ40: AV | CA40: 0
A41: Forethought | B41: A- | C41: A- | D41: Bonus Advantage GLAI | E41: =IF(OR(Age<Table[[#This Row],[Min Issue Age]],Age>Table[[#This Row],[Max Issue]],HLOOKUP(State,States,ROW(Table[#This Row])-4,FALSE)="X"),"X",HLOOKUP(State,States,ROW(Table[#This Row])-4,FALSE)) -> 0.05 | F41: 0.05 | J41: 1 | L41: 0.0095 | M41: =MAX(MIN(IF(FLOOR(Age,5)<>FLOOR(Age,10),84-Age,80-FLOOR(Age,10)),20),5) -> 20 | N41: 55 | O41: 0.07 | P41: 0.005 | Q41: 55 | R41: 1 | S41: 10000 | T41: 1000000 | U41: 80 | V41: 0.05 | W41: 0.05 | X41: 0.05 | Y41: 0.05 | Z41: 0.05 | AA41: 0.05 | AB41: X | AC41: 0.05 | AD41: 0.05 | AE41: 0.05 | AF41: 0.05 | AG41: 0.05 | AH41: 0.05 | AI41: 0.05 | AJ41: 0.05 | AK41: 0.05 | AL41: 0.05 | AM41: 0.05 | AN41: 0.05 | AO41: 0.05 | AP41: 0.05 | AQ41: 0.05 | AR41: 0.05 | AS41: 0.05 | AT41: 0.05 | AU41: 0.05 | AV41: 0.05 | AW41: 0.05 | AX41: 0.05 | AY41: 0.05 | AZ41: 0.05 | BA41: X | BB41: 0.05 | BC41: 0.05 | BD41: 0.05 | BE41: 0.05 | BF41: 0.05 | BG41: 0.05 | BH41: 0.05 | BI41: 0.05 | BJ41: 0.05 | BK41: 0.05 | BL41: 0.05 | BM41: 0.05 | BN41: 0.05 | BO41: 0.05 | BP41: 0.05 | BQ41: 0.05 | BR41: 0.05 | BS41: 0.05 | BT41: 65 | BU41: =IF(Table[[#This Row],[Bonus*]]="X","n/a",Premium*(1+Table[[#This Row],[Bonus*]])*IF(Table[[#This Row],[Increase Type]]="Simple",1,(1+Table[[#This Row],[Annual Benefit Base Increase Rate]])^MIN(TRUNC(Defer,0),Table[[#This Row],[Max Years for Increase]]))+IF(Table[[#This Row],[Increase Type]]="Simple",Table[[#This Row],[Annual Benefit Base Increase Rate]]*Premium*(1+Table[[#This Row],[Rollup Bonus?]]*Table[[#This Row],[Bonus*]])*MIN(TRUNC(Defer,0),Table[[#This Row],[Max Years for Increase]]),0)) -> 171033.9358 | BV41: =IF(Table[[#This Row],[Attained Age]]<Table[[#This Row],[Min Income Age]],0,MIN(FLOOR(Table[[#This Row],[Attained Age]]-25,1)/1000,Table[[#This Row],[Max Payout]])) -> 0.04 | BW41: =IF(OR(Defer<Table[[#This Row],[Required Deferral]],Table[[#This Row],[Bonus*]]="X"),0,Table[[#This Row],[Benefit Base]]*Table[[#This Row],[Single Income Percentage]]) -> 6841.357432 | BX41: =IF(Table[[#This Row],[Single Income Percentage]]=0,0,Table[[#This Row],[Single Income Percentage]]-Table[[#This Row],[Joint Reduction]]) -> 0.035 | BY41: =IF(Table[[#This Row],[Single Annual Income]]=0,0,Table[[#This Row],[Benefit Base]]*Table[[#This Row],[Joint Income Percentage]]) -> 5986.187753 | BZ41: IAV 5-yr | CA41: =IF(Table[[#This Row],[Benefit Base]]="n/a",0,MIN(Table[[#This Row],[Benefit Base]],Premium*2.5)) -> 171033.9358
A42: Genworth | B42: A | C42: A | D42: Income Protector | E42: =IF(OR(Age<Table[[#This Row],[Min Issue Age]],Age>Table[[#This Row],[Max Issue]]),"X",HLOOKUP(State,States,ROW(Table[#This Row])-4,FALSE)) -> 0.06 | F42: 0.08 | I42: Simple | J42: 1 | L42: 0.008 | M42: 10 | N42: 55 | O42: 0.065 | P42: 0.005 | Q42: 55 | R42: 1 | S42: 25000 | T42: 1000000 | U42: 80 | V42: 0.06 | W42: 0.06 | X42: 0.06 | Y42: 0.06 | Z42: 0.06 | AA42: 0.06 | AB42: 0 | AC42: X | AD42: 0.06 | AE42: 0.06 | AF42: 0.06 | AG42: 0.06 | AH42: 0.06 | AI42: 0.06 | AJ42: 0.06 | AK42: 0.06 | AL42: 0.06 | AM42: 0.06 | AN42: 0.06 | AO42: 0.06 | AP42: 0.06 | AQ42: 0.06 | AR42: 0.06 | AS42: 0.06 | AT42: 0.06 | AU42: 0.06 | AV42: 0.06 | AW42: 0.06 | AX42: 0.06 | AY42: 0.06 | AZ42: 0.06 | BA42: X | BB42: 0.06 | BC42: 0.06 | BD42: 0.06 | BE42: 0.06 | BF42: 0.06 | BG42: 0.06 | BH42: 0.06 | BI42: 0.06 | BJ42: 0.06 | BK42: 0.06 | BL42: 0.06 | BM42: 0.06 | BN42: 0.06 | BO42: 0.06 | BP42: 0.06 | BQ42: 0.06 | BR42: 0.06 | BS42: 0.06 | BT42: 65 | BU42: =IF(Table[[#This Row],[Bonus*]]="X","n/a",Premium*(1+Table[[#This Row],[Bonus*]])*IF(Table[[#This Row],[Increase Type]]="Simple",1,(1+Table[[#This Row],[Annual Benefit Base Increase Rate]])^MIN(Defer,Table[[#This Row],[Max Years for Increase]]))+IF(Table[[#This Row],[Increase Type]]="Simple",Table[[#This Row],[Annual Benefit Base Increase Rate]]*Premium*(1+Table[[#This Row],[Rollup Bonus?]]*Table[[#This Row],[Bonus*]])*MIN(Defer,Table[[#This Row],[Max Years for Increase]]),0)) -> 190800 | BV42: =IF(Table[[#This Row],[Attained Age]]<Table[[#This Row],[Min Income Age]],0,IF(Table[[#This Row],[Attained Age]]<60,0.04,IF(Table[[#This Row],[Attained Age]]<65,0.045,IF(Table[[#This Row],[Attained Age]]<70,0.05,IF(Table[[#This Row],[Attained Age]]<75,0.055,IF(Table[[#This Row],[Attained Age]]<80,0.06,Table[[#This Row],[Max Payout]])))))) -> 0.05 | BW42: =IF(OR(Defer<Table[[#This Row],[Required Deferral]],Table[[#This Row],[Bonus*]]="X"),0,Table[[#This Row],[Benefit Base]]*Table[[#This Row],[Single Income Percentage]]) -> 9540 | BX42: =IF(Table[[#This Row],[Single Income Percentage]]=0,0,Table[[#This Row],[Single Income Percentage]]-Table[[#This Row],[Joint Reduction]]) -> 0.045 | BY42: =IF(Table[[#This Row],[Single Annual Income]]=0,0,Table[[#This Row],[Benefit Base]]*Table[[#This Row],[Joint Income Percentage]]) -> 8586 | BZ42: AV | CA42: 0
A43: Great American Life®2 | B43: A | C43: A+ | D43: IncomeSecure® | E43: =IF(OR(Age<Table[[#This Row],[Min Issue Age]],Age>Table[[#This Row],[Max Issue]]),"X",HLOOKUP(State,States,ROW(Table[#This Row])-4,FALSE)) -> 0.02 | F43: 0.1 | I43: Simple | J43: 1 | L43: 0.0085 | M43: 10 | N43: 55 | O43: 0.075 | P43: 0.01 | Q43: 40 | R43: 0 | S43: 10000 | T43: 1000000 | U43: 85 | V43: 0.02 | W43: 0.02 | X43: 0.02 | Y43: 0.02 | Z43: 0.02 | AA43: 0.02 | AB43: 0.02 | AC43: 0.02 | AD43: 0.02 | AE43: 0.02 | AF43: 0.02 | AG43: 0.02 | AH43: 0.02 | AI43: 0.02 | AJ43: 0.02 | AK43: 0.02 | AL43: 0.02 | AM43: 0.02 | AN43: 0.02 | AO43: 0.02 | AP43: 0.02 | AQ43: 0.02 | AR43: 0.02 | AS43: 0.02 | AT43: 0.02 | AU43: 0.02 | AV43: 0.02 | AW43: 0.02 | AX43: 0.02 | AY43: 0.02 | AZ43: 0.02 | BA43: X | BB43: 0.02 | BC43: 0.02 | BD43: 0.02 | BE43: 0.02 | BF43: 0.02 | BG43: 0.02 | BH43: 0.02 | BI43: 0.02 | BJ43: 0.02 | BK43: 0.02 | BL43: 0.02 | BM43: 0.02 | BN43: 0.02 | BO43: 0.02 | BP43: 0.02 | BQ43: 0.02 | BR43: 0.02 | BS43: 0.02 | BT43: 65 | BU43: =IF(Table[[#This Row],[Bonus*]]="X","n/a",Premium*(1+Table[[#This Row],[Bonus*]])*IF(Table[[#This Row],[Increase Type]]="Simple",1,(1+Table[[#This Row],[Annual Benefit Base Increase Rate]])^MIN(TRUNC(Defer,0),Table[[#This Row],[Max Years for Increase]]))+IF(Table[[#This Row],[Increase Type]]="Simple",Table[[#This Row],[Annual Benefit Base Increase Rate]]*Premium*(1+Table[[#This Row],[Rollup Bonus?]]*Table[[#This Row],[Bonus*]])*MIN(TRUNC(Defer,0),Table[[#This Row],[Max Years for Increase]]),0)) -> 204000 | BV43: =IF(Table[[#This Row],[Attained Age]]<Table[[#This Row],[Min Income Age]],0,MIN((Table[[#This Row],[Attained Age]]-15)/1000,Table[[#This Row],[Max Payout]])) -> 0.05 | BW43: =IF(OR(Defer<Table[[#This Row],[Required Deferral]],Table[[#This Row],[Bonus*]]="X"),0,Table[[#This Row],[Benefit Base]]*Table[[#This Row],[Single Income Percentage]]) -> 10200 | BX43: =IF(Table[[#This Row],[Single Income Percentage]]=0,0,Table[[#This Row],[Single Income Percentage]]-Table[[#This Row],[Joint Reduction]]) -> 0.04 | BY43: =IF(Table[[#This Row],[Single Annual Income]]=0,0,Table[[#This Row],[Benefit Base]]*Table[[#This Row],[Joint Income Percentage]]) -> 8160 | BZ43: AV | CA43: 0
A44: Great American Life®2 | B44: A | C44: A+ | D44: IncomeSustainer Plus® | E44: =IF(OR(Age<Table[[#This Row],[Min Issue Age]],Age>Table[[#This Row],[Max Issue]]),"X",HLOOKUP(State,States,ROW(Table[#This Row])-4,FALSE)) -> 0.02 | F44: 0.08 | I44: Simple | J44: 1 | L44: 0.0125 | M44: 12 | N44: 55 | O44: 0.075 | P44: 0.01 | Q44: 50 | R44: 1 | S44: 10000 | T44: 1000000 | U44: 85 | V44: 0.02 | W44: 0.02 | X44: 0.02 | Y44: 0.02 | Z44: 0.02 | AA44: 0.02 | AB44: 0.02 | AC44: 0.02 | AD44: 0.02 | AE44: 0.02 | AF44: 0.02 | AG44: 0.02 | AH44: 0.02 | AI44: 0.02 | AJ44: 0.02 | AK44: 0.02 | AL44: 0.02 | AM44: 0.02 | AN44: 0.02 | AO44: 0.02 | AP44: 0.02 | AQ44: 0.02 | AR44: 0.02 | AS44: 0.02 | AT44: 0.02 | AU44: 0.02 | AV44: 0.02 | AW44: 0.02 | AX44: 0.02 | AY44: 0.02 | AZ44: 0.02 | BA44: X | BB44: 0.02 | BC44: 0.02 | BD44: 0.02 | BE44: 0.02 | BF44: 0.02 | BG44: 0.02 | BH44: 0.02 | BI44: 0.02 | BJ44: 0.02 | BK44: 0.02 | BL44: 0.02 | BM44: 0.02 | BN44: 0.02 | BO44: 0.02 | BP44: 0.02 | BQ44: 0.02 | BR44: 0.02 | BS44: 0.02 | BT44: 65 | BU44: =IF(Table[[#This Row],[Bonus*]]="X","n/a",Premium*(1+Table[[#This Row],[Bonus*]])*IF(Table[[#This Row],[Increase Type]]="Simple",1,(1+Table[[#This Row],[Annual Benefit Base Increase Rate]])^MIN(TRUNC(Defer,0),Table[[#This Row],[Max Years for Increase]]))+IF(Table[[#This Row],[Increase Type]]="Simple",Table[[#This Row],[Annual Benefit Base Increase Rate]]*Premium*(1+Table[[#This Row],[Rollup Bonus?]]*Table[[#This Row],[Bonus*]])*MIN(TRUNC(Defer,0),Table[[#This Row],[Max Years for Increase]]),0)) -> 183600 | BV44: =IF(Table[[#This Row],[Attained Age]]<Table[[#This Row],[Min Income Age]],0,MIN((Table[[#This Row],[Attained Age]]-15)/1000,Table[[#This Row],[Max Payout]])) -> 0.05 | BW44: =IF(OR(Defer<Table[[#This Row],[Required Deferral]],Table[[#This Row],[Bonus*]]="X"),0,Table[[#This Row],[Benefit Base]]*Table[[#This Row],[Single Income Percentage]]) -> 9180 | BX44: =IF(Table[[#This Row],[Single Income Percentage]]=0,0,Table[[#This Row],[Single Income Percentage]]-Table[[#This Row],[Joint Reduction]]) -> 0.04 | BY44: =IF(Table[[#This Row],[Single Annual Income]]=0,0,Table[[#This Row],[Benefit Base]]*Table[[#This Row],[Joint Income Percentage]]) -> 7344 | BZ44: IAV 5-yr | CA44: =IF(Table[[#This Row],[Benefit Base]]="n/a",0,IF(TRUNC(Defer,0)<5,Premium*(1+Table[[#This Row],[Bonus*]]),MIN(Table[[#This Row],[Benefit Base]],Premium*(1+Table[[#This Row],[Bonus*]])*2))) -> 183600
A45: Great American Life®2 | B45: A | C45: A+ | D45: Inheritance Enhancer® | E45: =IF(OR(Age<Table[[#This Row],[Min Issue Age]],Age>Table[[#This Row],[Max Issue]]),"X",HLOOKUP(State,States,ROW(Table[#This Row])-4,FALSE)) -> 0.02 | F45: 0.09 | I45: Simple | J45: 1 | L45: 0.0085 | M45: 10 | N45: 999 | O45: 0 | P45: 0 | Q45: 50 | R45: 5 | S45: 10000 | T45: 1000000 | U45: 85 | V45: 0.02 | W45: 0.02 | X45: 0.02 | Y45: 0.02 | Z45: 0.02 | AA45: 0.02 | AB45: 0.02 | AC45: 0.02 | AD45: 0.02 | AE45: 0.02 | AF45: 0.02 | AG45: 0.02 | AH45: 0.02 | AI45: 0.02 | AJ45: 0.02 | AK45: 0.02 | AL45: 0.02 | AM45: 0.02 | AN45: 0.02 | AO45: 0.02 | AP45: 0.02 | AQ45: 0.02 | AR45: 0.02 | AS45: 0.02 | AT45: 0.02 | AU45: 0.02 | AV45: 0.02 | AW45: 0.02 | AX45: 0.02 | AY45: 0.02 | AZ45: 0.02 | BA45: X | BB45: 0.02 | BC45: 0.02 | BD45: 0.02 | BE45: 0.02 | BF45: X | BG45: 0.02 | BH45: 0.02 | BI45: 0.02 | BJ45: 0.02 | BK45: 0.02 | BL45: 0.02 | BM45: 0.02 | BN45: 0.02 | BO45: 0.02 | BP45: X | BQ45: 0.02 | BR45: 0.02 | BS45: 0.02 | BT45: 65 | BU45: =IF(Table[[#This Row],[Bonus*]]="X","n/a",Premium*(1+Table[[#This Row],[Bonus*]])*IF(Table[[#This Row],[Increase Type]]="Simple",1,(1+Table[[#This Row],[Annual Benefit Base Increase Rate]])^MIN(TRUNC(Defer,0),Table[[#This Row],[Max Years for Increase]]))+IF(Table[[#This Row],[Increase Type]]="Simple",Table[[#This Row],[Annual Benefit Base Increase Rate]]*Premium*(1+Table[[#This Row],[Rollup Bonus?]]*Table[[#This Row],[Bonus*]])*MIN(TRUNC(Defer,0),Table[[#This Row],[Max Years for Increase]]),0)) -> 193800 | BV45: =IF(Table[[#This Row],[Attained Age]]<Table[[#This Row],[Min Income Age]],0,MIN((Table[[#This Row],[Attained Age]]-15)/1000,Table[[#This Row],[Max Payout]])) -> 0 | BW45: =IF(OR(Defer<Table[[#This Row],[Required Deferral]],Table[[#This Row],[Bonus*]]="X"),0,Table[[#This Row],[Benefit Base]]*Table[[#This Row],[Single Income Percentage]]) -> 0 | BX45: =IF(Table[[#This Row],[Single Income Percentage]]=0,0,Table[[#This Row],[Single Income Percentage]]-Table[[#This Row],[Joint Reduction]]) -> 0 | BY45: =IF(Table[[#This Row],[Single Annual Income]]=0,0,Table[[#This Row],[Benefit Base]]*Table[[#This Row],[Joint Income Percentage]]) -> 0 | BZ45: IAV 5-yr | CA45: =IF(Table[[#This Row],[Benefit Base]]="n/a",0,IF(TRUNC(Defer,0)<5,Premium*(1+Table[[#This Row],[Bonus*]]),MIN(Table[[#This Row],[Benefit Base]],Premium*(1+Table[[#This Row],[Bonus*]])*2.5))) -> 193800
A46: ING | B46: A | C46: A- | D46: Income Protector | E46: =IF(OR(Age<Table[[#This Row],[Min Issue Age]],Age>Table[[#This Row],[Max Issue]]),"X",HLOOKUP(State,States,ROW(Table[#This Row])-4,FALSE)) -> 0.05 | F46: 0.06 | J46: 1 | L46: 0.0065 | M46: 10 | N46: 50 | O46: 0.07 | P46: 0.005 | Q46: 50 | R46: 0 | S46: 15000 | T46: 1000000 | U46: 80 | V46: 0.05 | W46: 0 | X46: 0.05 | Y46: 0.05 | Z46: 0.05 | AA46: 0.05 | AB46: 0 | AC46: 0 | AD46: 0.05 | AE46: 0.05 | AF46: 0.05 | AG46: 0.05 | AH46: 0.05 | AI46: 0.05 | AJ46: 0.05 | AK46: 0.05 | AL46: 0.05 | AM46: 0.05 | AN46: 0.05 | AO46: 0.05 | AP46: 0.05 | AQ46: 0.05 | AR46: 0 | AS46: 0.05 | AT46: 0.05 | AU46: 0.05 | AV46: 0.05 | AW46: 0.05 | AX46: 0.05 | AY46: X | AZ46: 0.05 | BA46: X | BB46: 0.05 | BC46: 0.05 | BD46: 0.05 | BE46: 0.05 | BF46: X | BG46: 0.05 | BH46: 0.05 | BI46: 0.05 | BJ46: 0.05 | BK46: 0.05 | BL46: 0.05 | BM46: 0.05 | BN46: 0.05 | BO46: 0.05 | BP46: 0.05 | BQ46: 0.05 | BR46: 0.05 | BS46: 0.05 | BT46: 65 | BU46: =IF(Table[[#This Row],[Bonus*]]="X","n/a",Premium*(1+Table[[#This Row],[Bonus*]])*IF(Table[[#This Row],[Increase Type]]="Simple",1,(1+Table[[#This Row],[Annual Benefit Base Increase Rate]])^MIN(TRUNC(Defer,0),Table[[#This Row],[Max Years for Increase]]))+IF(Table[[#This Row],[Increase Type]]="Simple",Table[[#This Row],[Annual Benefit Base Increase Rate]]*Premium*(1+Table[[#This Row],[Rollup Bonus?]]*Table[[#This Row],[Bonus*]])*MIN(TRUNC(Defer,0),Table[[#This Row],[Max Years for Increase]]),0)) -> 188039.0081 | BV46: =IF(Table[[#This Row],[Attained Age]]<Table[[#This Row],[Min Income Age]],0,IF(Table[[#This Row],[Attained Age]]<65,0.04,MIN(FLOOR(Table[[#This Row],[Attained Age]]-15,10)/1000,Table[[#This Row],[Max Payout]]))) -> 0.05 | BW46: =IF(OR(Defer<Table[[#This Row],[Required Deferral]],Table[[#This Row],[Bonus*]]="X"),0,Table[[#This Row],[Benefit Base]]*Table[[#This Row],[Single Income Percentage]]) -> 9401.950407 | BX46: =IF(Table[[#This Row],[Single Income Percentage]]=0,0,Table[[#This Row],[Single Income Percentage]]-Table[[#This Row],[Joint Reduction]]) -> 0.045 | BY46: =IF(Table[[#This Row],[Single Annual Income]]=0,0,Table[[#This Row],[Benefit Base]]*Table[[#This Row],[Joint Income Percentage]]) -> 8461.755366 | BZ46: AV | CA46: 0
A47: Lincoln | B47: A+ | C47: AA- | D47: OptiChoice | E47: =IF(OR(Age<Table[[#This Row],[Min Issue Age]],Age>Table[[#This Row],[Max Issue]]),"X",HLOOKUP(State,States,ROW(Table[#This Row])-4,FALSE)) -> 0 | F47: 0.05 | J47: 1 | L47: 0.0095 | M47: 10 | N47: 50 | O47: 0.0775 | P47: 0.0075 | Q47: 40 | R47: 0 | S47: 5000 | T47: 1000000 | U47: 85 | V47: 0 | W47: 0 | X47: 0 | Y47: 0 | Z47: 0 | AA47: 0 | AB47: 0 | AC47: 0 | AD47: 0 | AE47: 0 | AF47: 0 | AG47: 0 | AH47: 0 | AI47: 0 | AJ47: 0 | AK47: 0 | AL47: 0 | AM47: 0 | AN47: 0 | AO47: 0 | AP47: 0 | AQ47: 0 | AR47: 0 | AS47: 0 | AT47: 0 | AU47: 0 | AV47: 0 | AW47: 0 | AX47: 0 | AY47: 0 | AZ47: 0 | BA47: X | BB47: 0 | BC47: 0 | BD47: 0 | BE47: 0 | BF47: 0 | BG47: 0 | BH47: 0 | BI47: 0 | BJ47: 0 | BK47: 0 | BL47: 0 | BM47: 0 | BN47: 0 | BO47: 0 | BP47: X | BQ47: 0 | BR47: 0 | BS47: 0 | BT47: 65 | BU47: =IF(Table[[#This Row],[Bonus*]]="X","n/a",Premium*(1+Table[[#This Row],[Bonus*]])*IF(Table[[#This Row],[Increase Type]]="Simple",1,(1+Table[[#This Row],[Annual Benefit Base Increase Rate]])^MIN(TRUNC(Defer,0),Table[[#This Row],[Max Years for Increase]]))+IF(Table[[#This Row],[Increase Type]]="Simple",Table[[#This Row],[Annual Benefit Base Increase Rate]]*Premium*(1+Table[[#This Row],[Rollup Bonus?]]*Table[[#This Row],[Bonus*]])*MIN(TRUNC(Defer,0),Table[[#This Row],[Max Years for Increase]]),0)) -> 162889.4627 | BV47: =IF(Table[[#This Row],[Attained Age]]<Table[[#This Row],[Min Income Age]],0,MIN((FLOOR(Table[[#This Row],[Attained Age]]-20,5)+5)/1000,Table[[#This Row],[Max Payout]]))+IF(Defer>=5,0.0075,0)+IF(Defer>=10,0.005,0) -> 0.0625 | BW47: =IF(OR(Defer<Table[[#This Row],[Required Deferral]],Table[[#This Row],[Bonus*]]="X"),0,Table[[#This Row],[Benefit Base]]*Table[[#This Row],[Single Income Percentage]]) -> 10180.59142 | BX47: =IF(Table[[#This Row],[Single Income Percentage]]=0,0,Table[[#This Row],[Single Income Percentage]]-Table[[#This Row],[Joint Reduction]]) -> 0.055 | BY47: =IF(Table[[#This Row],[Single Annual Income]]=0,0,Table[[#This Row],[Benefit Base]]*Table[[#This Row],[Joint Income Percentage]]) -> 8958.920447 | BZ47: AV | CA47: 0
A48: Lincoln | B48: A+ | C48: AA- | D48: OptiPoint | E48: =IF(OR(Age<Table[[#This Row],[Min Issue Age]],Age>Table[[#This Row],[Max Issue]]),"X",IFERROR(HLOOKUP(State,States,ROW(Table[#This Row])-4,FALSE)-IF(Premium<100000,0.01,0),"X")) -> 0.04 | F48: 0.05 | J48: 1 | L48: 0.0095 | M48: 10 | N48: 50 | O48: 0.0775 | P48: 0.0075 | Q48: 40 | R48: 0 | S48: 5000 | T48: 1000000 | U48: 80 | V48: 0.04 | W48: 0.03 | X48: 0.04 | Y48: 0.04 | Z48: 0.04 | AA48: 0.04 | AB48: 0.04 | AC48: 0.04 | AD48: 0.04 | AE48: 0.04 | AF48: 0.04 | AG48: 0.04 | AH48: 0.04 | AI48: 0.04 | AJ48: 0.04 | AK48: 0.04 | AL48: 0.04 | AM48: 0.04 | AN48: 0.04 | AO48: 0.04 | AP48: 0.04 | AQ48: 0.04 | AR48: X | AS48: 0.04 | AT48: 0.04 | AU48: 0.04 | AV48: 0.04 | AW48: 0.04 | AX48: 0.04 | AY48: 0.04 | AZ48: 0.04 | BA48: X | BB48: 0.04 | BC48: 0.04 | BD48: 0.04 | BE48: 0.04 | BF48: X | BG48: 0.04 | BH48: 0.04 | BI48: 0.04 | BJ48: 0.04 | BK48: 0.04 | BL48: 0.04 | BM48: X | BN48: 0.04 | BO48: 0.04 | BP48: X | BQ48: 0.04 | BR48: 0.04 | BS48: 0.04 | BT48: 65 | BU48: =IF(Table[[#This Row],[Bonus*]]="X","n/a",Premium*(1+Table[[#This Row],[Bonus*]])*IF(Table[[#This Row],[Increase Type]]="Simple",1,(1+Table[[#This Row],[Annual Benefit Base Increase Rate]])^MIN(TRUNC(Defer,0),Table[[#This Row],[Max Years for Increase]]))+IF(Table[[#This Row],[Increase Type]]="Simple",Table[[#This Row],[Annual Benefit Base Increase Rate]]*Premium*(1+Table[[#This Row],[Rollup Bonus?]]*Table[[#This Row],[Bonus*]])*MIN(TRUNC(Defer,0),Table[[#This Row],[Max Years for Increase]]),0)) -> 169405.0412 | BV48: =IF(Table[[#This Row],[Attained Age]]<Table[[#This Row],[Min Income Age]],0,MIN((FLOOR(Table[[#This Row],[Attained Age]]-20,5)+5)/1000,Table[[#This Row],[Max Payout]]))+IF(Defer>=5,0.005,0)+IF(Defer>=10,0.0035,0) -> 0.0585 | BW48: =IF(OR(Defer<Table[[#This Row],[Required Deferral]],Table[[#This Row],[Bonus*]]="X"),0,Table[[#This Row],[Benefit Base]]*Table[[#This Row],[Single Income Percentage]]) -> 9910.194909 | BX48: =IF(Table[[#This Row],[Single Income Percentage]]=0,0,Table[[#This Row],[Single Income Percentage]]-Table[[#This Row],[Joint Reduction]]) -> 0.051 | BY48: =IF(Table[[#This Row],[Single Annual Income]]=0,0,Table[[#This Row],[Benefit Base]]*Table[[#This Row],[Joint Income Percentage]]) -> 8639.6571 | BZ48: AV | CA48: 0
A49: National Western | B49: A | C49: A | D49: Income Outlook 5 | E49: =IF(OR(Age<Table[[#This Row],[Min Issue Age]],Age>Table[[#This Row],[Max Issue]],HLOOKUP(State,States,ROW(Table[#This Row])-4,FALSE)="X"),"X",MIN(IF(Age<=80,0.15,0.1),HLOOKUP($I$2,States,ROW(Table[#This Row])-4,FALSE))) -> 0.14 | F49: 0.04 | J49: 1 | L49: 0.0075 | M49: 20 | N49: 60 | O49: 0.08 | P49: 0.01 | Q49: 40 | R49: 1 | S49: 5000 | T49: 1000000 | U49: 85 | V49: =IF(Age>80,"X",0.12) -> 0.12 | W49: =IF(Age>80,"X",0.1) -> 0.1 | X49: 0.14 | Y49: 0.14 | Z49: 0.14 | AA49: 0.14 | AB49: X | AC49: X | AD49: =IF(Age>80,"X",0.14) -> 0.14 | AE49: 0.14 | AF49: 0.14 | AG49: 0.14 | AH49: X | AI49: =IF(Age>80,"X",0.1) -> 0.1 | AJ49: 0.14 | AK49: 0.14 | AL49: 0.14 | AM49: 0.14 | AN49: 0.14 | AO49: 0.14 | AP49: =IF(Age>80,"X",0.1) -> 0.1 | AQ49: 0.14 | AR49: =IF(Age>80,"X",0.1) -> 0.1 | AS49: =IF(Age>80,"X",0.07) -> 0.07 | AT49: 0.14 | AU49: 0.14 | AV49: 0.14 | AW49: =IF(Age>80,"X",0.1) -> 0.1 | AX49: X | AY49: =IF(Age>80,"X",0.1) -> 0.1 | AZ49: 0.14 | BA49: X | BB49: 0.14 | BC49: 0.14 | BD49: =IF(Age<=54,14%,10%) -> 0.1 | BE49: 0.14 | BF49: =IF(Age>80,"X",0.1) -> 0.1 | BG49: =IF(Age>80,"X",0.1) -> 0.1 | BH49: 0.14 | BI49: =IF(Age>80,"X",0.1) -> 0.1 | BJ49: 0.14 | BK49: 0.14 | BL49: =IF(Age>80,"X",0.1) -> 0.1 | BM49: =IF(Age>80,"X",0.1) -> 0.1 | BN49: 0.14 | BO49: 0.14 | BP49: =IF(Age>80,"X",0.1) -> 0.1 | BQ49: 0.14 | BR49: 0.14 | BS49: 0.14 | BT49: 65 | BU49: =IF(Table[[#This Row],[Bonus*]]="X","n/a",Premium*(1+Table[[#This Row],[Bonus*]])*IF(Table[[#This Row],[Increase Type]]="Simple",1,(1+Table[[#This Row],[Annual Benefit Base Increase Rate]])^MIN(TRUNC(Defer,0),Table[[#This Row],[Max Years for Increase]]))+IF(Table[[#This Row],[Increase Type]]="Simple",Table[[#This Row],[Annual Benefit Base Increase Rate]]*Premium*(1+Table[[#This Row],[Rollup Bonus?]]*Table[[#This Row],[Bonus*]])*MIN(TRUNC(Defer,0),Table[[#This Row],[Max Years for Increase]]),0)) -> 168747.8485 | BV49: =IF(Table[[#This Row],[Attained Age]]<Table[[#This Row],[Min Income Age]],0,MIN(FLOOR(Table[[#This Row],[Attained Age]]-10,5)/1000,Table[[#This Row],[Max Payout]])) -> 0.055 | BW49: =IF(OR(Defer<Table[[#This Row],[Required Deferral]],Table[[#This Row],[Bonus*]]="X"),0,Table[[#This Row],[Benefit Base]]*Table[[#This Row],[Single Income Percentage]]) -> 9281.131666 | BX49: =IF(Table[[#This Row],[Single Income Percentage]]=0,0,Table[[#This Row],[Single Income Percentage]]-Table[[#This Row],[Joint Reduction]]) -> 0.045 | BY49: =IF(Table[[#This Row],[Single Annual Income]]=0,0,Table[[#This Row],[Benefit Base]]*Table[[#This Row],[Joint Income Percentage]]) -> 7593.653182 | BZ49: AV | CA49: 0
A50: National Western | B50: A | C50: A | D50: Income Outlook | E50: =IF(OR(Age<Table[[#This Row],[Min Issue Age]],Age>Table[[#This Row],[Max Issue]],HLOOKUP(State,States,ROW(Table[#This Row])-4,FALSE)="X"),"X",MIN(IF(Age<=80,0.1,0.05),HLOOKUP($I$2,States,ROW(Table[#This Row])-4,FALSE))) -> 0.09 | F50: 0.04 | J50: 1 | L50: 0.0035 | M50: 20 | N50: 60 | O50: 0.08 | P50: 0.01 | Q50: 40 | R50: 1 | S50: 5000 | T50: 1000000 | U50: 85 | V50: =IF(Age>80,"X",0.07) -> 0.07 | W50: =IF(Age>80,"X",0.05) -> 0.05 | X50: 0.09 | Y50: 0.09 | Z50: 0.09 | AA50: 0.09 | AB50: =IF(Age>80,"X",0.02) -> 0.02 | AC50: X | AD50: =IF(Age>80,"X",0.09) -> 0.09 | AE50: 0.09 | AF50: 0.09 | AG50: 0.09 | AH50: X | AI50: =IF(Age>80,"X",0.05) -> 0.05 | AJ50: 0.09 | AK50: 0.09 | AL50: 0.09 | AM50: 0.09 | AN50: 0.09 | AO50: 0.09 | AP50: =IF(Age>80,"X",0.05) -> 0.05 | AQ50: 0.09 | AR50: =IF(Age>80,"X",0.05) -> 0.05 | AS50: =IF(Age>80,"X",0.02) -> 0.02 | AT50: 0.09 | AU50: 0.09 | AV50: 0.09 | AW50: =IF(Age>80,"X",0.05) -> 0.05 | AX50: 0.09 | AY50: =IF(Age>80,"X",0.05) -> 0.05 | AZ50: 0.09 | BA50: X | BB50: 0.09 | BC50: 0.09 | BD50: =IF(Age<=54,9%,5%) -> 0.05 | BE50: 0.09 | BF50: =IF(Age>80,"X",0.05) -> 0.05 | BG50: =IF(Age>80,"X",0.05) -> 0.05 | BH50: 0.09 | BI50: =IF(Age>80,"X",0.05) -> 0.05 | BJ50: 0.09 | BK50: 0.09 | BL50: =IF(Age>80,"X",0.05) -> 0.05 | BM50: =IF(Age>80,"X",0.05) -> 0.05 | BN50: 0.09 | BO50: 0.09 | BP50: =IF(Age>80,"X",0.05) -> 0.05 | BQ50: 0.09 | BR50: 0.09 | BS50: 0.09 | BT50: 65 | BU50: =IF(Table[[#This Row],[Bonus*]]="X","n/a",Premium*(1+Table[[#This Row],[Bonus*]])*IF(Table[[#This Row],[Increase Type]]="Simple",1,(1+Table[[#This Row],[Annual Benefit Base Increase Rate]])^MIN(TRUNC(Defer,0),Table[[#This Row],[Max Years for Increase]]))+IF(Table[[#This Row],[Increase Type]]="Simple",Table[[#This Row],[Annual Benefit Base Increase Rate]]*Premium*(1+Table[[#This Row],[Rollup Bonus?]]*Table[[#This Row],[Bonus*]])*MIN(TRUNC(Defer,0),Table[[#This Row],[Max Years for Increase]]),0)) -> 161346.6271 | BV50: =IF(Table[[#This Row],[Attained Age]]<Table[[#This Row],[Min Income Age]],0,MIN((Table[[#This Row],[Attained Age]]-10)/1000,Table[[#This Row],[Max Payout]])) -> 0.055 | BW50: =IF(OR(Defer<Table[[#This Row],[Required Deferral]],Table[[#This Row],[Bonus*]]="X"),0,Table[[#This Row],[Benefit Base]]*Table[[#This Row],[Single Income Percentage]]) -> 8874.064488 | BX50: =IF(Table[[#This Row],[Single Income Percentage]]=0,0,Table[[#This Row],[Single Income Percentage]]-Table[[#This Row],[Joint Reduction]]) -> 0.045 | BY50: =IF(Table[[#This Row],[Single Annual Income]]=0,0,Table[[#This Row],[Benefit Base]]*Table[[#This Row],[Joint Income Percentage]]) -> 7260.598218 | BZ50: AV | CA50: 0
A51: North American | B51: A+ | C51: A+ | D51: Income Pay II | E51: =IF(OR(Age<Table[[#This Row],[Min Issue Age]],Age>Table[[#This Row],[Max Issue]],HLOOKUP(State,States,ROW(Table[#This Row])-4,FALSE)="X"),"X",HLOOKUP($I$2,States,ROW(Table[#This Row])-4,FALSE)) -> 0.1 | F51: 0.0675 | J51: 1 | L51: 0.0095 | M51: 10 | N51: 50 | O51: 0.0625 | P51: 0.005 | Q51: 40 | R51: 1 | S51: 10000 | T51: 1000000 | U51: 80 | V51: X | W51: X | X51: 0.1 | Y51: =Table[[#This Row],[Arizona]] -> 0.1 | Z51: =IF(Age<=65,Table[[#This Row],[Arkansas]],0.05) -> 0.1 | AA51: =Table[[#This Row],[Arkansas]] -> 0.1 | AB51: X | AC51: X | AD51: =Table[[#This Row],[Colorado]] -> 0.1 | AE51: =Table[[#This Row],[Florida]] -> 0.1 | AF51: =Table[[#This Row],[Georgia]] -> 0.1 | AG51: =Table[[#This Row],[Hawaii]] -> 0.1 | AH51: =Table[[#This Row],[Idaho]] -> 0.1 | AI51: =IF(Age<=75,Table[[#This Row],[Illinois]],IF(Age<=79,0.05,0)) -> 0.1 | AJ51: =Table[[#This Row],[Illinois]] -> 0.1 | AK51: =Table[[#This Row],[Iowa]] -> 0.1 | AL51: =Table[[#This Row],[Kansas]] -> 0.1 | AM51: =Table[[#This Row],[Kentucky]] -> 0.1 | AN51: =Table[[#This Row],[Louisiana]] -> 0.1 | AO51: =Table[[#This Row],[Maine]] -> 0.1 | AP51: =Table[[#This Row],[Maryland]] -> 0.1 | AQ51: =Table[[#This Row],[Massachusetts]] -> 0.1 | AR51: X | AS51: =Table[[#This Row],[Michigan]] -> 0.1 | AT51: =Table[[#This Row],[Mississippi]] -> 0.1 | AU51: =Table[[#This Row],[Missouri]] -> 0.1 | AV51: =Table[[#This Row],[Montana]] -> 0.1 | AW51: =IF(Age<=48,Table[[#This Row],[Nebraska]],IF(Age<=53,0.05,0.03)) -> 0.03 | AX51: =Table[[#This Row],[Nebraska]] -> 0.1 | AY51: =Table[[#This Row],[New Hampshire]] -> 0.1 | AZ51: =Table[[#This Row],[New Jersey]] -> 0.1 | BA51: X | BB51: =Table[[#This Row],[New Mexico]] -> 0.1 | BC51: =Table[[#This Row],[North Carolina]] -> 0.1 | BD51: =IF(Age<=49,Table[[#This Row],[North Dakota]],IF(Age<=53,0.05,0.03)) -> 0.03 | BE51: =Table[[#This Row],[North Dakota]] -> 0.1 | BF51: X | BG51: =Table[[#This Row],[Oklahoma]] -> 0.1 | BH51: =Table[[#This Row],[Pennsylvania]] -> 0.1 | BI51: =Table[[#This Row],[Rhode Island]] -> 0.1 | BJ51: =Table[[#This Row],[South Carolina]] -> 0.1 | BK51: =Table[[#This Row],[South Dakota]] -> 0.1 | BL51: =IF(Age<=51,Table[[#This Row],[Tennessee]],IF(Age<=55,0.05,0.03)) -> 0.05 | BM51: 0.02 | BN51: =Table[[#This Row],[Tennessee]] -> 0.1 | BO51: =Table[[#This Row],[Tennessee]] -> 0.1 | BP51: X | BQ51: =Table[[#This Row],[Virginia]] -> 0.1 | BR51: =Table[[#This Row],[West Virginia]] -> 0.1 | BS51: =Table[[#This Row],[Wisconsin]] -> 0.1 | BT51: 65 | BU51: =IF(Table[[#This Row],[Bonus*]]="X","n/a",Premium*(1+Table[[#This Row],[Bonus*]])*IF(Table[[#This Row],[Increase Type]]="Simple",1,(1+Table[[#This Row],[Annual Benefit Base Increase Rate]])^MIN(TRUNC(Defer,0),Table[[#This Row],[Max Years for Increase]]))+IF(Table[[#This Row],[Increase Type]]="Simple",Table[[#This Row],[Annual Benefit Base Increase Rate]]*Premium*(1+Table[[#This Row],[Rollup Bonus?]]*Table[[#This Row],[Bonus*]])*MIN(TRUNC(Defer,0),Table[[#This Row],[Max Years for Increase]]),0)) -> 211383.713 | BV51: =IF(Table[[#This Row],[Attained Age]]<Table[[#This Row],[Min Income Age]],0,IF(Table[[#This Row],[Attained Age]]<60,0.0375,MIN((FLOOR(Table[[#This Row],[Attained Age]]-20,5)+2.5)/1000,Table[[#This Row],[Max Payout]]))) -> 0.0475 | BW51: =IF(OR(Defer<Table[[#This Row],[Required Deferral]],Table[[#This Row],[Bonus*]]="X"),0,Table[[#This Row],[Benefit Base]]*Table[[#This Row],[Single Income Percentage]]) -> 10040.72637 | BX51: =IF(Table[[#This Row],[Single Income Percentage]]=0,0,Table[[#This Row],[Single Income Percentage]]-Table[[#This Row],[Joint Reduction]]) -> 0.0425 | BY51: =IF(Table[[#This Row],[Single Annual Income]]=0,0,Table[[#This Row],[Benefit Base]]*Table[[#This Row],[Joint Income Percentage]]) -> 8983.807803 | BZ51: AV | CA51: 0
A52: North American | B52: A+ | C52: A+ | D52: Income Pay III | E52: =IF(OR(Age<Table[[#This Row],[Min Issue Age]],Age>Table[[#This Row],[Max Issue]],HLOOKUP(State,States,ROW(Table[#This Row])-4,FALSE)="X"),"X",HLOOKUP($I$2,States,ROW(Table[#This Row])-4,FALSE)) -> 0.1 | F52: 0.0625 | J52: 1 | L52: 0.0095 | M52: 20 | N52: 50 | O52: 0.0625 | P52: 0.005 | Q52: 40 | R52: 1 | S52: 10000 | T52: 1000000 | U52: 80 | V52: X | W52: X | X52: 0.1 | Y52: =Table[[#This Row],[Arizona]] -> 0.1 | Z52: =IF(Age<=65,Table[[#This Row],[Arkansas]],0.05) -> 0.1 | AA52: =Table[[#This Row],[Arkansas]] -> 0.1 | AB52: X | AC52: X | AD52: =Table[[#This Row],[Colorado]] -> 0.1 | AE52: =Table[[#This Row],[Florida]] -> 0.1 | AF52: =Table[[#This Row],[Georgia]] -> 0.1 | AG52: =Table[[#This Row],[Hawaii]] -> 0.1 | AH52: =Table[[#This Row],[Idaho]] -> 0.1 | AI52: =IF(Age<=75,Table[[#This Row],[Illinois]],IF(Age<=79,0.05,0)) -> 0.1 | AJ52: =Table[[#This Row],[Illinois]] -> 0.1 | AK52: =Table[[#This Row],[Iowa]] -> 0.1 | AL52: =Table[[#This Row],[Kansas]] -> 0.1 | AM52: =Table[[#This Row],[Kentucky]] -> 0.1 | AN52: =Table[[#This Row],[Louisiana]] -> 0.1 | AO52: =Table[[#This Row],[Maine]] -> 0.1 | AP52: =Table[[#This Row],[Maryland]] -> 0.1 | AQ52: =Table[[#This Row],[Massachusetts]] -> 0.1 | AR52: X | AS52: =Table[[#This Row],[Michigan]] -> 0.1 | AT52: =Table[[#This Row],[Mississippi]] -> 0.1 | AU52: =Table[[#This Row],[Missouri]] -> 0.1 | AV52: =Table[[#This Row],[Montana]] -> 0.1 | AW52: =IF(Age<=48,Table[[#This Row],[Nebraska]],IF(Age<=53,0.05,0.03)) -> 0.03 | AX52: =Table[[#This Row],[Nebraska]] -> 0.1 | AY52: =Table[[#This Row],[New Hampshire]] -> 0.1 | AZ52: =Table[[#This Row],[New Jersey]] -> 0.1 | BA52: X | BB52: =Table[[#This Row],[New Mexico]] -> 0.1 | BC52: =Table[[#This Row],[North Carolina]] -> 0.1 | BD52: =IF(Age<=49,Table[[#This Row],[North Dakota]],IF(Age<=53,0.05,0.03)) -> 0.03 | BE52: =Table[[#This Row],[North Dakota]] -> 0.1 | BF52: X | BG52: =Table[[#This Row],[Oklahoma]] -> 0.1 | BH52: =Table[[#This Row],[Pennsylvania]] -> 0.1 | BI52: =Table[[#This Row],[Rhode Island]] -> 0.1 | BJ52: =Table[[#This Row],[South Carolina]] -> 0.1 | BK52: =Table[[#This Row],[South Dakota]] -> 0.1 | BL52: =IF(Age<=51,Table[[#This Row],[Tennessee]],IF(Age<=55,0.05,0.03)) -> 0.05 | BM52: 0.02 | BN52: =Table[[#This Row],[Tennessee]] -> 0.1 | BO52: =Table[[#This Row],[Tennessee]] -> 0.1 | BP52: X | BQ52: =Table[[#This Row],[Virginia]] -> 0.1 | BR52: =Table[[#This Row],[West Virginia]] -> 0.1 | BS52: =Table[[#This Row],[Wisconsin]] -> 0.1 | BT52: 65 | BU52: =IF(Table[[#This Row],[Bonus*]]="X","n/a",Premium*(1+Table[[#This Row],[Bonus*]])*IF(Table[[#This Row],[Increase Type]]="Simple",1,(1+Table[[#This Row],[Annual Benefit Base Increase Rate]])^MIN(TRUNC(Defer,0),Table[[#This Row],[Max Years for Increase]]))+IF(Table[[#This Row],[Increase Type]]="Simple",Table[[#This Row],[Annual Benefit Base Increase Rate]]*Premium*(1+Table[[#This Row],[Rollup Bonus?]]*Table[[#This Row],[Bonus*]])*MIN(TRUNC(Defer,0),Table[[#This Row],[Max Years for Increase]]),0)) -> 201688.9348 | BV52: =IF(Table[[#This Row],[Attained Age]]<Table[[#This Row],[Min Income Age]],0,IF(Table[[#This Row],[Attained Age]]<60,0.0375,MIN((FLOOR(Table[[#This Row],[Attained Age]]-20,5)+2.5)/1000,Table[[#This Row],[Max Payout]]))) -> 0.0475 | BW52: =IF(OR(Defer<Table[[#This Row],[Required Deferral]],Table[[#This Row],[Bonus*]]="X"),0,Table[[#This Row],[Benefit Base]]*Table[[#This Row],[Single Income Percentage]]) -> 9580.224405 | BX52: =IF(Table[[#This Row],[Single Income Percentage]]=0,0,Table[[#This Row],[Single Income Percentage]]-Table[[#This Row],[Joint Reduction]]) -> 0.0425 | BY52: =IF(Table[[#This Row],[Single Annual Income]]=0,0,Table[[#This Row],[Benefit Base]]*Table[[#This Row],[Joint Income Percentage]]) -> 8571.779731 | BZ52: AV | CA52: 0
A53: North American | B53: A+ | C53: A+ | D53: Income Pay I | E53: =IF(OR(Age<Table[[#This Row],[Min Issue Age]],Age>Table[[#This Row],[Max Issue]],HLOOKUP(State,States,ROW(Table[#This Row])-4,FALSE)="X"),"X",HLOOKUP($I$2,States,ROW(Table[#This Row])-4,FALSE)) -> 0.1 | F53: 0.055 | J53: 1 | L53: 0.004 | M53: none | N53: 50 | O53: 0.0625 | P53: 0.005 | Q53: 40 | R53: 1 | S53: 10000 | T53: 1000000 | U53: 80 | V53: X | W53: X | X53: 0.1 | Y53: =Table[[#This Row],[Arizona]] -> 0.1 | Z53: =IF(Age<=65,Table[[#This Row],[Arkansas]],0.05) -> 0.1 | AA53: =Table[[#This Row],[Arkansas]] -> 0.1 | AB53: X | AC53: X | AD53: =Table[[#This Row],[Colorado]] -> 0.1 | AE53: =Table[[#This Row],[Florida]] -> 0.1 | AF53: =Table[[#This Row],[Georgia]] -> 0.1 | AG53: =Table[[#This Row],[Hawaii]] -> 0.1 | AH53: =Table[[#This Row],[Idaho]] -> 0.1 | AI53: =IF(Age<=75,Table[[#This Row],[Illinois]],IF(Age<=79,0.05,0)) -> 0.1 | AJ53: =Table[[#This Row],[Illinois]] -> 0.1 | AK53: =Table[[#This Row],[Iowa]] -> 0.1 | AL53: =Table[[#This Row],[Kansas]] -> 0.1 | AM53: =Table[[#This Row],[Kentucky]] -> 0.1 | AN53: =Table[[#This Row],[Louisiana]] -> 0.1 | AO53: =Table[[#This Row],[Maine]] -> 0.1 | AP53: =Table[[#This Row],[Maryland]] -> 0.1 | AQ53: =Table[[#This Row],[Georgia]] -> 0.1 | AR53: X | AS53: =Table[[#This Row],[Michigan]] -> 0.1 | AT53: =Table[[#This Row],[Mississippi]] -> 0.1 | AU53: =Table[[#This Row],[Missouri]] -> 0.1 | AV53: =Table[[#This Row],[Montana]] -> 0.1 | AW53: =IF(Age<=48,Table[[#This Row],[Nebraska]],IF(Age<=53,0.05,0.03)) -> 0.03 | AX53: =Table[[#This Row],[Nebraska]] -> 0.1 | AY53: =Table[[#This Row],[New Hampshire]] -> 0.1 | AZ53: =Table[[#This Row],[New Jersey]] -> 0.1 | BA53: X | BB53: =Table[[#This Row],[New Mexico]] -> 0.1 | BC53: =Table[[#This Row],[North Carolina]] -> 0.1 | BD53: =IF(Age<=49,Table[[#This Row],[North Dakota]],IF(Age<=53,0.05,0.03)) -> 0.03 | BE53: =Table[[#This Row],[North Dakota]] -> 0.1 | BF53: X | BG53: =Table[[#This Row],[Oklahoma]] -> 0.1 | BH53: =Table[[#This Row],[Pennsylvania]] -> 0.1 | BI53: =Table[[#This Row],[Rhode Island]] -> 0.1 | BJ53: =Table[[#This Row],[South Carolina]] -> 0.1 | BK53: =Table[[#This Row],[South Dakota]] -> 0.1 | BL53: =IF(Age<=51,Table[[#This Row],[Tennessee]],IF(Age<=55,0.05,0.03)) -> 0.05 | BM53: 0.02 | BN53: =Table[[#This Row],[Tennessee]] -> 0.1 | BO53: =Table[[#This Row],[Tennessee]] -> 0.1 | BP53: X | BQ53: =Table[[#This Row],[Virginia]] -> 0.1 | BR53: =Table[[#This Row],[West Virginia]] -> 0.1 | BS53: =Table[[#This Row],[Wisconsin]] -> 0.1 | BT53: 65 | BU53: =IF(Table[[#This Row],[Bonus*]]="X","n/a",Premium*(1+Table[[#This Row],[Bonus*]])*IF(Table[[#This Row],[Increase Type]]="Simple",1,(1+Table[[#This Row],[Annual Benefit Base Increase Rate]])^MIN(TRUNC(Defer,0),Table[[#This Row],[Max Years for Increase]]))+IF(Table[[#This Row],[Increase Type]]="Simple",Table[[#This Row],[Annual Benefit Base Increase Rate]]*Premium*(1+Table[[#This Row],[Rollup Bonus?]]*Table[[#This Row],[Bonus*]])*MIN(TRUNC(Defer,0),Table[[#This Row],[Max Years for Increase]]),0)) -> 187895.8904 | BV53: =IF(Table[[#This Row],[Attained Age]]<Table[[#This Row],[Min Income Age]],0,IF(Table[[#This Row],[Attained Age]]<60,0.0375,MIN((FLOOR(Table[[#This Row],[Attained Age]]-20,5)+2.5)/1000,Table[[#This Row],[Max Payout]]))) -> 0.0475 | BW53: =IF(OR(Defer<Table[[#This Row],[Required Deferral]],Table[[#This Row],[Bonus*]]="X"),0,Table[[#This Row],[Benefit Base]]*Table[[#This Row],[Single Income Percentage]]) -> 8925.054795 | BX53: =IF(Table[[#This Row],[Single Income Percentage]]=0,0,Table[[#This Row],[Single Income Percentage]]-Table[[#This Row],[Joint Reduction]]) -> 0.0425 | BY53: =IF(Table[[#This Row],[Single Annual Income]]=0,0,Table[[#This Row],[Benefit Base]]*Table[[#This Row],[Joint Income Percentage]]) -> 7985.575343 | BZ53: AV | CA53: 0
A54: North American | B54: A+ | C54: A+ | D54: IncomeChoice | E54: =IF(OR(Age<Table[[#This Row],[Min Issue Age]],Age>Table[[#This Row],[Max Issue]],HLOOKUP(State,States,ROW(Table[#This Row])-4,FALSE)="X"),"X",MIN(IF(Age<=75,0.1,IF(Age<=80,0.05,0)),HLOOKUP($I$2,States,ROW(Table[#This Row])-4,FALSE))) -> 0.05 | F54: =5%+((ror*Premium)/Premium) -> 0.05 | J54: 1 | L54: 0 | M54: 20 | N54: 50 | O54: 0.0665 | P54: 0.005 | Q54: 40 | R54: 1 | S54: 50000 | T54: 1000000 | U54: 79 | V54: 0.05 | W54: 0.05 | X54: 0.05 | Y54: 0.05 | Z54: X | AA54: 0.05 | AB54: X | AC54: X | AD54: 0.05 | AE54: 0.05 | AF54: 0.05 | AG54: 0.05 | AH54: 0.05 | AI54: 0.05 | AJ54: 0.05 | AK54: 0.05 | AL54: 0.05 | AM54: 0.05 | AN54: 0.05 | AO54: X | AP54: 0.05 | AQ54: 0.05 | AR54: X | AS54: X | AT54: X | AU54: 0.05 | AV54: 0.05 | AW54: X | AX54: X | AY54: 0.05 | AZ54: 0.05 | BA54: X | BB54: 0.05 | BC54: 0.05 | BD54: X | BE54: 0.05 | BF54: X | BG54: 0.05 | BH54: 0.05 | BI54: X | BJ54: 0.05 | BK54: 0.05 | BL54: X | BM54: X | BN54: X | BO54: X | BP54: X | BQ54: 0.05 | BR54: 0.05 | BS54: 0.05 | BT54: 65 | BU54: =IF(Table[[#This Row],[Bonus*]]="X","n/a",Premium*(1+Table[[#This Row],[Bonus*]])*IF(Table[[#This Row],[Increase Type]]="Simple",1,(1+Table[[#This Row],[Annual Benefit Base Increase Rate]])^MIN(TRUNC(Defer,0),Table[[#This Row],[Max Years for Increase]]))+IF(Table[[#This Row],[Increase Type]]="Simple",Table[[#This Row],[Annual Benefit Base Increase Rate]]*Premium*(1+Table[[#This Row],[Rollup Bonus?]]*Table[[#This Row],[Bonus*]])*MIN(TRUNC(Defer,0),Table[[#This Row],[Max Years for Increase]]),0)) -> 171033.9358 | BV54: =IF(Table[[#This Row],[Attained Age]]<Table[[#This Row],[Min Income Age]],0,IF(Table[[#This Row],[Attained Age]]<60,0.0415,MIN((Table[[#This Row],[Attained Age]]-13.5)/1000,Table[[#This Row],[Max Payout]]))) -> 0.0515 | BW54: =IF(OR(Defer<Table[[#This Row],[Required Deferral]],Table[[#This Row],[Bonus*]]="X"),0,Table[[#This Row],[Benefit Base]]*Table[[#This Row],[Single Income Percentage]]) -> 8808.247694 | BX54: =IF(Table[[#This Row],[Single Income Percentage]]=0,0,Table[[#This Row],[Single Income Percentage]]-Table[[#This Row],[Joint Reduction]]) -> 0.0465 | BY54: =IF(Table[[#This Row],[Single Annual Income]]=0,0,Table[[#This Row],[Benefit Base]]*Table[[#This Row],[Joint Income Percentage]]) -> 7953.078015 | BZ54: AV | CA54: 0
A55: Phoenix | B55: B | C55: BB- | D55: PIA Tomorrow | E55: =IF(OR(Age<Table[[#This Row],[Min Issue Age]],Age>Table[[#This Row],[Max Issue]]),"X",HLOOKUP(State,States,ROW(Table[#This Row])-4,FALSE)) -> 0 | F55: 0.14 | G55: 0.03 | H55: 10 | I55: Simple | L55: 0.0095 | M55: 20 | N55: 50 | O55: 0.0618 | P55: 0 | Q55: 40 | R55: 0 | S55: 15000 | T55: 1000000 | U55: 85 | V55: 0 | W55: 0 | X55: 0 | Y55: 0 | Z55: 0 | AA55: 0 | AB55: 0 | AC55: 0 | AD55: 0 | AE55: 0 | AF55: 0 | AG55: 0 | AH55: 0 | AI55: 0 | AJ55: 0 | AK55: 0 | AL55: 0 | AM55: 0 | AN55: X | AO55: 0 | AP55: 0 | AQ55: 0 | AR55: 0 | AS55: 0 | AT55: 0 | AU55: 0 | AV55: 0 | AW55: 0 | AX55: 0 | AY55: 0 | AZ55: 0 | BA55: X | BB55: 0 | BC55: 0 | BD55: 0 | BE55: 0 | BF55: 0 | BG55: 0 | BH55: 0 | BI55: 0 | BJ55: 0 | BK55: 0 | BL55: 0 | BM55: 0 | BN55: 0 | BO55: 0 | BP55: 0 | BQ55: 0 | BR55: 0 | BS55: 0 | BT55: 65 | BU55: =IF(Table[[#This Row],[Bonus*]]="X","n/a",Premium*(1+Table[[#This Row],[Bonus*]])*IF(Table[[#This Row],[Increase Type]]="Simple",1,(1+Table[[#This Row],[Annual Benefit Base Increase Rate]])^MIN(TRUNC(Defer,0),Table[[#This Row],[Rollup Switch]])*(1+Table[[#This Row],[Rollup2]])^MIN(MAX(TRUNC(Defer,0)-Table[[#This Row],[Rollup Switch]],0),Table[[#This Row],[Max Years for Increase]]-Table[[#This Row],[Rollup Switch]]))+IF(Table[[#This Row],[Increase Type]]="Simple",Premium*(1+Table[[#This Row],[Rollup Bonus?]]*Table[[#This Row],[Bonus*]])*(Table[[#This Row],[Annual Benefit Base Increase Rate]]*MIN(TRUNC(Defer,0),Table[[#This Row],[Rollup Switch]])+Table[[#This Row],[Rollup2]]*MIN(MAX(Defer-Table[[#This Row],[Rollup Switch]],0),Table[[#This Row],[Max Years for Increase]]-Table[[#This Row],[Rollup Switch]])),0)) -> 240000 | BV55: =INDEX(PIATomorrowSingle!A1:CQ86,Age,Table[[#This Row],[Attained Age]])*0.01 -> 0.0412 | BW55: =IF(OR(Defer<Table[[#This Row],[Required Deferral]],Table[[#This Row],[Bonus*]]="X"),0,Table[[#This Row],[Benefit Base]]*Table[[#This Row],[Single Income Percentage]]) -> 9888 | BX55: =INDEX(PIATomorrowJoint!A1:CQ86,Age,Table[[#This Row],[Attained Age]])*0.01 -> 0.0362 | BY55: =IF(Table[[#This Row],[Single Annual Income]]=0,0,Table[[#This Row],[Benefit Base]]*Table[[#This Row],[Joint Income Percentage]]) -> 8688 | BZ55: AV | CA55: 0
A56: Phoenix | B56: B | C56: BB- | D56: PIA Today | E56: =IF(OR(Age<Table[[#This Row],[Min Issue Age]],Age>Table[[#This Row],[Max Issue]]),"X",HLOOKUP(State,States,ROW(Table[#This Row])-4,FALSE)) -> 0.45 | F56: 0.03 | L56: 0.0095 | M56: 20 | N56: 50 | O56: 0.0618 | P56: 0 | Q56: 40 | R56: 0 | S56: 15000 | T56: 1000000 | U56: 85 | V56: =VLOOKUP(Defer,PIA!$A$2:$B$22,2,FALSE) -> 0.45 | W56: =VLOOKUP(Defer,PIA!$A$2:$B$22,2,FALSE) -> 0.45 | X56: =VLOOKUP(Defer,PIA!$A$2:$B$22,2,FALSE) -> 0.45 | Y56: =VLOOKUP(Defer,PIA!$A$2:$B$22,2,FALSE) -> 0.45 | Z56: =VLOOKUP(Defer,PIA!$A$2:$B$22,2,FALSE) -> 0.45 | AA56: =VLOOKUP(Defer,PIA!$A$2:$B$22,2,FALSE) -> 0.45 | AB56: =VLOOKUP(Defer,PIA!$A$2:$B$22,2,FALSE) -> 0.45 | AC56: =VLOOKUP(Defer,PIA!$A$2:$B$22,2,FALSE) -> 0.45 | AD56: =VLOOKUP(Defer,PIA!$A$2:$B$22,2,FALSE) -> 0.45 | AE56: =VLOOKUP(Defer,PIA!$A$2:$B$22,2,FALSE) -> 0.45 | AF56: =VLOOKUP(Defer,PIA!$A$2:$B$22,2,FALSE) -> 0.45 | AG56: =VLOOKUP(Defer,PIA!$A$2:$B$22,2,FALSE) -> 0.45 | AH56: =VLOOKUP(Defer,PIA!$A$2:$B$22,2,FALSE) -> 0.45 | AI56: =VLOOKUP(Defer,PIA!$A$2:$B$22,2,FALSE) -> 0.45 | AJ56: =VLOOKUP(Defer,PIA!$A$2:$B$22,2,FALSE) -> 0.45 | AK56: =VLOOKUP(Defer,PIA!$A$2:$B$22,2,FALSE) -> 0.45 | AL56: =VLOOKUP(Defer,PIA!$A$2:$B$22,2,FALSE) -> 0.45 | AM56: =VLOOKUP(Defer,PIA!$A$2:$B$22,2,FALSE) -> 0.45 | AN56: X | AO56: =VLOOKUP(Defer,PIA!$A$2:$B$32,2,FALSE) -> 0.45 | AP56: =VLOOKUP(Defer,PIA!$A$2:$B$32,2,FALSE) -> 0.45 | AQ56: =VLOOKUP(Defer,PIA!$A$2:$B$32,2,FALSE) -> 0.45 | AR56: =VLOOKUP(Defer,PIA!$A$2:$B$32,2,FALSE) -> 0.45 | AS56: =VLOOKUP(Defer,PIA!$A$2:$B$32,2,FALSE) -> 0.45 | AT56: =VLOOKUP(Defer,PIA!$A$2:$B$32,2,FALSE) -> 0.45 | AU56: =VLOOKUP(Defer,PIA!$A$2:$B$32,2,FALSE) -> 0.45 | AV56: =VLOOKUP(Defer,PIA!$A$2:$B$32,2,FALSE) -> 0.45 | AW56: =VLOOKUP(Defer,PIA!$A$2:$B$32,2,FALSE) -> 0.45 | AX56: =VLOOKUP(Defer,PIA!$A$2:$B$32,2,FALSE) -> 0.45 | AY56: =VLOOKUP(Defer,PIA!$A$2:$B$32,2,FALSE) -> 0.45 | AZ56: =VLOOKUP(Defer,PIA!$A$2:$B$32,2,FALSE) -> 0.45 | BA56: X | BB56: =VLOOKUP(Defer,PIA!$A$2:$B$22,2,FALSE) -> 0.45 | BC56: =VLOOKUP(Defer,PIA!$A$2:$B$22,2,FALSE) -> 0.45 | BD56: =VLOOKUP(Defer,PIA!$A$2:$B$22,2,FALSE) -> 0.45 | BE56: =VLOOKUP(Defer,PIA!$A$2:$B$22,2,FALSE) -> 0.45 | BF56: =VLOOKUP(Defer,PIA!$A$2:$B$22,2,FALSE) -> 0.45 | BG56: =VLOOKUP(Defer,PIA!$A$2:$B$22,2,FALSE) -> 0.45 | BH56: =VLOOKUP(Defer,PIA!$A$2:$B$22,2,FALSE) -> 0.45 | BI56: =VLOOKUP(Defer,PIA!$A$2:$B$22,2,FALSE) -> 0.45 | BJ56: =VLOOKUP(Defer,PIA!$A$2:$B$22,2,FALSE) -> 0.45 | BK56: =VLOOKUP(Defer,PIA!$A$2:$B$22,2,FALSE) -> 0.45 | BL56: =VLOOKUP(Defer,PIA!$A$2:$B$22,2,FALSE) -> 0.45 | BM56: =VLOOKUP(Defer,PIA!$A$2:$B$22,2,FALSE) -> 0.45 | BN56: =VLOOKUP(Defer,PIA!$A$2:$B$22,2,FALSE) -> 0.45 | BO56: =VLOOKUP(Defer,PIA!$A$2:$B$22,2,FALSE) -> 0.45 | BP56: =VLOOKUP(Defer,PIA!$A$2:$B$22,2,FALSE) -> 0.45 | BQ56: =VLOOKUP(Defer,PIA!$A$2:$B$22,2,FALSE) -> 0.45 | BR56: =VLOOKUP(Defer,PIA!$A$2:$B$22,2,FALSE) -> 0.45 | BS56: =VLOOKUP(Defer,PIA!$A$2:$B$22,2,FALSE) -> 0.45 | BT56: 65 | BU56: =IF(Table[[#This Row],[Bonus*]]="x", "n/a",VLOOKUP(Defer,PIA!A1:F22,4,FALSE)) -> 176200 | BV56: =INDEX(PIATodaySingle!$A$1:$CQ$86,Age,Table[[#This Row],[Attained Age]])*0.01 -> 0.047 | BW56: =IF(OR(Defer<Table[[#This Row],[Required Deferral]],Table[[#This Row],[Bonus*]]="X"),0,Table[[#This Row],[Benefit Base]]*Table[[#This Row],[Single Income Percentage]]) -> 8281.4 | BX56: =INDEX(PIATodayJoint!$A$1:$CQ$86,Age,Table[[#This Row],[Attained Age]])*0.01 -> 0.042 | BY56: =IF(Table[[#This Row],[Single Annual Income]]=0,0,Table[[#This Row],[Benefit Base]]*Table[[#This Row],[Joint Income Percentage]]) -> 7400.4 | BZ56: AV | CA56: 0
A57: Security Benefit3 | B57: B++ | C57: A- | D57: SIA GLWB | E57: =IF(OR(Age<Table[[#This Row],[Min Issue Age]],Age>Table[[#This Row],[Max Issue]]),"X",HLOOKUP(State,States,ROW(Table[#This Row])-4,FALSE)) -> 0.08 | F57: 0.07 | J57: 1 | L57: 0.0095 | M57: =IF(Age=80,5,MAX(MIN(IF(FLOOR(Age,5)<>FLOOR(Age,10),85-Age,80-FLOOR(Age,10)),20),0)) -> 20 | N57: 55 | O57: 0.078 | P57: 0.007 | Q57: 55 | R57: 0 | S57: 25000 | T57: 1000000 | U57: 80 | V57: 0.08 | W57: 0.055 | X57: 0.08 | Y57: 0.08 | Z57: 0.07 | AA57: 0.08 | AB57: 0.02 | AC57: 0.02 | AD57: 0.08 | AE57: 0.08 | AF57: 0.08 | AG57: 0.08 | AH57: 0.08 | AI57: 0.055 | AJ57: 0.08 | AK57: 0.08 | AL57: 0.08 | AM57: 0.08 | AN57: 0.055 | AO57: 0.08 | AP57: 0.08 | AQ57: 0.08 | AR57: 0.055 | AS57: 0.08 | AT57: 0.055 | AU57: 0.08 | AV57: 0.08 | AW57: 0.055 | AX57: 0.055 | AY57: 0.055 | AZ57: 0.08 | BA57: X | BB57: 0.08 | BC57: 0.08 | BD57: 0.055 | BE57: 0.08 | BF57: 0.055 | BG57: 0.055 | BH57: 0.08 | BI57: 0.055 | BJ57: 0.08 | BK57: 0.08 | BL57: 0.055 | BM57: 0.055 | BN57: 0.08 | BO57: 0.08 | BP57: 0.055 | BQ57: 0.08 | BR57: 0.08 | BS57: 0.08 | BT57: 65 | BU57: =IF(Table[[#This Row],[Bonus*]]="X","n/a",Premium*(1+Table[[#This Row],[Bonus*]])*IF(Table[[#This Row],[Increase Type]]="Simple",1,(1+Table[[#This Row],[Annual Benefit Base Increase Rate]])^MIN(TRUNC(Defer,0),Table[[#This Row],[Max Years for Increase]]))+IF(Table[[#This Row],[Increase Type]]="Simple",Table[[#This Row],[Annual Benefit Base Increase Rate]]*Premium*(1+Table[[#This Row],[Rollup Bonus?]]*Table[[#This Row],[Bonus*]])*MIN(TRUNC(Defer,0),Table[[#This Row],[Max Years for Increase]]),0)) -> 212452.3466 | BV57: =IF(Table[[#This Row],[Attained Age]]<Table[[#This Row],[Min Income Age]],0,MIN((Table[[#This Row],[Attained Age]]-12)/1000,Table[[#This Row],[Max Payout]])) -> 0.053 | BW57: =IF(OR(Defer<Table[[#This Row],[Required Deferral]],Table[[#This Row],[Bonus*]]="X"),0,Table[[#This Row],[Benefit Base]]*Table[[#This Row],[Single Income Percentage]]) -> 11259.97437 | BX57: =IF(Table[[#This Row],[Single Income Percentage]]=0,0,Table[[#This Row],[Single Income Percentage]]-Table[[#This Row],[Joint Reduction]]) -> 0.046 | BY57: =IF(Table[[#This Row],[Single Annual Income]]=0,0,Table[[#This Row],[Benefit Base]]*Table[[#This Row],[Joint Income Percentage]]) -> 9772.807943 | BZ57: AV | CA57: 0
A58: Security Benefit3 | B58: B++ | C58: A- | D58: TVA GLWB/GMDB | E58: =IFERROR(IF(OR(Age<Table[[#This Row],[Min Issue Age]],Age>Table[[#This Row],[Max Issue]]),"X",HLOOKUP(State,States,ROW(Table[#This Row])-4,FALSE)),"X") -> 0.08 | F58: =HLOOKUP(Table[[#This Row],[Increase Type]],TVA_Rate,2,FALSE) -> 0.055 | I58: Fixed | J58: 1 | L58: 0.0095 | M58: =IF(Age=80,4,MAX(MIN(IF(FLOOR(Age,5)<>FLOOR(Age,10),85-Age,80-FLOOR(Age,10)),20),0)) -> 20 | N58: 50 | O58: 0.08 | P58: 0.007 | Q58: 0 | R58: 0 | S58: 25000 | T58: 1000000 | U58: 80 | V58: 0.08 | W58: 0.06 | X58: 0.08 | Y58: 0.08 | Z58: 0.07 | AA58: 0.08 | AB58: 0.02 | AC58: 0.02 | AD58: 0.07 | AE58: 0.08 | AF58: 0.08 | AG58: 0.08 | AH58: 0.08 | AI58: 0.06 | AJ58: X | AK58: 0.08 | AL58: 0.08 | AM58: 0.08 | AN58: 0.06 | AO58: 0.08 | AP58: 0.08 | AQ58: 0.08 | AR58: 0.06 | AS58: 0.08 | AT58: 0.06 | AU58: 0.08 | AV58: 0.08 | AW58: 0.06 | AX58: 0.06 | AY58: 0.06 | AZ58: 0.08 | BA58: X | BB58: 0.08 | BC58: 0.08 | BD58: 0.06 | BE58: 0.08 | BF58: 0.06 | BG58: 0.06 | BH58: 0.08 | BI58: 0.06 | BJ58: 0.08 | BK58: 0.08 | BL58: 0.06 | BM58: 0.06 | BN58: 0.08 | BO58: 0.08 | BP58: 0.06 | BQ58: 0.08 | BR58: 0.08 | BS58: 0.08 | BT58: 65 | BU58: =IF(Table[[#This Row],[Bonus*]]="X","n/a",Premium*(1+Table[[#This Row],[Bonus*]])*VLOOKUP(MIN(TRUNC(Defer,0),MAX(Table[[#This Row],[Max Years for Increase]],5)),TVA_Rollup,MATCH(Table[[#This Row],[Increase Type]],TVA_Type,0)+1,FALSE)) -> 184479.6015 | BV58: =IF(Table[[#This Row],[Attained Age]]<Table[[#This Row],[Min Income Age]],0,MIN((Table[[#This Row],[Attained Age]]-12)/1000,Table[[#This Row],[Max Payout]])) -> 0.053 | BW58: =IF(OR(Age<50,Defer<Table[[#This Row],[Required Deferral]],Table[[#This Row],[Bonus*]]="X"),0,Table[[#This Row],[Benefit Base]]*Table[[#This Row],[Single Income Percentage]]) -> 9777.41888 | BX58: =IF(Table[[#This Row],[Single Income Percentage]]=0,0,Table[[#This Row],[Single Income Percentage]]-Table[[#This Row],[Joint Reduction]]) -> 0.046 | BY58: =IF(OR(Age<50,Table[[#This Row],[Single Annual Income]]=0),0,Table[[#This Row],[Benefit Base]]*Table[[#This Row],[Joint Income Percentage]]) -> 8486.061669 | BZ58: Rider | CA58: =MIN(IF(OR(Table[[#This Row],[Bonus*]]="X",State="California",State="Connecticut",State="Missouri",State="Nevada",State="New Hampshire",State="Washington"),0,Premium*(1+Table[[#This Row],[Bonus*]]-0.01-IF(AND(Age>=76,State<>"Connecticut",State<>"Delaware"),0.01,0))*(1+Table[[#This Row],[Annual Benefit Base Increase Rate]])^MIN(TRUNC(Defer,0),MAX(80-Age,5))),Premium*3) -> 182771.457
A59: Security Benefit3 | B59: B++ | C59: A- | D59: Assumed Rate TVA | E59: =IFERROR(IF(OR(Age<Table[[#This Row],[Min Issue Age]],Age>Table[[#This Row],[Max Issue]]),"X",HLOOKUP(State,States,ROW(Table[#This Row])-4,FALSE)),"X") -> 0.08 | F59: =0.04+ror -> 0.04 | J59: 1 | L59: 0.0095 | M59: =IF(Age=80,4,MAX(MIN(IF(FLOOR(Age,5)<>FLOOR(Age,10),85-Age,80-FLOOR(Age,10)),20),0)) -> 20 | N59: 50 | O59: 0.08 | P59: 0.007 | Q59: 0 | R59: 0 | S59: 25000 | T59: 1000000 | U59: 80 | V59: 0.08 | W59: 0.06 | X59: 0.08 | Y59: 0.08 | Z59: 0.07 | AA59: 0.08 | AB59: 0.02 | AC59: 0.02 | AD59: 0.07 | AE59: 0.08 | AF59: 0.08 | AG59: 0.08 | AH59: 0.08 | AI59: 0.06 | AJ59: X | AK59: 0.08 | AL59: 0.08 | AM59: 0.08 | AN59: 0.06 | AO59: 0.08 | AP59: 0.08 | AQ59: 0.08 | AR59: 0.06 | AS59: 0.08 | AT59: 0.06 | AU59: 0.08 | AV59: 0.08 | AW59: 0.06 | AX59: 0.06 | AY59: 0.06 | AZ59: 0.08 | BA59: X | BB59: 0.08 | BC59: 0.08 | BD59: 0.06 | BE59: 0.08 | BF59: 0.06 | BG59: 0.06 | BH59: 0.08 | BI59: 0.06 | BJ59: 0.08 | BK59: 0.08 | BL59: 0.06 | BM59: 0.06 | BN59: 0.08 | BO59: 0.08 | BP59: 0.06 | BQ59: 0.08 | BR59: 0.08 | BS59: 0.08 | BT59: 65 | BU59: =IF(Table[[#This Row],[Bonus*]]="X","n/a",Premium*(1+Table[[#This Row],[Bonus*]])*IF(Table[[#This Row],[Increase Type]]="Simple",1,(1+Table[[#This Row],[Annual Benefit Base Increase Rate]])^MIN(TRUNC(Defer,0),Table[[#This Row],[Max Years for Increase]]))+IF(Table[[#This Row],[Increase Type]]="Simple",Table[[#This Row],[Annual Benefit Base Increase Rate]]*Premium*(1+Table[[#This Row],[Rollup Bonus?]]*Table[[#This Row],[Bonus*]])*MIN(TRUNC(Defer,0),Table[[#This Row],[Max Years for Increase]]),0)) -> 159866.3828 | BV59: =IF(Table[[#This Row],[Attained Age]]<Table[[#This Row],[Min Income Age]],0,MIN((Table[[#This Row],[Attained Age]]-12)/1000,Table[[#This Row],[Max Payout]])) -> 0.053 | BW59: =IF(OR(Age<50,Defer<Table[[#This Row],[Required Deferral]],Table[[#This Row],[Bonus*]]="X"),0,Table[[#This Row],[Benefit Base]]*Table[[#This Row],[Single Income Percentage]]) -> 8472.918287 | BX59: =IF(Table[[#This Row],[Single Income Percentage]]=0,0,Table[[#This Row],[Single Income Percentage]]-Table[[#This Row],[Joint Reduction]]) -> 0.046 | BY59: =IF(OR(Age<50,Table[[#This Row],[Single Annual Income]]=0),0,Table[[#This Row],[Benefit Base]]*Table[[#This Row],[Joint Income Percentage]]) -> 7353.853607 | BZ59: Rider | CA59: =MIN(IF(OR(Table[[#This Row],[Bonus*]]="X",State="California",State="Connecticut",State="Missouri",State="Nevada",State="New Hampshire",State="Washington"),0,Premium*(1+Table[[#This Row],[Bonus*]]-0.01-IF(AND(Age>=76,State<>"Connecticut",State<>"Delaware"),0.01,0))*(1+Table[[#This Row],[Annual Benefit Base Increase Rate]])^MIN(TRUNC(Defer,0),MAX(80-Age,5))),Premium*3) -> 158386.1385
A60: Sentinel | B60: B++ | D60: Summit Bonus | E60: =IF(OR(Age<Table[[#This Row],[Min Issue Age]],Age>Table[[#This Row],[Max Issue]]),"X",IFERROR(HLOOKUP(State,States,ROW(Table[#This Row])-4,FALSE)+0.01,"X")) -> X | F60: 0.06 | J60: 1 | L60: 0.0105 | M60: =IF(Age=80,5,MAX(MIN(IF(FLOOR(Age,5)<>FLOOR(Age,10),85-Age,80-FLOOR(Age,10)),20),0)) -> 20 | N60: 55 | O60: 0.08 | P60: 0.005 | Q60: 45 | R60: 1 | S60: 10000 | T60: 1000000 | U60: 80 | V60: X | W60: X | X60: X | Y60: X | Z60: 0.07 | AA60: X | AB60: X | AC60: X | AD60: 0.07 | AE60: X | AF60: X | AG60: X | AH60: X | AI60: X | AJ60: X | AK60: X | AL60: X | AM60: X | AN60: X | AO60: X | AP60: X | AQ60: X | AR60: X | AS60: X | AT60: X | AU60: X | AV60: X | AW60: X | AX60: X | AY60: X | AZ60: X | BA60: X | BB60: 0.07 | BC60: X | BD60: X | BE60: X | BF60: X | BG60: 0.045 | BH60: X | BI60: X | BJ60: X | BK60: X | BL60: 0.045 | BM60: 0.045 | BN60: X | BO60: X | BP60: X | BQ60: X | BR60: X | BS60: X | BT60: 65 | BU60: =IF(Table[[#This Row],[Bonus*]]="X","n/a",Premium*(1+Table[[#This Row],[Bonus*]])*IF(Table[[#This Row],[Increase Type]]="Simple",1,(1+Table[[#This Row],[Annual Benefit Base Increase Rate]])^MIN(TRUNC(Defer,0),Table[[#This Row],[Max Years for Increase]]))+IF(Table[[#This Row],[Increase Type]]="Simple",Table[[#This Row],[Annual Benefit Base Increase Rate]]*Premium*(1+Table[[#This Row],[Rollup Bonus?]]*Table[[#This Row],[Bonus*]])*MIN(TRUNC(Defer,0),Table[[#This Row],[Max Years for Increase]]),0)) -> n/a | BV60: =IF(Table[[#This Row],[Attained Age]]<Table[[#This Row],[Min Income Age]],0,MIN((Table[[#This Row],[Attained Age]]-10)/1000,Table[[#This Row],[Max Payout]])) -> 0.055 | BW60: =IF(OR(Defer<Table[[#This Row],[Required Deferral]],Table[[#This Row],[Bonus*]]="X"),0,Table[[#This Row],[Benefit Base]]*Table[[#This Row],[Single Income Percentage]]) -> 0 | BX60: =IF(Table[[#This Row],[Single Income Percentage]]=0,0,Table[[#This Row],[Single Income Percentage]]-Table[[#This Row],[Joint Reduction]]) -> 0.05 | BY60: =IF(Table[[#This Row],[Single Annual Income]]=0,0,Table[[#This Row],[Benefit Base]]*Table[[#This Row],[Joint Income Percentage]]) -> 0 | BZ60: AV | CA60: 0
A62: FOR AGENT USE ONLY. NOT FOR USE WITH THE GENERAL PUBLIC. Agents who utilize this tool should recognize that it represents a comparison of various features of income riders and it does not provide a comparison of the underlying annuity products. It is not intended to be a complete comparison of various insurer’s products and riders. Any product recommendation made to a customer should include a careful evaluation of both the annuity product and any available riders. This summary of the amount of guaranteed lifetime income withdrawals assume that the client complies with the terms of conditions of the respective Income Riders. Withdrawals from the fixed indexed annuities other than the guaranteed lifetime income withdrawals may result in the loss of the guaranteed benefits. The Bonus assumes that the Income Rider is added to the fixed indexed annuity. A lower Bonus may apply to the fixed indexed annuity if the Income Rider is not purchased. Annuities with a bonus may use factors that result in lower interest credited in future years or have higher surrender charges or longer surrender charge periods than similar annuities that do not include bonuses. Income Riders generally provide for a Benefit Base (name varies by insurance carrier) which can be taken through Annual/Lifetime Income Withdrawals. The Benefit Base generally increases annually until lifetime income is taken or until the end of a term set forth in the Income Rider. The Benefit Base is not an amount that can be withdrawn, available for death benefits, or annuitized. The Annual Benefit Base Increase Rate is not interest that is credited to the annuity account value. An income rider is an optional benefit available for an additional charge. The assumptions used in this illustration are not guaranteed; this illustration assumes no additional Premium and no Withdrawals are taken prior to the date indicated. Rider charges will be automatically deducted from the account value of your contract, but are not reflected in this illustration. Product features, limitations and availability vary by state. Guarantees provided by each Rider are subject to the financial strength and claims-paying ability of the issuing insurance company.

Sheet Disclosures
A1: 1 Lifetime Income Benefit Rider (LIBR-2010) issued by American Equity Investment Life Insurance Company, West Des Moines, IA. By choosing the 8% IAV Option you will be charged a 0.90% annual fee from your contract value. 5% Option is available for all issue ages for no fee. 8% Option available for ages 50+. Income Account Value (IAV) only used to calculate lifetime income payments. Not part of underlying contract value or available in a lump sum. Not included in death benefit. Interest grows until the earlier of payments beginning or the end of the IAV period. If payments not elected by 10th contract anniversary for the 5% Option or by the 7th contract anniversary for the 8% Option, growth of IAV will stop unless client elects to restart accumulation period. Claims paying ability based on the financial strength of American Equity. See brochure and disclosure for details. 11-AE-1517
A2: 2 IncomeSecure Rider (R6036711NW), IncomeSustainer Plus Rider (R6032810NW), and Inheritance Enhancer Rider (R6042513NW) are issued by Great American Life Insurance Company®, Cincinnati, OH. By choosing IncomeSecure you will be charged 0.85% of the BBA annually from your contract value. IncomeSecure is available for issue ages 40-70 for Qualified money, and 40-85 for Non-Qualified. By choosing IncomeSustainer Plus, you will be charged 1.25% of the BBA annually from your contract value. IncomeSustainer Plus is available for issue ages 50-85. By choosing Inheritance Enhancer, you will be charged 0.75% of the BBA annually from your contract value. Inheritance Enhancer is available for issue ages 50-85. Benefit Base Amount (BBA) is only used to calculate lifetime income payments and grows by 10% simple interest annually on IncomeSecure, 8% simple interest annually on IncomeSustainer Plus, and 7% simple interest annually on Inheritance Enhancer. It is not part of the underlying contract value or available in a lump sum. Interest grows until the earlier of payments beginning or the end of the rollup period. If payments not elected by 10th contract anniversary, growth of BBA will stop unless client elects a reset that restarts the rollup period. A 5-year annuitization of the BBA is available as a death benefit on the IncomeSustainer Plus and Inheritance Enhancer Riders only. The BBA is not available as a death benefit on the IncomeSecure. Claims paying ability based on the financial strength of Great American Life Insurance Company. See brochure and disclosure for details. Rider form numbers may vary by state. Riders may not be available in all states. COM11295-3.
A3: 3 Secure Income Annuity (Form 5800 (11-10) and ICC10 5800 (11-10)) and its optional benefit rider, the Guaranteed Lifetime Withdrawal Rider (GLWB Rider) (Form 5820 (11-10) and ICC10 5820 (11-10)), are issued by Security Benefit Life Insurance Company. The Guaranteed Lifetime Withdrawal Rider may only be purchased at the time of application. If your client takes certain withdrawals from or surrenders the Secure Income Annuity within 10 years of purchase, a surrender charge, bonus recapture and market value adjustment may apply and reduce the amount your client receives. Before your client purchases the Secure Income Annuity and the GLWB Rider, you must review with your client the Statement of Understanding (SOU) for the Secure Income Annuity. The SOU explains the benefits and the terms and conditions of the Secure Income Annuity and GLWB Rider.

Sheet T10S (hidden)
A1: =IFERROR(VLOOKUP(Age,T10S,MATCH(Defer+1,$B$1:$W$1,1)+1,FALSE)/100000,0) -> 0.08658 | B1: 1 | C1: =B1+1 -> 2 | D1: =C1+1 -> 3 | E1: 4 | F1: 5 | G1: 6 | H1: 7 | I1: 8 | J1: 9 | K1: 10 | L1: 11 | M1: 12 | N1: 13 | O1: 14 | P1: 15 | Q1: 16 | R1: 17 | S1: 18 | T1: 19 | U1: 20 | V1: 25 | W1: 30 | AA1: Issue Age | AB1: year 1 | AC1: year 2 | AD1: year 3 | AE1: year 4 | AF1: year 5 | AG1: year 6 | AH1: year 7 | AI1: year 8 | AJ1: year 9 | AK1: year 10 | AL1: year 11 | AM1: year 12 | AN1: year 13 | AO1: year 14 | AP1: year 15 | AQ1: year 16 | AR1: year 17 | AS1: year 18 | AT1: year 19 | AU1: year 20 | AV1: year 25 | AW1: year 30
A2: 40 | L2: 7002 | M2: 7177 | N2: 7356 | O2: 7540 | P2: 7728 | Q2: 7922 | R2: 8040 | S2: 8161 | T2: 8283 | U2: 8408 | V2: 8851 | W2: 9444 | AA2: 40 | AL2: 7002 | AM2: 7177 | AN2: 7356 | AO2: 7540 | AP2: 7728 | AQ2: 7922 | AR2: 8040 | AS2: 8161 | AT2: 8283 | AU2: 8408 | AV2: 8851 | AW2: 9444
A3: 41 | K3: 6681 | L3: 7058 | M3: 7234 | N3: 7415 | O3: 7601 | P3: 7791 | Q3: 7985 | R3: 8105 | S3: 8227 | T3: 8350 | U3: 8475 | V3: 8950 | W3: 9596 | AA3: 41 | AK3: 6681 | AL3: 7058 | AM3: 7234 | AN3: 7415 | AO3: 7601 | AP3: 7791 | AQ3: 7985 | AR3: 8105 | AS3: 8227 | AT3: 8350 | AU3: 8475 | AV3: 8950 | AW3: 9596
A4: 42 | J4: 6380 | K4: 6737 | L4: 7120 | M4: 7298 | N4: 7480 | O4: 7667 | P4: 7859 | Q4: 8055 | R4: 8176 | S4: 8299 | T4: 8423 | U4: 8550 | V4: 9058 | W4: 9760 | AA4: 42 | AJ4: 6380 | AK4: 6737 | AL4: 7120 | AM4: 7298 | AN4: 7480 | AO4: 7667 | AP4: 7859 | AQ4: 8055 | AR4: 8176 | AS4: 8299 | AT4: 8423 | AU4: 8550 | AV4: 9058 | AW4: 9760
A5: 43 | I5: 6096 | J5: 6435 | K5: 6798 | L5: 7188 | M5: 7367 | N5: 7551 | O5: 7740 | P5: 7934 | Q5: 8132 | R5: 8254 | S5: 8378 | T5: 8504 | U5: 8631 | V5: 9176 | W5: 9937 | AA5: 43 | AI5: 6096 | AJ5: 6435 | AK5: 6798 | AL5: 7188 | AM5: 7367 | AN5: 7551 | AO5: 7740 | AP5: 7934 | AQ5: 8132 | AR5: 8254 | AS5: 8378 | AT5: 8504 | AU5: 8631 | AV5: 9176 | AW5: 9937
A6: 44 | H6: 5828 | I6: 6150 | J6: 6495 | K6: 6865 | L6: 7262 | M6: 7443 | N6: 7630 | O6: 7820 | P6: 8016 | Q6: 8216 | R6: 8339 | S6: 8464 | T6: 8591 | U6: 8720 | V6: 9305 | W6: 10127 | AA6: 44 | AH6: 5828 | AI6: 6150 | AJ6: 6495 | AK6: 6865 | AL6: 7262 | AM6: 7443 | AN6: 7630 | AO6: 7820 | AP6: 8016 | AQ6: 8216 | AR6: 8339 | AS6: 8464 | AT6: 8591 | AU6: 8720 | AV6: 9305 | AW6: 10127
A7: 45 | G7: 5710 | H7: 5959 | I7: 6209 | J7: 6560 | K7: 6938 | L7: 7343 | M7: 7527 | N7: 7715 | O7: 7908 | P7: 8105 | Q7: 8308 | R7: 8433 | S7: 8559 | T7: 8688 | U7: 8818 | V7: 9444 | W7: 10332 | AA7: 45 | AG7: 5710 | AH7: 5959 | AI7: 6209 | AJ7: 6560 | AK7: 6938 | AL7: 7343 | AM7: 7527 | AN7: 7715 | AO7: 7908 | AP7: 8105 | AQ7: 8308 | AR7: 8433 | AS7: 8559 | AT7: 8688 | AU7: 8818 | AV7: 9444 | AW7: 10332
A8: 46 | F8: 5464 | G8: 5763 | H8: 6018 | I8: 6273 | J8: 6632 | K8: 7017 | L8: 7432 | M8: 7618 | N8: 7808 | O8: 8003 | P8: 8203 | Q8: 8409 | R8: 8535 | S8: 8663 | T8: 8793 | U8: 8925 | V8: 9596 | W8: 10553 | AA8: 46 | AF8: 5464 | AG8: 5763 | AH8: 6018 | AI8: 6273 | AJ8: 6632 | AK8: 7017 | AL8: 7432 | AM8: 7618 | AN8: 7808 | AO8: 8003 | AP8: 8203 | AQ8: 8409 | AR8: 8535 | AS8: 8663 | AT8: 8793 | AU8: 8925 | AV8: 9596 | AW8: 10553
A9: 47 | E9: 5283 | F9: 5516 | G9: 5821 | H9: 6082 | I9: 6343 | J9: 6710 | K9: 7104 | L9: 7529 | M9: 7717 | N9: 7910 | O9: 8108 | P9: 8310 | Q9: 8518 | R9: 8646 | S9: 8776 | T9: 8907 | U9: 9041 | V9: 9760 | W9: 10789 | AA9: 47 | AE9: 5283 | AF9: 5516 | AG9: 5821 | AH9: 6082 | AI9: 6343 | AJ9: 6710 | AK9: 7104 | AL9: 7529 | AM9: 7717 | AN9: 7910 | AO9: 8108 | AP9: 8310 | AQ9: 8518 | AR9: 8646 | AS9: 8776 | AT9: 8907 | AU9: 9041 | AV9: 9760 | AW9: 10789
A10: 48 | D10: 5008 | E10: 5334 | F10: 5572 | G10: 5883 | H10: 6151 | I10: 6419 | J10: 6794 | K10: 7198 | L10: 7634 | M10: 7825 | N10: 8021 | O10: 8221 | P10: 8427 | Q10: 8637 | R10: 8767 | S10: 8898 | T10: 9032 | U10: 9167 | V10: 9937 | W10: 11043 | AA10: 48 | AD10: 5008 | AE10: 5334 | AF10: 5572 | AG10: 5883 | AH10: 6151 | AI10: 6419 | AJ10: 6794 | AK10: 7198 | AL10: 7634 | AM10: 7825 | AN10: 8021 | AO10: 8221 | AP10: 8427 | AQ10: 8637 | AR10: 8767 | AS10: 8898 | AT10: 9032 | AU10: 9167 | AV10: 9937 | AW10: 11043
A11: 49 | C11: 4726 | D11: 5057 | E11: 5388 | F11: 5632 | G11: 5951 | H11: 6226 | I11: 6501 | J11: 6886 | K11: 7301 | L11: 7749 | M11: 7942 | N11: 8141 | O11: 8344 | P11: 8553 | Q11: 8767 | R11: 8898 | S11: 9032 | T11: 9167 | U11: 9305 | V11: 10127 | W11: 11313 | AA11: 49 | AC11: 4726 | AD11: 5057 | AE11: 5388 | AF11: 5632 | AG11: 5951 | AH11: 6226 | AI11: 6501 | AJ11: 6886 | AK11: 7301 | AL11: 7749 | AM11: 7942 | AN11: 8141 | AO11: 8344 | AP11: 8553 | AQ11: 8767 | AR11: 8898 | AS11: 9032 | AT11: 9167 | AU11: 9305 | AV11: 10127 | AW11: 11313
A12: 50 | B12: 4126 | C12: 4772 | D12: 5109 | E12: 5447 | F12: 5697 | G12: 6023 | H12: 6307 | I12: 6590 | J12: 6985 | K12: 7412 | L12: 7873 | M12: 8070 | N12: 8271 | O12: 8478 | P12: 8690 | Q12: 8907 | R12: 9041 | S12: 9177 | T12: 9314 | U12: 9454 | V12: 10332 | W12: 11602 | AA12: 50 | AB12: 4126 | AC12: 4772 | AD12: 5109 | AE12: 5447 | AF12: 5697 | AG12: 6023 | AH12: 6307 | AI12: 6590 | AJ12: 6985 | AK12: 7412 | AL12: 7873 | AM12: 8070 | AN12: 8271 | AO12: 8478 | AP12: 8690 | AQ12: 8907 | AR12: 9041 | AS12: 9177 | AT12: 9314 | AU12: 9454 | AV12: 10332 | AW12: 11602
A13: 51 | B13: 4233 | C13: 4822 | D13: 5165 | E13: 5510 | F13: 5767 | G13: 6101 | H13: 6393 | I13: 6685 | J13: 7092 | K13: 7532 | L13: 8007 | M13: 8207 | N13: 8413 | O13: 8623 | P13: 8839 | Q13: 9060 | R13: 9195 | S13: 9333 | T13: 9473 | U13: 9615 | V13: 10553 | W13: 11910 | AA13: 51 | AB13: 4233 | AC13: 4822 | AD13: 5165 | AE13: 5510 | AF13: 5767 | AG13: 6101 | AH13: 6393 | AI13: 6685 | AJ13: 7092 | AK13: 7532 | AL13: 8007 | AM13: 8207 | AN13: 8413 | AO13: 8623 | AP13: 8839 | AQ13: 9060 | AR13: 9195 | AS13: 9333 | AT13: 9473 | AU13: 9615 | AV13: 10553 | AW13: 11910
A14: 52 | B14: 4339 | C14: 4874 | D14: 5225 | E14: 5578 | F14: 5842 | G14: 6185 | H14: 6487 | I14: 6788 | J14: 7207 | K14: 7661 | L14: 8153 | M14: 8356 | N14: 8565 | O14: 8779 | P14: 8999 | Q14: 9224 | R14: 9362 | S14: 9503 | T14: 9645 | U14: 9790 | V14: 10789 | W14: 12240 | AA14: 52 | AB14: 4339 | AC14: 4874 | AD14: 5225 | AE14: 5578 | AF14: 5842 | AG14: 6185 | AH14: 6487 | AI14: 6788 | AJ14: 7207 | AK14: 7661 | AL14: 8153 | AM14: 8356 | AN14: 8565 | AO14: 8779 | AP14: 8999 | AQ14: 9224 | AR14: 9362 | AS14: 9503 | AT14: 9645 | AU14: 9790 | AV14: 10789 | AW14: 12240
A15: 53 | B15: 4446 | C15: 4930 | D15: 5288 | E15: 5650 | F15: 5922 | G15: 6275 | H15: 6587 | I15: 6898 | J15: 7331 | K15: 7800 | L15: 8309 | M15: 8517 | N15: 8730 | O15: 8948 | P15: 9172 | Q15: 9401 | R15: 9542 | S15: 9685 | T15: 9830 | U15: 9978 | V15: 11043 | W15: 12591 | AA15: 53 | AB15: 4446 | AC15: 4930 | AD15: 5288 | AE15: 5650 | AF15: 5922 | AG15: 6275 | AH15: 6587 | AI15: 6898 | AJ15: 7331 | AK15: 7800 | AL15: 8309 | AM15: 8517 | AN15: 8730 | AO15: 8948 | AP15: 9172 | AQ15: 9401 | AR15: 9542 | AS15: 9685 | AT15: 9830 | AU15: 9978 | AV15: 11043 | AW15: 12591
A16: 54 | B16: 4552 | C16: 4989 | D16: 5356 | E16: 5727 | F16: 6008 | G16: 6371 | H16: 6694 | I16: 7016 | J16: 7464 | K16: 7949 | L16: 8477 | M16: 8689 | N16: 8906 | O16: 9129 | P16: 9357 | Q16: 9591 | R16: 9735 | S16: 9881 | T16: 10029 | U16: 10180 | V16: 11313 | W16: 12964 | AA16: 54 | AB16: 4552 | AC16: 4989 | AD16: 5356 | AE16: 5727 | AF16: 6008 | AG16: 6371 | AH16: 6694 | AI16: 7016 | AJ16: 7464 | AK16: 7949 | AL16: 8477 | AM16: 8689 | AN16: 8906 | AO16: 9129 | AP16: 9357 | AQ16: 9591 | AR16: 9735 | AS16: 9881 | AT16: 10029 | AU16: 10180 | AV16: 11313 | AW16: 12964
A17: 55 | B17: 4659 | C17: 5051 | D17: 5427 | E17: 5808 | F17: 6098 | G17: 6473 | H17: 6808 | I17: 7143 | J17: 7606 | K17: 8110 | L17: 8658 | M17: 8874 | N17: 9096 | O17: 9324 | P17: 9557 | Q17: 9796 | R17: 9943 | S17: 10092 | T17: 10243 | U17: 10397 | V17: 11602 | W17: 13360 | AA17: 55 | AB17: 4659 | AC17: 5051 | AD17: 5427 | AE17: 5808 | AF17: 6098 | AG17: 6473 | AH17: 6808 | AI17: 7143 | AJ17: 7606 | AK17: 8110 | AL17: 8658 | AM17: 8874 | AN17: 9096 | AO17: 9324 | AP17: 9557 | AQ17: 9796 | AR17: 9943 | AS17: 10092 | AT17: 10243 | AU17: 10397 | AV17: 11602 | AW17: 13360
A18: 56 | B18: 4766 | C18: 5168 | D18: 5558 | E18: 5953 | F18: 6194 | G18: 6581 | H18: 6929 | I18: 7277 | J18: 7758 | K18: 8281 | L18: 8852 | M18: 9073 | N18: 9300 | O18: 9533 | P18: 9771 | Q18: 10015 | R18: 10165 | S18: 10318 | T18: 10473 | U18: 10630 | V18: 11910 | W18: 13785 | AA18: 56 | AB18: 4766 | AC18: 5168 | AD18: 5558 | AE18: 5953 | AF18: 6194 | AG18: 6581 | AH18: 6929 | AI18: 7277 | AJ18: 7758 | AK18: 8281 | AL18: 8852 | AM18: 9073 | AN18: 9300 | AO18: 9533 | AP18: 9771 | AQ18: 10015 | AR18: 10165 | AS18: 10318 | AT18: 10473 | AU18: 10630 | AV18: 11910 | AW18: 13785
A19: 57 | B19: 4872 | C19: 5238 | D19: 5638 | E19: 6045 | F19: 6296 | G19: 6696 | H19: 7058 | I19: 7420 | J19: 7920 | K19: 8464 | L19: 9060 | M19: 9286 | N19: 9518 | O19: 9756 | P19: 10000 | Q19: 10250 | R19: 10404 | S19: 10560 | T19: 10719 | U19: 10879 | V19: 12240 | W19: 14235 | AA19: 57 | AB19: 4872 | AC19: 5238 | AD19: 5638 | AE19: 6045 | AF19: 6296 | AG19: 6696 | AH19: 7058 | AI19: 7420 | AJ19: 7920 | AK19: 8464 | AL19: 9060 | AM19: 9286 | AN19: 9518 | AO19: 9756 | AP19: 10000 | AQ19: 10250 | AR19: 10404 | AS19: 10560 | AT19: 10719 | AU19: 10879 | AV19: 12240 | AW19: 14235
A20: 58 | B20: 4974 | C20: 5312 | D20: 5723 | E20: 6142 | F20: 6404 | G20: 6818 | H20: 7195 | I20: 7573 | J20: 8092 | K20: 8660 | L20: 9282 | M20: 9514 | N20: 9752 | O20: 9995 | P20: 10245 | Q20: 10501 | R20: 10659 | S20: 10819 | T20: 10981 | U20: 11146 | V20: 12591 | W20: 14713 | AA20: 58 | AB20: 4974 | AC20: 5312 | AD20: 5723 | AE20: 6142 | AF20: 6404 | AG20: 6818 | AH20: 7195 | AI20: 7573 | AJ20: 8092 | AK20: 8660 | AL20: 9282 | AM20: 9514 | AN20: 9752 | AO20: 9995 | AP20: 10245 | AQ20: 10501 | AR20: 10659 | AS20: 10819 | AT20: 10981 | AU20: 11146 | AV20: 12591 | AW20: 14713
A21: 59 | B21: 5075 | C21: 5389 | D21: 5812 | E21: 6244 | F21: 6517 | G21: 6947 | H21: 7341 | I21: 7734 | J21: 8276 | K21: 8868 | L21: 9519 | M21: 9757 | N21: 10001 | O21: 10251 | P21: 10507 | Q21: 10769 | R21: 10931 | S21: 11095 | T21: 11261 | U21: 11430 | V21: 12964 | W21: 15036 | AA21: 59 | AB21: 5075 | AC21: 5389 | AD21: 5812 | AE21: 6244 | AF21: 6517 | AG21: 6947 | AH21: 7341 | AI21: 7734 | AJ21: 8276 | AK21: 8868 | AL21: 9519 | AM21: 9757 | AN21: 10001 | AO21: 10251 | AP21: 10507 | AQ21: 10769 | AR21: 10931 | AS21: 11095 | AT21: 11261 | AU21: 11430 | AV21: 12964 | AW21: 15036
A22: 60 | B22: 5177 | C22: 5469 | D22: 5905 | E22: 6351 | F22: 6636 | G22: 7082 | H22: 7494 | I22: 7906 | J22: 8471 | K22: 9091 | L22: 9772 | M22: 10016 | N22: 10267 | O22: 10523 | P22: 10786 | Q22: 11056 | R22: 11222 | S22: 11390 | T22: 11561 | U22: 11734 | V22: 13360 | W22: 15359 | AA22: 60 | AB22: 5177 | AC22: 5469 | AD22: 5905 | AE22: 6351 | AF22: 6636 | AG22: 7082 | AH22: 7494 | AI22: 7906 | AJ22: 8471 | AK22: 9091 | AL22: 9772 | AM22: 10016 | AN22: 10267 | AO22: 10523 | AP22: 10786 | AQ22: 11056 | AR22: 11222 | AS22: 11390 | AT22: 11561 | AU22: 11734 | AV22: 13360 | AW22: 15359
A23: 61 | B23: 5278 | C23: 5553 | D23: 6002 | E23: 6463 | F23: 6762 | G23: 7225 | H23: 7656 | I23: 8087 | J23: 8677 | K23: 9327 | L23: 10042 | M23: 10293 | N23: 10551 | O23: 10814 | P23: 11085 | Q23: 11362 | R23: 11532 | S23: 11705 | T23: 11881 | U23: 12059 | V23: 13785 | W23: 15755 | AA23: 61 | AB23: 5278 | AC23: 5553 | AD23: 6002 | AE23: 6463 | AF23: 6762 | AG23: 7225 | AH23: 7656 | AI23: 8087 | AJ23: 8677 | AK23: 9327 | AL23: 10042 | AM23: 10293 | AN23: 10551 | AO23: 10814 | AP23: 11085 | AQ23: 11362 | AR23: 11532 | AS23: 11705 | AT23: 11881 | AU23: 12059 | AV23: 13785 | AW23: 15755
A24: 62 | B24: 5380 | C24: 5640 | D24: 6104 | E24: 6581 | F24: 6894 | G24: 7376 | H24: 7827 | I24: 8279 | J24: 8896 | K24: 9577 | L24: 10330 | M24: 10588 | N24: 10853 | O24: 11124 | P24: 11402 | Q24: 11688 | R24: 11863 | S24: 12041 | T24: 12221 | U24: 12405 | V24: 14235 | W24: 16151 | AA24: 62 | AB24: 5380 | AC24: 5640 | AD24: 6104 | AE24: 6581 | AF24: 6894 | AG24: 7376 | AH24: 7827 | AI24: 8279 | AJ24: 8896 | AK24: 9577 | AL24: 10330 | AM24: 10588 | AN24: 10853 | AO24: 11124 | AP24: 11402 | AQ24: 11688 | AR24: 11863 | AS24: 12041 | AT24: 12221 | AU24: 12405 | AV24: 14235 | AW24: 16151
A25: 63 | B25: 5451 | C25: 5731 | D25: 6209 | E25: 6703 | F25: 7032 | G25: 7534 | H25: 8008 | I25: 8481 | J25: 9129 | K25: 9844 | L25: 10636 | M25: 10902 | N25: 11174 | O25: 11454 | P25: 11740 | Q25: 12034 | R25: 12214 | S25: 12397 | T25: 12583 | U25: 12772 | V25: 14713 | W25: 16516 | AA25: 63 | AB25: 5451 | AC25: 5731 | AD25: 6209 | AE25: 6703 | AF25: 7032 | AG25: 7534 | AH25: 8008 | AI25: 8481 | AJ25: 9129 | AK25: 9844 | AL25: 10636 | AM25: 10902 | AN25: 11174 | AO25: 11454 | AP25: 11740 | AQ25: 12034 | AR25: 12214 | AS25: 12397 | AT25: 12583 | AU25: 12772 | AV25: 14713 | AW25: 16516
A26: 64 | B26: 5522 | C26: 5824 | D26: 6319 | E26: 6831 | F26: 7175 | G26: 7699 | H26: 8197 | I26: 8695 | J26: 9375 | K26: 10127 | L26: 10962 | M26: 11236 | N26: 11517 | O26: 11804 | P26: 12100 | Q26: 12402 | R26: 12588 | S26: 12777 | T26: 12969 | U26: 13163 | V26: 15036 | W26: 16684 | AA26: 64 | AB26: 5522 | AC26: 5824 | AD26: 6319 | AE26: 6831 | AF26: 7175 | AG26: 7699 | AH26: 8197 | AI26: 8695 | AJ26: 9375 | AK26: 10127 | AL26: 10962 | AM26: 11236 | AN26: 11517 | AO26: 11804 | AP26: 12100 | AQ26: 12402 | AR26: 12588 | AS26: 12777 | AT26: 12969 | AU26: 13163 | AV26: 15036 | AW26: 16684
A27: 65 | B27: 5593 | C27: 5921 | D27: 6433 | E27: 6964 | F27: 7326 | G27: 7873 | H27: 8396 | I27: 8920 | J27: 9634 | K27: 10427 | L27: 11310 | M27: 11592 | N27: 11882 | O27: 12179 | P27: 12484 | Q27: 12796 | R27: 12988 | S27: 13183 | T27: 13380 | U27: 13581 | V27: 15359 | W27: 16851 | AA27: 65 | AB27: 5593 | AC27: 5921 | AD27: 6433 | AE27: 6964 | AF27: 7326 | AG27: 7873 | AH27: 8396 | AI27: 8920 | AJ27: 9634 | AK27: 10427 | AL27: 11310 | AM27: 11592 | AN27: 11882 | AO27: 12179 | AP27: 12484 | AQ27: 12796 | AR27: 12988 | AS27: 13183 | AT27: 13380 | AU27: 13581 | AV27: 15359 | AW27: 16851
A28: 66 | B28: 5664 | C28: 6020 | D28: 6551 | E28: 7103 | F28: 7484 | G28: 8056 | H28: 8606 | I28: 9157 | J28: 9908 | K28: 10745 | L28: 11679 | M28: 11971 | N28: 12271 | O28: 12577 | P28: 12892 | Q28: 13214 | R28: 13412 | S28: 13613 | T28: 13818 | U28: 14025 | V28: 15755 | W28: 16936 | AA28: 66 | AB28: 5664 | AC28: 6020 | AD28: 6551 | AE28: 7103 | AF28: 7484 | AG28: 8056 | AH28: 8606 | AI28: 9157 | AJ28: 9908 | AK28: 10745 | AL28: 11679 | AM28: 11971 | AN28: 12271 | AO28: 12577 | AP28: 12892 | AQ28: 13214 | AR28: 13412 | AS28: 13613 | AT28: 13818 | AU28: 14025 | AV28: 15755 | AW28: 16936
A29: 67 | B29: 5735 | C29: 6123 | D29: 6673 | E29: 7246 | F29: 7648 | G29: 8246 | H29: 8827 | I29: 9408 | J29: 10199 | K29: 11081 | L29: 12071 | M29: 12373 | N29: 12682 | O29: 13000 | P29: 13325 | Q29: 13658 | R29: 13863 | S29: 14070 | T29: 14281 | U29: 14496 | V29: 16151 | W29: 17020 | AA29: 67 | AB29: 5735 | AC29: 6123 | AD29: 6673 | AE29: 7246 | AF29: 7648 | AG29: 8246 | AH29: 8827 | AI29: 9408 | AJ29: 10199 | AK29: 11081 | AL29: 12071 | AM29: 12373 | AN29: 12682 | AO29: 13000 | AP29: 13325 | AQ29: 13658 | AR29: 13863 | AS29: 14070 | AT29: 14281 | AU29: 14496 | AV29: 16151 | AW29: 17020
A30: 68 | B30: 5741 | C30: 6230 | D30: 6801 | E30: 7398 | F30: 7822 | G30: 8449 | H30: 9039 | I30: 9628 | J30: 10461 | K30: 11392 | L30: 12336 | M30: 12645 | N30: 12961 | O30: 13285 | P30: 13617 | Q30: 13957 | R30: 14167 | S30: 14379 | T30: 14595 | U30: 14814 | V30: 16516 | W30: 17105 | AA30: 68 | AB30: 5741 | AC30: 6230 | AD30: 6801 | AE30: 7398 | AF30: 7822 | AG30: 8449 | AH30: 9039 | AI30: 9628 | AJ30: 10461 | AK30: 11392 | AL30: 12336 | AM30: 12645 | AN30: 12961 | AO30: 13285 | AP30: 13617 | AQ30: 13957 | AR30: 14167 | AS30: 14379 | AT30: 14595 | AU30: 14814 | AV30: 16516 | AW30: 17105
A31: 69 | B31: 5747 | C31: 6336 | D31: 6929 | E31: 7550 | F31: 7996 | G31: 8652 | H31: 9250 | I31: 9849 | J31: 10722 | K31: 11703 | L31: 12601 | M31: 12916 | N31: 13239 | O31: 13570 | P31: 13909 | Q31: 14257 | R31: 14471 | S31: 14688 | T31: 14908 | U31: 15132 | V31: 16684 | W31: 17191 | AA31: 69 | AB31: 5747 | AC31: 6336 | AD31: 6929 | AE31: 7550 | AF31: 7996 | AG31: 8652 | AH31: 9250 | AI31: 9849 | AJ31: 10722 | AK31: 11703 | AL31: 12601 | AM31: 12916 | AN31: 13239 | AO31: 13570 | AP31: 13909 | AQ31: 14257 | AR31: 14471 | AS31: 14688 | AT31: 14908 | AU31: 15132 | AV31: 16684 | AW31: 17191
A32: 70 | B32: 5753 | C32: 6447 | D32: 7063 | E32: 7711 | F32: 8181 | G32: 8870 | H32: 9504 | I32: 10138 | J32: 11060 | K32: 12100 | L32: 12926 | M32: 13249 | N32: 13580 | O32: 13920 | P32: 14268 | Q32: 14625 | R32: 14844 | S32: 15067 | T32: 15293 | U32: 15522 | V32: 16851 | W32: 17260 | AA32: 70 | AB32: 5753 | AC32: 6447 | AD32: 7063 | AE32: 7711 | AF32: 8181 | AG32: 8870 | AH32: 9504 | AI32: 10138 | AJ32: 11060 | AK32: 12100 | AL32: 12926 | AM32: 13249 | AN32: 13580 | AO32: 13920 | AP32: 14268 | AQ32: 14625 | AR32: 14844 | AS32: 15067 | AT32: 15293 | AU32: 15522 | AV32: 16851 | AW32: 17260
A33: 71 | B33: 5759 | C33: 6560 | D33: 7201 | E33: 7876 | F33: 8373 | G33: 9097 | H33: 9769 | I33: 10442 | J33: 11419 | K33: 12335 | L33: 13251 | M33: 13582 | N33: 13922 | O33: 14270 | P33: 14626 | Q33: 14992 | R33: 15217 | S33: 15445 | T33: 15677 | U33: 15912 | V33: 16936 | W33: 17328 | AA33: 71 | AB33: 5759 | AC33: 6560 | AD33: 7201 | AE33: 7876 | AF33: 8373 | AG33: 9097 | AH33: 9769 | AI33: 10442 | AJ33: 11419 | AK33: 12335 | AL33: 13251 | AM33: 13582 | AN33: 13922 | AO33: 14270 | AP33: 14626 | AQ33: 14992 | AR33: 15217 | AS33: 15445 | AT33: 15677 | AU33: 15912 | AV33: 16936 | AW33: 17328
A34: 72 | B34: 5765 | C34: 6676 | D34: 7342 | E34: 8046 | F34: 8572 | G34: 9332 | H34: 10047 | I34: 10761 | J34: 11797 | K34: 12674 | L34: 13550 | M34: 13889 | N34: 14236 | O34: 14592 | P34: 14957 | Q34: 15331 | R34: 15561 | S34: 15794 | T34: 16031 | U34: 16272 | V34: 17020 | W34: 17328 | AA34: 72 | AB34: 5765 | AC34: 6676 | AD34: 7342 | AE34: 8046 | AF34: 8572 | AG34: 9332 | AH34: 10047 | AI34: 10761 | AJ34: 11797 | AK34: 12674 | AL34: 13550 | AM34: 13889 | AN34: 14236 | AO34: 14592 | AP34: 14957 | AQ34: 15331 | AR34: 15561 | AS34: 15794 | AT34: 16031 | AU34: 16272 | AV34: 17020 | AW34: 17328
A35: 73 | B35: 5786 | C35: 6793 | D35: 7488 | E35: 8225 | F35: 8783 | G35: 9584 | H35: 10235 | I35: 10992 | J35: 12081 | K35: 12884 | L35: 13688 | M35: 14030 | N35: 14381 | O35: 14740 | P35: 15109 | Q35: 15487 | R35: 15719 | S35: 15955 | T35: 16194 | U35: 16437 | V35: 17105 | W35: 17328 | AA35: 73 | AB35: 5786 | AC35: 6793 | AD35: 7488 | AE35: 8225 | AF35: 8783 | AG35: 9584 | AH35: 10235 | AI35: 10992 | AJ35: 12081 | AK35: 12884 | AL35: 13688 | AM35: 14030 | AN35: 14381 | AO35: 14740 | AP35: 15109 | AQ35: 15487 | AR35: 15719 | AS35: 15955 | AT35: 16194 | AU35: 16437 | AV35: 17105 | AW35: 17328
A36: 74 | B36: 5806 | C36: 6910 | D36: 7634 | E36: 8404 | F36: 8993 | G36: 9835 | H36: 10424 | I36: 11222 | J36: 12364 | K36: 13095 | L36: 13826 | M36: 14171 | N36: 14526 | O36: 14889 | P36: 15261 | Q36: 15642 | R36: 15877 | S36: 16115 | T36: 16357 | U36: 16602 | V36: 17191 | W36: 17328 | AA36: 74 | AB36: 5806 | AC36: 6910 | AD36: 7634 | AE36: 8404 | AF36: 8993 | AG36: 9835 | AH36: 10424 | AI36: 11222 | AJ36: 12364 | AK36: 13095 | AL36: 13826 | AM36: 14171 | AN36: 14526 | AO36: 14889 | AP36: 15261 | AQ36: 15642 | AR36: 15877 | AS36: 16115 | AT36: 16357 | AU36: 16602 | AV36: 17191 | AW36: 17328
A37: 75 | B37: 5826 | C37: 6944 | D37: 7672 | E37: 8446 | F37: 9038 | G37: 9884 | H37: 10476 | I37: 11278 | J37: 12426 | K37: 13160 | L37: 13895 | M37: 14242 | N37: 14598 | O37: 14963 | P37: 15337 | Q37: 15721 | R37: 15957 | S37: 16196 | T37: 16439 | U37: 16685 | V37: 17260 | W37: 17328 | AA37: 75 | AB37: 5826 | AC37: 6944 | AD37: 7672 | AE37: 8446 | AF37: 9038 | AG37: 9884 | AH37: 10476 | AI37: 11278 | AJ37: 12426 | AK37: 13160 | AL37: 13895 | AM37: 14242 | AN37: 14598 | AO37: 14963 | AP37: 15337 | AQ37: 15721 | AR37: 15957 | AS37: 16196 | AT37: 16439 | AU37: 16685 | AV37: 17260 | AW37: 17328
A38: 76 | B38: 5847 | C38: 6979 | D38: 7711 | E38: 8488 | F38: 9083 | G38: 9934 | H38: 10529 | I38: 11334 | J38: 12488 | K38: 13226 | L38: 13964 | M38: 14313 | N38: 14671 | O38: 15038 | P38: 15414 | Q38: 15799 | R38: 16036 | S38: 16277 | T38: 16521 | U38: 16769 | V38: 17328 | W38: 17328 | AA38: 76 | AB38: 5847 | AC38: 6979 | AD38: 7711 | AE38: 8488 | AF38: 9083 | AG38: 9934 | AH38: 10529 | AI38: 11334 | AJ38: 12488 | AK38: 13226 | AL38: 13964 | AM38: 14313 | AN38: 14671 | AO38: 15038 | AP38: 15414 | AQ38: 15799 | AR38: 16036 | AS38: 16277 | AT38: 16521 | AU38: 16769 | AV38: 17328 | AW38: 17328
A39: 77 | B39: 5867 | C39: 7014 | D39: 7749 | E39: 8531 | F39: 9129 | G39: 9983 | H39: 10581 | I39: 11391 | J39: 12550 | K39: 13292 | L39: 14034 | M39: 14385 | N39: 14745 | O39: 15113 | P39: 15491 | Q39: 15878 | R39: 16116 | S39: 16358 | T39: 16604 | U39: 16853 | V39: 17328 | W39: 17328 | AA39: 77 | AB39: 5867 | AC39: 7014 | AD39: 7749 | AE39: 8531 | AF39: 9129 | AG39: 9983 | AH39: 10581 | AI39: 11391 | AJ39: 12550 | AK39: 13292 | AL39: 14034 | AM39: 14385 | AN39: 14745 | AO39: 15113 | AP39: 15491 | AQ39: 15878 | AR39: 16116 | AS39: 16358 | AT39: 16604 | AU39: 16853 | AV39: 17328 | AW39: 17328
A40: 78 | B40: 5888 | C40: 7049 | D40: 7788 | E40: 8574 | F40: 9174 | G40: 10033 | H40: 10634 | I40: 11448 | J40: 12613 | K40: 13359 | L40: 14104 | M40: 14457 | N40: 14818 | O40: 15189 | P40: 15568 | Q40: 15958 | R40: 16197 | S40: 16440 | T40: 16687 | U40: 16937 | V40: 17328 | W40: 17328 | AA40: 78 | AB40: 5888 | AC40: 7049 | AD40: 7788 | AE40: 8574 | AF40: 9174 | AG40: 10033 | AH40: 10634 | AI40: 11448 | AJ40: 12613 | AK40: 13359 | AL40: 14104 | AM40: 14457 | AN40: 14818 | AO40: 15189 | AP40: 15568 | AQ40: 15958 | AR40: 16197 | AS40: 16440 | AT40: 16687 | AU40: 16937 | AV40: 17328 | AW40: 17328

Sheet T10J (hidden)
A1: =IFERROR(VLOOKUP(Age,T10J,MATCH(Defer+1,$B$1:$W$1,1)+1,FALSE)/100000,0) -> 0.07792 | B1: 1 | C1: =B1+1 -> 2 | D1: =C1+1 -> 3 | E1: 4 | F1: 5 | G1: 6 | H1: 7 | I1: 8 | J1: 9 | K1: 10 | L1: 11 | M1: 12 | N1: 13 | O1: 14 | P1: 15 | Q1: 16 | R1: 17 | S1: 18 | T1: 19 | U1: 20 | V1: 25 | W1: 30 | AB1: Issue Age | AC1: year 1 | AD1: year 2 | AE1: year 3 | AF1: year 4 | AG1: year 5 | AH1: year 6 | AI1: year 7 | AJ1: year 8 | AK1: year 9 | AL1: year 10 | AM1: year 11 | AN1: year 12 | AO1: year 13 | AP1: year 14 | AQ1: year 15 | AR1: year 16 | AS1: year 17 | AT1: year 18 | AU1: year 19 | AV1: year 20 | AW1: year 25 | AX1: year 30
A2: 40 | L2: 6001 | M2: 6151 | N2: 6305 | O2: 6463 | P2: 6624 | Q2: 6931 | R2: 7035 | S2: 7141 | T2: 7248 | U2: 7357 | V2: 7868 | W2: 8500 | AB2: 40 | AM2: 6001 | AN2: 6151 | AO2: 6305 | AP2: 6463 | AQ2: 6624 | AR2: 6931 | AS2: 7035 | AT2: 7141 | AU2: 7248 | AV2: 7357 | AW2: 7868 | AX2: 8500
A3: 41 | K3: 5727 | L3: 6050 | M3: 6201 | N3: 6356 | O3: 6515 | P3: 6817 | Q3: 6987 | R3: 7092 | S3: 7198 | T3: 7306 | U3: 7534 | V3: 8055 | W3: 8682 | AB3: 41 | AL3: 5727 | AM3: 6050 | AN3: 6201 | AO3: 6356 | AP3: 6515 | AQ3: 6817 | AR3: 6987 | AS3: 7092 | AT3: 7198 | AU3: 7306 | AV3: 7534 | AW3: 8055 | AX3: 8682
A4: 42 | J4: 5468 | K4: 5774 | L4: 6103 | M4: 6255 | N4: 6412 | O4: 6709 | P4: 6877 | Q4: 7048 | R4: 7154 | S4: 7261 | T4: 7487 | U4: 7600 | V4: 8153 | W4: 8830 | AB4: 42 | AK4: 5468 | AL4: 5774 | AM4: 6103 | AN4: 6255 | AO4: 6412 | AP4: 6709 | AQ4: 6877 | AR4: 7048 | AS4: 7154 | AT4: 7261 | AU4: 7487 | AV4: 7600 | AW4: 8153 | AX4: 8830
A5: 43 | I5: 5225 | J5: 5515 | K5: 5827 | L5: 6161 | M5: 6315 | N5: 6608 | O5: 6773 | P5: 6942 | Q5: 7116 | R5: 7222 | S5: 7447 | T5: 7559 | U5: 7672 | V5: 8259 | W5: 8990 | AB5: 43 | AJ5: 5225 | AK5: 5515 | AL5: 5827 | AM5: 6161 | AN5: 6315 | AO5: 6608 | AP5: 6773 | AQ5: 6942 | AR5: 7116 | AS5: 7222 | AT5: 7447 | AU5: 7559 | AV5: 7672 | AW5: 8259 | AX5: 8990
A6: 44 | H6: 4995 | I6: 5271 | J6: 5567 | K6: 5884 | L6: 6224 | M6: 6513 | N6: 6676 | O6: 6843 | P6: 7014 | Q6: 7189 | R6: 7413 | S6: 7524 | T6: 7637 | U6: 7751 | V6: 8374 | W6: 9163 | AB6: 44 | AI6: 4995 | AJ6: 5271 | AK6: 5567 | AL6: 5884 | AM6: 6224 | AN6: 6513 | AO6: 6676 | AP6: 6843 | AQ6: 7014 | AR6: 7189 | AS6: 7413 | AT6: 7524 | AU6: 7637 | AV6: 7751 | AW6: 8374 | AX6: 9163
A7: 45 | G7: 4894 | H7: 5108 | I7: 5322 | J7: 5623 | K7: 5947 | L7: 6425 | M7: 6586 | N7: 6751 | O7: 6919 | P7: 7092 | Q7: 7385 | R7: 7496 | S7: 7608 | T7: 7722 | U7: 7838 | V7: 8500 | W7: 9348 | AB7: 45 | AH7: 4894 | AI7: 5108 | AJ7: 5322 | AK7: 5623 | AL7: 5947 | AM7: 6425 | AN7: 6586 | AO7: 6751 | AP7: 6919 | AQ7: 7092 | AR7: 7385 | AS7: 7496 | AT7: 7608 | AU7: 7722 | AV7: 7838 | AW7: 8500 | AX7: 9348
A8: 46 | F8: 4683 | G8: 4940 | H8: 5158 | I8: 5377 | J8: 5684 | K8: 6140 | L8: 6503 | M8: 6666 | N8: 6832 | O8: 7003 | P8: 7292 | Q8: 7474 | R8: 7586 | S8: 7700 | T8: 7816 | U8: 8032 | V8: 8682 | W8: 9593 | AB8: 46 | AG8: 4683 | AH8: 4940 | AI8: 5158 | AJ8: 5377 | AK8: 5684 | AL8: 6140 | AM8: 6503 | AN8: 6666 | AO8: 6832 | AP8: 7003 | AQ8: 7292 | AR8: 7474 | AS8: 7586 | AT8: 7700 | AU8: 7816 | AV8: 8032 | AW8: 8682 | AX8: 9593
A9: 47 | E9: 4528 | F9: 4728 | G9: 4989 | H9: 5213 | I9: 5437 | J9: 5871 | K9: 6216 | L9: 6588 | M9: 6752 | N9: 6921 | O9: 7207 | P9: 7387 | Q9: 7572 | R9: 7685 | S9: 7800 | T9: 8016 | U9: 8137 | V9: 8830 | W9: 9808 | AB9: 47 | AF9: 4528 | AG9: 4728 | AH9: 4989 | AI9: 5213 | AJ9: 5437 | AK9: 5871 | AL9: 6216 | AM9: 6588 | AN9: 6752 | AO9: 6921 | AP9: 7207 | AQ9: 7387 | AR9: 7572 | AS9: 7685 | AT9: 7800 | AU9: 8016 | AV9: 8137 | AW9: 8830 | AX9: 9808
A10: 48 | D10: 4293 | E10: 4572 | F10: 4776 | G10: 5043 | H10: 5272 | I10: 5617 | J10: 5945 | K10: 6298 | L10: 6680 | M10: 6847 | N10: 7129 | O10: 7308 | P10: 7490 | Q10: 7678 | R10: 7793 | S10: 8008 | T10: 8129 | U10: 8251 | V10: 8990 | W10: 10039 | AB10: 48 | AE10: 4293 | AF10: 4572 | AG10: 4776 | AH10: 5043 | AI10: 5272 | AJ10: 5617 | AK10: 5945 | AL10: 6298 | AM10: 6680 | AN10: 6847 | AO10: 7129 | AP10: 7308 | AQ10: 7490 | AR10: 7678 | AS10: 7793 | AT10: 8008 | AU10: 8129 | AV10: 8251 | AW10: 8990 | AX10: 10039
A11: 49 | C11: 4051 | D11: 4335 | E11: 4619 | F11: 4828 | G11: 5101 | H11: 5448 | I11: 5688 | J11: 6025 | K11: 6388 | L11: 6780 | M11: 7060 | N11: 7236 | O11: 7417 | P11: 7603 | Q11: 7793 | R11: 8008 | S11: 8129 | T11: 8251 | U11: 8374 | V11: 9163 | W11: 10285 | AB11: 49 | AD11: 4051 | AE11: 4335 | AF11: 4619 | AG11: 4828 | AH11: 5101 | AI11: 5448 | AJ11: 5688 | AK11: 6025 | AL11: 6388 | AM11: 6780 | AN11: 7060 | AO11: 7236 | AP11: 7417 | AQ11: 7603 | AR11: 7793 | AS11: 8008 | AT11: 8129 | AU11: 8251 | AV11: 8374 | AW11: 9163 | AX11: 10285
A12: 50 | B12: 3537 | C12: 4091 | D12: 4379 | E12: 4669 | F12: 4884 | G12: 5270 | H12: 5518 | I12: 5766 | J12: 6112 | K12: 6485 | L12: 6998 | M12: 7173 | N12: 7352 | O12: 7536 | P12: 7724 | Q12: 8017 | R12: 8137 | S12: 8259 | T12: 8383 | U12: 8508 | V12: 9348 | W12: 10547 | AB12: 50 | AC12: 3537 | AD12: 4091 | AE12: 4379 | AF12: 4669 | AG12: 4884 | AH12: 5270 | AI12: 5518 | AJ12: 5766 | AK12: 6112 | AL12: 6485 | AM12: 6998 | AN12: 7173 | AO12: 7352 | AP12: 7536 | AQ12: 7724 | AR12: 8017 | AS12: 8137 | AT12: 8259 | AU12: 8383 | AV12: 8508 | AW12: 9348 | AX12: 10547
A13: 51 | B13: 3628 | C13: 4133 | D13: 4427 | E13: 4723 | F13: 5046 | G13: 5339 | H13: 5594 | I13: 5850 | J13: 6206 | K13: 6695 | L13: 7118 | M13: 7296 | N13: 7478 | O13: 7665 | P13: 7955 | Q13: 8154 | R13: 8276 | S13: 8400 | T13: 8526 | U13: 8700 | V13: 9593 | W13: 10918 | AB13: 51 | AC13: 3628 | AD13: 4133 | AE13: 4427 | AF13: 4723 | AG13: 5046 | AH13: 5339 | AI13: 5594 | AJ13: 5850 | AK13: 6206 | AL13: 6695 | AM13: 7118 | AN13: 7296 | AO13: 7478 | AP13: 7665 | AQ13: 7955 | AR13: 8154 | AS13: 8276 | AT13: 8400 | AU13: 8526 | AV13: 8700 | AW13: 9593 | AX13: 10918
A14: 52 | B14: 3719 | C14: 4178 | D14: 4478 | E14: 4881 | F14: 5112 | G14: 5412 | H14: 5676 | I14: 5939 | J14: 6406 | K14: 6810 | L14: 7247 | M14: 7428 | N14: 7614 | O14: 7901 | P14: 8099 | Q14: 8302 | R14: 8426 | S14: 8552 | T14: 8727 | U14: 8858 | V14: 9808 | W14: 11220 | AB14: 52 | AC14: 3719 | AD14: 4178 | AE14: 4478 | AF14: 4881 | AG14: 5112 | AH14: 5412 | AI14: 5676 | AJ14: 5939 | AK14: 6406 | AL14: 6810 | AM14: 7247 | AN14: 7428 | AO14: 7614 | AP14: 7901 | AQ14: 8099 | AR14: 8302 | AS14: 8426 | AT14: 8552 | AU14: 8727 | AV14: 8858 | AW14: 9808 | AX14: 11220
A15: 53 | B15: 3811 | C15: 4225 | D15: 4627 | E15: 4944 | F15: 5182 | G15: 5491 | H15: 5763 | I15: 6132 | J15: 6516 | K15: 6933 | L15: 7386 | M15: 7570 | N15: 7857 | O15: 8053 | P15: 8254 | Q15: 8461 | R15: 8588 | S15: 8763 | T15: 8894 | U15: 9028 | V15: 10039 | W15: 11542 | AB15: 53 | AC15: 3811 | AD15: 4225 | AE15: 4627 | AF15: 4944 | AG15: 5182 | AH15: 5491 | AI15: 5763 | AJ15: 6132 | AK15: 6516 | AL15: 6933 | AM15: 7386 | AN15: 7570 | AO15: 7857 | AP15: 8053 | AQ15: 8254 | AR15: 8461 | AS15: 8588 | AT15: 8763 | AU15: 8894 | AV15: 9028 | AW15: 10039 | AX15: 11542
A16: 54 | B16: 3902 | C16: 4365 | D16: 4686 | E16: 5011 | F16: 5257 | G16: 5575 | H16: 5950 | I16: 6237 | J16: 6635 | K16: 7066 | L16: 7535 | M16: 7820 | N16: 8016 | O16: 8216 | P16: 8422 | Q16: 8632 | R16: 8808 | S16: 8940 | T16: 9074 | U16: 9210 | V16: 10285 | W16: 11883 | AB16: 54 | AC16: 3902 | AD16: 4365 | AE16: 4686 | AF16: 5011 | AG16: 5257 | AH16: 5575 | AI16: 5950 | AJ16: 6237 | AK16: 6635 | AL16: 7066 | AM16: 7535 | AN16: 7820 | AO16: 8016 | AP16: 8216 | AQ16: 8422 | AR16: 8632 | AS16: 8808 | AT16: 8940 | AU16: 9074 | AV16: 9210 | AW16: 10285 | AX16: 11883
A17: 55 | B17: 4077 | C17: 4420 | D17: 4749 | E17: 5082 | F17: 5336 | G17: 5754 | H17: 6051 | I17: 6349 | J17: 6761 | K17: 7209 | L17: 7792 | M17: 7987 | N17: 8187 | O17: 8391 | P17: 8601 | Q17: 8863 | R17: 8996 | S17: 9131 | T17: 9268 | U17: 9407 | V17: 10547 | W17: 12247 | AB17: 55 | AC17: 4077 | AD17: 4420 | AE17: 4749 | AF17: 5082 | AG17: 5336 | AH17: 5754 | AI17: 6051 | AJ17: 6349 | AK17: 6761 | AL17: 7209 | AM17: 7792 | AN17: 7987 | AO17: 8187 | AP17: 8391 | AQ17: 8601 | AR17: 8863 | AS17: 8996 | AT17: 9131 | AU17: 9268 | AV17: 9407 | AW17: 10547 | AX17: 12247
A18: 56 | B18: 4170 | C18: 4522 | D18: 4863 | E18: 5209 | F18: 5506 | G18: 5850 | H18: 6159 | I18: 6468 | J18: 6896 | K18: 7453 | L18: 7967 | M18: 8166 | N18: 8370 | O18: 8579 | P18: 8840 | Q18: 9061 | R18: 9197 | S18: 9335 | T18: 9475 | U18: 9663 | V18: 10918 | W18: 12682 | AB18: 56 | AC18: 4170 | AD18: 4522 | AE18: 4863 | AF18: 5209 | AG18: 5506 | AH18: 5850 | AI18: 6159 | AJ18: 6468 | AK18: 6896 | AL18: 7453 | AM18: 7967 | AN18: 8166 | AO18: 8370 | AP18: 8579 | AQ18: 8840 | AR18: 9061 | AS18: 9197 | AT18: 9335 | AU18: 9475 | AV18: 9663 | AW18: 10918 | AX18: 12682
A19: 57 | B19: 4263 | C19: 4584 | D19: 4934 | E19: 5373 | F19: 5597 | G19: 5952 | H19: 6274 | I19: 6596 | J19: 7128 | K19: 7618 | L19: 8154 | M19: 8358 | N19: 8567 | O19: 8827 | P19: 9048 | Q19: 9274 | R19: 9413 | S19: 9554 | T19: 9744 | U19: 9890 | V19: 11220 | W19: 13096 | AB19: 57 | AC19: 4263 | AD19: 4584 | AE19: 4934 | AF19: 5373 | AG19: 5597 | AH19: 5952 | AI19: 6274 | AJ19: 6596 | AK19: 7128 | AL19: 7618 | AM19: 8154 | AN19: 8358 | AO19: 8567 | AP19: 8827 | AQ19: 9048 | AR19: 9274 | AS19: 9413 | AT19: 9554 | AU19: 9744 | AV19: 9890 | AW19: 11220 | AX19: 13096
A20: 58 | B20: 4352 | C20: 4648 | D20: 5087 | E20: 5460 | F20: 5692 | G20: 6060 | H20: 6396 | I20: 6815 | J20: 7283 | K20: 7794 | L20: 8354 | M20: 8562 | N20: 8823 | O20: 9043 | P20: 9270 | Q20: 9501 | R20: 9644 | S20: 9835 | T20: 9983 | U20: 10133 | V20: 11542 | W20: 13536 | AB20: 58 | AC20: 4352 | AD20: 4648 | AE20: 5087 | AF20: 5460 | AG20: 5692 | AH20: 6060 | AI20: 6396 | AJ20: 6815 | AK20: 7283 | AL20: 7794 | AM20: 8354 | AN20: 8562 | AO20: 8823 | AP20: 9043 | AQ20: 9270 | AR20: 9501 | AS20: 9644 | AT20: 9835 | AU20: 9983 | AV20: 10133 | AW20: 11542 | AX20: 13536
A21: 59 | B21: 4441 | C21: 4790 | D21: 5166 | E21: 5550 | F21: 5793 | G21: 6175 | H21: 6606 | I21: 6961 | J21: 7448 | K21: 7981 | L21: 8567 | M21: 8827 | N21: 9048 | O21: 9274 | P21: 9506 | Q21: 9744 | R21: 9937 | S21: 10086 | T21: 10238 | U21: 10391 | V21: 11883 | W21: 13833 | AB21: 59 | AC21: 4441 | AD21: 4790 | AE21: 5166 | AF21: 5550 | AG21: 5793 | AH21: 6175 | AI21: 6606 | AJ21: 6961 | AK21: 7448 | AL21: 7981 | AM21: 8567 | AN21: 8827 | AO21: 9048 | AP21: 9274 | AQ21: 9506 | AR21: 9744 | AS21: 9937 | AT21: 10086 | AU21: 10238 | AV21: 10391 | AW21: 11883 | AX21: 13833
A22: 60 | B22: 4601 | C22: 4862 | D22: 5249 | E22: 5645 | F22: 5899 | G22: 6374 | H22: 6745 | I22: 7115 | J22: 7624 | K22: 8182 | L22: 8841 | M22: 9062 | N22: 9289 | O22: 9521 | P22: 9759 | Q22: 10051 | R22: 10202 | S22: 10355 | T22: 10510 | U22: 10668 | V22: 12247 | W22: 14130 | AB22: 60 | AC22: 4601 | AD22: 4862 | AE22: 5249 | AF22: 5645 | AG22: 5899 | AH22: 6374 | AI22: 6745 | AJ22: 7115 | AK22: 7624 | AL22: 8182 | AM22: 8841 | AN22: 9062 | AO22: 9289 | AP22: 9521 | AQ22: 9759 | AR22: 10051 | AS22: 10202 | AT22: 10355 | AU22: 10510 | AV22: 10668 | AW22: 12247 | AX22: 14130
A23: 61 | B23: 4692 | C23: 4936 | D23: 5335 | E23: 5745 | F23: 6086 | G23: 6503 | H23: 6890 | I23: 7278 | J23: 7810 | K23: 8439 | L23: 9086 | M23: 9313 | N23: 9546 | O23: 9785 | P23: 10077 | Q23: 10329 | R23: 10484 | S23: 10641 | T23: 10801 | U23: 11054 | V23: 12682 | W23: 14543 | AB23: 61 | AC23: 4692 | AD23: 4936 | AE23: 5335 | AF23: 5745 | AG23: 6086 | AH23: 6503 | AI23: 6890 | AJ23: 7278 | AK23: 7810 | AL23: 8439 | AM23: 9086 | AN23: 9313 | AO23: 9546 | AP23: 9785 | AQ23: 10077 | AR23: 10329 | AS23: 10484 | AT23: 10641 | AU23: 10801 | AV23: 11054 | AW23: 12682 | AX23: 14543
A24: 62 | B24: 4782 | C24: 5014 | D24: 5426 | E24: 5923 | F24: 6204 | G24: 6638 | H24: 7045 | I24: 7451 | J24: 8049 | K24: 8665 | L24: 9346 | M24: 9580 | N24: 9819 | O24: 10113 | P24: 10366 | Q24: 10625 | R24: 10784 | S24: 10946 | T24: 11203 | U24: 11371 | V24: 13096 | W24: 14908 | AB24: 62 | AC24: 4782 | AD24: 5014 | AE24: 5426 | AF24: 5923 | AG24: 6204 | AH24: 6638 | AI24: 7045 | AJ24: 7451 | AK24: 8049 | AL24: 8665 | AM24: 9346 | AN24: 9580 | AO24: 9819 | AP24: 10113 | AQ24: 10366 | AR24: 10625 | AS24: 10784 | AT24: 10946 | AU24: 11203 | AV24: 11371 | AW24: 13096 | AX24: 14908
A25: 63 | B25: 4845 | C25: 5094 | D25: 5589 | E25: 6033 | F25: 6328 | G25: 6781 | H25: 7207 | I25: 7674 | J25: 8260 | K25: 8906 | L25: 9623 | M25: 9864 | N25: 10159 | O25: 10412 | P25: 10673 | Q25: 10940 | R25: 11104 | S25: 11364 | T25: 11535 | U25: 11708 | V25: 13536 | W25: 15245 | AB25: 63 | AC25: 4845 | AD25: 5094 | AE25: 5589 | AF25: 6033 | AG25: 6328 | AH25: 6781 | AI25: 7207 | AJ25: 7674 | AK25: 8260 | AL25: 8906 | AM25: 9623 | AN25: 9864 | AO25: 10159 | AP25: 10412 | AQ25: 10673 | AR25: 10940 | AS25: 11104 | AT25: 11364 | AU25: 11535 | AV25: 11708 | AW25: 13536 | AX25: 15245
A26: 64 | B26: 4908 | C26: 5242 | D26: 5687 | E26: 6148 | F26: 6458 | G26: 6929 | H26: 7416 | I26: 7867 | J26: 8482 | K26: 9163 | L26: 9918 | M26: 10214 | N26: 10470 | O26: 10731 | P26: 11000 | Q26: 11275 | R26: 11539 | S26: 11712 | T26: 11888 | U26: 12066 | V26: 13833 | W26: 15400 | AB26: 64 | AC26: 4908 | AD26: 5242 | AE26: 5687 | AF26: 6148 | AG26: 6458 | AH26: 6929 | AI26: 7416 | AJ26: 7867 | AK26: 8482 | AL26: 9163 | AM26: 9918 | AN26: 10214 | AO26: 10470 | AP26: 10731 | AQ26: 11000 | AR26: 11275 | AS26: 11539 | AT26: 11712 | AU26: 11888 | AV26: 12066 | AW26: 13833 | AX26: 15400
A27: 65 | B27: 5034 | C27: 5329 | D27: 5790 | E27: 6268 | F27: 6594 | G27: 7123 | H27: 7597 | I27: 8070 | J27: 8717 | K27: 9434 | L27: 10281 | M27: 10538 | N27: 10802 | O27: 11072 | P27: 11349 | Q27: 11729 | R27: 11905 | S27: 12084 | T27: 12265 | U27: 12449 | V27: 14130 | W27: 15555 | AB27: 65 | AC27: 5034 | AD27: 5329 | AE27: 5790 | AF27: 6268 | AG27: 6594 | AH27: 7123 | AI27: 7597 | AJ27: 8070 | AK27: 8717 | AL27: 9434 | AM27: 10281 | AN27: 10538 | AO27: 10802 | AP27: 11072 | AQ27: 11349 | AR27: 11729 | AS27: 11905 | AT27: 12084 | AU27: 12265 | AV27: 12449 | AW27: 14130 | AX27: 15555
A28: 66 | B28: 5097 | C28: 5418 | D28: 5896 | E28: 6392 | F28: 6771 | G28: 7288 | H28: 7787 | I28: 8285 | J28: 8965 | K28: 9768 | L28: 10618 | M28: 10883 | N28: 11155 | O28: 11434 | P28: 11817 | Q28: 12113 | R28: 12295 | S28: 12479 | T28: 12666 | U28: 12903 | V28: 14543 | W28: 15633 | AB28: 66 | AC28: 5097 | AD28: 5418 | AE28: 5896 | AF28: 6392 | AG28: 6771 | AH28: 7288 | AI28: 7787 | AJ28: 8285 | AK28: 8965 | AL28: 9768 | AM28: 10618 | AN28: 10883 | AO28: 11155 | AP28: 11434 | AQ28: 11817 | AR28: 12113 | AS28: 12295 | AT28: 12479 | AU28: 12666 | AV28: 12903 | AW28: 14543 | AX28: 15633
A29: 67 | B29: 5161 | C29: 5511 | D29: 6006 | E29: 6556 | F29: 6919 | G29: 7460 | H29: 7986 | I29: 8512 | J29: 9272 | K29: 10074 | L29: 10974 | M29: 11248 | N29: 11530 | O29: 11916 | P29: 12214 | Q29: 12520 | R29: 12707 | S29: 12898 | T29: 13139 | U29: 13336 | V29: 14908 | W29: 15711 | AB29: 67 | AC29: 5161 | AD29: 5511 | AE29: 6006 | AF29: 6556 | AG29: 6919 | AH29: 7460 | AI29: 7986 | AJ29: 8512 | AK29: 9272 | AL29: 10074 | AM29: 10974 | AN29: 11248 | AO29: 11530 | AP29: 11916 | AQ29: 12214 | AR29: 12520 | AS29: 12707 | AT29: 12898 | AU29: 13139 | AV29: 13336 | AW29: 14908 | AX29: 15711
A30: 68 | B30: 5167 | C30: 5607 | D30: 6153 | E30: 6694 | F30: 7077 | G30: 7644 | H30: 8178 | I30: 8753 | J30: 9510 | K30: 10357 | L30: 11215 | M30: 11495 | N30: 11881 | O30: 12178 | P30: 12482 | Q30: 12794 | R30: 12986 | S30: 13229 | T30: 13427 | U30: 13629 | V30: 15245 | W30: 15790 | AB30: 68 | AC30: 5167 | AD30: 5607 | AE30: 6153 | AF30: 6694 | AG30: 7077 | AH30: 7644 | AI30: 8178 | AJ30: 8753 | AK30: 9510 | AL30: 10357 | AM30: 11215 | AN30: 11495 | AO30: 11881 | AP30: 12178 | AQ30: 12482 | AR30: 12794 | AS30: 12986 | AT30: 13229 | AU30: 13427 | AV30: 13629 | AW30: 15245 | AX30: 15790
A31: 69 | B31: 5172 | C31: 5733 | D31: 6269 | E31: 6831 | F31: 7234 | G31: 7828 | H31: 8409 | I31: 8953 | J31: 9748 | K31: 10639 | L31: 11456 | M31: 11840 | N31: 12136 | O31: 12439 | P31: 12750 | Q31: 13069 | R31: 13313 | S31: 13513 | T31: 13716 | U31: 13921 | V31: 15400 | W31: 15869 | AB31: 69 | AC31: 5172 | AD31: 5733 | AE31: 6269 | AF31: 6831 | AG31: 7234 | AH31: 7828 | AI31: 8409 | AJ31: 8953 | AK31: 9748 | AL31: 10639 | AM31: 11456 | AN31: 11840 | AO31: 12136 | AP31: 12439 | AQ31: 12750 | AR31: 13069 | AS31: 13313 | AT31: 13513 | AU31: 13716 | AV31: 13921 | AW31: 15400 | AX31: 15869
A32: 70 | B32: 5205 | C32: 5833 | D32: 6390 | E32: 6976 | F32: 7402 | G32: 8064 | H32: 8640 | I32: 9216 | J32: 10055 | K32: 11000 | L32: 11849 | M32: 12145 | N32: 12449 | O32: 12760 | P32: 13079 | Q32: 13455 | R32: 13656 | S32: 13861 | T32: 14069 | U32: 14280 | V32: 15555 | W32: 15932 | AB32: 70 | AC32: 5205 | AD32: 5833 | AE32: 6390 | AF32: 6976 | AG32: 7402 | AH32: 8064 | AI32: 8640 | AJ32: 9216 | AK32: 10055 | AL32: 11000 | AM32: 11849 | AN32: 12145 | AO32: 12449 | AP32: 12760 | AQ32: 13079 | AR32: 13455 | AS32: 13656 | AT32: 13861 | AU32: 14069 | AV32: 14280 | AW32: 15555 | AX32: 15932
A33: 71 | B33: 5211 | C33: 5936 | D33: 6515 | E33: 7126 | F33: 7612 | G33: 8270 | H33: 8881 | I33: 9493 | J33: 10381 | K33: 11307 | L33: 12146 | M33: 12450 | N33: 12761 | O33: 13080 | P33: 13456 | Q33: 13793 | R33: 13999 | S33: 14209 | T33: 14423 | U33: 14688 | V33: 15633 | W33: 15995 | AB33: 71 | AC33: 5211 | AD33: 5936 | AE33: 6515 | AF33: 7126 | AG33: 7612 | AH33: 8270 | AI33: 8881 | AJ33: 9493 | AK33: 10381 | AL33: 11307 | AM33: 12146 | AN33: 12450 | AO33: 12761 | AP33: 13080 | AQ33: 13456 | AR33: 13793 | AS33: 13999 | AT33: 14209 | AU33: 14423 | AV33: 14688 | AW33: 15633 | AX33: 15995
A34: 72 | B34: 5216 | C34: 6040 | D34: 6643 | E34: 7315 | F34: 7793 | G34: 8484 | H34: 9133 | I34: 9783 | J34: 10814 | K34: 11618 | L34: 12421 | M34: 12732 | N34: 13050 | O34: 13425 | P34: 13760 | Q34: 14104 | R34: 14316 | S34: 14531 | T34: 14798 | U34: 15020 | V34: 15711 | W34: 15995 | AB34: 72 | AC34: 5216 | AD34: 6040 | AE34: 6643 | AF34: 7315 | AG34: 7793 | AH34: 8484 | AI34: 9133 | AJ34: 9783 | AK34: 10814 | AL34: 11618 | AM34: 12421 | AN34: 12732 | AO34: 13050 | AP34: 13425 | AQ34: 13760 | AR34: 14104 | AS34: 14316 | AT34: 14531 | AU34: 14798 | AV34: 15020 | AW34: 15711 | AX34: 15995
A35: 73 | B35: 5235 | C35: 6146 | D35: 6807 | E35: 7477 | F35: 7984 | G35: 8712 | H35: 9305 | I35: 10076 | J35: 11074 | K35: 11811 | L35: 12547 | M35: 12861 | N35: 13230 | O35: 13561 | P35: 13900 | Q35: 14248 | R35: 14461 | S35: 14727 | T35: 14948 | U35: 15173 | V35: 15790 | W35: 15995 | AB35: 73 | AC35: 5235 | AD35: 6146 | AE35: 6807 | AF35: 7477 | AG35: 7984 | AH35: 8712 | AI35: 9305 | AJ35: 10076 | AK35: 11074 | AL35: 11811 | AM35: 12547 | AN35: 12861 | AO35: 13230 | AP35: 13561 | AQ35: 13900 | AR35: 14248 | AS35: 14461 | AT35: 14727 | AU35: 14948 | AV35: 15173 | AW35: 15790 | AX35: 15995
A36: 74 | B36: 5253 | C36: 6282 | D36: 6940 | E36: 7640 | F36: 8176 | G36: 8941 | H36: 9556 | I36: 10287 | J36: 11334 | K36: 12004 | L36: 12674 | M36: 13038 | N36: 13364 | O36: 13698 | P36: 14040 | Q36: 14391 | R36: 14656 | S36: 14876 | T36: 15099 | U36: 15325 | V36: 15869 | W36: 15995 | AB36: 74 | AC36: 5253 | AD36: 6282 | AE36: 6940 | AF36: 7640 | AG36: 8176 | AH36: 8941 | AI36: 9556 | AJ36: 10287 | AK36: 11334 | AL36: 12004 | AM36: 12674 | AN36: 13038 | AO36: 13364 | AP36: 13698 | AQ36: 14040 | AR36: 14391 | AS36: 14656 | AT36: 14876 | AU36: 15099 | AV36: 15325 | AW36: 15869 | AX36: 15995
A37: 75 | B37: 5297 | C37: 6313 | D37: 6975 | E37: 7678 | F37: 8217 | G37: 9061 | H37: 9603 | I37: 10338 | J37: 11390 | K37: 12064 | L37: 12783 | M37: 13103 | N37: 13430 | O37: 13766 | P37: 14110 | Q37: 14511 | R37: 14729 | S37: 14950 | T37: 15174 | U37: 15402 | V37: 15932 | W37: 15995 | AB37: 75 | AC37: 5297 | AD37: 6313 | AE37: 6975 | AF37: 7678 | AG37: 8217 | AH37: 9061 | AI37: 9603 | AJ37: 10338 | AK37: 11390 | AL37: 12064 | AM37: 12783 | AN37: 13103 | AO37: 13430 | AP37: 13766 | AQ37: 14110 | AR37: 14511 | AS37: 14729 | AT37: 14950 | AU37: 15174 | AV37: 15402 | AW37: 15932 | AX37: 15995
A38: 76 | B38: 5315 | C38: 6345 | D38: 7010 | E38: 7717 | F38: 8326 | G38: 9106 | H38: 9651 | I38: 10390 | J38: 11447 | K38: 12168 | L38: 12847 | M38: 13168 | N38: 13498 | O38: 13835 | P38: 14228 | Q38: 14584 | R38: 14803 | S38: 15025 | T38: 15250 | U38: 15479 | V38: 15995 | W38: 15995 | AB38: 76 | AC38: 5315 | AD38: 6345 | AE38: 7010 | AF38: 7717 | AG38: 8326 | AH38: 9106 | AI38: 9651 | AJ38: 10390 | AK38: 11447 | AL38: 12168 | AM38: 12847 | AN38: 13168 | AO38: 13498 | AP38: 13835 | AQ38: 14228 | AR38: 14584 | AS38: 14803 | AT38: 15025 | AU38: 15250 | AV38: 15479 | AW38: 15995 | AX38: 15995
A39: 77 | B39: 5334 | C39: 6376 | D39: 7045 | E39: 7820 | F39: 8368 | G39: 9151 | H39: 9700 | I39: 10442 | J39: 11546 | K39: 12229 | L39: 12911 | M39: 13234 | N39: 13565 | O39: 13951 | P39: 14299 | Q39: 14657 | R39: 14877 | S39: 15100 | T39: 15326 | U39: 15556 | V39: 15995 | W39: 15995 | AB39: 77 | AC39: 5334 | AD39: 6376 | AE39: 7045 | AF39: 7820 | AG39: 8368 | AH39: 9151 | AI39: 9700 | AJ39: 10442 | AK39: 11546 | AL39: 12229 | AM39: 12911 | AN39: 13234 | AO39: 13565 | AP39: 13951 | AQ39: 14299 | AR39: 14657 | AS39: 14877 | AT39: 15100 | AU39: 15326 | AV39: 15556 | AW39: 15995 | AX39: 15995
A40: 78 | B40: 5352 | C40: 6408 | D40: 7139 | E40: 7859 | F40: 8410 | G40: 9197 | H40: 9748 | I40: 10532 | J40: 11604 | K40: 12290 | L40: 12976 | M40: 13300 | N40: 13678 | O40: 14020 | P40: 14371 | Q40: 14730 | R40: 14951 | S40: 15175 | T40: 15403 | U40: 15634 | V40: 15995 | W40: 15995 | AB40: 78 | AC40: 5352 | AD40: 6408 | AE40: 7139 | AF40: 7859 | AG40: 8410 | AH40: 9197 | AI40: 9748 | AJ40: 10532 | AK40: 11604 | AL40: 12290 | AM40: 12976 | AN40: 13300 | AO40: 13678 | AP40: 14020 | AQ40: 14371 | AR40: 14730 | AS40: 14951 | AT40: 15175 | AU40: 15403 | AV40: 15634 | AW40: 15995 | AX40: 15995

Sheet T15S (hidden)
A1: =IFERROR(VLOOKUP(Age,T15S,MATCH(Defer+1,$B$1:$W$1,1)+1,FALSE)/100000,0) -> 0.08658 | B1: 1 | C1: =B1+1 -> 2 | D1: =C1+1 -> 3 | E1: 4 | F1: 5 | G1: 6 | H1: 7 | I1: 8 | J1: 9 | K1: 10 | L1: 11 | M1: 12 | N1: 13 | O1: 14 | P1: 15 | Q1: 16 | R1: 17 | S1: 18 | T1: 19 | U1: 20 | V1: 25 | W1: 30
A2: 40 | L2: 7002 | M2: 7177 | N2: 7356 | O2: 7540 | P2: 7728 | Q2: 7922 | R2: 8040 | S2: 8161 | T2: 8283 | U2: 8408 | V2: 8851 | W2: 9444 | AA2: Issue Age | AB2: year 1 | AC2: year 2 | AD2: year 3 | AE2: year 4 | AF2: year 5 | AG2: year 6 | AH2: year 7 | AI2: year 8 | AJ2: year 9 | AK2: year 10 | AL2: year 11 | AM2: year 12 | AN2: year 13 | AO2: year 14 | AP2: year 15 | AQ2: year 16 | AR2: year 17 | AS2: year 18 | AT2: year 19 | AU2: year 20 | AV2: year 25 | AW2: year 30
A3: 41 | K3: 6681 | L3: 7058 | M3: 7234 | N3: 7415 | O3: 7601 | P3: 7791 | Q3: 7985 | R3: 8105 | S3: 8227 | T3: 8350 | U3: 8475 | V3: 8950 | W3: 9596 | AA3: 40 | AL3: 7002 | AM3: 7177 | AN3: 7356 | AO3: 7540 | AP3: 7728 | AQ3: 7922 | AR3: 8040 | AS3: 8161 | AT3: 8283 | AU3: 8408 | AV3: 8851 | AW3: 9444
A4: 42 | J4: 6380 | K4: 6737 | L4: 7120 | M4: 7298 | N4: 7480 | O4: 7667 | P4: 7859 | Q4: 8055 | R4: 8176 | S4: 8299 | T4: 8423 | U4: 8550 | V4: 9058 | W4: 9760 | AA4: 41 | AK4: 6681 | AL4: 7058 | AM4: 7234 | AN4: 7415 | AO4: 7601 | AP4: 7791 | AQ4: 7985 | AR4: 8105 | AS4: 8227 | AT4: 8350 | AU4: 8475 | AV4: 8950 | AW4: 9596
A5: 43 | I5: 6096 | J5: 6435 | K5: 6798 | L5: 7188 | M5: 7367 | N5: 7551 | O5: 7740 | P5: 7934 | Q5: 8132 | R5: 8254 | S5: 8378 | T5: 8504 | U5: 8631 | V5: 9176 | W5: 9937 | AA5: 42 | AJ5: 6380 | AK5: 6737 | AL5: 7120 | AM5: 7298 | AN5: 7480 | AO5: 7667 | AP5: 7859 | AQ5: 8055 | AR5: 8176 | AS5: 8299 | AT5: 8423 | AU5: 8550 | AV5: 9058 | AW5: 9760
A6: 44 | H6: 5828 | I6: 6150 | J6: 6495 | K6: 6865 | L6: 7262 | M6: 7443 | N6: 7630 | O6: 7820 | P6: 8016 | Q6: 8216 | R6: 8339 | S6: 8464 | T6: 8591 | U6: 8720 | V6: 9305 | W6: 10127 | AA6: 43 | AI6: 6096 | AJ6: 6435 | AK6: 6798 | AL6: 7188 | AM6: 7367 | AN6: 7551 | AO6: 7740 | AP6: 7934 | AQ6: 8132 | AR6: 8254 | AS6: 8378 | AT6: 8504 | AU6: 8631 | AV6: 9176 | AW6: 9937
A7: 45 | G7: 5710 | H7: 5959 | I7: 6209 | J7: 6560 | K7: 6938 | L7: 7343 | M7: 7527 | N7: 7715 | O7: 7908 | P7: 8105 | Q7: 8308 | R7: 8433 | S7: 8559 | T7: 8688 | U7: 8818 | V7: 9444 | W7: 10332 | AA7: 44 | AH7: 5828 | AI7: 6150 | AJ7: 6495 | AK7: 6865 | AL7: 7262 | AM7: 7443 | AN7: 7630 | AO7: 7820 | AP7: 8016 | AQ7: 8216 | AR7: 8339 | AS7: 8464 | AT7: 8591 | AU7: 8720 | AV7: 9305 | AW7: 10127
A8: 46 | F8: 5464 | G8: 5763 | H8: 6018 | I8: 6273 | J8: 6632 | K8: 7017 | L8: 7432 | M8: 7618 | N8: 7808 | O8: 8003 | P8: 8203 | Q8: 8409 | R8: 8535 | S8: 8663 | T8: 8793 | U8: 8925 | V8: 9596 | W8: 10553 | AA8: 45 | AG8: 5710 | AH8: 5959 | AI8: 6209 | AJ8: 6560 | AK8: 6938 | AL8: 7343 | AM8: 7527 | AN8: 7715 | AO8: 7908 | AP8: 8105 | AQ8: 8308 | AR8: 8433 | AS8: 8559 | AT8: 8688 | AU8: 8818 | AV8: 9444 | AW8: 10332
A9: 47 | E9: 5283 | F9: 5516 | G9: 5821 | H9: 6082 | I9: 6343 | J9: 6710 | K9: 7104 | L9: 7529 | M9: 7717 | N9: 7910 | O9: 8108 | P9: 8310 | Q9: 8518 | R9: 8646 | S9: 8776 | T9: 8907 | U9: 9041 | V9: 9760 | W9: 10789 | AA9: 46 | AF9: 5464 | AG9: 5763 | AH9: 6018 | AI9: 6273 | AJ9: 6632 | AK9: 7017 | AL9: 7432 | AM9: 7618 | AN9: 7808 | AO9: 8003 | AP9: 8203 | AQ9: 8409 | AR9: 8535 | AS9: 8663 | AT9: 8793 | AU9: 8925 | AV9: 9596 | AW9: 10553
A10: 48 | D10: 5008 | E10: 5334 | F10: 5572 | G10: 5883 | H10: 6151 | I10: 6419 | J10: 6794 | K10: 7198 | L10: 7634 | M10: 7825 | N10: 8021 | O10: 8221 | P10: 8427 | Q10: 8637 | R10: 8767 | S10: 8898 | T10: 9032 | U10: 9167 | V10: 9937 | W10: 11043 | AA10: 47 | AE10: 5283 | AF10: 5516 | AG10: 5821 | AH10: 6082 | AI10: 6343 | AJ10: 6710 | AK10: 7104 | AL10: 7529 | AM10: 7717 | AN10: 7910 | AO10: 8108 | AP10: 8310 | AQ10: 8518 | AR10: 8646 | AS10: 8776 | AT10: 8907 | AU10: 9041 | AV10: 9760 | AW10: 10789
A11: 49 | C11: 4726 | D11: 5057 | E11: 5388 | F11: 5632 | G11: 5951 | H11: 6226 | I11: 6501 | J11: 6886 | K11: 7301 | L11: 7749 | M11: 7942 | N11: 8141 | O11: 8344 | P11: 8553 | Q11: 8767 | R11: 8898 | S11: 9032 | T11: 9167 | U11: 9305 | V11: 10127 | W11: 11313 | AA11: 48 | AD11: 5008 | AE11: 5334 | AF11: 5572 | AG11: 5883 | AH11: 6151 | AI11: 6419 | AJ11: 6794 | AK11: 7198 | AL11: 7634 | AM11: 7825 | AN11: 8021 | AO11: 8221 | AP11: 8427 | AQ11: 8637 | AR11: 8767 | AS11: 8898 | AT11: 9032 | AU11: 9167 | AV11: 9937 | AW11: 11043
A12: 50 | B12: 4126 | C12: 4772 | D12: 5109 | E12: 5447 | F12: 5697 | G12: 6023 | H12: 6307 | I12: 6590 | J12: 6985 | K12: 7412 | L12: 7873 | M12: 8070 | N12: 8271 | O12: 8478 | P12: 8690 | Q12: 8907 | R12: 9041 | S12: 9177 | T12: 9314 | U12: 9454 | V12: 10332 | W12: 11602 | AA12: 49 | AC12: 4726 | AD12: 5057 | AE12: 5388 | AF12: 5632 | AG12: 5951 | AH12: 6226 | AI12: 6501 | AJ12: 6886 | AK12: 7301 | AL12: 7749 | AM12: 7942 | AN12: 8141 | AO12: 8344 | AP12: 8553 | AQ12: 8767 | AR12: 8898 | AS12: 9032 | AT12: 9167 | AU12: 9305 | AV12: 10127 | AW12: 11313
A13: 51 | B13: 4233 | C13: 4822 | D13: 5165 | E13: 5510 | F13: 5767 | G13: 6101 | H13: 6393 | I13: 6685 | J13: 7092 | K13: 7532 | L13: 8007 | M13: 8207 | N13: 8413 | O13: 8623 | P13: 8839 | Q13: 9060 | R13: 9195 | S13: 9333 | T13: 9473 | U13: 9615 | V13: 10553 | W13: 11910 | AA13: 50 | AB13: 4126 | AC13: 4772 | AD13: 5109 | AE13: 5447 | AF13: 5697 | AG13: 6023 | AH13: 6307 | AI13: 6590 | AJ13: 6985 | AK13: 7412 | AL13: 7873 | AM13: 8070 | AN13: 8271 | AO13: 8478 | AP13: 8690 | AQ13: 8907 | AR13: 9041 | AS13: 9177 | AT13: 9314 | AU13: 9454 | AV13: 10332 | AW13: 11602
A14: 52 | B14: 4339 | C14: 4874 | D14: 5225 | E14: 5578 | F14: 5842 | G14: 6185 | H14: 6487 | I14: 6788 | J14: 7207 | K14: 7661 | L14: 8153 | M14: 8356 | N14: 8565 | O14: 8779 | P14: 8999 | Q14: 9224 | R14: 9362 | S14: 9503 | T14: 9645 | U14: 9790 | V14: 10789 | W14: 12240 | AA14: 51 | AB14: 4233 | AC14: 4822 | AD14: 5165 | AE14: 5510 | AF14: 5767 | AG14: 6101 | AH14: 6393 | AI14: 6685 | AJ14: 7092 | AK14: 7532 | AL14: 8007 | AM14: 8207 | AN14: 8413 | AO14: 8623 | AP14: 8839 | AQ14: 9060 | AR14: 9195 | AS14: 9333 | AT14: 9473 | AU14: 9615 | AV14: 10553 | AW14: 11910
A15: 53 | B15: 4446 | C15: 4930 | D15: 5288 | E15: 5650 | F15: 5922 | G15: 6275 | H15: 6587 | I15: 6898 | J15: 7331 | K15: 7800 | L15: 8309 | M15: 8517 | N15: 8730 | O15: 8948 | P15: 9172 | Q15: 9401 | R15: 9542 | S15: 9685 | T15: 9830 | U15: 9978 | V15: 11043 | W15: 12591 | AA15: 52 | AB15: 4339 | AC15: 4874 | AD15: 5225 | AE15: 5578 | AF15: 5842 | AG15: 6185 | AH15: 6487 | AI15: 6788 | AJ15: 7207 | AK15: 7661 | AL15: 8153 | AM15: 8356 | AN15: 8565 | AO15: 8779 | AP15: 8999 | AQ15: 9224 | AR15: 9362 | AS15: 9503 | AT15: 9645 | AU15: 9790 | AV15: 10789 | AW15: 12240
A16: 54 | B16: 4552 | C16: 4989 | D16: 5356 | E16: 5727 | F16: 6008 | G16: 6371 | H16: 6694 | I16: 7016 | J16: 7464 | K16: 7949 | L16: 8477 | M16: 8689 | N16: 8906 | O16: 9129 | P16: 9357 | Q16: 9591 | R16: 9735 | S16: 9881 | T16: 10029 | U16: 10180 | V16: 11313 | W16: 12964 | AA16: 53 | AB16: 4446 | AC16: 4930 | AD16: 5288 | AE16: 5650 | AF16: 5922 | AG16: 6275 | AH16: 6587 | AI16: 6898 | AJ16: 7331 | AK16: 7800 | AL16: 8309 | AM16: 8517 | AN16: 8730 | AO16: 8948 | AP16: 9172 | AQ16: 9401 | AR16: 9542 | AS16: 9685 | AT16: 9830 | AU16: 9978 | AV16: 11043 | AW16: 12591
A17: 55 | B17: 4659 | C17: 5051 | D17: 5427 | E17: 5808 | F17: 6098 | G17: 6473 | H17: 6808 | I17: 7143 | J17: 7606 | K17: 8110 | L17: 8658 | M17: 8874 | N17: 9096 | O17: 9324 | P17: 9557 | Q17: 9796 | R17: 9943 | S17: 10092 | T17: 10243 | U17: 10397 | V17: 11602 | W17: 13360 | AA17: 54 | AB17: 4552 | AC17: 4989 | AD17: 5356 | AE17: 5727 | AF17: 6008 | AG17: 6371 | AH17: 6694 | AI17: 7016 | AJ17: 7464 | AK17: 7949 | AL17: 8477 | AM17: 8689 | AN17: 8906 | AO17: 9129 | AP17: 9357 | AQ17: 9591 | AR17: 9735 | AS17: 9881 | AT17: 10029 | AU17: 10180 | AV17: 11313 | AW17: 12964
A18: 56 | B18: 4766 | C18: 5168 | D18: 5558 | E18: 5953 | F18: 6194 | G18: 6581 | H18: 6929 | I18: 7277 | J18: 7758 | K18: 8281 | L18: 8852 | M18: 9073 | N18: 9300 | O18: 9533 | P18: 9771 | Q18: 10015 | R18: 10165 | S18: 10318 | T18: 10473 | U18: 10630 | V18: 11910 | W18: 13785 | AA18: 55 | AB18: 4659 | AC18: 5051 | AD18: 5427 | AE18: 5808 | AF18: 6098 | AG18: 6473 | AH18: 6808 | AI18: 7143 | AJ18: 7606 | AK18: 8110 | AL18: 8658 | AM18: 8874 | AN18: 9096 | AO18: 9324 | AP18: 9557 | AQ18: 9796 | AR18: 9943 | AS18: 10092 | AT18: 10243 | AU18: 10397 | AV18: 11602 | AW18: 13360
A19: 57 | B19: 4872 | C19: 5238 | D19: 5638 | E19: 6045 | F19: 6296 | G19: 6696 | H19: 7058 | I19: 7420 | J19: 7920 | K19: 8464 | L19: 9060 | M19: 9286 | N19: 9518 | O19: 9756 | P19: 10000 | Q19: 10250 | R19: 10404 | S19: 10560 | T19: 10719 | U19: 10879 | V19: 12240 | W19: 14235 | AA19: 56 | AB19: 4766 | AC19: 5168 | AD19: 5558 | AE19: 5953 | AF19: 6194 | AG19: 6581 | AH19: 6929 | AI19: 7277 | AJ19: 7758 | AK19: 8281 | AL19: 8852 | AM19: 9073 | AN19: 9300 | AO19: 9533 | AP19: 9771 | AQ19: 10015 | AR19: 10165 | AS19: 10318 | AT19: 10473 | AU19: 10630 | AV19: 11910 | AW19: 13785
A20: 58 | B20: 4974 | C20: 5312 | D20: 5723 | E20: 6142 | F20: 6404 | G20: 6818 | H20: 7195 | I20: 7573 | J20: 8092 | K20: 8660 | L20: 9282 | M20: 9514 | N20: 9752 | O20: 9995 | P20: 10245 | Q20: 10501 | R20: 10659 | S20: 10819 | T20: 10981 | U20: 11146 | V20: 12591 | W20: 14713 | AA20: 57 | AB20: 4872 | AC20: 5238 | AD20: 5638 | AE20: 6045 | AF20: 6296 | AG20: 6696 | AH20: 7058 | AI20: 7420 | AJ20: 7920 | AK20: 8464 | AL20: 9060 | AM20: 9286 | AN20: 9518 | AO20: 9756 | AP20: 10000 | AQ20: 10250 | AR20: 10404 | AS20: 10560 | AT20: 10719 | AU20: 10879 | AV20: 12240 | AW20: 14235
A21: 59 | B21: 5075 | C21: 5389 | D21: 5812 | E21: 6244 | F21: 6517 | G21: 6947 | H21: 7341 | I21: 7734 | J21: 8276 | K21: 8868 | L21: 9519 | M21: 9757 | N21: 10001 | O21: 10251 | P21: 10507 | Q21: 10769 | R21: 10931 | S21: 11095 | T21: 11261 | U21: 11430 | V21: 12964 | W21: 15036 | AA21: 58 | AB21: 4974 | AC21: 5312 | AD21: 5723 | AE21: 6142 | AF21: 6404 | AG21: 6818 | AH21: 7195 | AI21: 7573 | AJ21: 8092 | AK21: 8660 | AL21: 9282 | AM21: 9514 | AN21: 9752 | AO21: 9995 | AP21: 10245 | AQ21: 10501 | AR21: 10659 | AS21: 10819 | AT21: 10981 | AU21: 11146 | AV21: 12591 | AW21: 14713
A22: 60 | B22: 5177 | C22: 5469 | D22: 5905 | E22: 6351 | F22: 6636 | G22: 7082 | H22: 7494 | I22: 7906 | J22: 8471 | K22: 9091 | L22: 9772 | M22: 10016 | N22: 10267 | O22: 10523 | P22: 10786 | Q22: 11056 | R22: 11222 | S22: 11390 | T22: 11561 | U22: 11734 | V22: 13360 | W22: 15359 | AA22: 59 | AB22: 5075 | AC22: 5389 | AD22: 5812 | AE22: 6244 | AF22: 6517 | AG22: 6947 | AH22: 7341 | AI22: 7734 | AJ22: 8276 | AK22: 8868 | AL22: 9519 | AM22: 9757 | AN22: 10001 | AO22: 10251 | AP22: 10507 | AQ22: 10769 | AR22: 10931 | AS22: 11095 | AT22: 11261 | AU22: 11430 | AV22: 12964 | AW22: 15036
A23: 61 | B23: 5278 | C23: 5553 | D23: 6002 | E23: 6463 | F23: 6762 | G23: 7225 | H23: 7656 | I23: 8087 | J23: 8677 | K23: 9327 | L23: 10042 | M23: 10293 | N23: 10551 | O23: 10814 | P23: 11085 | Q23: 11362 | R23: 11532 | S23: 11705 | T23: 11881 | U23: 12059 | V23: 13785 | W23: 15755 | AA23: 60 | AB23: 5177 | AC23: 5469 | AD23: 5905 | AE23: 6351 | AF23: 6636 | AG23: 7082 | AH23: 7494 | AI23: 7906 | AJ23: 8471 | AK23: 9091 | AL23: 9772 | AM23: 10016 | AN23: 10267 | AO23: 10523 | AP23: 10786 | AQ23: 11056 | AR23: 11222 | AS23: 11390 | AT23: 11561 | AU23: 11734 | AV23: 13360 | AW23: 15359
A24: 62 | B24: 5380 | C24: 5640 | D24: 6104 | E24: 6581 | F24: 6894 | G24: 7376 | H24: 7827 | I24: 8279 | J24: 8896 | K24: 9577 | L24: 10330 | M24: 10588 | N24: 10853 | O24: 11124 | P24: 11402 | Q24: 11688 | R24: 11863 | S24: 12041 | T24: 12221 | U24: 12405 | V24: 14235 | W24: 16151 | AA24: 61 | AB24: 5278 | AC24: 5553 | AD24: 6002 | AE24: 6463 | AF24: 6762 | AG24: 7225 | AH24: 7656 | AI24: 8087 | AJ24: 8677 | AK24: 9327 | AL24: 10042 | AM24: 10293 | AN24: 10551 | AO24: 10814 | AP24: 11085 | AQ24: 11362 | AR24: 11532 | AS24: 11705 | AT24: 11881 | AU24: 12059 | AV24: 13785 | AW24: 15755
A25: 63 | B25: 5451 | C25: 5731 | D25: 6209 | E25: 6703 | F25: 7032 | G25: 7534 | H25: 8008 | I25: 8481 | J25: 9129 | K25: 9844 | L25: 10636 | M25: 10902 | N25: 11174 | O25: 11454 | P25: 11740 | Q25: 12034 | R25: 12214 | S25: 12397 | T25: 12583 | U25: 12772 | V25: 14713 | W25: 16516 | AA25: 62 | AB25: 5380 | AC25: 5640 | AD25: 6104 | AE25: 6581 | AF25: 6894 | AG25: 7376 | AH25: 7827 | AI25: 8279 | AJ25: 8896 | AK25: 9577 | AL25: 10330 | AM25: 10588 | AN25: 10853 | AO25: 11124 | AP25: 11402 | AQ25: 11688 | AR25: 11863 | AS25: 12041 | AT25: 12221 | AU25: 12405 | AV25: 14235 | AW25: 16151
A26: 64 | B26: 5522 | C26: 5824 | D26: 6319 | E26: 6831 | F26: 7175 | G26: 7699 | H26: 8197 | I26: 8695 | J26: 9375 | K26: 10127 | L26: 10962 | M26: 11236 | N26: 11517 | O26: 11804 | P26: 12100 | Q26: 12402 | R26: 12588 | S26: 12777 | T26: 12969 | U26: 13163 | V26: 15036 | W26: 16684 | AA26: 63 | AB26: 5451 | AC26: 5731 | AD26: 6209 | AE26: 6703 | AF26: 7032 | AG26: 7534 | AH26: 8008 | AI26: 8481 | AJ26: 9129 | AK26: 9844 | AL26: 10636 | AM26: 10902 | AN26: 11174 | AO26: 11454 | AP26: 11740 | AQ26: 12034 | AR26: 12214 | AS26: 12397 | AT26: 12583 | AU26: 12772 | AV26: 14713 | AW26: 16516
A27: 65 | B27: 5593 | C27: 5921 | D27: 6433 | E27: 6964 | F27: 7326 | G27: 7873 | H27: 8396 | I27: 8920 | J27: 9634 | K27: 10427 | L27: 11310 | M27: 11592 | N27: 11882 | O27: 12179 | P27: 12484 | Q27: 12796 | R27: 12988 | S27: 13183 | T27: 13380 | U27: 13581 | V27: 15359 | W27: 16851 | AA27: 64 | AB27: 5522 | AC27: 5824 | AD27: 6319 | AE27: 6831 | AF27: 7175 | AG27: 7699 | AH27: 8197 | AI27: 8695 | AJ27: 9375 | AK27: 10127 | AL27: 10962 | AM27: 11236 | AN27: 11517 | AO27: 11804 | AP27: 12100 | AQ27: 12402 | AR27: 12588 | AS27: 12777 | AT27: 12969 | AU27: 13163 | AV27: 15036 | AW27: 16684
A28: 66 | B28: 5664 | C28: 6020 | D28: 6551 | E28: 7103 | F28: 7484 | G28: 8056 | H28: 8606 | I28: 9157 | J28: 9908 | K28: 10745 | L28: 11679 | M28: 11971 | N28: 12271 | O28: 12577 | P28: 12892 | Q28: 13214 | R28: 13412 | S28: 13613 | T28: 13818 | U28: 14025 | V28: 15755 | W28: 16936 | AA28: 65 | AB28: 5593 | AC28: 5921 | AD28: 6433 | AE28: 6964 | AF28: 7326 | AG28: 7873 | AH28: 8396 | AI28: 8920 | AJ28: 9634 | AK28: 10427 | AL28: 11310 | AM28: 11592 | AN28: 11882 | AO28: 12179 | AP28: 12484 | AQ28: 12796 | AR28: 12988 | AS28: 13183 | AT28: 13380 | AU28: 13581 | AV28: 15359 | AW28: 16851
A29: 67 | B29: 5735 | C29: 6123 | D29: 6673 | E29: 7246 | F29: 7648 | G29: 8246 | H29: 8827 | I29: 9408 | J29: 10199 | K29: 11081 | L29: 12071 | M29: 12373 | N29: 12682 | O29: 13000 | P29: 13325 | Q29: 13658 | R29: 13863 | S29: 14070 | T29: 14281 | U29: 14496 | V29: 16151 | W29: 17020 | AA29: 66 | AB29: 5664 | AC29: 6020 | AD29: 6551 | AE29: 7103 | AF29: 7484 | AG29: 8056 | AH29: 8606 | AI29: 9157 | AJ29: 9908 | AK29: 10745 | AL29: 11679 | AM29: 11971 | AN29: 12271 | AO29: 12577 | AP29: 12892 | AQ29: 13214 | AR29: 13412 | AS29: 13613 | AT29: 13818 | AU29: 14025 | AV29: 15755 | AW29: 16936
A30: 68 | B30: 5741 | C30: 6230 | D30: 6801 | E30: 7398 | F30: 7822 | G30: 8449 | H30: 9039 | I30: 9628 | J30: 10461 | K30: 11392 | L30: 12336 | M30: 12645 | N30: 12961 | O30: 13285 | P30: 13617 | Q30: 13957 | R30: 14167 | S30: 14379 | T30: 14595 | U30: 14814 | V30: 16516 | W30: 17105 | AA30: 67 | AB30: 5735 | AC30: 6123 | AD30: 6673 | AE30: 7246 | AF30: 7648 | AG30: 8246 | AH30: 8827 | AI30: 9408 | AJ30: 10199 | AK30: 11081 | AL30: 12071 | AM30: 12373 | AN30: 12682 | AO30: 13000 | AP30: 13325 | AQ30: 13658 | AR30: 13863 | AS30: 14070 | AT30: 14281 | AU30: 14496 | AV30: 16151 | AW30: 17020
A31: 69 | B31: 5747 | C31: 6336 | D31: 6929 | E31: 7550 | F31: 7996 | G31: 8652 | H31: 9250 | I31: 9849 | J31: 10722 | K31: 11703 | L31: 12601 | M31: 12916 | N31: 13239 | O31: 13570 | P31: 13909 | Q31: 14257 | R31: 14471 | S31: 14688 | T31: 14908 | U31: 15132 | V31: 16684 | W31: 17191 | AA31: 68 | AB31: 5741 | AC31: 6230 | AD31: 6801 | AE31: 7398 | AF31: 7822 | AG31: 8449 | AH31: 9039 | AI31: 9628 | AJ31: 10461 | AK31: 11392 | AL31: 12336 | AM31: 12645 | AN31: 12961 | AO31: 13285 | AP31: 13617 | AQ31: 13957 | AR31: 14167 | AS31: 14379 | AT31: 14595 | AU31: 14814 | AV31: 16516 | AW31: 17105
A32: 70 | B32: 5753 | C32: 6447 | D32: 7063 | E32: 7711 | F32: 8181 | G32: 8870 | H32: 9504 | I32: 10138 | J32: 11060 | K32: 12100 | L32: 12926 | M32: 13249 | N32: 13580 | O32: 13920 | P32: 14268 | Q32: 14625 | R32: 14844 | S32: 15067 | T32: 15293 | U32: 15522 | V32: 16851 | W32: 17260 | AA32: 69 | AB32: 5747 | AC32: 6336 | AD32: 6929 | AE32: 7550 | AF32: 7996 | AG32: 8652 | AH32: 9250 | AI32: 9849 | AJ32: 10722 | AK32: 11703 | AL32: 12601 | AM32: 12916 | AN32: 13239 | AO32: 13570 | AP32: 13909 | AQ32: 14257 | AR32: 14471 | AS32: 14688 | AT32: 14908 | AU32: 15132 | AV32: 16684 | AW32: 17191
A33: 71 | B33: 5759 | C33: 6560 | D33: 7201 | E33: 7876 | F33: 8373 | G33: 9097 | H33: 9769 | I33: 10442 | J33: 11419 | K33: 12335 | L33: 13251 | M33: 13582 | N33: 13922 | O33: 14270 | P33: 14626 | Q33: 14992 | R33: 15217 | S33: 15445 | T33: 15677 | U33: 15912 | V33: 16936 | W33: 17328 | AA33: 70 | AB33: 5753 | AC33: 6447 | AD33: 7063 | AE33: 7711 | AF33: 8181 | AG33: 8870 | AH33: 9504 | AI33: 10138 | AJ33: 11060 | AK33: 12100 | AL33: 12926 | AM33: 13249 | AN33: 13580 | AO33: 13920 | AP33: 14268 | AQ33: 14625 | AR33: 14844 | AS33: 15067 | AT33: 15293 | AU33: 15522 | AV33: 16851 | AW33: 17260
A34: 72 | B34: 5765 | C34: 6676 | D34: 7342 | E34: 8046 | F34: 8572 | G34: 9332 | H34: 10047 | I34: 10761 | J34: 11797 | K34: 12674 | L34: 13550 | M34: 13889 | N34: 14236 | O34: 14592 | P34: 14957 | Q34: 15331 | R34: 15561 | S34: 15794 | T34: 16031 | U34: 16272 | V34: 17020 | W34: 17328 | AA34: 71 | AB34: 5759 | AC34: 6560 | AD34: 7201 | AE34: 7876 | AF34: 8373 | AG34: 9097 | AH34: 9769 | AI34: 10442 | AJ34: 11419 | AK34: 12335 | AL34: 13251 | AM34: 13582 | AN34: 13922 | AO34: 14270 | AP34: 14626 | AQ34: 14992 | AR34: 15217 | AS34: 15445 | AT34: 15677 | AU34: 15912 | AV34: 16936 | AW34: 17328
A35: 73 | B35: 5786 | C35: 6793 | D35: 7488 | E35: 8225 | F35: 8783 | G35: 9584 | H35: 10235 | I35: 10992 | J35: 12081 | K35: 12884 | L35: 13688 | M35: 14030 | N35: 14381 | O35: 14740 | P35: 15109 | Q35: 15487 | R35: 15719 | S35: 15955 | T35: 16194 | U35: 16437 | V35: 17105 | W35: 17328 | AA35: 72 | AB35: 5765 | AC35: 6676 | AD35: 7342 | AE35: 8046 | AF35: 8572 | AG35: 9332 | AH35: 10047 | AI35: 10761 | AJ35: 11797 | AK35: 12674 | AL35: 13550 | AM35: 13889 | AN35: 14236 | AO35: 14592 | AP35: 14957 | AQ35: 15331 | AR35: 15561 | AS35: 15794 | AT35: 16031 | AU35: 16272 | AV35: 17020 | AW35: 17328
AA36: 73 | AB36: 5786 | AC36: 6793 | AD36: 7488 | AE36: 8225 | AF36: 8783 | AG36: 9584 | AH36: 10235 | AI36: 10992 | AJ36: 12081 | AK36: 12884 | AL36: 13688 | AM36: 14030 | AN36: 14381 | AO36: 14740 | AP36: 15109 | AQ36: 15487 | AR36: 15719 | AS36: 15955 | AT36: 16194 | AU36: 16437 | AV36: 17105 | AW36: 17328

Sheet T15J (hidden)
A1: =IFERROR(VLOOKUP(Age,T15J,MATCH(Defer+1,$B$1:$W$1,1)+1,FALSE)/100000,0) -> 0.07792 | B1: 1 | C1: =B1+1 -> 2 | D1: =C1+1 -> 3 | E1: 4 | F1: 5 | G1: 6 | H1: 7 | I1: 8 | J1: 9 | K1: 10 | L1: 11 | M1: 12 | N1: 13 | O1: 14 | P1: 15 | Q1: 16 | R1: 17 | S1: 18 | T1: 19 | U1: 20 | V1: 25 | W1: 30
A2: 40 | L2: 6001 | M2: 6151 | N2: 6305 | O2: 6463 | P2: 6624 | Q2: 6931 | R2: 7035 | S2: 7141 | T2: 7248 | U2: 7357 | V2: 7868 | W2: 8500 | Z2: Issue Age | AA2: year 1 | AB2: year 2 | AC2: year 3 | AD2: year 4 | AE2: year 5 | AF2: year 6 | AG2: year 7 | AH2: year 8 | AI2: year 9 | AJ2: year 10 | AK2: year 11 | AL2: year 12 | AM2: year 13 | AN2: year 14 | AO2: year 15 | AP2: year 16 | AQ2: year 17 | AR2: year 18 | AS2: year 19 | AT2: year 20 | AU2: year 25 | AV2: year 30
A3: 41 | K3: 5727 | L3: 6050 | M3: 6201 | N3: 6356 | O3: 6515 | P3: 6817 | Q3: 6987 | R3: 7092 | S3: 7198 | T3: 7306 | U3: 7534 | V3: 8055 | W3: 8682 | Z3: 40 | AK3: 6001 | AL3: 6151 | AM3: 6305 | AN3: 6463 | AO3: 6624 | AP3: 6931 | AQ3: 7035 | AR3: 7141 | AS3: 7248 | AT3: 7357 | AU3: 7868 | AV3: 8500
A4: 42 | J4: 5468 | K4: 5774 | L4: 6103 | M4: 6255 | N4: 6412 | O4: 6709 | P4: 6877 | Q4: 7048 | R4: 7154 | S4: 7261 | T4: 7487 | U4: 7600 | V4: 8153 | W4: 8830 | Z4: 41 | AJ4: 5727 | AK4: 6050 | AL4: 6201 | AM4: 6356 | AN4: 6515 | AO4: 6817 | AP4: 6987 | AQ4: 7092 | AR4: 7198 | AS4: 7306 | AT4: 7534 | AU4: 8055 | AV4: 8682
A5: 43 | I5: 5225 | J5: 5515 | K5: 5827 | L5: 6161 | M5: 6315 | N5: 6608 | O5: 6773 | P5: 6942 | Q5: 7116 | R5: 7222 | S5: 7447 | T5: 7559 | U5: 7672 | V5: 8259 | W5: 8990 | Z5: 42 | AI5: 5468 | AJ5: 5774 | AK5: 6103 | AL5: 6255 | AM5: 6412 | AN5: 6709 | AO5: 6877 | AP5: 7048 | AQ5: 7154 | AR5: 7261 | AS5: 7487 | AT5: 7600 | AU5: 8153 | AV5: 8830
A6: 44 | H6: 4995 | I6: 5271 | J6: 5567 | K6: 5884 | L6: 6224 | M6: 6513 | N6: 6676 | O6: 6843 | P6: 7014 | Q6: 7189 | R6: 7413 | S6: 7524 | T6: 7637 | U6: 7751 | V6: 8374 | W6: 9163 | Z6: 43 | AH6: 5225 | AI6: 5515 | AJ6: 5827 | AK6: 6161 | AL6: 6315 | AM6: 6608 | AN6: 6773 | AO6: 6942 | AP6: 7116 | AQ6: 7222 | AR6: 7447 | AS6: 7559 | AT6: 7672 | AU6: 8259 | AV6: 8990
A7: 45 | G7: 4894 | H7: 5108 | I7: 5322 | J7: 5623 | K7: 5947 | L7: 6425 | M7: 6586 | N7: 6751 | O7: 6919 | P7: 7092 | Q7: 7385 | R7: 7496 | S7: 7608 | T7: 7722 | U7: 7838 | V7: 8500 | W7: 9348 | Z7: 44 | AG7: 4995 | AH7: 5271 | AI7: 5567 | AJ7: 5884 | AK7: 6224 | AL7: 6513 | AM7: 6676 | AN7: 6843 | AO7: 7014 | AP7: 7189 | AQ7: 7413 | AR7: 7524 | AS7: 7637 | AT7: 7751 | AU7: 8374 | AV7: 9163
A8: 46 | F8: 4683 | G8: 4940 | H8: 5158 | I8: 5377 | J8: 5684 | K8: 6140 | L8: 6503 | M8: 6666 | N8: 6832 | O8: 7003 | P8: 7292 | Q8: 7474 | R8: 7586 | S8: 7700 | T8: 7816 | U8: 8032 | V8: 8682 | W8: 9593 | Z8: 45 | AF8: 4894 | AG8: 5108 | AH8: 5322 | AI8: 5623 | AJ8: 5947 | AK8: 6425 | AL8: 6586 | AM8: 6751 | AN8: 6919 | AO8: 7092 | AP8: 7385 | AQ8: 7496 | AR8: 7608 | AS8: 7722 | AT8: 7838 | AU8: 8500 | AV8: 9348
A9: 47 | E9: 4528 | F9: 4728 | G9: 4989 | H9: 5213 | I9: 5437 | J9: 5871 | K9: 6216 | L9: 6588 | M9: 6752 | N9: 6921 | O9: 7207 | P9: 7387 | Q9: 7572 | R9: 7685 | S9: 7800 | T9: 8016 | U9: 8137 | V9: 8830 | W9: 9808 | Z9: 46 | AE9: 4683 | AF9: 4940 | AG9: 5158 | AH9: 5377 | AI9: 5684 | AJ9: 6140 | AK9: 6503 | AL9: 6666 | AM9: 6832 | AN9: 7003 | AO9: 7292 | AP9: 7474 | AQ9: 7586 | AR9: 7700 | AS9: 7816 | AT9: 8032 | AU9: 8682 | AV9: 9593
A10: 48 | D10: 4293 | E10: 4572 | F10: 4776 | G10: 5043 | H10: 5272 | I10: 5617 | J10: 5945 | K10: 6298 | L10: 6680 | M10: 6847 | N10: 7129 | O10: 7308 | P10: 7490 | Q10: 7678 | R10: 7793 | S10: 8008 | T10: 8129 | U10: 8251 | V10: 8990 | W10: 10039 | Z10: 47 | AD10: 4528 | AE10: 4728 | AF10: 4989 | AG10: 5213 | AH10: 5437 | AI10: 5871 | AJ10: 6216 | AK10: 6588 | AL10: 6752 | AM10: 6921 | AN10: 7207 | AO10: 7387 | AP10: 7572 | AQ10: 7685 | AR10: 7800 | AS10: 8016 | AT10: 8137 | AU10: 8830 | AV10: 9808
A11: 49 | C11: 4051 | D11: 4335 | E11: 4619 | F11: 4828 | G11: 5101 | H11: 5448 | I11: 5688 | J11: 6025 | K11: 6388 | L11: 6780 | M11: 7060 | N11: 7236 | O11: 7417 | P11: 7603 | Q11: 7793 | R11: 8008 | S11: 8129 | T11: 8251 | U11: 8374 | V11: 9163 | W11: 10285 | Z11: 48 | AC11: 4293 | AD11: 4572 | AE11: 4776 | AF11: 5043 | AG11: 5272 | AH11: 5617 | AI11: 5945 | AJ11: 6298 | AK11: 6680 | AL11: 6847 | AM11: 7129 | AN11: 7308 | AO11: 7490 | AP11: 7678 | AQ11: 7793 | AR11: 8008 | AS11: 8129 | AT11: 8251 | AU11: 8990 | AV11: 10039
A12: 50 | B12: 3537 | C12: 4091 | D12: 4379 | E12: 4669 | F12: 4884 | G12: 5270 | H12: 5518 | I12: 5766 | J12: 6112 | K12: 6485 | L12: 6998 | M12: 7173 | N12: 7352 | O12: 7536 | P12: 7724 | Q12: 8017 | R12: 8137 | S12: 8259 | T12: 8383 | U12: 8508 | V12: 9348 | W12: 10547 | Z12: 49 | AB12: 4051 | AC12: 4335 | AD12: 4619 | AE12: 4828 | AF12: 5101 | AG12: 5448 | AH12: 5688 | AI12: 6025 | AJ12: 6388 | AK12: 6780 | AL12: 7060 | AM12: 7236 | AN12: 7417 | AO12: 7603 | AP12: 7793 | AQ12: 8008 | AR12: 8129 | AS12: 8251 | AT12: 8374 | AU12: 9163 | AV12: 10285
A13: 51 | B13: 3628 | C13: 4133 | D13: 4427 | E13: 4723 | F13: 5046 | G13: 5339 | H13: 5594 | I13: 5850 | J13: 6206 | K13: 6695 | L13: 7118 | M13: 7296 | N13: 7478 | O13: 7665 | P13: 7955 | Q13: 8154 | R13: 8276 | S13: 8400 | T13: 8526 | U13: 8700 | V13: 9593 | W13: 10918 | Z13: 50 | AA13: 3537 | AB13: 4091 | AC13: 4379 | AD13: 4669 | AE13: 4884 | AF13: 5270 | AG13: 5518 | AH13: 5766 | AI13: 6112 | AJ13: 6485 | AK13: 6998 | AL13: 7173 | AM13: 7352 | AN13: 7536 | AO13: 7724 | AP13: 8017 | AQ13: 8137 | AR13: 8259 | AS13: 8383 | AT13: 8508 | AU13: 9348 | AV13: 10547
A14: 52 | B14: 3719 | C14: 4178 | D14: 4478 | E14: 4881 | F14: 5112 | G14: 5412 | H14: 5676 | I14: 5939 | J14: 6406 | K14: 6810 | L14: 7247 | M14: 7428 | N14: 7614 | O14: 7901 | P14: 8099 | Q14: 8302 | R14: 8426 | S14: 8552 | T14: 8727 | U14: 8858 | V14: 9808 | W14: 11220 | Z14: 51 | AA14: 3628 | AB14: 4133 | AC14: 4427 | AD14: 4723 | AE14: 5046 | AF14: 5339 | AG14: 5594 | AH14: 5850 | AI14: 6206 | AJ14: 6695 | AK14: 7118 | AL14: 7296 | AM14: 7478 | AN14: 7665 | AO14: 7955 | AP14: 8154 | AQ14: 8276 | AR14: 8400 | AS14: 8526 | AT14: 8700 | AU14: 9593 | AV14: 10918
A15: 53 | B15: 3811 | C15: 4225 | D15: 4627 | E15: 4944 | F15: 5182 | G15: 5491 | H15: 5763 | I15: 6132 | J15: 6516 | K15: 6933 | L15: 7386 | M15: 7570 | N15: 7857 | O15: 8053 | P15: 8254 | Q15: 8461 | R15: 8588 | S15: 8763 | T15: 8894 | U15: 9028 | V15: 10039 | W15: 11542 | Z15: 52 | AA15: 3719 | AB15: 4178 | AC15: 4478 | AD15: 4881 | AE15: 5112 | AF15: 5412 | AG15: 5676 | AH15: 5939 | AI15: 6406 | AJ15: 6810 | AK15: 7247 | AL15: 7428 | AM15: 7614 | AN15: 7901 | AO15: 8099 | AP15: 8302 | AQ15: 8426 | AR15: 8552 | AS15: 8727 | AT15: 8858 | AU15: 9808 | AV15: 11220
A16: 54 | B16: 3902 | C16: 4365 | D16: 4686 | E16: 5011 | F16: 5257 | G16: 5575 | H16: 5950 | I16: 6237 | J16: 6635 | K16: 7066 | L16: 7535 | M16: 7820 | N16: 8016 | O16: 8216 | P16: 8422 | Q16: 8632 | R16: 8808 | S16: 8940 | T16: 9074 | U16: 9210 | V16: 10285 | W16: 11883 | Z16: 53 | AA16: 3811 | AB16: 4225 | AC16: 4627 | AD16: 4944 | AE16: 5182 | AF16: 5491 | AG16: 5763 | AH16: 6132 | AI16: 6516 | AJ16: 6933 | AK16: 7386 | AL16: 7570 | AM16: 7857 | AN16: 8053 | AO16: 8254 | AP16: 8461 | AQ16: 8588 | AR16: 8763 | AS16: 8894 | AT16: 9028 | AU16: 10039 | AV16: 11542
A17: 55 | B17: 4077 | C17: 4420 | D17: 4749 | E17: 5082 | F17: 5336 | G17: 5754 | H17: 6051 | I17: 6349 | J17: 6761 | K17: 7209 | L17: 7792 | M17: 7987 | N17: 8187 | O17: 8391 | P17: 8601 | Q17: 8863 | R17: 8996 | S17: 9131 | T17: 9268 | U17: 9407 | V17: 10547 | W17: 12247 | Z17: 54 | AA17: 3902 | AB17: 4365 | AC17: 4686 | AD17: 5011 | AE17: 5257 | AF17: 5575 | AG17: 5950 | AH17: 6237 | AI17: 6635 | AJ17: 7066 | AK17: 7535 | AL17: 7820 | AM17: 8016 | AN17: 8216 | AO17: 8422 | AP17: 8632 | AQ17: 8808 | AR17: 8940 | AS17: 9074 | AT17: 9210 | AU17: 10285 | AV17: 11883
A18: 56 | B18: 4170 | C18: 4522 | D18: 4863 | E18: 5209 | F18: 5506 | G18: 5850 | H18: 6159 | I18: 6468 | J18: 6896 | K18: 7453 | L18: 7967 | M18: 8166 | N18: 8370 | O18: 8579 | P18: 8840 | Q18: 9061 | R18: 9197 | S18: 9335 | T18: 9475 | U18: 9663 | V18: 10918 | W18: 12682 | Z18: 55 | AA18: 4077 | AB18: 4420 | AC18: 4749 | AD18: 5082 | AE18: 5336 | AF18: 5754 | AG18: 6051 | AH18: 6349 | AI18: 6761 | AJ18: 7209 | AK18: 7792 | AL18: 7987 | AM18: 8187 | AN18: 8391 | AO18: 8601 | AP18: 8863 | AQ18: 8996 | AR18: 9131 | AS18: 9268 | AT18: 9407 | AU18: 10547 | AV18: 12247
A19: 57 | B19: 4263 | C19: 4584 | D19: 4934 | E19: 5373 | F19: 5597 | G19: 5952 | H19: 6274 | I19: 6596 | J19: 7128 | K19: 7618 | L19: 8154 | M19: 8358 | N19: 8567 | O19: 8827 | P19: 9048 | Q19: 9274 | R19: 9413 | S19: 9554 | T19: 9744 | U19: 9890 | V19: 11220 | W19: 13096 | Z19: 56 | AA19: 4170 | AB19: 4522 | AC19: 4863 | AD19: 5209 | AE19: 5506 | AF19: 5850 | AG19: 6159 | AH19: 6468 | AI19: 6896 | AJ19: 7453 | AK19: 7967 | AL19: 8166 | AM19: 8370 | AN19: 8579 | AO19: 8840 | AP19: 9061 | AQ19: 9197 | AR19: 9335 | AS19: 9475 | AT19: 9663 | AU19: 10918 | AV19: 12682
A20: 58 | B20: 4352 | C20: 4648 | D20: 5087 | E20: 5460 | F20: 5692 | G20: 6060 | H20: 6396 | I20: 6815 | J20: 7283 | K20: 7794 | L20: 8354 | M20: 8562 | N20: 8823 | O20: 9043 | P20: 9270 | Q20: 9501 | R20: 9644 | S20: 9835 | T20: 9983 | U20: 10133 | V20: 11542 | W20: 13536 | Z20: 57 | AA20: 4263 | AB20: 4584 | AC20: 4934 | AD20: 5373 | AE20: 5597 | AF20: 5952 | AG20: 6274 | AH20: 6596 | AI20: 7128 | AJ20: 7618 | AK20: 8154 | AL20: 8358 | AM20: 8567 | AN20: 8827 | AO20: 9048 | AP20: 9274 | AQ20: 9413 | AR20: 9554 | AS20: 9744 | AT20: 9890 | AU20: 11220 | AV20: 13096
A21: 59 | B21: 4441 | C21: 4790 | D21: 5166 | E21: 5550 | F21: 5793 | G21: 6175 | H21: 6606 | I21: 6961 | J21: 7448 | K21: 7981 | L21: 8567 | M21: 8827 | N21: 9048 | O21: 9274 | P21: 9506 | Q21: 9744 | R21: 9937 | S21: 10086 | T21: 10238 | U21: 10391 | V21: 11883 | W21: 13833 | Z21: 58 | AA21: 4352 | AB21: 4648 | AC21: 5087 | AD21: 5460 | AE21: 5692 | AF21: 6060 | AG21: 6396 | AH21: 6815 | AI21: 7283 | AJ21: 7794 | AK21: 8354 | AL21: 8562 | AM21: 8823 | AN21: 9043 | AO21: 9270 | AP21: 9501 | AQ21: 9644 | AR21: 9835 | AS21: 9983 | AT21: 10133 | AU21: 11542 | AV21: 13536
A22: 60 | B22: 4601 | C22: 4862 | D22: 5249 | E22: 5645 | F22: 5899 | G22: 6374 | H22: 6745 | I22: 7115 | J22: 7624 | K22: 8182 | L22: 8841 | M22: 9062 | N22: 9289 | O22: 9521 | P22: 9759 | Q22: 10051 | R22: 10202 | S22: 10355 | T22: 10510 | U22: 10668 | V22: 12247 | W22: 14130 | Z22: 59 | AA22: 4441 | AB22: 4790 | AC22: 5166 | AD22: 5550 | AE22: 5793 | AF22: 6175 | AG22: 6606 | AH22: 6961 | AI22: 7448 | AJ22: 7981 | AK22: 8567 | AL22: 8827 | AM22: 9048 | AN22: 9274 | AO22: 9506 | AP22: 9744 | AQ22: 9937 | AR22: 10086 | AS22: 10238 | AT22: 10391 | AU22: 11883 | AV22: 13833
A23: 61 | B23: 4692 | C23: 4936 | D23: 5335 | E23: 5745 | F23: 6086 | G23: 6503 | H23: 6890 | I23: 7278 | J23: 7810 | K23: 8439 | L23: 9086 | M23: 9313 | N23: 9546 | O23: 9785 | P23: 10077 | Q23: 10329 | R23: 10484 | S23: 10641 | T23: 10801 | U23: 11054 | V23: 12682 | W23: 14543 | Z23: 60 | AA23: 4601 | AB23: 4862 | AC23: 5249 | AD23: 5645 | AE23: 5899 | AF23: 6374 | AG23: 6745 | AH23: 7115 | AI23: 7624 | AJ23: 8182 | AK23: 8841 | AL23: 9062 | AM23: 9289 | AN23: 9521 | AO23: 9759 | AP23: 10051 | AQ23: 10202 | AR23: 10355 | AS23: 10510 | AT23: 10668 | AU23: 12247 | AV23: 14130
A24: 62 | B24: 4782 | C24: 5014 | D24: 5426 | E24: 5923 | F24: 6204 | G24: 6638 | H24: 7045 | I24: 7451 | J24: 8049 | K24: 8665 | L24: 9346 | M24: 9580 | N24: 9819 | O24: 10113 | P24: 10366 | Q24: 10625 | R24: 10784 | S24: 10946 | T24: 11203 | U24: 11371 | V24: 13096 | W24: 14908 | Z24: 61 | AA24: 4692 | AB24: 4936 | AC24: 5335 | AD24: 5745 | AE24: 6086 | AF24: 6503 | AG24: 6890 | AH24: 7278 | AI24: 7810 | AJ24: 8439 | AK24: 9086 | AL24: 9313 | AM24: 9546 | AN24: 9785 | AO24: 10077 | AP24: 10329 | AQ24: 10484 | AR24: 10641 | AS24: 10801 | AT24: 11054 | AU24: 12682 | AV24: 14543
A25: 63 | B25: 4845 | C25: 5094 | D25: 5589 | E25: 6033 | F25: 6328 | G25: 6781 | H25: 7207 | I25: 7674 | J25: 8260 | K25: 8906 | L25: 9623 | M25: 9864 | N25: 10159 | O25: 10412 | P25: 10673 | Q25: 10940 | R25: 11104 | S25: 11364 | T25: 11535 | U25: 11708 | V25: 13536 | W25: 15245 | Z25: 62 | AA25: 4782 | AB25: 5014 | AC25: 5426 | AD25: 5923 | AE25: 6204 | AF25: 6638 | AG25: 7045 | AH25: 7451 | AI25: 8049 | AJ25: 8665 | AK25: 9346 | AL25: 9580 | AM25: 9819 | AN25: 10113 | AO25: 10366 | AP25: 10625 | AQ25: 10784 | AR25: 10946 | AS25: 11203 | AT25: 11371 | AU25: 13096 | AV25: 14908
A26: 64 | B26: 4908 | C26: 5242 | D26: 5687 | E26: 6148 | F26: 6458 | G26: 6929 | H26: 7416 | I26: 7867 | J26: 8482 | K26: 9163 | L26: 9918 | M26: 10214 | N26: 10470 | O26: 10731 | P26: 11000 | Q26: 11275 | R26: 11539 | S26: 11712 | T26: 11888 | U26: 12066 | V26: 13833 | W26: 15400 | Z26: 63 | AA26: 4845 | AB26: 5094 | AC26: 5589 | AD26: 6033 | AE26: 6328 | AF26: 6781 | AG26: 7207 | AH26: 7674 | AI26: 8260 | AJ26: 8906 | AK26: 9623 | AL26: 9864 | AM26: 10159 | AN26: 10412 | AO26: 10673 | AP26: 10940 | AQ26: 11104 | AR26: 11364 | AS26: 11535 | AT26: 11708 | AU26: 13536 | AV26: 15245
A27: 65 | B27: 5034 | C27: 5329 | D27: 5790 | E27: 6268 | F27: 6594 | G27: 7123 | H27: 7597 | I27: 8070 | J27: 8717 | K27: 9434 | L27: 10281 | M27: 10538 | N27: 10802 | O27: 11072 | P27: 11349 | Q27: 11729 | R27: 11905 | S27: 12084 | T27: 12265 | U27: 12449 | V27: 14130 | W27: 15555 | Z27: 64 | AA27: 4908 | AB27: 5242 | AC27: 5687 | AD27: 6148 | AE27: 6458 | AF27: 6929 | AG27: 7416 | AH27: 7867 | AI27: 8482 | AJ27: 9163 | AK27: 9918 | AL27: 10214 | AM27: 10470 | AN27: 10731 | AO27: 11000 | AP27: 11275 | AQ27: 11539 | AR27: 11712 | AS27: 11888 | AT27: 12066 | AU27: 13833 | AV27: 15400
A28: 66 | B28: 5097 | C28: 5418 | D28: 5896 | E28: 6392 | F28: 6771 | G28: 7288 | H28: 7787 | I28: 8285 | J28: 8965 | K28: 9768 | L28: 10618 | M28: 10883 | N28: 11155 | O28: 11434 | P28: 11817 | Q28: 12113 | R28: 12295 | S28: 12479 | T28: 12666 | U28: 12903 | V28: 14543 | W28: 15633 | Z28: 65 | AA28: 5034 | AB28: 5329 | AC28: 5790 | AD28: 6268 | AE28: 6594 | AF28: 7123 | AG28: 7597 | AH28: 8070 | AI28: 8717 | AJ28: 9434 | AK28: 10281 | AL28: 10538 | AM28: 10802 | AN28: 11072 | AO28: 11349 | AP28: 11729 | AQ28: 11905 | AR28: 12084 | AS28: 12265 | AT28: 12449 | AU28: 14130 | AV28: 15555
A29: 67 | B29: 5161 | C29: 5511 | D29: 6006 | E29: 6556 | F29: 6919 | G29: 7460 | H29: 7986 | I29: 8512 | J29: 9272 | K29: 10074 | L29: 10974 | M29: 11248 | N29: 11530 | O29: 11916 | P29: 12214 | Q29: 12520 | R29: 12707 | S29: 12898 | T29: 13139 | U29: 13336 | V29: 14908 | W29: 15711 | Z29: 66 | AA29: 5097 | AB29: 5418 | AC29: 5896 | AD29: 6392 | AE29: 6771 | AF29: 7288 | AG29: 7787 | AH29: 8285 | AI29: 8965 | AJ29: 9768 | AK29: 10618 | AL29: 10883 | AM29: 11155 | AN29: 11434 | AO29: 11817 | AP29: 12113 | AQ29: 12295 | AR29: 12479 | AS29: 12666 | AT29: 12903 | AU29: 14543 | AV29: 15633
A30: 68 | B30: 5167 | C30: 5607 | D30: 6153 | E30: 6694 | F30: 7077 | G30: 7644 | H30: 8178 | I30: 8753 | J30: 9510 | K30: 10357 | L30: 11215 | M30: 11495 | N30: 11881 | O30: 12178 | P30: 12482 | Q30: 12794 | R30: 12986 | S30: 13229 | T30: 13427 | U30: 13629 | V30: 15245 | W30: 15790 | Z30: 67 | AA30: 5161 | AB30: 5511 | AC30: 6006 | AD30: 6556 | AE30: 6919 | AF30: 7460 | AG30: 7986 | AH30: 8512 | AI30: 9272 | AJ30: 10074 | AK30: 10974 | AL30: 11248 | AM30: 11530 | AN30: 11916 | AO30: 12214 | AP30: 12520 | AQ30: 12707 | AR30: 12898 | AS30: 13139 | AT30: 13336 | AU30: 14908 | AV30: 15711
A31: 69 | B31: 5172 | C31: 5733 | D31: 6269 | E31: 6831 | F31: 7234 | G31: 7828 | H31: 8409 | I31: 8953 | J31: 9748 | K31: 10639 | L31: 11456 | M31: 11840 | N31: 12136 | O31: 12439 | P31: 12750 | Q31: 13069 | R31: 13313 | S31: 13513 | T31: 13716 | U31: 13921 | V31: 15400 | W31: 15869 | Z31: 68 | AA31: 5167 | AB31: 5607 | AC31: 6153 | AD31: 6694 | AE31: 7077 | AF31: 7644 | AG31: 8178 | AH31: 8753 | AI31: 9510 | AJ31: 10357 | AK31: 11215 | AL31: 11495 | AM31: 11881 | AN31: 12178 | AO31: 12482 | AP31: 12794 | AQ31: 12986 | AR31: 13229 | AS31: 13427 | AT31: 13629 | AU31: 15245 | AV31: 15790
A32: 70 | B32: 5205 | C32: 5833 | D32: 6390 | E32: 6976 | F32: 7402 | G32: 8064 | H32: 8640 | I32: 9216 | J32: 10055 | K32: 11000 | L32: 11849 | M32: 12145 | N32: 12449 | O32: 12760 | P32: 13079 | Q32: 13455 | R32: 13656 | S32: 13861 | T32: 14069 | U32: 14280 | V32: 15555 | W32: 15932 | Z32: 69 | AA32: 5172 | AB32: 5733 | AC32: 6269 | AD32: 6831 | AE32: 7234 | AF32: 7828 | AG32: 8409 | AH32: 8953 | AI32: 9748 | AJ32: 10639 | AK32: 11456 | AL32: 11840 | AM32: 12136 | AN32: 12439 | AO32: 12750 | AP32: 13069 | AQ32: 13313 | AR32: 13513 | AS32: 13716 | AT32: 13921 | AU32: 15400 | AV32: 15869
A33: 71 | B33: 5211 | C33: 5936 | D33: 6515 | E33: 7126 | F33: 7612 | G33: 8270 | H33: 8881 | I33: 9493 | J33: 10381 | K33: 11307 | L33: 12146 | M33: 12450 | N33: 12761 | O33: 13080 | P33: 13456 | Q33: 13793 | R33: 13999 | S33: 14209 | T33: 14423 | U33: 14688 | V33: 15633 | W33: 15995 | Z33: 70 | AA33: 5205 | AB33: 5833 | AC33: 6390 | AD33: 6976 | AE33: 7402 | AF33: 8064 | AG33: 8640 | AH33: 9216 | AI33: 10055 | AJ33: 11000 | AK33: 11849 | AL33: 12145 | AM33: 12449 | AN33: 12760 | AO33: 13079 | AP33: 13455 | AQ33: 13656 | AR33: 13861 | AS33: 14069 | AT33: 14280 | AU33: 15555 | AV33: 15932
A34: 72 | B34: 5216 | C34: 6040 | D34: 6643 | E34: 7315 | F34: 7793 | G34: 8484 | H34: 9133 | I34: 9783 | J34: 10814 | K34: 11618 | L34: 12421 | M34: 12732 | N34: 13050 | O34: 13425 | P34: 13760 | Q34: 14104 | R34: 14316 | S34: 14531 | T34: 14798 | U34: 15020 | V34: 15711 | W34: 15995 | Z34: 71 | AA34: 5211 | AB34: 5936 | AC34: 6515 | AD34: 7126 | AE34: 7612 | AF34: 8270 | AG34: 8881 | AH34: 9493 | AI34: 10381 | AJ34: 11307 | AK34: 12146 | AL34: 12450 | AM34: 12761 | AN34: 13080 | AO34: 13456 | AP34: 13793 | AQ34: 13999 | AR34: 14209 | AS34: 14423 | AT34: 14688 | AU34: 15633 | AV34: 15995
A35: 73 | B35: 5235 | C35: 6146 | D35: 6807 | E35: 7477 | F35: 7984 | G35: 8712 | H35: 9305 | I35: 10076 | J35: 11074 | K35: 11811 | L35: 12547 | M35: 12861 | N35: 13230 | O35: 13561 | P35: 13900 | Q35: 14248 | R35: 14461 | S35: 14727 | T35: 14948 | U35: 15173 | V35: 15790 | W35: 15995 | Z35: 72 | AA35: 5216 | AB35: 6040 | AC35: 6643 | AD35: 7315 | AE35: 7793 | AF35: 8484 | AG35: 9133 | AH35: 9783 | AI35: 10814 | AJ35: 11618 | AK35: 12421 | AL35: 12732 | AM35: 13050 | AN35: 13425 | AO35: 13760 | AP35: 14104 | AQ35: 14316 | AR35: 14531 | AS35: 14798 | AT35: 15020 | AU35: 15711 | AV35: 15995
Z36: 73 | AA36: 5235 | AB36: 6146 | AC36: 6807 | AD36: 7477 | AE36: 7984 | AF36: 8712 | AG36: 9305 | AH36: 10076 | AI36: 11074 | AJ36: 11811 | AK36: 12547 | AL36: 12861 | AM36: 13230 | AN36: 13561 | AO36: 13900 | AP36: 14248 | AQ36: 14461 | AR36: 14727 | AS36: 14948 | AT36: 15173 | AU36: 15790 | AV36: 15995

Sheet Phoenix (hidden)
A1: Single | B1: 50 | C1: =B1+1 -> 51 | D1: =C1+1 -> 52 | E1: 53 | F1: 54 | G1: 55 | H1: 56 | I1: 57 | J1: 58 | K1: 59 | L1: 60 | M1: 61 | N1: 62 | O1: 63 | P1: 64 | Q1: 65 | R1: 66 | S1: 67 | T1: 68 | U1: 69 | V1: 70 | W1: 71 | X1: 72 | Y1: 73 | Z1: 74 | AA1: 75
A2: 0 | B2: 3830 | C2: 3910 | D2: 3980 | E2: 4040 | F2: 4100 | G2: 4150 | H2: 4210 | I2: 4270 | J2: 4310 | K2: 4380 | L2: 4450 | M2: 4510 | N2: 4580 | O2: 4650 | P2: 4770 | Q2: 4900 | R2: 5010 | S2: 5060 | T2: 5100 | U2: 5190 | V2: 5280 | W2: 5360 | X2: 5420 | Y2: 5480 | Z2: 5550 | AA2: 5680
A3: =A2+1 -> 1 | B3: 4166 | C3: 4211 | D3: 4278 | E3: 4334 | F3: 4390 | G3: 4446 | H3: 4514 | I3: 4558 | J3: 4637 | K3: 4704 | L3: 4771 | M3: 4850 | N3: 4917 | O3: 5040 | P3: 5174 | Q3: 5320 | R3: 5354 | S3: 5387 | T3: 5488 | U3: 5589 | V3: 5690 | W3: 5768 | X3: 5858 | Y3: 6003 | Z3: 6160 | AA3: 6306
A4: 2 | B4: 4566 | C4: 4629 | D4: 4704 | E4: 4754 | F4: 4817 | G4: 4892 | H4: 4942 | I4: 5018 | J4: 5105 | K4: 5168 | L4: 5256 | M4: 5331 | N4: 5469 | O4: 5620 | P4: 5758 | Q4: 5795 | R4: 5846 | S4: 5946 | T4: 6059 | U4: 6159 | V4: 6259 | W4: 6347 | X4: 6510 | Y4: 6673 | Z4: 6836 | AA4: 7000
A5: 3 | B5: 4889 | C5: 4959 | D5: 5016 | E5: 5086 | F5: 5156 | G5: 5212 | H5: 5297 | I5: 5381 | J5: 5451 | K5: 5535 | L5: 5620 | M5: 5760 | N5: 5915 | O5: 6069 | P5: 6111 | Q5: 6154 | R5: 6280 | S5: 6406 | T5: 6561 | U5: 6702 | V5: 6828 | W5: 6968 | X5: 7109 | Y5: 7235 | Z5: 7502 | AA5: 7783
A6: 4 | B6: 5743 | C6: 5853 | D6: 5964 | E6: 6074 | F6: 6200 | G6: 6310 | H6: 6546 | I6: 6609 | J6: 6719 | K6: 6861 | L6: 6939 | M6: 7097 | N6: 7207 | O6: 7348 | P6: 7490 | Q6: 7632 | R6: 7931 | S6: 7993 | T6: 8119 | U6: 8292 | V6: 8466 | W6: 8717 | X6: 8922 | Y6: 9126 | Z6: 9331 | AA6: 9488
A7: 5 | B7: 6133 | C7: 6256 | D7: 6380 | E7: 6503 | F7: 6626 | G7: 7190 | H7: 7190 | I7: 7190 | J7: 7226 | K7: 7384 | L7: 7684 | M7: 7684 | N7: 7825 | O7: 7983 | P7: 8142 | Q7: 8442 | R7: 8494 | S7: 8688 | T7: 8865 | U7: 9058 | V7: 9288 | W7: 9517 | X7: 9746 | Y7: 9992 | Z7: 10239 | AA7: 10504
A8: 6 | B8: 6514 | C8: 6652 | D8: 6770 | E8: 6908 | F8: 7204 | G8: 7264 | H8: 7422 | I8: 7579 | J8: 7737 | K8: 7895 | L8: 8053 | M8: 8231 | N8: 8428 | O8: 8606 | P8: 8803 | Q8: 9001 | R8: 9218 | S8: 9435 | T8: 9652 | U8: 9869 | V8: 10106 | W8: 10402 | X8: 10698 | Y8: 10994 | Z8: 11310 | AA8: 11646
A9: 7 | B9: 6897 | C9: 7052 | D9: 7207 | E9: 7362 | F9: 7516 | G9: 7671 | H9: 7914 | I9: 8091 | J9: 8246 | K9: 8423 | L9: 8600 | M9: 8821 | N9: 9042 | O9: 9263 | P9: 9484 | Q9: 9727 | R9: 9992 | S9: 10235 | T9: 10523 | U9: 10788 | V9: 11076 | W9: 11407 | X9: 11761 | Y9: 12137 | Z9: 12446 | AA9: 12888
A10: 8 | B10: 7354 | C10: 7552 | D10: 7750 | E10: 7948 | F10: 8146 | G10: 8369 | H10: 8542 | I10: 8790 | J10: 8913 | K10: 9112 | L10: 9310 | M10: 9557 | N10: 9830 | O10: 10151 | P10: 10374 | Q10: 10647 | R10: 10969 | S10: 11315 | T10: 11662 | U10: 12008 | V10: 12256 | W10: 12306 | X10: 13197 | Y10: 13494 | Z10: 13568 | AA10: 14039
A11: 9 | B11: 7848 | C11: 8070 | D11: 8236 | E11: 8236 | F11: 8430 | G11: 8624 | H11: 9179 | I11: 9207 | J11: 9207 | K11: 9872 | L11: 10039 | M11: 10039 | N11: 10704 | O11: 11037 | P11: 11342 | Q11: 11675 | R11: 12063 | S11: 12479 | T11: 12923 | U11: 13033 | V11: 13117 | W11: 14115 | X11: 14115 | Y11: 14448 | Z11: 14864 | AA11: 15280
A12: 10 | B12: 8386 | C12: 8572 | D12: 8914 | E12: 9038 | F12: 9255 | G12: 9318 | H12: 9535 | I12: 10156 | J12: 10405 | K12: 10684 | L12: 10746 | M12: 10902 | N12: 11678 | O12: 12051 | P12: 12423 | Q12: 12827 | R12: 13293 | S12: 13790 | T12: 13914 | U12: 13914 | V12: 15063 | W12: 15063 | X12: 15343 | Y12: 15871 | Z12: 16181 | AA12: 16523
A13: 11 | B13: 8572 | C13: 8914 | D13: 9038 | E13: 9255 | F13: 9318 | G13: 9535 | H13: 10156 | I13: 10405 | J13: 10684 | K13: 10746 | L13: 10902 | M13: 11678 | N13: 12051 | O13: 12423 | P13: 12827 | Q13: 13293 | R13: 13790 | S13: 13914 | T13: 13914 | U13: 15063 | V13: 15063 | W13: 15343 | X13: 15871 | Y13: 16181 | Z13: 16523 | AA13: 19971
A14: 12 | B14: 8914 | C14: 9038 | D14: 9255 | E14: 9318 | F14: 9535 | G14: 10156 | H14: 10405 | I14: 10684 | J14: 10746 | K14: 10902 | L14: 11678 | M14: 12051 | N14: 12423 | O14: 12827 | P14: 13293 | Q14: 13790 | R14: 13914 | S14: 13914 | T14: 15063 | U14: 15063 | V14: 15343 | W14: 15871 | X14: 16181 | Y14: 16523 | Z14: 19971 | AA14: 20778
A15: 13 | B15: 9038 | C15: 9255 | D15: 9318 | E15: 9535 | F15: 10156 | G15: 10405 | H15: 10684 | I15: 10746 | J15: 10902 | K15: 11678 | L15: 12051 | M15: 12423 | N15: 12827 | O15: 13293 | P15: 13790 | Q15: 13914 | R15: 13914 | S15: 15063 | T15: 15063 | U15: 15343 | V15: 15871 | W15: 16181 | X15: 16523 | Y15: 19971 | Z15: 20778 | AA15: 21586
A16: 14 | B16: 9255 | C16: 9318 | D16: 9535 | E16: 10156 | F16: 10405 | G16: 10684 | H16: 10746 | I16: 10902 | J16: 11678 | K16: 12051 | L16: 12423 | M16: 12827 | N16: 13293 | O16: 13790 | P16: 13914 | Q16: 13914 | R16: 15063 | S16: 15063 | T16: 15343 | U16: 15871 | V16: 16181 | W16: 16523 | X16: 19971 | Y16: 20778 | Z16: 21586 | AA16: 21741
A17: 15 | B17: 9318 | C17: 9535 | D17: 10156 | E17: 10405 | F17: 10684 | G17: 10746 | H17: 10902 | I17: 11678 | J17: 12051 | K17: 12423 | L17: 12827 | M17: 13293 | N17: 13790 | O17: 13914 | P17: 13914 | Q17: 15063 | R17: 15063 | S17: 15343 | T17: 15871 | U17: 16181 | V17: 16523 | W17: 19971 | X17: 20778 | Y17: 21586 | Z17: 21741 | AA17: 23294
A18: 16 | B18: 9535 | C18: 10156 | D18: 10405 | E18: 10684 | F18: 10746 | G18: 10902 | H18: 11678 | I18: 12051 | J18: 12423 | K18: 12827 | L18: 13293 | M18: 13790 | N18: 13914 | O18: 13914 | P18: 15063 | Q18: 15063 | R18: 15343 | S18: 15871 | T18: 16181 | U18: 16523 | V18: 19971 | W18: 20778 | X18: 21586 | Y18: 21741 | Z18: 23294 | AA18: 23294
A19: 17 | B19: 10156 | C19: 10405 | D19: 10684 | E19: 10746 | F19: 10902 | G19: 11678 | H19: 12051 | I19: 12423 | J19: 12827 | K19: 13293 | L19: 13790 | M19: 13914 | N19: 13914 | O19: 15063 | P19: 15063 | Q19: 15343 | R19: 15871 | S19: 16181 | T19: 16523 | U19: 19971 | V19: 20778 | W19: 21586 | X19: 21741 | Y19: 23294 | Z19: 23294 | AA19: 23294
A20: 18 | B20: 10405 | C20: 10684 | D20: 10746 | E20: 10902 | F20: 11678 | G20: 12051 | H20: 12423 | I20: 12827 | J20: 13293 | K20: 13790 | L20: 13914 | M20: 13914 | N20: 15063 | O20: 15063 | P20: 15343 | Q20: 15871 | R20: 16181 | S20: 16523 | T20: 19971 | U20: 20778 | V20: 21586 | W20: 21741 | X20: 23294 | Y20: 23294 | Z20: 23294 | AA20: 23294
A21: 19 | B21: 10684 | C21: 10746 | D21: 10902 | E21: 11678 | F21: 12051 | G21: 12423 | H21: 12827 | I21: 13293 | J21: 13790 | K21: 13914 | L21: 13914 | M21: 15063 | N21: 15063 | O21: 15343 | P21: 15871 | Q21: 16181 | R21: 16523 | S21: 19971 | T21: 20778 | U21: 21586 | V21: 21741 | W21: 23294 | X21: 23294 | Y21: 23294 | Z21: 23294 | AA21: 23294
A24: Joint | B24: 50 | C24: =B24+1 -> 51 | D24: 52 | E24: 53 | F24: 54 | G24: 55 | H24: 56 | I24: 57 | J24: 58 | K24: 59 | L24: 60 | M24: 61 | N24: 62 | O24: 63 | P24: 64 | Q24: 65 | R24: 66 | S24: 67 | T24: 68 | U24: 69 | V24: 70 | W24: 71 | X24: 72 | Y24: 73 | Z24: 74 | AA24: 75
A25: 0 | B25: 3330 | C25: 3410 | D25: 3480 | E25: 3540 | F25: 3600 | G25: 3650 | H25: 3710 | I25: 3770 | J25: 3810 | K25: 3880 | L25: 3950 | M25: 4010 | N25: 4080 | O25: 4150 | P25: 4270 | Q25: 4400 | R25: 4510 | S25: 4560 | T25: 4600 | U25: 4690 | V25: 4780 | W25: 4860 | X25: 4920 | Y25: 4980 | Z25: 5050 | AA25: 5180
A26: =A25+1 -> 1 | B26: 3606 | C26: 3651 | D26: 3718 | E26: 3774 | F26: 3830 | G26: 3886 | H26: 3954 | I26: 3998 | J26: 4077 | K26: 4144 | L26: 4211 | M26: 4290 | N26: 4357 | O26: 4480 | P26: 4614 | Q26: 4760 | R26: 4794 | S26: 4827 | T26: 4928 | U26: 5029 | V26: 5130 | W26: 5208 | X26: 5298 | Y26: 5443 | Z26: 5600 | AA26: 5746
A27: 2 | B27: 3939 | C27: 4002 | D27: 4077 | E27: 4127 | F27: 4190 | G27: 4265 | H27: 4315 | I27: 4390 | J27: 4478 | K27: 4541 | L27: 4629 | M27: 4704 | N27: 4842 | O27: 4993 | P27: 5130 | Q27: 5168 | R27: 5218 | S27: 5319 | T27: 5432 | U27: 5532 | V27: 5632 | W27: 5720 | X27: 5883 | Y27: 6046 | Z27: 6209 | AA27: 6372
A28: 3 | B28: 4187 | C28: 4257 | D28: 4313 | E28: 4383 | F28: 4454 | G28: 4510 | H28: 4594 | I28: 4678 | J28: 4749 | K28: 4833 | L28: 4917 | M28: 5058 | N28: 5212 | O28: 5367 | P28: 5409 | Q28: 5451 | R28: 5578 | S28: 5704 | T28: 5859 | U28: 5999 | V28: 6125 | W28: 6266 | X28: 6406 | Y28: 6533 | Z28: 6800 | AA28: 7081
A29: 4 | B29: 4957 | C29: 5067 | D29: 5177 | E29: 5287 | F29: 5413 | G29: 5523 | H29: 5759 | I29: 5822 | J29: 5932 | K29: 6074 | L29: 6152 | M29: 6310 | N29: 6420 | O29: 6562 | P29: 6703 | Q29: 6845 | R29: 7144 | S29: 7207 | T29: 7333 | U29: 7506 | V29: 7679 | W29: 7931 | X29: 8135 | Y29: 8340 | Z29: 8544 | AA29: 8702
A30: 5 | B30: 5252 | C30: 5375 | D30: 5499 | E30: 5622 | F30: 5745 | G30: 6309 | H30: 6309 | I30: 6309 | J30: 6344 | K30: 6503 | L30: 6803 | M30: 6803 | N30: 6944 | O30: 7102 | P30: 7261 | Q30: 7560 | R30: 7613 | S30: 7807 | T30: 7983 | U30: 8177 | V30: 8406 | W30: 8635 | X30: 8865 | Y30: 9111 | Z30: 9358 | AA30: 9622
A31: 6 | B31: 5527 | C31: 5665 | D31: 5783 | E31: 5921 | F31: 6218 | G31: 6277 | H31: 6435 | I31: 6593 | J31: 6750 | K31: 6908 | L31: 7066 | M31: 7244 | N31: 7441 | O31: 7619 | P31: 7816 | Q31: 8014 | R31: 8231 | S31: 8448 | T31: 8665 | U31: 8882 | V31: 9119 | W31: 9415 | X31: 9711 | Y31: 10007 | Z31: 10323 | AA31: 10659
A32: 7 | B32: 5792 | C32: 5947 | D32: 6101 | E32: 6256 | F32: 6411 | G32: 6566 | H32: 6809 | I32: 6986 | J32: 7141 | K32: 7317 | L32: 7494 | M32: 7715 | N32: 7936 | O32: 8157 | P32: 8378 | Q32: 8622 | R32: 8887 | S32: 9130 | T32: 9418 | U32: 9683 | V32: 9970 | W32: 10302 | X32: 10655 | Y32: 11031 | Z32: 11341 | AA32: 11783
A33: 8 | B33: 6116 | C33: 6314 | D33: 6512 | E33: 6710 | F33: 6908 | G33: 7131 | H33: 7304 | I33: 7552 | J33: 7675 | K33: 7874 | L33: 8072 | M33: 8319 | N33: 8592 | O33: 8913 | P33: 9136 | Q33: 9409 | R33: 9731 | S33: 10077 | T33: 10424 | U33: 10770 | V33: 11018 | W33: 11068 | X33: 11959 | Y33: 12256 | Z33: 12330 | AA33: 12801
A34: 9 | B34: 6461 | C34: 6683 | D34: 6850 | E34: 6850 | F34: 7044 | G34: 7238 | H34: 7792 | I34: 7820 | J34: 7820 | K34: 8486 | L34: 8652 | M34: 8652 | N34: 9318 | O34: 9650 | P34: 9955 | Q34: 10288 | R34: 10676 | S34: 11092 | T34: 11536 | U34: 11647 | V34: 11730 | W34: 12728 | X34: 12728 | Y34: 13061 | Z34: 13477 | AA34: 13893
A35: 10 | B35: 6833 | C35: 7019 | D35: 7361 | E35: 7485 | F35: 7703 | G35: 7765 | H35: 7982 | I35: 8603 | J35: 8852 | K35: 9131 | L35: 9193 | M35: 9349 | N35: 10125 | O35: 10498 | P35: 10870 | Q35: 11274 | R35: 11740 | S35: 12237 | T35: 12361 | U35: 12361 | V35: 13510 | W35: 13510 | X35: 13790 | Y35: 14318 | Z35: 14629 | AA35: 14970
A36: 11 | B36: 7019 | C36: 7361 | D36: 7485 | E36: 7703 | F36: 7765 | G36: 7982 | H36: 8603 | I36: 8852 | J36: 9131 | K36: 9193 | L36: 9349 | M36: 10125 | N36: 10498 | O36: 10870 | P36: 11274 | Q36: 11740 | R36: 12237 | S36: 12361 | T36: 12361 | U36: 13510 | V36: 13510 | W36: 13790 | X36: 14318 | Y36: 14629 | Z36: 14970 | AA36: 18418
A37: 12 | B37: 7361 | C37: 7485 | D37: 7703 | E37: 7765 | F37: 7982 | G37: 8603 | H37: 8852 | I37: 9131 | J37: 9193 | K37: 9349 | L37: 10125 | M37: 10498 | N37: 10870 | O37: 11274 | P37: 11740 | Q37: 12237 | R37: 12361 | S37: 12361 | T37: 13510 | U37: 13510 | V37: 13790 | W37: 14318 | X37: 14629 | Y37: 14970 | Z37: 18418 | AA37: 19225
A38: 13 | B38: 7485 | C38: 7703 | D38: 7765 | E38: 7982 | F38: 8603 | G38: 8852 | H38: 9131 | I38: 9193 | J38: 9349 | K38: 10125 | L38: 10498 | M38: 10870 | N38: 11274 | O38: 11740 | P38: 12237 | Q38: 12361 | R38: 12361 | S38: 13510 | T38: 13510 | U38: 13790 | V38: 14318 | W38: 14629 | X38: 14970 | Y38: 18418 | Z38: 19225 | AA38: 20033
A39: 14 | B39: 7703 | C39: 7765 | D39: 7982 | E39: 8603 | F39: 8852 | G39: 9131 | H39: 9193 | I39: 9349 | J39: 10125 | K39: 10498 | L39: 10870 | M39: 11274 | N39: 11740 | O39: 12237 | P39: 12361 | Q39: 12361 | R39: 13510 | S39: 13510 | T39: 13790 | U39: 14318 | V39: 14629 | W39: 14970 | X39: 18418 | Y39: 19225 | Z39: 20033 | AA39: 20188
A40: 15 | B40: 7765 | C40: 7982 | D40: 8603 | E40: 8852 | F40: 9131 | G40: 9193 | H40: 9349 | I40: 10125 | J40: 10498 | K40: 10870 | L40: 11274 | M40: 11740 | N40: 12237 | O40: 12361 | P40: 12361 | Q40: 13510 | R40: 13510 | S40: 13790 | T40: 14318 | U40: 14629 | V40: 14970 | W40: 18418 | X40: 19225 | Y40: 20033 | Z40: 20188 | AA40: 21741
A41: 16 | B41: 7982 | C41: 8603 | D41: 8852 | E41: 9131 | F41: 9193 | G41: 9349 | H41: 10125 | I41: 10498 | J41: 10870 | K41: 11274 | L41: 11740 | M41: 12237 | N41: 12361 | O41: 12361 | P41: 13510 | Q41: 13510 | R41: 13790 | S41: 14318 | T41: 14629 | U41: 14970 | V41: 18418 | W41: 19225 | X41: 20033 | Y41: 20188 | Z41: 21741 | AA41: 21741
A42: 17 | B42: 8603 | C42: 8852 | D42: 9131 | E42: 9193 | F42: 9349 | G42: 10125 | H42: 10498 | I42: 10870 | J42: 11274 | K42: 11740 | L42: 12237 | M42: 12361 | N42: 12361 | O42: 13510 | P42: 13510 | Q42: 13790 | R42: 14318 | S42: 14629 | T42: 14970 | U42: 18418 | V42: 19225 | W42: 20033 | X42: 20188 | Y42: 21741 | Z42: 21741 | AA42: 21741
A43: 18 | B43: 8852 | C43: 9131 | D43: 9193 | E43: 9349 | F43: 10125 | G43: 10498 | H43: 10870 | I43: 11274 | J43: 11740 | K43: 12237 | L43: 12361 | M43: 12361 | N43: 13510 | O43: 13510 | P43: 13790 | Q43: 14318 | R43: 14629 | S43: 14970 | T43: 18418 | U43: 19225 | V43: 20033 | W43: 20188 | X43: 21741 | Y43: 21741 | Z43: 21741 | AA43: 21741
A44: 19 | B44: 9131 | C44: 9193 | D44: 9349 | E44: 10125 | F44: 10498 | G44: 10870 | H44: 11274 | I44: 11740 | J44: 12237 | K44: 12361 | L44: 12361 | M44: 13510 | N44: 13510 | O44: 13790 | P44: 14318 | Q44: 14629 | R44: 14970 | S44: 18418 | T44: 19225 | U44: 20033 | V44: 20188 | W44: 21741 | X44: 21741 | Y44: 21741 | Z44: 21741 | AA44: 21741

Sheet AltiSure (hidden)
A1: NG | B1: 50 | C1: 75 | D1: 100 | G1: NG Bonus | H1: 50 | I1: 75 | J1: 100
A2: 50 | B2: 0.0385 | C2: 0.034 | D2: 0.03 | G2: 50 | H2: 0.0345 | I2: 0.031 | J2: 0.0275
A3: 51 | B3: 0.04 | C3: 0.035 | D3: 0.031 | G3: 51 | H3: 0.036 | I3: 0.0315 | J3: 0.0275
A4: 56 | B4: 0.042 | C4: 0.037 | D4: 0.031 | G4: 56 | H4: 0.0375 | I4: 0.0325 | J4: 0.0275
A5: 61 | B5: 0.045 | C5: 0.038 | D5: 0.031 | G5: 61 | H5: 0.039 | I5: 0.033 | J5: 0.0265
A6: 66 | B6: 0.047 | C6: 0.04 | D6: 0.031 | G6: 66 | H6: 0.0405 | I6: 0.033 | J6: 0.0235
A7: 71 | B7: 0.0475 | C7: 0.04 | D7: 0.028 | G7: 71 | H7: 0.04 | I7: 0.032 | J7: 0.02
A8: 76 | B8: 0.04 | C8: 0.0425 | D8: 0.0275 | G8: 76 | H8: 0.041 | I8: 0.032 | J8: 0.0175
A9: 81 | B9: 0.06 | C9: 0.046 | D9: 0.027 | G9: 81 | H9: 0.0435 | I9: 0.0325 | J9: 0.015
D11: =INDEX(Table[Increase Type],MATCH("Next Generation",Table[Rider Name],0)) -> 0 | J11: =INDEX(Table[Increase Type],MATCH("Next Generation Bonus",Table[Rider Name],0)) -> 75
C12: Used | D12: =VLOOKUP(Age,A2:D9,MATCH(D11,A1:D1,0),TRUE) ->  | I12: Used | J12: =VLOOKUP(Age,G2:J9,MATCH(J11,G1:J1,0),TRUE) -> 0.0315
B16: 50 | C16: 75 | D16: 100 | H16: 50 | I16: 75 | J16: 100
A17: 50 | B17: 0.049 | C17: 0.042 | D17: 0.038 | G17: 50 | H17: 0.0435 | I17: 0.038 | J17: 0.0345
A18: 51 | B18: 0.05 | C18: 0.042 | D18: 0.038 | G18: 51 | H18: 0.045 | I18: 0.038 | J18: 0.0345
A19: 56 | B19: 0.055 | C19: 0.0485 | D19: 0.0395 | G19: 56 | H19: 0.049 | I19: 0.0425 | J19: 0.0355
A20: 61 | B20: 0.06 | C20: 0.052 | D20: 0.0425 | G20: 61 | H20: 0.0525 | I20: 0.045 | J20: 0.0365
A21: 66 | B21: 0.065 | C21: 0.055 | D21: 0.0425 | G21: 66 | H21: 0.056 | I21: 0.0475 | J21: 0.035
A22: 71 | B22: 0.07 | C22: 0.0575 | D22: 0.0425 | G22: 71 | H22: 0.058 | I22: 0.046 | J22: 0.0325
A23: 76 | B23: 0.08 | C23: 0.064 | D23: 0.045 | G23: 76 | H23: 0.065 | I23: 0.05 | J23: 0.03
A24: 81 | G24: 81

Sheet TVA (hidden)
B1: Fixed | C1: Fixed Guar | D1: Guar | E1: Recent 33/33/33 | F1: Worst 33/33/33 | G1: Median 33/33/33 | H1: Best 33/33/33 | I1: ALTVI Recent 75/25 | J1: ALTVI Worst 75/25 | K1: ALTVI Median 75/25 | L1: ALTVI Best 75/25 | M1: TVBI Recent 75/25 | N1: TVBI Worst 75/25 | O1: TVBI Median 75/25 | P1: TVBI Best 75/25
B2: 0.055 | C2: 0.05 | D2: 0.04 | E2: =E13^0.1-1 -> 0.08558657413 | F2: 0.08017512642 | G2: 0.09969301826 | H2: 0.1063627693 | I2: 0.06827383552 | J2: 0.06703524243 | K2: 0.1060854731 | L2: 0.1170767078 | M2: 0.1053424077 | N2: 0.09679427231 | O2: 0.1012301069 | P2: 0.104952294
A3: 0 | B3: =(1+B$2)^$A3 -> 1 | C3: 1 | D3: 1 | E3: 1 | F3: 1 | G3: 1 | H3: 1 | I3: 1 | J3: 1 | K3: 1 | L3: 1 | M3: 1 | N3: 1 | O3: 1 | P3: 1
A4: 1 | B4: 1.055 | C4: 1.05 | D4: 1.04 | E4: 1.064906646 | F4: 1.053757636 | G4: 1.065248506 | H4: 1.066274785 | I4: 1.057205587 | J4: 1.057205587 | K4: 1.072894816 | L4: 1.060284168 | M4: 1.071962472 | N4: 1.046875 | O4: 1.057042495 | P4: 1.071962472
A5: =A4+1 -> 2 | B5: 1.113025 | C5: 1.1025 | D5: 1.0816 | E5: 1.165212538 | F5: 1.112358263 | G5: 1.144970372 | H5: 1.180158581 | I5: 1.14362853 | J5: 1.13651032 | K5: 1.146760416 | L5: 1.177263118 | M5: 1.193232664 | N5: 1.08875 | O5: 1.144547792 | P5: 1.193232664
A6: 3 | B6: 1.174241375 | C6: 1.157625 | D6: 1.124864 | E6: 1.291210846 | F6: 1.214773478 | G6: 1.254560585 | H6: 1.353678351 | I6: 1.243766631 | J6: 1.229019565 | K6: 1.258339111 | L6: 1.384356705 | M6: 1.357409919 | N6: 1.215584876 | O6: 1.260351948 | P6: 1.357409919
A7: 4 | B7: 1.238824651 | C7: 1.21550625 | D7: 1.16985856 | E7: 1.471976815 | F7: 1.35820389 | G7: 1.418709876 | H7: 1.533805707 | I7: 1.384566523 | J7: 1.361696253 | K7: 1.398403548 | L7: 1.523732802 | M7: 1.602924229 | N7: 1.3941007 | O7: 1.469192418 | P7: 1.602924229
A8: 5 | B8: 1.306960006 | C8: 1.276281563 | D8: 1.216652902 | E8: 1.685280322 | F8: 1.542217986 | G8: 1.696082942 | H8: 1.755937838 | I8: 1.570810108 | J8: 1.546469346 | K8: 1.738188758 | L8: 1.729848112 | M8: 1.874807174 | N8: 1.603117219 | O8: 1.731743376 | P8: 1.874807174
A9: 6 | B9: 1.378842807 | C9: 1.340095641 | D9: 1.265319018 | E9: 1.761557541 | F9: 1.632774798 | G9: 1.771439156 | H9: 1.82895634 | I9: 1.653636919 | J9: 1.635546736 | K9: 1.807716308 | L9: 1.805302709 | M9: 1.949799461 | N9: 1.696187451 | O9: 1.81790854 | P9: 1.949799461
A10: 7 | B10: 1.454679161 | C10: 1.407100423 | D10: 1.315931779 | E10: 1.858895797 | F10: 1.757940817 | G10: 1.897890012 | H10: 1.964290484 | I10: 1.762987325 | J10: 1.743675866 | K10: 1.951210152 | L10: 2.017488725 | M10: 2.035290879 | N10: 1.846567592 | O10: 1.934619918 | P10: 2.02779144
A11: 8 | B11: 1.534686515 | C11: 1.477455444 | D11: 1.36856905 | E11: 2.011108408 | F11: 1.862165482 | G11: 2.087053811 | H11: 2.119608118 | I11: 1.895879671 | J11: 1.87527402 | K11: 2.147808553 | L11: 2.175934238 | M11: 2.218858009 | N11: 1.924895793 | O11: 2.13765173 | P11: 2.203714149
A12: 9 | B12: 1.619094273 | C12: 1.551328216 | D12: 1.423311812 | E12: 2.075443607 | F12: 1.972823319 | G12: 2.299010186 | H12: 2.381457606 | I12: 1.874336403 | J12: 1.859982275 | K12: 2.42784372 | L12: 2.58340298 | M12: 2.368326209 | N12: 2.16275487 | O12: 2.317973246 | P12: 2.359308033
A13: 10 | B13: 1.708144458 | C13: 1.628894627 | D13: 1.480244285 | E13: 2.27323658 | F13: 2.162428338 | G13: 2.586513075 | H13: 2.747739312 | I13: 1.93564592 | J13: 1.913320113 | K13: 2.740860203 | L13: 3.025728558 | M13: 2.722502739 | N13: 2.519136718 | O13: 2.622894135 | P13: 2.712909328
A14: 11 | B14: 1.802092404 | C14: 1.710339358 | D14: 1.539454056 | E14: 2.424221456 | F14: 2.270211155 | G14: 2.755480845 | H14: 2.929070181 | I14: 2.043825063 | J14: 2.019980486 | K14: 2.945815173 | L14: 3.20401776 | M14: 2.92298779 | N14: 2.625978593 | O14: 2.767323381 | P14: 2.912750161
A15: 12 | B15: 1.901207486 | C15: 1.795856326 | D15: 1.601032219 | E15: 2.682270396 | F15: 2.399538841 | G15: 2.970537993 | H15: 3.285063685 | I15: 2.21876324 | J15: 2.187898122 | K15: 3.15370225 | L15: 3.601405519 | M15: 3.294961739 | N15: 2.731017737 | O15: 3.010452501 | P15: 3.284064976
A16: 13 | B16: 2.005773897 | C16: 1.885649142 | D16: 1.665073507 | E16: 3.0285856 | F16: 2.669048637 | G16: 3.290155264 | H16: 3.878257215 | I16: 2.428040427 | J16: 2.391273505 | K16: 3.492861051 | L16: 4.346581762 | M16: 3.818624443 | N16: 3.112074605 | O16: 3.35072956 | P16: 3.804084163
A17: 14 | B17: 2.116091462 | C17: 1.979931599 | D17: 1.731676448 | E17: 3.563277246 | F17: 3.069601231 | G17: 3.808725495 | H17: 4.50114425 | I17: 2.740841563 | J17: 2.697235022 | K17: 3.917009037 | L17: 4.806101721 | M17: 4.604503748 | N17: 3.652385613 | O17: 3.988503634 | P17: 4.586971053
A18: 15 | B18: 2.232476492 | C18: 2.078928179 | D18: 1.800943506 | E18: 4.174267012 | F18: 3.551564513 | G18: 4.724232137 | H18: 5.262638796 | I18: 3.154678192 | J18: 3.107058886 | K18: 5.04530437 | L18: 5.531407391 | M18: 5.48751649 | N18: 4.269668253 | O18: 4.808367972 | P18: 5.466621524
A19: 16 | B19: 2.355262699 | C19: 2.182874588 | D19: 1.872981246 | E19: 4.363491672 | F19: 3.750286191 | G19: 4.939689311 | H19: 5.484495393 | I19: 3.329399472 | J19: 3.27914278 | K19: 5.247116545 | L19: 5.77632759 | M19: 5.70701715 | N19: 4.508834064 | O19: 5.056142034 | P19: 5.685286385
A20: 17 | B20: 2.484802148 | C20: 2.292018318 | D20: 1.947900496 | E20: 4.576746213 | F20: 4.053639919 | G20: 5.296648576 | H20: 5.954696558 | I20: 3.546839162 | J20: 3.493300256 | K20: 5.672052018 | L20: 6.529134306 | M20: 5.935297836 | N20: 4.921935195 | O20: 5.375441881 | P20: 5.91269784
A21: 18 | B21: 2.621466266 | C21: 2.406619234 | D21: 2.025816515 | E21: 4.974149713 | F21: 4.26800419 | G21: 5.864175457 | H21: 6.475993387 | I21: 3.815791785 | J21: 3.758193088 | K21: 6.266180061 | L21: 7.068328225 | M21: 6.486667799 | N21: 5.106270928 | O21: 5.965129853 | P21: 6.461968337
A22: 19 | B22: 2.765646911 | C22: 2.526950195 | D22: 2.106849176 | E22: 5.163394051 | F22: 4.559766928 | G22: 6.540070938 | H22: 7.370989944 | I22: 3.737650562 | J22: 3.681231393 | K22: 7.145929852 | L22: 8.474296448 | M22: 6.939512822 | N22: 5.769616084 | O22: 6.493625909 | P22: 6.913089049
A23: 20 | B23: 2.917757491 | C23: 2.653297705 | D23: 2.191123143 | E23: 5.757688646 | F23: 5.121467193 | G23: 7.440561993 | H23: 8.63734632 | I23: 3.838148378 | J23: 3.780212212 | K23: 8.11852597 | L23: 10.01744921 | M23: 8.042144216 | N23: 6.813842524 | O23: 7.399144799 | P23: 8.011521923

Sheet PIATodaySingle (hidden)
A1: 1 | B1: =A1+1 -> 2 | C1: =B1+1 -> 3 | D1: 4 | E1: 5 | F1: 6 | G1: 7 | H1: 8 | I1: 9 | J1: 10 | K1: 11 | L1: 12 | M1: 13 | N1: 14 | O1: 15 | P1: 16 | Q1: 17 | R1: 18 | S1: 19 | T1: 20 | U1: 21 | V1: 22 | W1: 23 | X1: 24 | Y1: 25 | Z1: 26 | AA1: 27 | AB1: 28 | AC1: 29 | AD1: 30 | AE1: 31 | AF1: 32 | AG1: 33 | AH1: 34 | AI1: 35 | AJ1: 36 | AK1: 37 | AL1: 38 | AM1: 39 | AN1: 40 | AO1: 41 | AP1: 42 | AQ1: 43 | AR1: 44 | AS1: 45 | AT1: 46 | AU1: 47 | AV1: 48 | AW1: 49 | AX1: 50 | AY1: =AX1+1 -> 51 | AZ1: 52 | BA1: 53 | BB1: 54 | BC1: 55 | BD1: 56 | BE1: 57 | BF1: 58 | BG1: 59 | BH1: 60 | BI1: 61 | BJ1: 62 | BK1: 63 | BL1: 64 | BM1: 65 | BN1: 66 | BO1: 67 | BP1: 68 | BQ1: =BP1+1 -> 69 | BR1: 70 | BS1: 71 | BT1: 72 | BU1: 73 | BV1: 74 | BW1: 75 | BX1: 76 | BY1: 77 | BZ1: 78 | CA1: 79 | CB1: 80 | CC1: 81 | CD1: 82 | CE1: 83 | CF1: 84 | CG1: 85 | CH1: 86 | CI1: 87 | CJ1: 88 | CK1: 89 | CL1: =CK1+1 -> 90 | CM1: 91 | CN1: 92 | CO1: 93 | CP1: 94 | CQ1: 95 | CR1: 96 | CS1: 97 | CT1: 98 | CU1: 99 | CV1: 100
A2: =A1+1 -> 2 | B2: 0 | C2: 0 | D2: 0 | E2: 0 | F2: 0 | G2: 0 | H2: 0 | I2: 0 | J2: 0 | K2: 0 | L2: 0 | M2: 0 | N2: 0 | O2: 0 | P2: 0 | Q2: 0 | R2: 0 | S2: 0 | T2: 0 | U2: 0 | V2: 0 | W2: 0 | X2: 0 | Y2: 0 | Z2: 0 | AA2: 0 | AB2: 0 | AC2: 0 | AD2: 0 | AE2: 0 | AF2: 0 | AG2: 0 | AH2: 0 | AI2: 0 | AJ2: 0 | AK2: 0 | AL2: 0 | AM2: 0 | AN2: 0 | AO2: 0 | AP2: 0 | AQ2: 0 | AR2: 0 | AS2: 0 | AT2: 0 | AU2: 0 | AV2: 0 | AW2: 0 | AX2: 3.39 | AY2: 3.44 | AZ2: 3.48 | BA2: 3.53 | BB2: 3.59 | BC2: 3.63 | BD2: 3.68 | BE2: 3.73 | BF2: 3.77 | BG2: 3.98 | BH2: 4.37 | BI2: 4.37 | BJ2: 4.37 | BK2: 4.37 | BL2: 4.37 | BM2: 4.7 | BN2: 4.7 | BO2: 4.7 | BP2: 4.7 | BQ2: 4.78 | BR2: 5.13 | BS2: 5.13 | BT2: 5.26 | BU2: 5.31 | BV2: 5.31 | BW2: 5.55 | BX2: 5.55 | BY2: 5.55 | BZ2: 5.67 | CA2: 5.72 | CB2: 6.1 | CC2: 6.1 | CD2: 6.18 | CE2: 6.18 | CF2: 6.23 | CG2: 6.48 | CH2: 6.63 | CI2: 6.63 | CJ2: 6.63 | CK2: 6.63 | CL2: 6.63 | CM2: 6.63 | CN2: 6.63 | CO2: 6.63 | CP2: 6.63 | CQ2: 6.63 | CR2: 6.63 | CS2: 6.63 | CT2: 6.63 | CU2: 6.63 | CV2: 6.63
A3: =A2+1 -> 3 | B3: 0 | C3: 0 | D3: 0 | E3: 0 | F3: 0 | G3: 0 | H3: 0 | I3: 0 | J3: 0 | K3: 0 | L3: 0 | M3: 0 | N3: 0 | O3: 0 | P3: 0 | Q3: 0 | R3: 0 | S3: 0 | T3: 0 | U3: 0 | V3: 0 | W3: 0 | X3: 0 | Y3: 0 | Z3: 0 | AA3: 0 | AB3: 0 | AC3: 0 | AD3: 0 | AE3: 0 | AF3: 0 | AG3: 0 | AH3: 0 | AI3: 0 | AJ3: 0 | AK3: 0 | AL3: 0 | AM3: 0 | AN3: 0 | AO3: 0 | AP3: 0 | AQ3: 0 | AR3: 0 | AS3: 0 | AT3: 0 | AU3: 0 | AV3: 0 | AW3: 0 | AX3: 3.39 | AY3: 3.44 | AZ3: 3.48 | BA3: 3.53 | BB3: 3.59 | BC3: 3.63 | BD3: 3.68 | BE3: 3.73 | BF3: 3.77 | BG3: 3.98 | BH3: 4.37 | BI3: 4.37 | BJ3: 4.37 | BK3: 4.37 | BL3: 4.37 | BM3: 4.7 | BN3: 4.7 | BO3: 4.7 | BP3: 4.7 | BQ3: 4.78 | BR3: 5.13 | BS3: 5.13 | BT3: 5.26 | BU3: 5.31 | BV3: 5.31 | BW3: 5.55 | BX3: 5.55 | BY3: 5.55 | BZ3: 5.67 | CA3: 5.72 | CB3: 6.1 | CC3: 6.1 | CD3: 6.18 | CE3: 6.18 | CF3: 6.23 | CG3: 6.48 | CH3: 6.63 | CI3: 6.63 | CJ3: 6.63 | CK3: 6.63 | CL3: 6.63 | CM3: 6.63 | CN3: 6.63 | CO3: 6.63 | CP3: 6.63 | CQ3: 6.63 | CR3: 6.63 | CS3: 6.63 | CT3: 6.63 | CU3: 6.63 | CV3: 6.63
A4: 4 | B4: 0 | C4: 0 | D4: 0 | E4: 0 | F4: 0 | G4: 0 | H4: 0 | I4: 0 | J4: 0 | K4: 0 | L4: 0 | M4: 0 | N4: 0 | O4: 0 | P4: 0 | Q4: 0 | R4: 0 | S4: 0 | T4: 0 | U4: 0 | V4: 0 | W4: 0 | X4: 0 | Y4: 0 | Z4: 0 | AA4: 0 | AB4: 0 | AC4: 0 | AD4: 0 | AE4: 0 | AF4: 0 | AG4: 0 | AH4: 0 | AI4: 0 | AJ4: 0 | AK4: 0 | AL4: 0 | AM4: 0 | AN4: 0 | AO4: 0 | AP4: 0 | AQ4: 0 | AR4: 0 | AS4: 0 | AT4: 0 | AU4: 0 | AV4: 0 | AW4: 0 | AX4: 3.39 | AY4: 3.44 | AZ4: 3.48 | BA4: 3.53 | BB4: 3.59 | BC4: 3.63 | BD4: 3.68 | BE4: 3.73 | BF4: 3.77 | BG4: 3.98 | BH4: 4.37 | BI4: 4.37 | BJ4: 4.37 | BK4: 4.37 | BL4: 4.37 | BM4: 4.7 | BN4: 4.7 | BO4: 4.7 | BP4: 4.7 | BQ4: 4.78 | BR4: 5.13 | BS4: 5.13 | BT4: 5.26 | BU4: 5.31 | BV4: 5.31 | BW4: 5.55 | BX4: 5.55 | BY4: 5.55 | BZ4: 5.67 | CA4: 5.72 | CB4: 6.1 | CC4: 6.1 | CD4: 6.18 | CE4: 6.18 | CF4: 6.23 | CG4: 6.48 | CH4: 6.63 | CI4: 6.63 | CJ4: 6.63 | CK4: 6.63 | CL4: 6.63 | CM4: 6.63 | CN4: 6.63 | CO4: 6.63 | CP4: 6.63 | CQ4: 6.63 | CR4: 6.63 | CS4: 6.63 | CT4: 6.63 | CU4: 6.63 | CV4: 6.63
A5: 5 | B5: 0 | C5: 0 | D5: 0 | E5: 0 | F5: 0 | G5: 0 | H5: 0 | I5: 0 | J5: 0 | K5: 0 | L5: 0 | M5: 0 | N5: 0 | O5: 0 | P5: 0 | Q5: 0 | R5: 0 | S5: 0 | T5: 0 | U5: 0 | V5: 0 | W5: 0 | X5: 0 | Y5: 0 | Z5: 0 | AA5: 0 | AB5: 0 | AC5: 0 | AD5: 0 | AE5: 0 | AF5: 0 | AG5: 0 | AH5: 0 | AI5: 0 | AJ5: 0 | AK5: 0 | AL5: 0 | AM5: 0 | AN5: 0 | AO5: 0 | AP5: 0 | AQ5: 0 | AR5: 0 | AS5: 0 | AT5: 0 | AU5: 0 | AV5: 0 | AW5: 0 | AX5: 3.39 | AY5: 3.44 | AZ5: 3.48 | BA5: 3.53 | BB5: 3.59 | BC5: 3.63 | BD5: 3.68 | BE5: 3.73 | BF5: 3.77 | BG5: 3.98 | BH5: 4.37 | BI5: 4.37 | BJ5: 4.37 | BK5: 4.37 | BL5: 4.37 | BM5: 4.7 | BN5: 4.7 | BO5: 4.7 | BP5: 4.7 | BQ5: 4.78 | BR5: 5.13 | BS5: 5.13 | BT5: 5.26 | BU5: 5.31 | BV5: 5.31 | BW5: 5.55 | BX5: 5.55 | BY5: 5.55 | BZ5: 5.67 | CA5: 5.72 | CB5: 6.1 | CC5: 6.1 | CD5: 6.18 | CE5: 6.18 | CF5: 6.23 | CG5: 6.48 | CH5: 6.63 | CI5: 6.63 | CJ5: 6.63 | CK5: 6.63 | CL5: 6.63 | CM5: 6.63 | CN5: 6.63 | CO5: 6.63 | CP5: 6.63 | CQ5: 6.63 | CR5: 6.63 | CS5: 6.63 | CT5: 6.63 | CU5: 6.63 | CV5: 6.63
A6: 6 | B6: 0 | C6: 0 | D6: 0 | E6: 0 | F6: 0 | G6: 0 | H6: 0 | I6: 0 | J6: 0 | K6: 0 | L6: 0 | M6: 0 | N6: 0 | O6: 0 | P6: 0 | Q6: 0 | R6: 0 | S6: 0 | T6: 0 | U6: 0 | V6: 0 | W6: 0 | X6: 0 | Y6: 0 | Z6: 0 | AA6: 0 | AB6: 0 | AC6: 0 | AD6: 0 | AE6: 0 | AF6: 0 | AG6: 0 | AH6: 0 | AI6: 0 | AJ6: 0 | AK6: 0 | AL6: 0 | AM6: 0 | AN6: 0 | AO6: 0 | AP6: 0 | AQ6: 0 | AR6: 0 | AS6: 0 | AT6: 0 | AU6: 0 | AV6: 0 | AW6: 0 | AX6: 3.39 | AY6: 3.44 | AZ6: 3.48 | BA6: 3.53 | BB6: 3.59 | BC6: 3.63 | BD6: 3.68 | BE6: 3.73 | BF6: 3.77 | BG6: 3.98 | BH6: 4.37 | BI6: 4.37 | BJ6: 4.37 | BK6: 4.37 | BL6: 4.37 | BM6: 4.7 | BN6: 4.7 | BO6: 4.7 | BP6: 4.7 | BQ6: 4.78 | BR6: 5.13 | BS6: 5.13 | BT6: 5.26 | BU6: 5.31 | BV6: 5.31 | BW6: 5.55 | BX6: 5.55 | BY6: 5.55 | BZ6: 5.67 | CA6: 5.72 | CB6: 6.1 | CC6: 6.1 | CD6: 6.18 | CE6: 6.18 | CF6: 6.23 | CG6: 6.48 | CH6: 6.63 | CI6: 6.63 | CJ6: 6.63 | CK6: 6.63 | CL6: 6.63 | CM6: 6.63 | CN6: 6.63 | CO6: 6.63 | CP6: 6.63 | CQ6: 6.63 | CR6: 6.63 | CS6: 6.63 | CT6: 6.63 | CU6: 6.63 | CV6: 6.63
A7: 7 | B7: 0 | C7: 0 | D7: 0 | E7: 0 | F7: 0 | G7: 0 | H7: 0 | I7: 0 | J7: 0 | K7: 0 | L7: 0 | M7: 0 | N7: 0 | O7: 0 | P7: 0 | Q7: 0 | R7: 0 | S7: 0 | T7: 0 | U7: 0 | V7: 0 | W7: 0 | X7: 0 | Y7: 0 | Z7: 0 | AA7: 0 | AB7: 0 | AC7: 0 | AD7: 0 | AE7: 0 | AF7: 0 | AG7: 0 | AH7: 0 | AI7: 0 | AJ7: 0 | AK7: 0 | AL7: 0 | AM7: 0 | AN7: 0 | AO7: 0 | AP7: 0 | AQ7: 0 | AR7: 0 | AS7: 0 | AT7: 0 | AU7: 0 | AV7: 0 | AW7: 0 | AX7: 3.39 | AY7: 3.44 | AZ7: 3.48 | BA7: 3.53 | BB7: 3.59 | BC7: 3.63 | BD7: 3.68 | BE7: 3.73 | BF7: 3.77 | BG7: 3.98 | BH7: 4.37 | BI7: 4.37 | BJ7: 4.37 | BK7: 4.37 | BL7: 4.37 | BM7: 4.7 | BN7: 4.7 | BO7: 4.7 | BP7: 4.7 | BQ7: 4.78 | BR7: 5.13 | BS7: 5.13 | BT7: 5.26 | BU7: 5.31 | BV7: 5.31 | BW7: 5.55 | BX7: 5.55 | BY7: 5.55 | BZ7: 5.67 | CA7: 5.72 | CB7: 6.1 | CC7: 6.1 | CD7: 6.18 | CE7: 6.18 | CF7: 6.23 | CG7: 6.48 | CH7: 6.63 | CI7: 6.63 | CJ7: 6.63 | CK7: 6.63 | CL7: 6.63 | CM7: 6.63 | CN7: 6.63 | CO7: 6.63 | CP7: 6.63 | CQ7: 6.63 | CR7: 6.63 | CS7: 6.63 | CT7: 6.63 | CU7: 6.63 | CV7: 6.63
A8: 8 | B8: 0 | C8: 0 | D8: 0 | E8: 0 | F8: 0 | G8: 0 | H8: 0 | I8: 0 | J8: 0 | K8: 0 | L8: 0 | M8: 0 | N8: 0 | O8: 0 | P8: 0 | Q8: 0 | R8: 0 | S8: 0 | T8: 0 | U8: 0 | V8: 0 | W8: 0 | X8: 0 | Y8: 0 | Z8: 0 | AA8: 0 | AB8: 0 | AC8: 0 | AD8: 0 | AE8: 0 | AF8: 0 | AG8: 0 | AH8: 0 | AI8: 0 | AJ8: 0 | AK8: 0 | AL8: 0 | AM8: 0 | AN8: 0 | AO8: 0 | AP8: 0 | AQ8: 0 | AR8: 0 | AS8: 0 | AT8: 0 | AU8: 0 | AV8: 0 | AW8: 0 | AX8: 3.39 | AY8: 3.44 | AZ8: 3.48 | BA8: 3.53 | BB8: 3.59 | BC8: 3.63 | BD8: 3.68 | BE8: 3.73 | BF8: 3.77 | BG8: 3.98 | BH8: 4.37 | BI8: 4.37 | BJ8: 4.37 | BK8: 4.37 | BL8: 4.37 | BM8: 4.7 | BN8: 4.7 | BO8: 4.7 | BP8: 4.7 | BQ8: 4.78 | BR8: 5.13 | BS8: 5.13 | BT8: 5.26 | BU8: 5.31 | BV8: 5.31 | BW8: 5.55 | BX8: 5.55 | BY8: 5.55 | BZ8: 5.67 | CA8: 5.72 | CB8: 6.1 | CC8: 6.1 | CD8: 6.18 | CE8: 6.18 | CF8: 6.23 | CG8: 6.48 | CH8: 6.63 | CI8: 6.63 | CJ8: 6.63 | CK8: 6.63 | CL8: 6.63 | CM8: 6.63 | CN8: 6.63 | CO8: 6.63 | CP8: 6.63 | CQ8: 6.63 | CR8: 6.63 | CS8: 6.63 | CT8: 6.63 | CU8: 6.63 | CV8: 6.63
A9: 9 | B9: 0 | C9: 0 | D9: 0 | E9: 0 | F9: 0 | G9: 0 | H9: 0 | I9: 0 | J9: 0 | K9: 0 | L9: 0 | M9: 0 | N9: 0 | O9: 0 | P9: 0 | Q9: 0 | R9: 0 | S9: 0 | T9: 0 | U9: 0 | V9: 0 | W9: 0 | X9: 0 | Y9: 0 | Z9: 0 | AA9: 0 | AB9: 0 | AC9: 0 | AD9: 0 | AE9: 0 | AF9: 0 | AG9: 0 | AH9: 0 | AI9: 0 | AJ9: 0 | AK9: 0 | AL9: 0 | AM9: 0 | AN9: 0 | AO9: 0 | AP9: 0 | AQ9: 0 | AR9: 0 | AS9: 0 | AT9: 0 | AU9: 0 | AV9: 0 | AW9: 0 | AX9: 3.39 | AY9: 3.44 | AZ9: 3.48 | BA9: 3.53 | BB9: 3.59 | BC9: 3.63 | BD9: 3.68 | BE9: 3.73 | BF9: 3.77 | BG9: 3.98 | BH9: 4.37 | BI9: 4.37 | BJ9: 4.37 | BK9: 4.37 | BL9: 4.37 | BM9: 4.7 | BN9: 4.7 | BO9: 4.7 | BP9: 4.7 | BQ9: 4.78 | BR9: 5.13 | BS9: 5.13 | BT9: 5.26 | BU9: 5.31 | BV9: 5.31 | BW9: 5.55 | BX9: 5.55 | BY9: 5.55 | BZ9: 5.67 | CA9: 5.72 | CB9: 6.1 | CC9: 6.1 | CD9: 6.18 | CE9: 6.18 | CF9: 6.23 | CG9: 6.48 | CH9: 6.63 | CI9: 6.63 | CJ9: 6.63 | CK9: 6.63 | CL9: 6.63 | CM9: 6.63 | CN9: 6.63 | CO9: 6.63 | CP9: 6.63 | CQ9: 6.63 | CR9: 6.63 | CS9: 6.63 | CT9: 6.63 | CU9: 6.63 | CV9: 6.63
A10: 10 | B10: 0 | C10: 0 | D10: 0 | E10: 0 | F10: 0 | G10: 0 | H10: 0 | I10: 0 | J10: 0 | K10: 0 | L10: 0 | M10: 0 | N10: 0 | O10: 0 | P10: 0 | Q10: 0 | R10: 0 | S10: 0 | T10: 0 | U10: 0 | V10: 0 | W10: 0 | X10: 0 | Y10: 0 | Z10: 0 | AA10: 0 | AB10: 0 | AC10: 0 | AD10: 0 | AE10: 0 | AF10: 0 | AG10: 0 | AH10: 0 | AI10: 0 | AJ10: 0 | AK10: 0 | AL10: 0 | AM10: 0 | AN10: 0 | AO10: 0 | AP10: 0 | AQ10: 0 | AR10: 0 | AS10: 0 | AT10: 0 | AU10: 0 | AV10: 0 | AW10: 0 | AX10: 3.39 | AY10: 3.44 | AZ10: 3.48 | BA10: 3.53 | BB10: 3.59 | BC10: 3.63 | BD10: 3.68 | BE10: 3.73 | BF10: 3.77 | BG10: 3.98 | BH10: 4.37 | BI10: 4.37 | BJ10: 4.37 | BK10: 4.37 | BL10: 4.37 | BM10: 4.7 | BN10: 4.7 | BO10: 4.7 | BP10: 4.7 | BQ10: 4.78 | BR10: 5.13 | BS10: 5.13 | BT10: 5.26 | BU10: 5.31 | BV10: 5.31 | BW10: 5.55 | BX10: 5.55 | BY10: 5.55 | BZ10: 5.67 | CA10: 5.72 | CB10: 6.1 | CC10: 6.1 | CD10: 6.18 | CE10: 6.18 | CF10: 6.23 | CG10: 6.48 | CH10: 6.63 | CI10: 6.63 | CJ10: 6.63 | CK10: 6.63 | CL10: 6.63 | CM10: 6.63 | CN10: 6.63 | CO10: 6.63 | CP10: 6.63 | CQ10: 6.63 | CR10: 6.63 | CS10: 6.63 | CT10: 6.63 | CU10: 6.63 | CV10: 6.63
A11: 11 | B11: 0 | C11: 0 | D11: 0 | E11: 0 | F11: 0 | G11: 0 | H11: 0 | I11: 0 | J11: 0 | K11: 0 | L11: 0 | M11: 0 | N11: 0 | O11: 0 | P11: 0 | Q11: 0 | R11: 0 | S11: 0 | T11: 0 | U11: 0 | V11: 0 | W11: 0 | X11: 0 | Y11: 0 | Z11: 0 | AA11: 0 | AB11: 0 | AC11: 0 | AD11: 0 | AE11: 0 | AF11: 0 | AG11: 0 | AH11: 0 | AI11: 0 | AJ11: 0 | AK11: 0 | AL11: 0 | AM11: 0 | AN11: 0 | AO11: 0 | AP11: 0 | AQ11: 0 | AR11: 0 | AS11: 0 | AT11: 0 | AU11: 0 | AV11: 0 | AW11: 0 | AX11: 3.39 | AY11: 3.44 | AZ11: 3.48 | BA11: 3.53 | BB11: 3.59 | BC11: 3.63 | BD11: 3.68 | BE11: 3.73 | BF11: 3.77 | BG11: 3.98 | BH11: 4.37 | BI11: 4.37 | BJ11: 4.37 | BK11: 4.37 | BL11: 4.37 | BM11: 4.7 | BN11: 4.7 | BO11: 4.7 | BP11: 4.7 | BQ11: 4.78 | BR11: 5.13 | BS11: 5.13 | BT11: 5.26 | BU11: 5.31 | BV11: 5.31 | BW11: 5.55 | BX11: 5.55 | BY11: 5.55 | BZ11: 5.67 | CA11: 5.72 | CB11: 6.1 | CC11: 6.1 | CD11: 6.18 | CE11: 6.18 | CF11: 6.23 | CG11: 6.48 | CH11: 6.63 | CI11: 6.63 | CJ11: 6.63 | CK11: 6.63 | CL11: 6.63 | CM11: 6.63 | CN11: 6.63 | CO11: 6.63 | CP11: 6.63 | CQ11: 6.63 | CR11: 6.63 | CS11: 6.63 | CT11: 6.63 | CU11: 6.63 | CV11: 6.63
A12: 12 | B12: 0 | C12: 0 | D12: 0 | E12: 0 | F12: 0 | G12: 0 | H12: 0 | I12: 0 | J12: 0 | K12: 0 | L12: 0 | M12: 0 | N12: 0 | O12: 0 | P12: 0 | Q12: 0 | R12: 0 | S12: 0 | T12: 0 | U12: 0 | V12: 0 | W12: 0 | X12: 0 | Y12: 0 | Z12: 0 | AA12: 0 | AB12: 0 | AC12: 0 | AD12: 0 | AE12: 0 | AF12: 0 | AG12: 0 | AH12: 0 | AI12: 0 | AJ12: 0 | AK12: 0 | AL12: 0 | AM12: 0 | AN12: 0 | AO12: 0 | AP12: 0 | AQ12: 0 | AR12: 0 | AS12: 0 | AT12: 0 | AU12: 0 | AV12: 0 | AW12: 0 | AX12: 3.39 | AY12: 3.44 | AZ12: 3.48 | BA12: 3.53 | BB12: 3.59 | BC12: 3.63 | BD12: 3.68 | BE12: 3.73 | BF12: 3.77 | BG12: 3.98 | BH12: 4.37 | BI12: 4.37 | BJ12: 4.37 | BK12: 4.37 | BL12: 4.37 | BM12: 4.7 | BN12: 4.7 | BO12: 4.7 | BP12: 4.7 | BQ12: 4.78 | BR12: 5.13 | BS12: 5.13 | BT12: 5.26 | BU12: 5.31 | BV12: 5.31 | BW12: 5.55 | BX12: 5.55 | BY12: 5.55 | BZ12: 5.67 | CA12: 5.72 | CB12: 6.1 | CC12: 6.1 | CD12: 6.18 | CE12: 6.18 | CF12: 6.23 | CG12: 6.48 | CH12: 6.63 | CI12: 6.63 | CJ12: 6.63 | CK12: 6.63 | CL12: 6.63 | CM12: 6.63 | CN12: 6.63 | CO12: 6.63 | CP12: 6.63 | CQ12: 6.63 | CR12: 6.63 | CS12: 6.63 | CT12: 6.63 | CU12: 6.63 | CV12: 6.63
A13: 13 | B13: 0 | C13: 0 | D13: 0 | E13: 0 | F13: 0 | G13: 0 | H13: 0 | I13: 0 | J13: 0 | K13: 0 | L13: 0 | M13: 0 | N13: 0 | O13: 0 | P13: 0 | Q13: 0 | R13: 0 | S13: 0 | T13: 0 | U13: 0 | V13: 0 | W13: 0 | X13: 0 | Y13: 0 | Z13: 0 | AA13: 0 | AB13: 0 | AC13: 0 | AD13: 0 | AE13: 0 | AF13: 0 | AG13: 0 | AH13: 0 | AI13: 0 | AJ13: 0 | AK13: 0 | AL13: 0 | AM13: 0 | AN13: 0 | AO13: 0 | AP13: 0 | AQ13: 0 | AR13: 0 | AS13: 0 | AT13: 0 | AU13: 0 | AV13: 0 | AW13: 0 | AX13: 3.39 | AY13: 3.44 | AZ13: 3.48 | BA13: 3.53 | BB13: 3.59 | BC13: 3.63 | BD13: 3.68 | BE13: 3.73 | BF13: 3.77 | BG13: 3.98 | BH13: 4.37 | BI13: 4.37 | BJ13: 4.37 | BK13: 4.37 | BL13: 4.37 | BM13: 4.7 | BN13: 4.7 | BO13: 4.7 | BP13: 4.7 | BQ13: 4.78 | BR13: 5.13 | BS13: 5.13 | BT13: 5.26 | BU13: 5.31 | BV13: 5.31 | BW13: 5.55 | BX13: 5.55 | BY13: 5.55 | BZ13: 5.67 | CA13: 5.72 | CB13: 6.1 | CC13: 6.1 | CD13: 6.18 | CE13: 6.18 | CF13: 6.23 | CG13: 6.48 | CH13: 6.63 | CI13: 6.63 | CJ13: 6.63 | CK13: 6.63 | CL13: 6.63 | CM13: 6.63 | CN13: 6.63 | CO13: 6.63 | CP13: 6.63 | CQ13: 6.63 | CR13: 6.63 | CS13: 6.63 | CT13: 6.63 | CU13: 6.63 | CV13: 6.63
A14: 14 | B14: 0 | C14: 0 | D14: 0 | E14: 0 | F14: 0 | G14: 0 | H14: 0 | I14: 0 | J14: 0 | K14: 0 | L14: 0 | M14: 0 | N14: 0 | O14: 0 | P14: 0 | Q14: 0 | R14: 0 | S14: 0 | T14: 0 | U14: 0 | V14: 0 | W14: 0 | X14: 0 | Y14: 0 | Z14: 0 | AA14: 0 | AB14: 0 | AC14: 0 | AD14: 0 | AE14: 0 | AF14: 0 | AG14: 0 | AH14: 0 | AI14: 0 | AJ14: 0 | AK14: 0 | AL14: 0 | AM14: 0 | AN14: 0 | AO14: 0 | AP14: 0 | AQ14: 0 | AR14: 0 | AS14: 0 | AT14: 0 | AU14: 0 | AV14: 0 | AW14: 0 | AX14: 3.39 | AY14: 3.44 | AZ14: 3.48 | BA14: 3.53 | BB14: 3.59 | BC14: 3.63 | BD14: 3.68 | BE14: 3.73 | BF14: 3.77 | BG14: 3.98 | BH14: 4.37 | BI14: 4.37 | BJ14: 4.37 | BK14: 4.37 | BL14: 4.37 | BM14: 4.7 | BN14: 4.7 | BO14: 4.7 | BP14: 4.7 | BQ14: 4.78 | BR14: 5.13 | BS14: 5.13 | BT14: 5.26 | BU14: 5.31 | BV14: 5.31 | BW14: 5.55 | BX14: 5.55 | BY14: 5.55 | BZ14: 5.67 | CA14: 5.72 | CB14: 6.1 | CC14: 6.1 | CD14: 6.18 | CE14: 6.18 | CF14: 6.23 | CG14: 6.48 | CH14: 6.63 | CI14: 6.63 | CJ14: 6.63 | CK14: 6.63 | CL14: 6.63 | CM14: 6.63 | CN14: 6.63 | CO14: 6.63 | CP14: 6.63 | CQ14: 6.63 | CR14: 6.63 | CS14: 6.63 | CT14: 6.63 | CU14: 6.63 | CV14: 6.63
A15: 15 | B15: 0 | C15: 0 | D15: 0 | E15: 0 | F15: 0 | G15: 0 | H15: 0 | I15: 0 | J15: 0 | K15: 0 | L15: 0 | M15: 0 | N15: 0 | O15: 0 | P15: 0 | Q15: 0 | R15: 0 | S15: 0 | T15: 0 | U15: 0 | V15: 0 | W15: 0 | X15: 0 | Y15: 0 | Z15: 0 | AA15: 0 | AB15: 0 | AC15: 0 | AD15: 0 | AE15: 0 | AF15: 0 | AG15: 0 | AH15: 0 | AI15: 0 | AJ15: 0 | AK15: 0 | AL15: 0 | AM15: 0 | AN15: 0 | AO15: 0 | AP15: 0 | AQ15: 0 | AR15: 0 | AS15: 0 | AT15: 0 | AU15: 0 | AV15: 0 | AW15: 0 | AX15: 3.39 | AY15: 3.44 | AZ15: 3.48 | BA15: 3.53 | BB15: 3.59 | BC15: 3.63 | BD15: 3.68 | BE15: 3.73 | BF15: 3.77 | BG15: 3.98 | BH15: 4.37 | BI15: 4.37 | BJ15: 4.37 | BK15: 4.37 | BL15: 4.37 | BM15: 4.7 | BN15: 4.7 | BO15: 4.7 | BP15: 4.7 | BQ15: 4.78 | BR15: 5.13 | BS15: 5.13 | BT15: 5.26 | BU15: 5.31 | BV15: 5.31 | BW15: 5.55 | BX15: 5.55 | BY15: 5.55 | BZ15: 5.67 | CA15: 5.72 | CB15: 6.1 | CC15: 6.1 | CD15: 6.18 | CE15: 6.18 | CF15: 6.23 | CG15: 6.48 | CH15: 6.63 | CI15: 6.63 | CJ15: 6.63 | CK15: 6.63 | CL15: 6.63 | CM15: 6.63 | CN15: 6.63 | CO15: 6.63 | CP15: 6.63 | CQ15: 6.63 | CR15: 6.63 | CS15: 6.63 | CT15: 6.63 | CU15: 6.63 | CV15: 6.63
A16: 16 | B16: 0 | C16: 0 | D16: 0 | E16: 0 | F16: 0 | G16: 0 | H16: 0 | I16: 0 | J16: 0 | K16: 0 | L16: 0 | M16: 0 | N16: 0 | O16: 0 | P16: 0 | Q16: 0 | R16: 0 | S16: 0 | T16: 0 | U16: 0 | V16: 0 | W16: 0 | X16: 0 | Y16: 0 | Z16: 0 | AA16: 0 | AB16: 0 | AC16: 0 | AD16: 0 | AE16: 0 | AF16: 0 | AG16: 0 | AH16: 0 | AI16: 0 | AJ16: 0 | AK16: 0 | AL16: 0 | AM16: 0 | AN16: 0 | AO16: 0 | AP16: 0 | AQ16: 0 | AR16: 0 | AS16: 0 | AT16: 0 | AU16: 0 | AV16: 0 | AW16: 0 | AX16: 3.39 | AY16: 3.44 | AZ16: 3.48 | BA16: 3.53 | BB16: 3.59 | BC16: 3.63 | BD16: 3.68 | BE16: 3.73 | BF16: 3.77 | BG16: 3.98 | BH16: 4.37 | BI16: 4.37 | BJ16: 4.37 | BK16: 4.37 | BL16: 4.37 | BM16: 4.7 | BN16: 4.7 | BO16: 4.7 | BP16: 4.7 | BQ16: 4.78 | BR16: 5.13 | BS16: 5.13 | BT16: 5.26 | BU16: 5.31 | BV16: 5.31 | BW16: 5.55 | BX16: 5.55 | BY16: 5.55 | BZ16: 5.67 | CA16: 5.72 | CB16: 6.1 | CC16: 6.1 | CD16: 6.18 | CE16: 6.18 | CF16: 6.23 | CG16: 6.48 | CH16: 6.63 | CI16: 6.63 | CJ16: 6.63 | CK16: 6.63 | CL16: 6.63 | CM16: 6.63 | CN16: 6.63 | CO16: 6.63 | CP16: 6.63 | CQ16: 6.63 | CR16: 6.63 | CS16: 6.63 | CT16: 6.63 | CU16: 6.63 | CV16: 6.63
A17: 17 | B17: 0 | C17: 0 | D17: 0 | E17: 0 | F17: 0 | G17: 0 | H17: 0 | I17: 0 | J17: 0 | K17: 0 | L17: 0 | M17: 0 | N17: 0 | O17: 0 | P17: 0 | Q17: 0 | R17: 0 | S17: 0 | T17: 0 | U17: 0 | V17: 0 | W17: 0 | X17: 0 | Y17: 0 | Z17: 0 | AA17: 0 | AB17: 0 | AC17: 0 | AD17: 0 | AE17: 0 | AF17: 0 | AG17: 0 | AH17: 0 | AI17: 0 | AJ17: 0 | AK17: 0 | AL17: 0 | AM17: 0 | AN17: 0 | AO17: 0 | AP17: 0 | AQ17: 0 | AR17: 0 | AS17: 0 | AT17: 0 | AU17: 0 | AV17: 0 | AW17: 0 | AX17: 3.39 | AY17: 3.44 | AZ17: 3.48 | BA17: 3.53 | BB17: 3.59 | BC17: 3.63 | BD17: 3.68 | BE17: 3.73 | BF17: 3.77 | BG17: 3.98 | BH17: 4.37 | BI17: 4.37 | BJ17: 4.37 | BK17: 4.37 | BL17: 4.37 | BM17: 4.7 | BN17: 4.7 | BO17: 4.7 | BP17: 4.7 | BQ17: 4.78 | BR17: 5.13 | BS17: 5.13 | BT17: 5.26 | BU17: 5.31 | BV17: 5.31 | BW17: 5.55 | BX17: 5.55 | BY17: 5.55 | BZ17: 5.67 | CA17: 5.72 | CB17: 6.1 | CC17: 6.1 | CD17: 6.18 | CE17: 6.18 | CF17: 6.23 | CG17: 6.48 | CH17: 6.63 | CI17: 6.63 | CJ17: 6.63 | CK17: 6.63 | CL17: 6.63 | CM17: 6.63 | CN17: 6.63 | CO17: 6.63 | CP17: 6.63 | CQ17: 6.63 | CR17: 6.63 | CS17: 6.63 | CT17: 6.63 | CU17: 6.63 | CV17: 6.63
A18: 18 | B18: 0 | C18: 0 | D18: 0 | E18: 0 | F18: 0 | G18: 0 | H18: 0 | I18: 0 | J18: 0 | K18: 0 | L18: 0 | M18: 0 | N18: 0 | O18: 0 | P18: 0 | Q18: 0 | R18: 0 | S18: 0 | T18: 0 | U18: 0 | V18: 0 | W18: 0 | X18: 0 | Y18: 0 | Z18: 0 | AA18: 0 | AB18: 0 | AC18: 0 | AD18: 0 | AE18: 0 | AF18: 0 | AG18: 0 | AH18: 0 | AI18: 0 | AJ18: 0 | AK18: 0 | AL18: 0 | AM18: 0 | AN18: 0 | AO18: 0 | AP18: 0 | AQ18: 0 | AR18: 0 | AS18: 0 | AT18: 0 | AU18: 0 | AV18: 0 | AW18: 0 | AX18: 3.39 | AY18: 3.44 | AZ18: 3.48 | BA18: 3.53 | BB18: 3.59 | BC18: 3.63 | BD18: 3.68 | BE18: 3.73 | BF18: 3.77 | BG18: 3.98 | BH18: 4.37 | BI18: 4.37 | BJ18: 4.37 | BK18: 4.37 | BL18: 4.37 | BM18: 4.7 | BN18: 4.7 | BO18: 4.7 | BP18: 4.7 | BQ18: 4.78 | BR18: 5.13 | BS18: 5.13 | BT18: 5.26 | BU18: 5.31 | BV18: 5.31 | BW18: 5.55 | BX18: 5.55 | BY18: 5.55 | BZ18: 5.67 | CA18: 5.72 | CB18: 6.1 | CC18: 6.1 | CD18: 6.18 | CE18: 6.18 | CF18: 6.23 | CG18: 6.48 | CH18: 6.63 | CI18: 6.63 | CJ18: 6.63 | CK18: 6.63 | CL18: 6.63 | CM18: 6.63 | CN18: 6.63 | CO18: 6.63 | CP18: 6.63 | CQ18: 6.63 | CR18: 6.63 | CS18: 6.63 | CT18: 6.63 | CU18: 6.63 | CV18: 6.63
A19: 19 | B19: 0 | C19: 0 | D19: 0 | E19: 0 | F19: 0 | G19: 0 | H19: 0 | I19: 0 | J19: 0 | K19: 0 | L19: 0 | M19: 0 | N19: 0 | O19: 0 | P19: 0 | Q19: 0 | R19: 0 | S19: 0 | T19: 0 | U19: 0 | V19: 0 | W19: 0 | X19: 0 | Y19: 0 | Z19: 0 | AA19: 0 | AB19: 0 | AC19: 0 | AD19: 0 | AE19: 0 | AF19: 0 | AG19: 0 | AH19: 0 | AI19: 0 | AJ19: 0 | AK19: 0 | AL19: 0 | AM19: 0 | AN19: 0 | AO19: 0 | AP19: 0 | AQ19: 0 | AR19: 0 | AS19: 0 | AT19: 0 | AU19: 0 | AV19: 0 | AW19: 0 | AX19: 3.39 | AY19: 3.44 | AZ19: 3.48 | BA19: 3.53 | BB19: 3.59 | BC19: 3.63 | BD19: 3.68 | BE19: 3.73 | BF19: 3.77 | BG19: 3.98 | BH19: 4.37 | BI19: 4.37 | BJ19: 4.37 | BK19: 4.37 | BL19: 4.37 | BM19: 4.7 | BN19: 4.7 | BO19: 4.7 | BP19: 4.7 | BQ19: 4.78 | BR19: 5.13 | BS19: 5.13 | BT19: 5.26 | BU19: 5.31 | BV19: 5.31 | BW19: 5.55 | BX19: 5.55 | BY19: 5.55 | BZ19: 5.67 | CA19: 5.72 | CB19: 6.1 | CC19: 6.1 | CD19: 6.18 | CE19: 6.18 | CF19: 6.23 | CG19: 6.48 | CH19: 6.63 | CI19: 6.63 | CJ19: 6.63 | CK19: 6.63 | CL19: 6.63 | CM19: 6.63 | CN19: 6.63 | CO19: 6.63 | CP19: 6.63 | CQ19: 6.63 | CR19: 6.63 | CS19: 6.63 | CT19: 6.63 | CU19: 6.63 | CV19: 6.63
A20: 20 | B20: 0 | C20: 0 | D20: 0 | E20: 0 | F20: 0 | G20: 0 | H20: 0 | I20: 0 | J20: 0 | K20: 0 | L20: 0 | M20: 0 | N20: 0 | O20: 0 | P20: 0 | Q20: 0 | R20: 0 | S20: 0 | T20: 0 | U20: 0 | V20: 0 | W20: 0 | X20: 0 | Y20: 0 | Z20: 0 | AA20: 0 | AB20: 0 | AC20: 0 | AD20: 0 | AE20: 0 | AF20: 0 | AG20: 0 | AH20: 0 | AI20: 0 | AJ20: 0 | AK20: 0 | AL20: 0 | AM20: 0 | AN20: 0 | AO20: 0 | AP20: 0 | AQ20: 0 | AR20: 0 | AS20: 0 | AT20: 0 | AU20: 0 | AV20: 0 | AW20: 0 | AX20: 3.39 | AY20: 3.44 | AZ20: 3.48 | BA20: 3.53 | BB20: 3.59 | BC20: 3.63 | BD20: 3.68 | BE20: 3.73 | BF20: 3.77 | BG20: 3.98 | BH20: 4.37 | BI20: 4.37 | BJ20: 4.37 | BK20: 4.37 | BL20: 4.37 | BM20: 4.7 | BN20: 4.7 | BO20: 4.7 | BP20: 4.7 | BQ20: 4.78 | BR20: 5.13 | BS20: 5.13 | BT20: 5.26 | BU20: 5.31 | BV20: 5.31 | BW20: 5.55 | BX20: 5.55 | BY20: 5.55 | BZ20: 5.67 | CA20: 5.72 | CB20: 6.1 | CC20: 6.1 | CD20: 6.18 | CE20: 6.18 | CF20: 6.23 | CG20: 6.48 | CH20: 6.63 | CI20: 6.63 | CJ20: 6.63 | CK20: 6.63 | CL20: 6.63 | CM20: 6.63 | CN20: 6.63 | CO20: 6.63 | CP20: 6.63 | CQ20: 6.63 | CR20: 6.63 | CS20: 6.63 | CT20: 6.63 | CU20: 6.63 | CV20: 6.63
A21: 21 | B21: 0 | C21: 0 | D21: 0 | E21: 0 | F21: 0 | G21: 0 | H21: 0 | I21: 0 | J21: 0 | K21: 0 | L21: 0 | M21: 0 | N21: 0 | O21: 0 | P21: 0 | Q21: 0 | R21: 0 | S21: 0 | T21: 0 | U21: 0 | V21: 0 | W21: 0 | X21: 0 | Y21: 0 | Z21: 0 | AA21: 0 | AB21: 0 | AC21: 0 | AD21: 0 | AE21: 0 | AF21: 0 | AG21: 0 | AH21: 0 | AI21: 0 | AJ21: 0 | AK21: 0 | AL21: 0 | AM21: 0 | AN21: 0 | AO21: 0 | AP21: 0 | AQ21: 0 | AR21: 0 | AS21: 0 | AT21: 0 | AU21: 0 | AV21: 0 | AW21: 0 | AX21: 3.39 | AY21: 3.44 | AZ21: 3.48 | BA21: 3.53 | BB21: 3.59 | BC21: 3.63 | BD21: 3.68 | BE21: 3.73 | BF21: 3.77 | BG21: 3.98 | BH21: 4.37 | BI21: 4.37 | BJ21: 4.37 | BK21: 4.37 | BL21: 4.37 | BM21: 4.7 | BN21: 4.7 | BO21: 4.7 | BP21: 4.7 | BQ21: 4.78 | BR21: 5.13 | BS21: 5.13 | BT21: 5.26 | BU21: 5.31 | BV21: 5.31 | BW21: 5.55 | BX21: 5.55 | BY21: 5.55 | BZ21: 5.67 | CA21: 5.72 | CB21: 6.1 | CC21: 6.1 | CD21: 6.18 | CE21: 6.18 | CF21: 6.23 | CG21: 6.48 | CH21: 6.63 | CI21: 6.63 | CJ21: 6.63 | CK21: 6.63 | CL21: 6.63 | CM21: 6.63 | CN21: 6.63 | CO21: 6.63 | CP21: 6.63 | CQ21: 6.63 | CR21: 6.63 | CS21: 6.63 | CT21: 6.63 | CU21: 6.63 | CV21: 6.63
A22: 22 | B22: 0 | C22: 0 | D22: 0 | E22: 0 | F22: 0 | G22: 0 | H22: 0 | I22: 0 | J22: 0 | K22: 0 | L22: 0 | M22: 0 | N22: 0 | O22: 0 | P22: 0 | Q22: 0 | R22: 0 | S22: 0 | T22: 0 | U22: 0 | V22: 0 | W22: 0 | X22: 0 | Y22: 0 | Z22: 0 | AA22: 0 | AB22: 0 | AC22: 0 | AD22: 0 | AE22: 0 | AF22: 0 | AG22: 0 | AH22: 0 | AI22: 0 | AJ22: 0 | AK22: 0 | AL22: 0 | AM22: 0 | AN22: 0 | AO22: 0 | AP22: 0 | AQ22: 0 | AR22: 0 | AS22: 0 | AT22: 0 | AU22: 0 | AV22: 0 | AW22: 0 | AX22: 3.39 | AY22: 3.44 | AZ22: 3.48 | BA22: 3.53 | BB22: 3.59 | BC22: 3.63 | BD22: 3.68 | BE22: 3.73 | BF22: 3.77 | BG22: 3.98 | BH22: 4.37 | BI22: 4.37 | BJ22: 4.37 | BK22: 4.37 | BL22: 4.37 | BM22: 4.7 | BN22: 4.7 | BO22: 4.7 | BP22: 4.7 | BQ22: 4.78 | BR22: 5.13 | BS22: 5.13 | BT22: 5.26 | BU22: 5.31 | BV22: 5.31 | BW22: 5.55 | BX22: 5.55 | BY22: 5.55 | BZ22: 5.67 | CA22: 5.72 | CB22: 6.1 | CC22: 6.1 | CD22: 6.18 | CE22: 6.18 | CF22: 6.23 | CG22: 6.48 | CH22: 6.63 | CI22: 6.63 | CJ22: 6.63 | CK22: 6.63 | CL22: 6.63 | CM22: 6.63 | CN22: 6.63 | CO22: 6.63 | CP22: 6.63 | CQ22: 6.63 | CR22: 6.63 | CS22: 6.63 | CT22: 6.63 | CU22: 6.63 | CV22: 6.63
A23: 23 | B23: 0 | C23: 0 | D23: 0 | E23: 0 | F23: 0 | G23: 0 | H23: 0 | I23: 0 | J23: 0 | K23: 0 | L23: 0 | M23: 0 | N23: 0 | O23: 0 | P23: 0 | Q23: 0 | R23: 0 | S23: 0 | T23: 0 | U23: 0 | V23: 0 | W23: 0 | X23: 0 | Y23: 0 | Z23: 0 | AA23: 0 | AB23: 0 | AC23: 0 | AD23: 0 | AE23: 0 | AF23: 0 | AG23: 0 | AH23: 0 | AI23: 0 | AJ23: 0 | AK23: 0 | AL23: 0 | AM23: 0 | AN23: 0 | AO23: 0 | AP23: 0 | AQ23: 0 | AR23: 0 | AS23: 0 | AT23: 0 | AU23: 0 | AV23: 0 | AW23: 0 | AX23: 3.39 | AY23: 3.44 | AZ23: 3.48 | BA23: 3.53 | BB23: 3.59 | BC23: 3.63 | BD23: 3.68 | BE23: 3.73 | BF23: 3.77 | BG23: 3.98 | BH23: 4.37 | BI23: 4.37 | BJ23: 4.37 | BK23: 4.37 | BL23: 4.37 | BM23: 4.7 | BN23: 4.7 | BO23: 4.7 | BP23: 4.7 | BQ23: 4.78 | BR23: 5.13 | BS23: 5.13 | BT23: 5.26 | BU23: 5.31 | BV23: 5.31 | BW23: 5.55 | BX23: 5.55 | BY23: 5.55 | BZ23: 5.67 | CA23: 5.72 | CB23: 6.1 | CC23: 6.1 | CD23: 6.18 | CE23: 6.18 | CF23: 6.23 | CG23: 6.48 | CH23: 6.63 | CI23: 6.63 | CJ23: 6.63 | CK23: 6.63 | CL23: 6.63 | CM23: 6.63 | CN23: 6.63 | CO23: 6.63 | CP23: 6.63 | CQ23: 6.63 | CR23: 6.63 | CS23: 6.63 | CT23: 6.63 | CU23: 6.63 | CV23: 6.63
A24: 24 | B24: 0 | C24: 0 | D24: 0 | E24: 0 | F24: 0 | G24: 0 | H24: 0 | I24: 0 | J24: 0 | K24: 0 | L24: 0 | M24: 0 | N24: 0 | O24: 0 | P24: 0 | Q24: 0 | R24: 0 | S24: 0 | T24: 0 | U24: 0 | V24: 0 | W24: 0 | X24: 0 | Y24: 0 | Z24: 0 | AA24: 0 | AB24: 0 | AC24: 0 | AD24: 0 | AE24: 0 | AF24: 0 | AG24: 0 | AH24: 0 | AI24: 0 | AJ24: 0 | AK24: 0 | AL24: 0 | AM24: 0 | AN24: 0 | AO24: 0 | AP24: 0 | AQ24: 0 | AR24: 0 | AS24: 0 | AT24: 0 | AU24: 0 | AV24: 0 | AW24: 0 | AX24: 3.39 | AY24: 3.44 | AZ24: 3.48 | BA24: 3.53 | BB24: 3.59 | BC24: 3.63 | BD24: 3.68 | BE24: 3.73 | BF24: 3.77 | BG24: 3.98 | BH24: 4.37 | BI24: 4.37 | BJ24: 4.37 | BK24: 4.37 | BL24: 4.37 | BM24: 4.7 | BN24: 4.7 | BO24: 4.7 | BP24: 4.7 | BQ24: 4.78 | BR24: 5.13 | BS24: 5.13 | BT24: 5.26 | BU24: 5.31 | BV24: 5.31 | BW24: 5.55 | BX24: 5.55 | BY24: 5.55 | BZ24: 5.67 | CA24: 5.72 | CB24: 6.1 | CC24: 6.1 | CD24: 6.18 | CE24: 6.18 | CF24: 6.23 | CG24: 6.48 | CH24: 6.63 | CI24: 6.63 | CJ24: 6.63 | CK24: 6.63 | CL24: 6.63 | CM24: 6.63 | CN24: 6.63 | CO24: 6.63 | CP24: 6.63 | CQ24: 6.63 | CR24: 6.63 | CS24: 6.63 | CT24: 6.63 | CU24: 6.63 | CV24: 6.63
A25: 25 | B25: 0 | C25: 0 | D25: 0 | E25: 0 | F25: 0 | G25: 0 | H25: 0 | I25: 0 | J25: 0 | K25: 0 | L25: 0 | M25: 0 | N25: 0 | O25: 0 | P25: 0 | Q25: 0 | R25: 0 | S25: 0 | T25: 0 | U25: 0 | V25: 0 | W25: 0 | X25: 0 | Y25: 0 | Z25: 0 | AA25: 0 | AB25: 0 | AC25: 0 | AD25: 0 | AE25: 0 | AF25: 0 | AG25: 0 | AH25: 0 | AI25: 0 | AJ25: 0 | AK25: 0 | AL25: 0 | AM25: 0 | AN25: 0 | AO25: 0 | AP25: 0 | AQ25: 0 | AR25: 0 | AS25: 0 | AT25: 0 | AU25: 0 | AV25: 0 | AW25: 0 | AX25: 3.39 | AY25: 3.44 | AZ25: 3.48 | BA25: 3.53 | BB25: 3.59 | BC25: 3.63 | BD25: 3.68 | BE25: 3.73 | BF25: 3.77 | BG25: 3.98 | BH25: 4.37 | BI25: 4.37 | BJ25: 4.37 | BK25: 4.37 | BL25: 4.37 | BM25: 4.7 | BN25: 4.7 | BO25: 4.7 | BP25: 4.7 | BQ25: 4.78 | BR25: 5.13 | BS25: 5.13 | BT25: 5.26 | BU25: 5.31 | BV25: 5.31 | BW25: 5.55 | BX25: 5.55 | BY25: 5.55 | BZ25: 5.67 | CA25: 5.72 | CB25: 6.1 | CC25: 6.1 | CD25: 6.18 | CE25: 6.18 | CF25: 6.23 | CG25: 6.48 | CH25: 6.63 | CI25: 6.63 | CJ25: 6.63 | CK25: 6.63 | CL25: 6.63 | CM25: 6.63 | CN25: 6.63 | CO25: 6.63 | CP25: 6.63 | CQ25: 6.63 | CR25: 6.63 | CS25: 6.63 | CT25: 6.63 | CU25: 6.63 | CV25: 6.63
A26: 26 | B26: 0 | C26: 0 | D26: 0 | E26: 0 | F26: 0 | G26: 0 | H26: 0 | I26: 0 | J26: 0 | K26: 0 | L26: 0 | M26: 0 | N26: 0 | O26: 0 | P26: 0 | Q26: 0 | R26: 0 | S26: 0 | T26: 0 | U26: 0 | V26: 0 | W26: 0 | X26: 0 | Y26: 0 | Z26: 0 | AA26: 0 | AB26: 0 | AC26: 0 | AD26: 0 | AE26: 0 | AF26: 0 | AG26: 0 | AH26: 0 | AI26: 0 | AJ26: 0 | AK26: 0 | AL26: 0 | AM26: 0 | AN26: 0 | AO26: 0 | AP26: 0 | AQ26: 0 | AR26: 0 | AS26: 0 | AT26: 0 | AU26: 0 | AV26: 0 | AW26: 0 | AX26: 3.39 | AY26: 3.44 | AZ26: 3.48 | BA26: 3.53 | BB26: 3.59 | BC26: 3.63 | BD26: 3.68 | BE26: 3.73 | BF26: 3.77 | BG26: 3.98 | BH26: 4.37 | BI26: 4.37 | BJ26: 4.37 | BK26: 4.37 | BL26: 4.37 | BM26: 4.7 | BN26: 4.7 | BO26: 4.7 | BP26: 4.7 | BQ26: 4.78 | BR26: 5.13 | BS26: 5.13 | BT26: 5.26 | BU26: 5.31 | BV26: 5.31 | BW26: 5.55 | BX26: 5.55 | BY26: 5.55 | BZ26: 5.67 | CA26: 5.72 | CB26: 6.1 | CC26: 6.1 | CD26: 6.18 | CE26: 6.18 | CF26: 6.23 | CG26: 6.48 | CH26: 6.63 | CI26: 6.63 | CJ26: 6.63 | CK26: 6.63 | CL26: 6.63 | CM26: 6.63 | CN26: 6.63 | CO26: 6.63 | CP26: 6.63 | CQ26: 6.63 | CR26: 6.63 | CS26: 6.63 | CT26: 6.63 | CU26: 6.63 | CV26: 6.63
A27: 27 | B27: 0 | C27: 0 | D27: 0 | E27: 0 | F27: 0 | G27: 0 | H27: 0 | I27: 0 | J27: 0 | K27: 0 | L27: 0 | M27: 0 | N27: 0 | O27: 0 | P27: 0 | Q27: 0 | R27: 0 | S27: 0 | T27: 0 | U27: 0 | V27: 0 | W27: 0 | X27: 0 | Y27: 0 | Z27: 0 | AA27: 0 | AB27: 0 | AC27: 0 | AD27: 0 | AE27: 0 | AF27: 0 | AG27: 0 | AH27: 0 | AI27: 0 | AJ27: 0 | AK27: 0 | AL27: 0 | AM27: 0 | AN27: 0 | AO27: 0 | AP27: 0 | AQ27: 0 | AR27: 0 | AS27: 0 | AT27: 0 | AU27: 0 | AV27: 0 | AW27: 0 | AX27: 3.39 | AY27: 3.44 | AZ27: 3.48 | BA27: 3.53 | BB27: 3.59 | BC27: 3.63 | BD27: 3.68 | BE27: 3.73 | BF27: 3.77 | BG27: 3.98 | BH27: 4.37 | BI27: 4.37 | BJ27: 4.37 | BK27: 4.37 | BL27: 4.37 | BM27: 4.7 | BN27: 4.7 | BO27: 4.7 | BP27: 4.7 | BQ27: 4.78 | BR27: 5.13 | BS27: 5.13 | BT27: 5.26 | BU27: 5.31 | BV27: 5.31 | BW27: 5.55 | BX27: 5.55 | BY27: 5.55 | BZ27: 5.67 | CA27: 5.72 | CB27: 6.1 | CC27: 6.1 | CD27: 6.18 | CE27: 6.18 | CF27: 6.23 | CG27: 6.48 | CH27: 6.63 | CI27: 6.63 | CJ27: 6.63 | CK27: 6.63 | CL27: 6.63 | CM27: 6.63 | CN27: 6.63 | CO27: 6.63 | CP27: 6.63 | CQ27: 6.63 | CR27: 6.63 | CS27: 6.63 | CT27: 6.63 | CU27: 6.63 | CV27: 6.63
A28: 28 | B28: 0 | C28: 0 | D28: 0 | E28: 0 | F28: 0 | G28: 0 | H28: 0 | I28: 0 | J28: 0 | K28: 0 | L28: 0 | M28: 0 | N28: 0 | O28: 0 | P28: 0 | Q28: 0 | R28: 0 | S28: 0 | T28: 0 | U28: 0 | V28: 0 | W28: 0 | X28: 0 | Y28: 0 | Z28: 0 | AA28: 0 | AB28: 0 | AC28: 0 | AD28: 0 | AE28: 0 | AF28: 0 | AG28: 0 | AH28: 0 | AI28: 0 | AJ28: 0 | AK28: 0 | AL28: 0 | AM28: 0 | AN28: 0 | AO28: 0 | AP28: 0 | AQ28: 0 | AR28: 0 | AS28: 0 | AT28: 0 | AU28: 0 | AV28: 0 | AW28: 0 | AX28: 3.39 | AY28: 3.44 | AZ28: 3.48 | BA28: 3.53 | BB28: 3.59 | BC28: 3.63 | BD28: 3.68 | BE28: 3.73 | BF28: 3.77 | BG28: 3.98 | BH28: 4.37 | BI28: 4.37 | BJ28: 4.37 | BK28: 4.37 | BL28: 4.37 | BM28: 4.7 | BN28: 4.7 | BO28: 4.7 | BP28: 4.7 | BQ28: 4.78 | BR28: 5.13 | BS28: 5.13 | BT28: 5.26 | BU28: 5.31 | BV28: 5.31 | BW28: 5.55 | BX28: 5.55 | BY28: 5.55 | BZ28: 5.67 | CA28: 5.72 | CB28: 6.1 | CC28: 6.1 | CD28: 6.18 | CE28: 6.18 | CF28: 6.23 | CG28: 6.48 | CH28: 6.63 | CI28: 6.63 | CJ28: 6.63 | CK28: 6.63 | CL28: 6.63 | CM28: 6.63 | CN28: 6.63 | CO28: 6.63 | CP28: 6.63 | CQ28: 6.63 | CR28: 6.63 | CS28: 6.63 | CT28: 6.63 | CU28: 6.63 | CV28: 6.63
A29: 29 | B29: 0 | C29: 0 | D29: 0 | E29: 0 | F29: 0 | G29: 0 | H29: 0 | I29: 0 | J29: 0 | K29: 0 | L29: 0 | M29: 0 | N29: 0 | O29: 0 | P29: 0 | Q29: 0 | R29: 0 | S29: 0 | T29: 0 | U29: 0 | V29: 0 | W29: 0 | X29: 0 | Y29: 0 | Z29: 0 | AA29: 0 | AB29: 0 | AC29: 0 | AD29: 0 | AE29: 0 | AF29: 0 | AG29: 0 | AH29: 0 | AI29: 0 | AJ29: 0 | AK29: 0 | AL29: 0 | AM29: 0 | AN29: 0 | AO29: 0 | AP29: 0 | AQ29: 0 | AR29: 0 | AS29: 0 | AT29: 0 | AU29: 0 | AV29: 0 | AW29: 0 | AX29: 3.39 | AY29: 3.44 | AZ29: 3.48 | BA29: 3.53 | BB29: 3.59 | BC29: 3.63 | BD29: 3.68 | BE29: 3.73 | BF29: 3.77 | BG29: 3.98 | BH29: 4.37 | BI29: 4.37 | BJ29: 4.37 | BK29: 4.37 | BL29: 4.37 | BM29: 4.7 | BN29: 4.7 | BO29: 4.7 | BP29: 4.7 | BQ29: 4.78 | BR29: 5.13 | BS29: 5.13 | BT29: 5.26 | BU29: 5.31 | BV29: 5.31 | BW29: 5.55 | BX29: 5.55 | BY29: 5.55 | BZ29: 5.67 | CA29: 5.72 | CB29: 6.1 | CC29: 6.1 | CD29: 6.18 | CE29: 6.18 | CF29: 6.23 | CG29: 6.48 | CH29: 6.63 | CI29: 6.63 | CJ29: 6.63 | CK29: 6.63 | CL29: 6.63 | CM29: 6.63 | CN29: 6.63 | CO29: 6.63 | CP29: 6.63 | CQ29: 6.63 | CR29: 6.63 | CS29: 6.63 | CT29: 6.63 | CU29: 6.63 | CV29: 6.63
A30: 30 | B30: 0 | C30: 0 | D30: 0 | E30: 0 | F30: 0 | G30: 0 | H30: 0 | I30: 0 | J30: 0 | K30: 0 | L30: 0 | M30: 0 | N30: 0 | O30: 0 | P30: 0 | Q30: 0 | R30: 0 | S30: 0 | T30: 0 | U30: 0 | V30: 0 | W30: 0 | X30: 0 | Y30: 0 | Z30: 0 | AA30: 0 | AB30: 0 | AC30: 0 | AD30: 0 | AE30: 0 | AF30: 0 | AG30: 0 | AH30: 0 | AI30: 0 | AJ30: 0 | AK30: 0 | AL30: 0 | AM30: 0 | AN30: 0 | AO30: 0 | AP30: 0 | AQ30: 0 | AR30: 0 | AS30: 0 | AT30: 0 | AU30: 0 | AV30: 0 | AW30: 0 | AX30: 3.39 | AY30: 3.44 | AZ30: 3.48 | BA30: 3.53 | BB30: 3.59 | BC30: 3.63 | BD30: 3.68 | BE30: 3.73 | BF30: 3.77 | BG30: 3.98 | BH30: 4.37 | BI30: 4.37 | BJ30: 4.37 | BK30: 4.37 | BL30: 4.37 | BM30: 4.7 | BN30: 4.7 | BO30: 4.7 | BP30: 4.7 | BQ30: 4.78 | BR30: 5.13 | BS30: 5.13 | BT30: 5.26 | BU30: 5.31 | BV30: 5.31 | BW30: 5.55 | BX30: 5.55 | BY30: 5.55 | BZ30: 5.67 | CA30: 5.72 | CB30: 6.1 | CC30: 6.1 | CD30: 6.18 | CE30: 6.18 | CF30: 6.23 | CG30: 6.48 | CH30: 6.63 | CI30: 6.63 | CJ30: 6.63 | CK30: 6.63 | CL30: 6.63 | CM30: 6.63 | CN30: 6.63 | CO30: 6.63 | CP30: 6.63 | CQ30: 6.63 | CR30: 6.63 | CS30: 6.63 | CT30: 6.63 | CU30: 6.63 | CV30: 6.63
A31: 31 | B31: 0 | C31: 0 | D31: 0 | E31: 0 | F31: 0 | G31: 0 | H31: 0 | I31: 0 | J31: 0 | K31: 0 | L31: 0 | M31: 0 | N31: 0 | O31: 0 | P31: 0 | Q31: 0 | R31: 0 | S31: 0 | T31: 0 | U31: 0 | V31: 0 | W31: 0 | X31: 0 | Y31: 0 | Z31: 0 | AA31: 0 | AB31: 0 | AC31: 0 | AD31: 0 | AE31: 0 | AF31: 0 | AG31: 0 | AH31: 0 | AI31: 0 | AJ31: 0 | AK31: 0 | AL31: 0 | AM31: 0 | AN31: 0 | AO31: 0 | AP31: 0 | AQ31: 0 | AR31: 0 | AS31: 0 | AT31: 0 | AU31: 0 | AV31: 0 | AW31: 0 | AX31: 3.39 | AY31: 3.44 | AZ31: 3.48 | BA31: 3.53 | BB31: 3.59 | BC31: 3.63 | BD31: 3.68 | BE31: 3.73 | BF31: 3.77 | BG31: 3.98 | BH31: 4.37 | BI31: 4.37 | BJ31: 4.37 | BK31: 4.37 | BL31: 4.37 | BM31: 4.7 | BN31: 4.7 | BO31: 4.7 | BP31: 4.7 | BQ31: 4.78 | BR31: 5.13 | BS31: 5.13 | BT31: 5.26 | BU31: 5.31 | BV31: 5.31 | BW31: 5.55 | BX31: 5.55 | BY31: 5.55 | BZ31: 5.67 | CA31: 5.72 | CB31: 6.1 | CC31: 6.1 | CD31: 6.18 | CE31: 6.18 | CF31: 6.23 | CG31: 6.48 | CH31: 6.63 | CI31: 6.63 | CJ31: 6.63 | CK31: 6.63 | CL31: 6.63 | CM31: 6.63 | CN31: 6.63 | CO31: 6.63 | CP31: 6.63 | CQ31: 6.63 | CR31: 6.63 | CS31: 6.63 | CT31: 6.63 | CU31: 6.63 | CV31: 6.63
A32: 32 | B32: 0 | C32: 0 | D32: 0 | E32: 0 | F32: 0 | G32: 0 | H32: 0 | I32: 0 | J32: 0 | K32: 0 | L32: 0 | M32: 0 | N32: 0 | O32: 0 | P32: 0 | Q32: 0 | R32: 0 | S32: 0 | T32: 0 | U32: 0 | V32: 0 | W32: 0 | X32: 0 | Y32: 0 | Z32: 0 | AA32: 0 | AB32: 0 | AC32: 0 | AD32: 0 | AE32: 0 | AF32: 0 | AG32: 0 | AH32: 0 | AI32: 0 | AJ32: 0 | AK32: 0 | AL32: 0 | AM32: 0 | AN32: 0 | AO32: 0 | AP32: 0 | AQ32: 0 | AR32: 0 | AS32: 0 | AT32: 0 | AU32: 0 | AV32: 0 | AW32: 0 | AX32: 3.39 | AY32: 3.44 | AZ32: 3.48 | BA32: 3.53 | BB32: 3.59 | BC32: 3.63 | BD32: 3.68 | BE32: 3.73 | BF32: 3.77 | BG32: 3.98 | BH32: 4.37 | BI32: 4.37 | BJ32: 4.37 | BK32: 4.37 | BL32: 4.37 | BM32: 4.7 | BN32: 4.7 | BO32: 4.7 | BP32: 4.7 | BQ32: 4.78 | BR32: 5.13 | BS32: 5.13 | BT32: 5.26 | BU32: 5.31 | BV32: 5.31 | BW32: 5.55 | BX32: 5.55 | BY32: 5.55 | BZ32: 5.67 | CA32: 5.72 | CB32: 6.1 | CC32: 6.1 | CD32: 6.18 | CE32: 6.18 | CF32: 6.23 | CG32: 6.48 | CH32: 6.63 | CI32: 6.63 | CJ32: 6.63 | CK32: 6.63 | CL32: 6.63 | CM32: 6.63 | CN32: 6.63 | CO32: 6.63 | CP32: 6.63 | CQ32: 6.63 | CR32: 6.63 | CS32: 6.63 | CT32: 6.63 | CU32: 6.63 | CV32: 6.63
A33: 33 | B33: 0 | C33: 0 | D33: 0 | E33: 0 | F33: 0 | G33: 0 | H33: 0 | I33: 0 | J33: 0 | K33: 0 | L33: 0 | M33: 0 | N33: 0 | O33: 0 | P33: 0 | Q33: 0 | R33: 0 | S33: 0 | T33: 0 | U33: 0 | V33: 0 | W33: 0 | X33: 0 | Y33: 0 | Z33: 0 | AA33: 0 | AB33: 0 | AC33: 0 | AD33: 0 | AE33: 0 | AF33: 0 | AG33: 0 | AH33: 0 | AI33: 0 | AJ33: 0 | AK33: 0 | AL33: 0 | AM33: 0 | AN33: 0 | AO33: 0 | AP33: 0 | AQ33: 0 | AR33: 0 | AS33: 0 | AT33: 0 | AU33: 0 | AV33: 0 | AW33: 0 | AX33: 3.39 | AY33: 3.44 | AZ33: 3.48 | BA33: 3.53 | BB33: 3.59 | BC33: 3.63 | BD33: 3.68 | BE33: 3.73 | BF33: 3.77 | BG33: 3.98 | BH33: 4.37 | BI33: 4.37 | BJ33: 4.37 | BK33: 4.37 | BL33: 4.37 | BM33: 4.7 | BN33: 4.7 | BO33: 4.7 | BP33: 4.7 | BQ33: 4.78 | BR33: 5.13 | BS33: 5.13 | BT33: 5.26 | BU33: 5.31 | BV33: 5.31 | BW33: 5.55 | BX33: 5.55 | BY33: 5.55 | BZ33: 5.67 | CA33: 5.72 | CB33: 6.1 | CC33: 6.1 | CD33: 6.18 | CE33: 6.18 | CF33: 6.23 | CG33: 6.48 | CH33: 6.63 | CI33: 6.63 | CJ33: 6.63 | CK33: 6.63 | CL33: 6.63 | CM33: 6.63 | CN33: 6.63 | CO33: 6.63 | CP33: 6.63 | CQ33: 6.63 | CR33: 6.63 | CS33: 6.63 | CT33: 6.63 | CU33: 6.63 | CV33: 6.63
A34: 34 | B34: 0 | C34: 0 | D34: 0 | E34: 0 | F34: 0 | G34: 0 | H34: 0 | I34: 0 | J34: 0 | K34: 0 | L34: 0 | M34: 0 | N34: 0 | O34: 0 | P34: 0 | Q34: 0 | R34: 0 | S34: 0 | T34: 0 | U34: 0 | V34: 0 | W34: 0 | X34: 0 | Y34: 0 | Z34: 0 | AA34: 0 | AB34: 0 | AC34: 0 | AD34: 0 | AE34: 0 | AF34: 0 | AG34: 0 | AH34: 0 | AI34: 0 | AJ34: 0 | AK34: 0 | AL34: 0 | AM34: 0 | AN34: 0 | AO34: 0 | AP34: 0 | AQ34: 0 | AR34: 0 | AS34: 0 | AT34: 0 | AU34: 0 | AV34: 0 | AW34: 0 | AX34: 3.39 | AY34: 3.44 | AZ34: 3.48 | BA34: 3.53 | BB34: 3.59 | BC34: 3.63 | BD34: 3.68 | BE34: 3.73 | BF34: 3.77 | BG34: 3.98 | BH34: 4.37 | BI34: 4.37 | BJ34: 4.37 | BK34: 4.37 | BL34: 4.37 | BM34: 4.7 | BN34: 4.7 | BO34: 4.7 | BP34: 4.7 | BQ34: 4.78 | BR34: 5.13 | BS34: 5.13 | BT34: 5.26 | BU34: 5.31 | BV34: 5.31 | BW34: 5.55 | BX34: 5.55 | BY34: 5.55 | BZ34: 5.67 | CA34: 5.72 | CB34: 6.1 | CC34: 6.1 | CD34: 6.18 | CE34: 6.18 | CF34: 6.23 | CG34: 6.48 | CH34: 6.63 | CI34: 6.63 | CJ34: 6.63 | CK34: 6.63 | CL34: 6.63 | CM34: 6.63 | CN34: 6.63 | CO34: 6.63 | CP34: 6.63 | CQ34: 6.63 | CR34: 6.63 | CS34: 6.63 | CT34: 6.63 | CU34: 6.63 | CV34: 6.63
A35: 35 | B35: 0 | C35: 0 | D35: 0 | E35: 0 | F35: 0 | G35: 0 | H35: 0 | I35: 0 | J35: 0 | K35: 0 | L35: 0 | M35: 0 | N35: 0 | O35: 0 | P35: 0 | Q35: 0 | R35: 0 | S35: 0 | T35: 0 | U35: 0 | V35: 0 | W35: 0 | X35: 0 | Y35: 0 | Z35: 0 | AA35: 0 | AB35: 0 | AC35: 0 | AD35: 0 | AE35: 0 | AF35: 0 | AG35: 0 | AH35: 0 | AI35: 0 | AJ35: 0 | AK35: 0 | AL35: 0 | AM35: 0 | AN35: 0 | AO35: 0 | AP35: 0 | AQ35: 0 | AR35: 0 | AS35: 0 | AT35: 0 | AU35: 0 | AV35: 0 | AW35: 0 | AX35: 3.39 | AY35: 3.44 | AZ35: 3.48 | BA35: 3.53 | BB35: 3.59 | BC35: 3.63 | BD35: 3.68 | BE35: 3.73 | BF35: 3.77 | BG35: 3.98 | BH35: 4.37 | BI35: 4.37 | BJ35: 4.37 | BK35: 4.37 | BL35: 4.37 | BM35: 4.7 | BN35: 4.7 | BO35: 4.7 | BP35: 4.7 | BQ35: 4.78 | BR35: 5.13 | BS35: 5.13 | BT35: 5.26 | BU35: 5.31 | BV35: 5.31 | BW35: 5.55 | BX35: 5.55 | BY35: 5.55 | BZ35: 5.67 | CA35: 5.72 | CB35: 6.1 | CC35: 6.1 | CD35: 6.18 | CE35: 6.18 | CF35: 6.23 | CG35: 6.48 | CH35: 6.63 | CI35: 6.63 | CJ35: 6.63 | CK35: 6.63 | CL35: 6.63 | CM35: 6.63 | CN35: 6.63 | CO35: 6.63 | CP35: 6.63 | CQ35: 6.63 | CR35: 6.63 | CS35: 6.63 | CT35: 6.63 | CU35: 6.63 | CV35: 6.63
A36: 36 | B36: 0 | C36: 0 | D36: 0 | E36: 0 | F36: 0 | G36: 0 | H36: 0 | I36: 0 | J36: 0 | K36: 0 | L36: 0 | M36: 0 | N36: 0 | O36: 0 | P36: 0 | Q36: 0 | R36: 0 | S36: 0 | T36: 0 | U36: 0 | V36: 0 | W36: 0 | X36: 0 | Y36: 0 | Z36: 0 | AA36: 0 | AB36: 0 | AC36: 0 | AD36: 0 | AE36: 0 | AF36: 0 | AG36: 0 | AH36: 0 | AI36: 0 | AJ36: 0 | AK36: 0 | AL36: 0 | AM36: 0 | AN36: 0 | AO36: 0 | AP36: 0 | AQ36: 0 | AR36: 0 | AS36: 0 | AT36: 0 | AU36: 0 | AV36: 0 | AW36: 0 | AX36: 3.39 | AY36: 3.44 | AZ36: 3.48 | BA36: 3.53 | BB36: 3.59 | BC36: 3.63 | BD36: 3.68 | BE36: 3.73 | BF36: 3.77 | BG36: 3.98 | BH36: 4.37 | BI36: 4.37 | BJ36: 4.37 | BK36: 4.37 | BL36: 4.37 | BM36: 4.7 | BN36: 4.7 | BO36: 4.7 | BP36: 4.7 | BQ36: 4.78 | BR36: 5.13 | BS36: 5.13 | BT36: 5.26 | BU36: 5.31 | BV36: 5.31 | BW36: 5.55 | BX36: 5.55 | BY36: 5.55 | BZ36: 5.67 | CA36: 5.72 | CB36: 6.1 | CC36: 6.1 | CD36: 6.18 | CE36: 6.18 | CF36: 6.23 | CG36: 6.48 | CH36: 6.63 | CI36: 6.63 | CJ36: 6.63 | CK36: 6.63 | CL36: 6.63 | CM36: 6.63 | CN36: 6.63 | CO36: 6.63 | CP36: 6.63 | CQ36: 6.63 | CR36: 6.63 | CS36: 6.63 | CT36: 6.63 | CU36: 6.63 | CV36: 6.63
A37: 37 | B37: 0 | C37: 0 | D37: 0 | E37: 0 | F37: 0 | G37: 0 | H37: 0 | I37: 0 | J37: 0 | K37: 0 | L37: 0 | M37: 0 | N37: 0 | O37: 0 | P37: 0 | Q37: 0 | R37: 0 | S37: 0 | T37: 0 | U37: 0 | V37: 0 | W37: 0 | X37: 0 | Y37: 0 | Z37: 0 | AA37: 0 | AB37: 0 | AC37: 0 | AD37: 0 | AE37: 0 | AF37: 0 | AG37: 0 | AH37: 0 | AI37: 0 | AJ37: 0 | AK37: 0 | AL37: 0 | AM37: 0 | AN37: 0 | AO37: 0 | AP37: 0 | AQ37: 0 | AR37: 0 | AS37: 0 | AT37: 0 | AU37: 0 | AV37: 0 | AW37: 0 | AX37: 3.39 | AY37: 3.44 | AZ37: 3.48 | BA37: 3.53 | BB37: 3.59 | BC37: 3.63 | BD37: 3.68 | BE37: 3.73 | BF37: 3.77 | BG37: 3.98 | BH37: 4.37 | BI37: 4.37 | BJ37: 4.37 | BK37: 4.37 | BL37: 4.37 | BM37: 4.7 | BN37: 4.7 | BO37: 4.7 | BP37: 4.7 | BQ37: 4.78 | BR37: 5.13 | BS37: 5.13 | BT37: 5.26 | BU37: 5.31 | BV37: 5.31 | BW37: 5.55 | BX37: 5.55 | BY37: 5.55 | BZ37: 5.67 | CA37: 5.72 | CB37: 6.1 | CC37: 6.1 | CD37: 6.18 | CE37: 6.18 | CF37: 6.23 | CG37: 6.48 | CH37: 6.63 | CI37: 6.63 | CJ37: 6.63 | CK37: 6.63 | CL37: 6.63 | CM37: 6.63 | CN37: 6.63 | CO37: 6.63 | CP37: 6.63 | CQ37: 6.63 | CR37: 6.63 | CS37: 6.63 | CT37: 6.63 | CU37: 6.63 | CV37: 6.63
A38: 38 | B38: 0 | C38: 0 | D38: 0 | E38: 0 | F38: 0 | G38: 0 | H38: 0 | I38: 0 | J38: 0 | K38: 0 | L38: 0 | M38: 0 | N38: 0 | O38: 0 | P38: 0 | Q38: 0 | R38: 0 | S38: 0 | T38: 0 | U38: 0 | V38: 0 | W38: 0 | X38: 0 | Y38: 0 | Z38: 0 | AA38: 0 | AB38: 0 | AC38: 0 | AD38: 0 | AE38: 0 | AF38: 0 | AG38: 0 | AH38: 0 | AI38: 0 | AJ38: 0 | AK38: 0 | AL38: 0 | AM38: 0 | AN38: 0 | AO38: 0 | AP38: 0 | AQ38: 0 | AR38: 0 | AS38: 0 | AT38: 0 | AU38: 0 | AV38: 0 | AW38: 0 | AX38: 3.39 | AY38: 3.44 | AZ38: 3.48 | BA38: 3.53 | BB38: 3.59 | BC38: 3.63 | BD38: 3.68 | BE38: 3.73 | BF38: 3.77 | BG38: 3.98 | BH38: 4.37 | BI38: 4.37 | BJ38: 4.37 | BK38: 4.37 | BL38: 4.37 | BM38: 4.7 | BN38: 4.7 | BO38: 4.7 | BP38: 4.7 | BQ38: 4.78 | BR38: 5.13 | BS38: 5.13 | BT38: 5.26 | BU38: 5.31 | BV38: 5.31 | BW38: 5.55 | BX38: 5.55 | BY38: 5.55 | BZ38: 5.67 | CA38: 5.72 | CB38: 6.1 | CC38: 6.1 | CD38: 6.18 | CE38: 6.18 | CF38: 6.23 | CG38: 6.48 | CH38: 6.63 | CI38: 6.63 | CJ38: 6.63 | CK38: 6.63 | CL38: 6.63 | CM38: 6.63 | CN38: 6.63 | CO38: 6.63 | CP38: 6.63 | CQ38: 6.63 | CR38: 6.63 | CS38: 6.63 | CT38: 6.63 | CU38: 6.63 | CV38: 6.63
A39: 39 | B39: 0 | C39: 0 | D39: 0 | E39: 0 | F39: 0 | G39: 0 | H39: 0 | I39: 0 | J39: 0 | K39: 0 | L39: 0 | M39: 0 | N39: 0 | O39: 0 | P39: 0 | Q39: 0 | R39: 0 | S39: 0 | T39: 0 | U39: 0 | V39: 0 | W39: 0 | X39: 0 | Y39: 0 | Z39: 0 | AA39: 0 | AB39: 0 | AC39: 0 | AD39: 0 | AE39: 0 | AF39: 0 | AG39: 0 | AH39: 0 | AI39: 0 | AJ39: 0 | AK39: 0 | AL39: 0 | AM39: 0 | AN39: 0 | AO39: 0 | AP39: 0 | AQ39: 0 | AR39: 0 | AS39: 0 | AT39: 0 | AU39: 0 | AV39: 0 | AW39: 0 | AX39: 3.39 | AY39: 3.44 | AZ39: 3.48 | BA39: 3.53 | BB39: 3.59 | BC39: 3.63 | BD39: 3.68 | BE39: 3.73 | BF39: 3.77 | BG39: 3.98 | BH39: 4.37 | BI39: 4.37 | BJ39: 4.37 | BK39: 4.37 | BL39: 4.37 | BM39: 4.7 | BN39: 4.7 | BO39: 4.7 | BP39: 4.7 | BQ39: 4.78 | BR39: 5.13 | BS39: 5.13 | BT39: 5.26 | BU39: 5.31 | BV39: 5.31 | BW39: 5.55 | BX39: 5.55 | BY39: 5.55 | BZ39: 5.67 | CA39: 5.72 | CB39: 6.1 | CC39: 6.1 | CD39: 6.18 | CE39: 6.18 | CF39: 6.23 | CG39: 6.48 | CH39: 6.63 | CI39: 6.63 | CJ39: 6.63 | CK39: 6.63 | CL39: 6.63 | CM39: 6.63 | CN39: 6.63 | CO39: 6.63 | CP39: 6.63 | CQ39: 6.63 | CR39: 6.63 | CS39: 6.63 | CT39: 6.63 | CU39: 6.63 | CV39: 6.63
A40: 40 | B40: 0 | C40: 0 | D40: 0 | E40: 0 | F40: 0 | G40: 0 | H40: 0 | I40: 0 | J40: 0 | K40: 0 | L40: 0 | M40: 0 | N40: 0 | O40: 0 | P40: 0 | Q40: 0 | R40: 0 | S40: 0 | T40: 0 | U40: 0 | V40: 0 | W40: 0 | X40: 0 | Y40: 0 | Z40: 0 | AA40: 0 | AB40: 0 | AC40: 0 | AD40: 0 | AE40: 0 | AF40: 0 | AG40: 0 | AH40: 0 | AI40: 0 | AJ40: 0 | AK40: 0 | AL40: 0 | AM40: 0 | AN40: 0 | AO40: 0 | AP40: 0 | AQ40: 0 | AR40: 0 | AS40: 0 | AT40: 0 | AU40: 0 | AV40: 0 | AW40: 0 | AX40: 3.39 | AY40: 3.44 | AZ40: 3.48 | BA40: 3.53 | BB40: 3.59 | BC40: 3.63 | BD40: 3.68 | BE40: 3.73 | BF40: 3.77 | BG40: 3.98 | BH40: 4.37 | BI40: 4.37 | BJ40: 4.37 | BK40: 4.37 | BL40: 4.37 | BM40: 4.7 | BN40: 4.7 | BO40: 4.7 | BP40: 4.7 | BQ40: 4.78 | BR40: 5.13 | BS40: 5.13 | BT40: 5.26 | BU40: 5.31 | BV40: 5.31 | BW40: 5.55 | BX40: 5.55 | BY40: 5.55 | BZ40: 5.67 | CA40: 5.72 | CB40: 6.1 | CC40: 6.1 | CD40: 6.18 | CE40: 6.18 | CF40: 6.23 | CG40: 6.48 | CH40: 6.63 | CI40: 6.63 | CJ40: 6.63 | CK40: 6.63 | CL40: 6.63 | CM40: 6.63 | CN40: 6.63 | CO40: 6.63 | CP40: 6.63 | CQ40: 6.63 | CR40: 6.63 | CS40: 6.63 | CT40: 6.63 | CU40: 6.63 | CV40: 6.63
A41: 41 | B41: 0 | C41: 0 | D41: 0 | E41: 0 | F41: 0 | G41: 0 | H41: 0 | I41: 0 | J41: 0 | K41: 0 | L41: 0 | M41: 0 | N41: 0 | O41: 0 | P41: 0 | Q41: 0 | R41: 0 | S41: 0 | T41: 0 | U41: 0 | V41: 0 | W41: 0 | X41: 0 | Y41: 0 | Z41: 0 | AA41: 0 | AB41: 0 | AC41: 0 | AD41: 0 | AE41: 0 | AF41: 0 | AG41: 0 | AH41: 0 | AI41: 0 | AJ41: 0 | AK41: 0 | AL41: 0 | AM41: 0 | AN41: 0 | AO41: 0 | AP41: 0 | AQ41: 0 | AR41: 0 | AS41: 0 | AT41: 0 | AU41: 0 | AV41: 0 | AW41: 0 | AX41: 3.39 | AY41: 3.44 | AZ41: 3.48 | BA41: 3.53 | BB41: 3.59 | BC41: 3.63 | BD41: 3.68 | BE41: 3.73 | BF41: 3.77 | BG41: 3.98 | BH41: 4.37 | BI41: 4.37 | BJ41: 4.37 | BK41: 4.37 | BL41: 4.37 | BM41: 4.7 | BN41: 4.7 | BO41: 4.7 | BP41: 4.7 | BQ41: 4.78 | BR41: 5.13 | BS41: 5.13 | BT41: 5.26 | BU41: 5.31 | BV41: 5.31 | BW41: 5.55 | BX41: 5.55 | BY41: 5.55 | BZ41: 5.67 | CA41: 5.72 | CB41: 6.1 | CC41: 6.1 | CD41: 6.18 | CE41: 6.18 | CF41: 6.23 | CG41: 6.48 | CH41: 6.63 | CI41: 6.63 | CJ41: 6.63 | CK41: 6.63 | CL41: 6.63 | CM41: 6.63 | CN41: 6.63 | CO41: 6.63 | CP41: 6.63 | CQ41: 6.63 | CR41: 6.63 | CS41: 6.63 | CT41: 6.63 | CU41: 6.63 | CV41: 6.63
A42: 42 | B42: 0 | C42: 0 | D42: 0 | E42: 0 | F42: 0 | G42: 0 | H42: 0 | I42: 0 | J42: 0 | K42: 0 | L42: 0 | M42: 0 | N42: 0 | O42: 0 | P42: 0 | Q42: 0 | R42: 0 | S42: 0 | T42: 0 | U42: 0 | V42: 0 | W42: 0 | X42: 0 | Y42: 0 | Z42: 0 | AA42: 0 | AB42: 0 | AC42: 0 | AD42: 0 | AE42: 0 | AF42: 0 | AG42: 0 | AH42: 0 | AI42: 0 | AJ42: 0 | AK42: 0 | AL42: 0 | AM42: 0 | AN42: 0 | AO42: 0 | AP42: 0 | AQ42: 0 | AR42: 0 | AS42: 0 | AT42: 0 | AU42: 0 | AV42: 0 | AW42: 0 | AX42: 3.39 | AY42: 3.44 | AZ42: 3.48 | BA42: 3.53 | BB42: 3.59 | BC42: 3.63 | BD42: 3.68 | BE42: 3.73 | BF42: 3.77 | BG42: 3.98 | BH42: 4.37 | BI42: 4.37 | BJ42: 4.37 | BK42: 4.37 | BL42: 4.37 | BM42: 4.7 | BN42: 4.7 | BO42: 4.7 | BP42: 4.7 | BQ42: 4.78 | BR42: 5.13 | BS42: 5.13 | BT42: 5.26 | BU42: 5.31 | BV42: 5.31 | BW42: 5.55 | BX42: 5.55 | BY42: 5.55 | BZ42: 5.67 | CA42: 5.72 | CB42: 6.1 | CC42: 6.1 | CD42: 6.18 | CE42: 6.18 | CF42: 6.23 | CG42: 6.48 | CH42: 6.63 | CI42: 6.63 | CJ42: 6.63 | CK42: 6.63 | CL42: 6.63 | CM42: 6.63 | CN42: 6.63 | CO42: 6.63 | CP42: 6.63 | CQ42: 6.63 | CR42: 6.63 | CS42: 6.63 | CT42: 6.63 | CU42: 6.63 | CV42: 6.63
A43: 43 | B43: 0 | C43: 0 | D43: 0 | E43: 0 | F43: 0 | G43: 0 | H43: 0 | I43: 0 | J43: 0 | K43: 0 | L43: 0 | M43: 0 | N43: 0 | O43: 0 | P43: 0 | Q43: 0 | R43: 0 | S43: 0 | T43: 0 | U43: 0 | V43: 0 | W43: 0 | X43: 0 | Y43: 0 | Z43: 0 | AA43: 0 | AB43: 0 | AC43: 0 | AD43: 0 | AE43: 0 | AF43: 0 | AG43: 0 | AH43: 0 | AI43: 0 | AJ43: 0 | AK43: 0 | AL43: 0 | AM43: 0 | AN43: 0 | AO43: 0 | AP43: 0 | AQ43: 0 | AR43: 0 | AS43: 0 | AT43: 0 | AU43: 0 | AV43: 0 | AW43: 0 | AX43: 3.39 | AY43: 3.44 | AZ43: 3.48 | BA43: 3.53 | BB43: 3.59 | BC43: 3.63 | BD43: 3.68 | BE43: 3.73 | BF43: 3.77 | BG43: 3.98 | BH43: 4.37 | BI43: 4.37 | BJ43: 4.37 | BK43: 4.37 | BL43: 4.37 | BM43: 4.7 | BN43: 4.7 | BO43: 4.7 | BP43: 4.7 | BQ43: 4.78 | BR43: 5.13 | BS43: 5.13 | BT43: 5.26 | BU43: 5.31 | BV43: 5.31 | BW43: 5.55 | BX43: 5.55 | BY43: 5.55 | BZ43: 5.67 | CA43: 5.72 | CB43: 6.1 | CC43: 6.1 | CD43: 6.18 | CE43: 6.18 | CF43: 6.23 | CG43: 6.48 | CH43: 6.63 | CI43: 6.63 | CJ43: 6.63 | CK43: 6.63 | CL43: 6.63 | CM43: 6.63 | CN43: 6.63 | CO43: 6.63 | CP43: 6.63 | CQ43: 6.63 | CR43: 6.63 | CS43: 6.63 | CT43: 6.63 | CU43: 6.63 | CV43: 6.63
A44: 44 | B44: 0 | C44: 0 | D44: 0 | E44: 0 | F44: 0 | G44: 0 | H44: 0 | I44: 0 | J44: 0 | K44: 0 | L44: 0 | M44: 0 | N44: 0 | O44: 0 | P44: 0 | Q44: 0 | R44: 0 | S44: 0 | T44: 0 | U44: 0 | V44: 0 | W44: 0 | X44: 0 | Y44: 0 | Z44: 0 | AA44: 0 | AB44: 0 | AC44: 0 | AD44: 0 | AE44: 0 | AF44: 0 | AG44: 0 | AH44: 0 | AI44: 0 | AJ44: 0 | AK44: 0 | AL44: 0 | AM44: 0 | AN44: 0 | AO44: 0 | AP44: 0 | AQ44: 0 | AR44: 0 | AS44: 0 | AT44: 0 | AU44: 0 | AV44: 0 | AW44: 0 | AX44: 3.39 | AY44: 3.44 | AZ44: 3.48 | BA44: 3.53 | BB44: 3.59 | BC44: 3.63 | BD44: 3.68 | BE44: 3.73 | BF44: 3.77 | BG44: 3.98 | BH44: 4.37 | BI44: 4.37 | BJ44: 4.37 | BK44: 4.37 | BL44: 4.37 | BM44: 4.7 | BN44: 4.7 | BO44: 4.7 | BP44: 4.7 | BQ44: 4.78 | BR44: 5.13 | BS44: 5.13 | BT44: 5.26 | BU44: 5.31 | BV44: 5.31 | BW44: 5.55 | BX44: 5.55 | BY44: 5.55 | BZ44: 5.67 | CA44: 5.72 | CB44: 6.1 | CC44: 6.1 | CD44: 6.18 | CE44: 6.18 | CF44: 6.23 | CG44: 6.48 | CH44: 6.63 | CI44: 6.63 | CJ44: 6.63 | CK44: 6.63 | CL44: 6.63 | CM44: 6.63 | CN44: 6.63 | CO44: 6.63 | CP44: 6.63 | CQ44: 6.63 | CR44: 6.63 | CS44: 6.63 | CT44: 6.63 | CU44: 6.63 | CV44: 6.63
A45: 45 | B45: 0 | C45: 0 | D45: 0 | E45: 0 | F45: 0 | G45: 0 | H45: 0 | I45: 0 | J45: 0 | K45: 0 | L45: 0 | M45: 0 | N45: 0 | O45: 0 | P45: 0 | Q45: 0 | R45: 0 | S45: 0 | T45: 0 | U45: 0 | V45: 0 | W45: 0 | X45: 0 | Y45: 0 | Z45: 0 | AA45: 0 | AB45: 0 | AC45: 0 | AD45: 0 | AE45: 0 | AF45: 0 | AG45: 0 | AH45: 0 | AI45: 0 | AJ45: 0 | AK45: 0 | AL45: 0 | AM45: 0 | AN45: 0 | AO45: 0 | AP45: 0 | AQ45: 0 | AR45: 0 | AS45: 0 | AT45: 0 | AU45: 0 | AV45: 0 | AW45: 0 | AX45: 3.39 | AY45: 3.44 | AZ45: 3.48 | BA45: 3.53 | BB45: 3.59 | BC45: 3.63 | BD45: 3.68 | BE45: 3.73 | BF45: 3.77 | BG45: 3.98 | BH45: 4.37 | BI45: 4.37 | BJ45: 4.37 | BK45: 4.37 | BL45: 4.37 | BM45: 4.7 | BN45: 4.7 | BO45: 4.7 | BP45: 4.7 | BQ45: 4.78 | BR45: 5.13 | BS45: 5.13 | BT45: 5.26 | BU45: 5.31 | BV45: 5.31 | BW45: 5.55 | BX45: 5.55 | BY45: 5.55 | BZ45: 5.67 | CA45: 5.72 | CB45: 6.1 | CC45: 6.1 | CD45: 6.18 | CE45: 6.18 | CF45: 6.23 | CG45: 6.48 | CH45: 6.63 | CI45: 6.63 | CJ45: 6.63 | CK45: 6.63 | CL45: 6.63 | CM45: 6.63 | CN45: 6.63 | CO45: 6.63 | CP45: 6.63 | CQ45: 6.63 | CR45: 6.63 | CS45: 6.63 | CT45: 6.63 | CU45: 6.63 | CV45: 6.63
A46: 46 | B46: 0 | C46: 0 | D46: 0 | E46: 0 | F46: 0 | G46: 0 | H46: 0 | I46: 0 | J46: 0 | K46: 0 | L46: 0 | M46: 0 | N46: 0 | O46: 0 | P46: 0 | Q46: 0 | R46: 0 | S46: 0 | T46: 0 | U46: 0 | V46: 0 | W46: 0 | X46: 0 | Y46: 0 | Z46: 0 | AA46: 0 | AB46: 0 | AC46: 0 | AD46: 0 | AE46: 0 | AF46: 0 | AG46: 0 | AH46: 0 | AI46: 0 | AJ46: 0 | AK46: 0 | AL46: 0 | AM46: 0 | AN46: 0 | AO46: 0 | AP46: 0 | AQ46: 0 | AR46: 0 | AS46: 0 | AT46: 0 | AU46: 0 | AV46: 0 | AW46: 0 | AX46: 3.24 | AY46: 3.44 | AZ46: 3.48 | BA46: 3.53 | BB46: 3.59 | BC46: 3.63 | BD46: 3.68 | BE46: 3.73 | BF46: 3.77 | BG46: 3.98 | BH46: 4.37 | BI46: 4.37 | BJ46: 4.37 | BK46: 4.37 | BL46: 4.37 | BM46: 4.7 | BN46: 4.7 | BO46: 4.7 | BP46: 4.7 | BQ46: 4.78 | BR46: 5.13 | BS46: 5.13 | BT46: 5.26 | BU46: 5.31 | BV46: 5.31 | BW46: 5.55 | BX46: 5.55 | BY46: 5.55 | BZ46: 5.67 | CA46: 5.72 | CB46: 6.1 | CC46: 6.1 | CD46: 6.18 | CE46: 6.18 | CF46: 6.23 | CG46: 6.48 | CH46: 6.63 | CI46: 6.63 | CJ46: 6.63 | CK46: 6.63 | CL46: 6.63 | CM46: 6.63 | CN46: 6.63 | CO46: 6.63 | CP46: 6.63 | CQ46: 6.63 | CR46: 6.63 | CS46: 6.63 | CT46: 6.63 | CU46: 6.63 | CV46: 6.63
